Workbook

Sheet Info
D1: -1 | E1: 0 | F1: 1 | G1: 2 | H1: 3 | I1: 4 | J1: 5 | K1: 6 | L1: 7 | M1: 8 | N1: 9 | O1: 10 | P1: 11 | Q1: 12 | R1: 13 | S1: 14 | T1: 15 | Y1: =IF(OR(Z3="",Z4=""),"※ 市町村（左側）から順に選択してください","") -> ※ 市町村（左側）から順に選択してください | AD1: ｖ | AK1: v
V2: 表示行 | W2: 旧市町村数 | X2: 市町村行 | Y2: 参照シート、セル | Z2: check | AA2: 表示名 | AD2: 表示行 | AE2: 集落数 | AF2: 旧市町村行 | AG2: 参照シート | AH2: check | AK2: 表示行 | AL2: 集落数 | AM2: 旧市町村行 | AN2: 参照シート | AO2: check
D3: 県名 | G3: 市町村名 | J3: 旧市町村名 | V3: =IF(M4="",-1,IFERROR(MATCH(M4,OFFSET(集落2010,1,0,ROWS(集落2010),1),0)-1,3000))+AF3 -> 5 | W3: =COUNTIF('2010年'!B:B,Info!G4)-1 -> -1 | X3: =IF(G4="",6,MATCH(G4,'2010年'!B:B,0)) -> 6 | Y3: '2010年'!$A$1 | Z3: =OFFSET(INDIRECT(Y3),V3,1)&OFFSET(INDIRECT(Y3),V3,2)&OFFSET(INDIRECT(Y3),V3,3) ->  | AA3: =IF(OR(ISERROR(G4),ISERROR(J4),ISERROR(M4)),"表示できません",IF(G4&J4&M4="",D4,IF(M4<>"",M4,IF(J4<>"",IF($G$4=$J$4,"（旧）","")&$J$4,IF(J4<>"",J4,G4))))) -> 長野県 | AD3: =IF(M4="",-1,IFERROR(MATCH(M4,OFFSET(集落2010,1,0,ROWS(集落2010),1),0)-1,999))+AF3 -> 5 | AE3: =COUNTIF('2010年'!C:C,Info!J4)-1 -> -1 | AF3: =IF(J4="",X3,MATCH(J4,'2010年'!C:C,0)) -> 6 | AG3: '2010年'!$A$1 | AH3: =OFFSET(INDIRECT(AG3),AD3,1)&OFFSET(INDIRECT(AG3),AD3,2)&OFFSET(INDIRECT(AG3),AD3,3) ->  | AI3: =IF(OR(ISERROR(AJ3),ISERROR(AL3)),"表示できません",IF(V4<>"",V4,IF(R4<>"",IF($G$4=$J$4,"（旧）","")&$J$4,IF(O4<>"",O4,L4)))) -> 5 | AK3: =IF(M4="",-1,IFERROR(MATCH(M4,OFFSET(集落2010,1,0,ROWS(集落2010),1),0)-1,999))+AM3 -> 5 | AL3: =COUNTIF('2010年'!C:C,Info!J4)-1 -> -1 | AM3: =IF(J4="",X3,MATCH(J4,'2010年'!C:C,0)) -> 6 | AN3: '2010年'!$A$1 | AO3: =OFFSET(INDIRECT(AN3),AK3,1)&OFFSET(INDIRECT(AN3),AK3,2)&OFFSET(INDIRECT(AN3),AK3,3) ->  | AP3: =IF(OR(ISERROR(AQ3),ISERROR(AS3)),"表示できません",IF(AC4<>"",AC4,IF(Y4<>"",IF($G$4=$J$4,"（旧）","")&$J$4,IF(V4<>"",V4,S4)))) -> （旧）
D4: 長野県 | V4: =IF(M4="",-1,IFERROR(MATCH(M4,OFFSET(集落2015,1,0,ROWS(集落2015),1),0)-1,3000))+AF4 -> 5 | W4: =COUNTIF('2015年'!B:B,Info!G4)-1 -> -1 | X4: =IF(G4="",6,MATCH(G4,'2015年'!B:B,0)) -> 6 | Y4: '2015年'!$A$1 | Z4: =OFFSET(INDIRECT(Y4),V4,1)&OFFSET(INDIRECT(Y4),V4,2)&OFFSET(INDIRECT(Y4),V4,3) ->  | AD4: =IF(M4="",-1,IFERROR(MATCH(M4,OFFSET(集落2015,1,0,ROWS(集落2015),1),0)-1,999))+AF4 -> 5 | AE4: =COUNTIF('2015年'!C:C,Info!J4)-1 -> -1 | AF4: =IF(J4="",X3,MATCH(J4,'2015年'!C:C,0)) -> 6 | AG4: '2015年'!$A$1 | AH4: =OFFSET(INDIRECT(AG4),AD4,1)&OFFSET(INDIRECT(AG4),AD4,2)&OFFSET(INDIRECT(AG4),AD4,3) ->  | AK4: =IF(M4="",-1,IFERROR(MATCH(M4,OFFSET(集落2015,1,0,ROWS(集落2015),1),0)-1,999))+AM4 -> 5 | AL4: =COUNTIF('2015年'!C:C,Info!J4)-1 -> -1 | AM4: =IF(J4="",X4,MATCH(J4,'2010年'!C:C,0)) -> 6 | AN4: '2015年'!$A$1 | AO4: =OFFSET(INDIRECT(AN4),AK4,1)&OFFSET(INDIRECT(AN4),AK4,2)&OFFSET(INDIRECT(AN4),AK4,3) -> 
C6: ="総農家数" -> 総農家数 | G6: =IFERROR("◎ "&W11&IF(LEFT(R8,1)="県","の総農家に占める割合は "&TEXT(G13,"0.0")&"% で、"&D4&"（"&TEXT(G14,"0.0")&"%） "&X13,"は "&TEXT(G12,"#,###戸 で ")&W13&"、"&"総農家の "&TEXT(G13,"0.0")&"% を占める"),"") -> ◎ 販売農家は 51,777戸 で 10,299戸（16.6%） 減少、総農家の 49.4% を占める
K7: 単位：戸 | L7: 《主副業別割合》
F8: 総農家 | L8: =" "&IF(AND(LEFT(R8,1)<>"県",G4=""),D4,IF(LEFT(R8,1)="県",D12,$AA$3)) -> 長野県 | R8: 前回との比較
G9: 販売 農家 | K9: 自給的農家 | R9: ="外円："&IF(AND(LEFT(R8,1)="県",G4=""),D4,IF(LEFT(R8,1)="県",$AA$3,"2015年"))&CHAR(10)&"内円："&IF(LEFT(R8,1)="県",$D$4,"2010年") -> 外円：2015年 内円：2010年
H10: 主業 農家 | I10: 準主業 農家 | J10: 副業的 農家 | V10: 列番号 | W10: 概要 | Y10: 凡例 | AC10: 内円
D11: 2010年 | F11: =IFERROR(OFFSET(INDIRECT($Y$3),$V$3,$V11+E$1),"nc") -> 117,316 | G11: =IFERROR(OFFSET(INDIRECT($Y$3),$V$3,$V11+F$1),"nc") -> 62,076 | H11: =IFERROR(OFFSET(INDIRECT($Y$3),$V$3,$V11+G$1),"nc") -> 11,460 | I11: =IFERROR(OFFSET(INDIRECT($Y$3),$V$3,$V11+I$1),"nc") -> 14,357 | J11: =IFERROR(OFFSET(INDIRECT($Y$3),$V$3,$V11+K$1),"nc") -> 36,259 | K11: =IFERROR(OFFSET(INDIRECT($Y$3),$V$3,$V11+L$1),"nc") -> 55,240 | V11: =CELL("col",'2010年'!E6)-1 -> 4 | W11: 販売農家 | X11: 対県 | Y11: 主業農家 | Z11: 準主業農家 | AA11: 副業的農家 | AB11: 自給的農家 | AC11: =IF(LEFT(R8,1)="県",2,-1) -> -1
D12: 2015年 | F12: =IFERROR(OFFSET(INDIRECT($Y$4),$V$4,$V12+E$1),"nc") -> 104,759 | G12: =IFERROR(OFFSET(INDIRECT($Y$4),$V$4,$V12+F$1),"nc") -> 51,777 | H12: =IFERROR(OFFSET(INDIRECT($Y$4),$V$4,$V12+G$1),"nc") -> 9,798 | I12: =IFERROR(OFFSET(INDIRECT($Y$4),$V$4,$V12+I$1),"nc") -> 9,715 | J12: =IFERROR(OFFSET(INDIRECT($Y$4),$V$4,$V12+K$1),"nc") -> 32,264 | K12: =IFERROR(OFFSET(INDIRECT($Y$4),$V$4,$V12+L$1),"nc") -> 52,982 | V12: =CELL("col",'2015年'!E6)-1 -> 4 | W12: =G12/G11-1 -> -0.1659095303 | X12: =G13-G14 -> 0.0
E13: 構成比(%) | F13: =IF(OR(AND(ISTEXT($F12),$F12<>"X",$F12<>"-"),AND(ISTEXT(F12),F12<>"X",F12<>"-")),"nc",IF(OR($F12="X",F12="X"),"X",IF(ROUND(SUM($F12),0)=0,"nc",SUM(F12)/$F12%))) -> 100.0 | G13: =IF(OR(AND(ISTEXT($F12),$F12<>"X",$F12<>"-"),AND(ISTEXT(G12),G12<>"X",G12<>"-")),"nc",IF(OR($F12="X",G12="X"),"X",IF(ROUND(SUM($F12),0)=0,"nc",SUM(G12)/$F12%))) -> 49.4 | H13: =IF(OR(AND(ISTEXT($F12),$F12<>"X",$F12<>"-"),AND(ISTEXT(H12),H12<>"X",H12<>"-")),"nc",IF(OR($F12="X",H12="X"),"X",IF(ROUND(SUM($F12),0)=0,"nc",SUM(H12)/$F12%))) -> 9.4 | I13: 9.3 | J13: =IF(OR(AND(ISTEXT($F12),$F12<>"X",$F12<>"-"),AND(ISTEXT(J12),J12<>"X",J12<>"-")),"nc",IF(OR($F12="X",J12="X"),"X",IF(ROUND(SUM($F12),0)=0,"nc",SUM(J12)/$F12%))) -> 30.8 | K13: 50.6 | W13: =IF(W12=0,"変化なし",TEXT(ABS(G12-G11),"#,##0")&"戸（"&TEXT(ABS(W12),"0.0%")&"） "&IF(W12>0,"増加","減少")) -> 10,299戸（16.6%） 減少 | X13: =IF(X12=0,"と同率である","を"&TEXT(ABS(X12),"#,##0.0")&"ポイント "&IF(X12>0,"上回る","下回る")) -> と同率である
E14: 県計 構成比(%) | F14: 100.0 | G14: =IFERROR(OFFSET(INDIRECT($Y$4),5,$V$12+F1)/OFFSET(INDIRECT($Y$4),5,V12)*100,"nc") -> 49.4 | H14: =IFERROR(OFFSET(INDIRECT($Y$4),5,$V$12+G1)/OFFSET(INDIRECT($Y$4),5,V12)*100,"nc") -> 9.4 | I14: =IFERROR(OFFSET(INDIRECT($Y$4),5,$V$12+I1)/OFFSET(INDIRECT($Y$4),5,V12)*100,"nc") -> 9.3 | J14: =IFERROR(OFFSET(INDIRECT($Y$4),5,$V$12+K1)/OFFSET(INDIRECT($Y$4),5,V12)*100,"nc") -> 30.8 | K14: =IFERROR(OFFSET(INDIRECT($Y$4),5,$V$12+L1)/OFFSET(INDIRECT($Y$4),5,V12)*100,"nc") -> 50.6
D15: =IFERROR("《参考》"&G4&"の総農家数の全国順位："&TEXT(OFFSET(#REF!,MATCH(Info!G4,#REF!,0),0),"#,##0")&"位","") -> 
C18: 基幹的農業従事者数
D19: =IFERROR(IF(RIGHT(C18,4)="ください","","◎ "&C18&"は "&TEXT(F23,"#,##0人 で ")&W24&IFERROR("、平均年齢 "&TEXT(S23,"0.0歳は")&IF(LEFT(R28,1)="県","県平均","2010年")&X24,"")),"") -> ◎ 基幹的農業従事者数は 73,467人 で 9,780人（11.7%） 減少、平均年齢 69.1歳は2010年を 0.8歳上回る
S20: 単位：人
F21: 計 | G21: 15～39歳 | H21: 40～44 | I21: 45～49 | J21: 50～54 | K21: 55～59 | L21: 60～64 | M21: 65～69 | N21: 70～74 | O21: 75～79 | P21: 80～84 | Q21: 85歳以上 | R21: 65歳以上 | S21: 平均 年齢 （歳） | V21: 列番号 | W21: 概要 | Y21: 縦棒 左 | Z21: 縦棒 右 | AA21: 凡例
D22: 2010年 | F22: =IFERROR(OFFSET(INDIRECT($Y$3),$V$3,V23-1),"nc") -> 83,247 | G22: =IFERROR(IF(COUNTIF(OFFSET(INDIRECT($Y$3),$V$3,V23,1,5),"@")>0,"@",IF(COUNTIF(OFFSET(INDIRECT($Y$3),$V$3,V23,1,5),"X")>0,"X",SUM(OFFSET(INDIRECT($Y$3),$V$3,V23,1,5)))),"nc") -> 2,819 | H22: =IFERROR(OFFSET(INDIRECT($Y$3),$V$3,$V23+J$1),"nc") -> 1,622 | I22: =IFERROR(OFFSET(INDIRECT($Y$3),$V$3,$V23+K$1),"nc") -> 2,285 | J22: 3,600 | K22: 5,687 | L22: 9,757 | M22: 13,559 | N22: 15,335 | O22: 14,879 | P22: 9,797 | Q22: 3,907 | R22: =IF(COUNTIF(M22:Q22,"@"),"@",(IF(COUNTIF(M22:Q22,"X"),"X",SUM(M22:Q22)))) -> 57,477 | S22: =IFERROR(OFFSET(INDIRECT($Y$3),$V$3,V23+15),"nc") -> 68.3 | V22: =IF(C18="農業従事者数",1,IF(C18="農業就業人口",2,IF(C18="基幹的農業従事者数",3,ERROR.TYPE(5)))) -> 3 | W22: 人数 | X22: 平均年齢 | Y22: =IF(LEFT(R28,1)="県",3,-1) -> -1 | Z22: =IF(LEFT(R28,1)="県",1,0) -> 0 | AA22: =IF(LEFT(R28,1)="県",$D$4,$D22) -> 2010年
D23: 2015年 | F23: =IFERROR(OFFSET(INDIRECT($Y$4),$V$4,$V24-1),"nc") -> 73,467 | G23: =IFERROR(IF(COUNTIF(OFFSET(INDIRECT($Y$4),$V$4,$V24,1,5),"X")>0,"X",SUM(OFFSET(INDIRECT($Y$4),$V$4,$V24,1,5))),"nc") -> 2,751 | H23: =IFERROR(OFFSET(INDIRECT($Y$4),$V$4,$V24+5),"nc") -> 1,452 | I23: =IFERROR(OFFSET(INDIRECT($Y$4),$V$4,$V24+6),"nc") -> 1,862 | J23: =IFERROR(OFFSET(INDIRECT($Y$4),$V$4,$V24+7),"nc") -> 2,541 | K23: =IFERROR(OFFSET(INDIRECT($Y$4),$V$4,$V24+8),"nc") -> 4,118 | L23: =IFERROR(OFFSET(INDIRECT($Y$4),$V$4,$V24+9),"nc") -> 8,050 | M23: =IFERROR(OFFSET(INDIRECT($Y$4),$V$4,$V24+10),"nc") -> 12,008 | N23: =IFERROR(OFFSET(INDIRECT($Y$4),$V$4,$V24+11),"nc") -> 13,554 | O23: =IFERROR(OFFSET(INDIRECT($Y$4),$V$4,$V24+12),"nc") -> 12,547 | P23: =IFERROR(OFFSET(INDIRECT($Y$4),$V$4,$V24+13),"nc") -> 9,448 | Q23: =IFERROR(OFFSET(INDIRECT($Y$4),$V$4,$V24+14),"nc") -> 5,136 | R23: =IF(COUNTIF(M23:Q23,"X"),"X",SUM(M23:Q23)) -> 52,693 | S23: =IFERROR(OFFSET(INDIRECT($Y$4),$V$4,$V24+15),"nc") -> 69.1 | V23: =IFERROR(CHOOSE(V22,CELL("col",'2010年'!N6),CELL("col",'2010年'!AG6),CELL("col",'2010年'!AZ6))-1,555) -> 51 | W23: =F23/F22-1 -> -0.1174817111 | X23: =S23-IF(LEFT(R28,1)="県",S26,S22) -> 0.8 | AA23: =IF(AND(LEFT(R28,1)="県",G4=""),D4,IF(LEFT(R28,1)="県",AA3,D23)) -> 2015年
E24: 構成比(%) | F24: =IF(OR(AND(ISTEXT($F23),$F23<>"X",$F23<>"-"),AND(ISTEXT(F23),F23<>"X",F23<>"-")),"nc",IF(OR($F23="X",F23="X"),"X",IF(ROUND(SUM($F23),0)=0,"nc",SUM(F23)/$F23%))) -> 100.0 | G24: 3.7 | H24: 2.0 | I24: 2.5 | J24: 3.5 | K24: 5.6 | L24: 11.0 | M24: 16.3 | N24: 18.4 | O24: 17.1 | P24: 12.9 | Q24: 7.0 | R24: 71.7 | V24: =IFERROR(CHOOSE(V22,CELL("col",'2015年'!N6),CELL("col",'2015年'!AG6),CELL("col",'2015年'!AZ6))-1,555) -> 51 | W24: =IF(W23=0,"変化なし",TEXT(ABS(F23-F22),"#,##0人")&"（"&TEXT(ABS(W23),"0.0%")&"） "&IF(W23>0,"増加","減少")) -> 9,780人（11.7%） 減少 | X24: =IF(X23=0,"と同じである","を "&TEXT(ABS(X23),"0.0歳")&IF(X23>0,"上回る","下回る")) -> を 0.8歳上回る
E25: 2015年 | F25: =IFERROR(OFFSET(INDIRECT($Y$4),5,V24-1),"nc") -> 73,467 | G25: =IFERROR(SUM(OFFSET(INDIRECT($Y$4),5,V24,1,5)),"nc") -> 2,751 | H25: =IFERROR(OFFSET(INDIRECT($Y$4),5,V24+5),"nc") -> 1,452 | I25: =IFERROR(OFFSET(INDIRECT($Y$4),5,V24+6),"nc") -> 1,862 | J25: =IFERROR(OFFSET(INDIRECT($Y$4),5,V24+7),"nc") -> 2,541 | K25: =IFERROR(OFFSET(INDIRECT($Y$4),5,V24+8),"nc") -> 4,118 | L25: =IFERROR(OFFSET(INDIRECT($Y$4),5,V24+9),"nc") -> 8,050 | M25: =IFERROR(OFFSET(INDIRECT($Y$4),5,V24+10),"nc") -> 12,008 | N25: =IFERROR(OFFSET(INDIRECT($Y$4),5,V24+11),"nc") -> 13,554 | O25: =IFERROR(OFFSET(INDIRECT($Y$4),5,V24+12),"nc") -> 12,547 | P25: =IFERROR(OFFSET(INDIRECT($Y$4),5,V24+13),"nc") -> 9,448 | Q25: =IFERROR(OFFSET(INDIRECT($Y$4),5,V24+14),"nc") -> 5,136 | R25: =SUM(M25:Q25) -> 52,693
E26: 県計 構成比(%) | F26: 100.0 | G26: =IFERROR(ROUND(G25/$F25*100,1),"nc") -> 3.7 | H26: =IFERROR(ROUND(H25/$F25*100,1),"nc") -> 2.0 | I26: 2.5 | J26: 3.5 | K26: 5.6 | L26: 11.0 | M26: 16.3 | N26: 18.4 | O26: 17.1 | P26: 12.9 | Q26: 7.0 | R26: 71.7 | S26: =IFERROR(OFFSET(INDIRECT($Y$4),5,V24+15),"nc") -> 69.1
D27: =IF(LEFT(R28,1)="県","（％）","（人）") -> （人） | G27: ="《年齢階層別"&C18&IF(LEFT(R28,1)="県","割合","")&"》 "&IF(AND(LEFT(R28,1)<>"県",G4=""),D4,IF(LEFT(R28,1)="県",D23,AA3)) -> 《年齢階層別基幹的農業従事者数》 長野県
R28: 前回との比較
C41: 後継者がいる農家数（販売農家）
D42: =IFERROR(" ◎ 後継者がいる農家数の割合は "&TEXT(H51,"0.0")&"％（"&TEXT(H50,"#,##0")&"戸）で、"&IF(LEFT(Z48,1)="県","県平均の "&TEXT(H52,"0.0"),"2010年の "&TEXT(H48,"0.0"))&"％"&AB49,"") -> ◎ 後継者がいる農家数の割合は 52.2％（27,005戸）で、県平均の 52.2％と同率である
D43: =IFERROR(IF(LEFT(Z49,1)="県","県平均の "&TEXT(H52,"0.0")," 2010年の "&TEXT(H48,"0.0"))&"％"&AB47,"") -> 2010年の 61.5％ を 9.3ポイント 下回る
H44: 単位：戸 | J44: ="《後継者のいる農家数"&IF(LEFT(Z49,1)="県","割合","")&"》 "&IF(AND(LEFT(Z49,1)<>"県",G4=""),D4,IF(LEFT(Z49,1)="県","2015年",AA3)) -> 《後継者のいる農家数》 長野県 | P44: ="《後継者のいる農家数"&IF(LEFT(Z48,1)="県","割合","")&"》 "&IF(AND(LEFT(Z48,1)<>"県",M4=""),J4,IF(LEFT(Z48,1)="県","2015年",AA3)) -> 《後継者のいる農家数割合》 2015年
H45: 計 | V45: 列番号 | W45: 2015年 | X45: 2010年 | Y45: 縦棒左 | Z45: 縦棒右 | AA45: 凡例 | AB45: 差
D46: 2010年 | E46: 農家数 | H46: =IFERROR(OFFSET(INDIRECT($Y$3),$V$3,X46-1),"nc") -> 62,076 | V46: 農家数 | W46: =CELL("col",'2015年'!BS6)-1 -> 70 | X46: =CELL("col",'2010年'!BS6)-1 -> 70 | Y46: 1 | Z46: 0 | AA46: =IF(LEFT(Z49,1)="県",$D$4,$D46) -> 2010年 | AB46: =H51-IF(LEFT(Z49,1)="県",H52,H48) -> -9.298949979
G47: 後継者がいる農家数 | H47: =IFERROR(OFFSET(INDIRECT(Y3),V3,X47-1),"nc") -> 38,149 | V47: 後継者有 | W47: =CELL("col",'2015年'!CI5)-1 -> 86 | X47: =CELL("col",'2010年'!CI5)-1 -> 86 | Y47: -4 | Z47: -1 | AA47: =IF(AND(LEFT(Z49,1)="県",G4=""),D4,IF(LEFT(Z49,1)="県",AA3,D49)) -> 2015年 | AB47: =IF(AB46=0,"と同率である"," を "&TEXT(ABS(AB46),"0.0")&"ポイント "&IF(AB46>0,"上回る","下回る")) -> を 9.3ポイント 下回る
G48: 割合(%) | H48: =IF(OR(AND(ISTEXT(H46),H46<>"X",H46<>"-"),AND(ISTEXT(H47),H47<>"X",H47<>"-")),"nc",IF(OR(H46="X",H47="X"),"X",IF(ROUND(SUM(H46),0)=0,"nc",SUM(H47)/H46%))) -> 61.5 | Z48: 県との比較 | AA48: =IF(LEFT(Z48,1)="県",$D$4,$D46) -> 長野県 | AB48: =H51-IF(LEFT(Z48,1)="県",H52,H48) -> 0.00000000000000
D49: 2015年 | E49: 農家数 | H49: =IFERROR(OFFSET(INDIRECT($Y$4),$V$4,W46-1),"nc") -> 51,777 | Z49: 前回との比較 | AA49: =AA3 -> 長野県 | AB49: =IF(AB48=0,"と同率である"," を "&TEXT(ABS(AB48),"0.0")&"ポイント "&IF(AB48>0,"上回る","下回る")) -> と同率である
G50: 後継者がいる農家数 | H50: =IFERROR(OFFSET(INDIRECT($Y$4),$V$4,$W47-1),"nc") -> 27,005
G51: 割合(%) | H51: =IF(OR(AND(ISTEXT(H49),H49<>"X",H49<>"-"),AND(ISTEXT(H50),H50<>"X",H50<>"-")),"nc",IF(OR(H49="X",H50="X"),"X",IF(ROUND(SUM(H49),0)=0,"nc",SUM(H50)/H49%))) -> 52.2
D52: 県計 | G52: 後継者がいる割合(%) | H52: =IFERROR(OFFSET(INDIRECT($Y$4),5,$W$47-1)/OFFSET(INDIRECT($Y$4),5,$W$46-1)*100,"nc") -> 52.2
D73: =IFERROR(" ◎ 一世代家族経営の割合は "&TEXT(G79/100,"0.0%")&"（"&TEXT(G78,"#,##0")&"戸）で、"&IF(LEFT(R75,1)="県","県平均の "&TEXT(G80/100,"0.0%"),"2010年の "&TEXT(G77/F77,"0.0%"))&W78,"") -> 
L74: 単位：戸
F75: 計 | G75: 一世代家族 経営 | J75: 二世代家族 経営 | L75: 三世代家族 経営 | R75: 前回との比較
H76: 一人家族経営 | I76: 夫婦家族経営 | K76: 親子家族経営 | V76: 列番号 | W76: 県、前回との差 | X76: グラフ用 | Y76: 一世代 | Z76: 二世代 | AA76: 三世代
D77: 2010年 | F77: =IFERROR(OFFSET(INDIRECT($Y$3),$V$3,$V77),"nc") -> nc | G77: =IFERROR(OFFSET(INDIRECT($Y$3),$V$3,$V$77+F1),"nc") -> nc | H77: nc | I77: nc | J77: nc | K77: nc | L77: nc | V77: =CELL("col",#REF!)-1 ->  | W77: =IF(LEFT(R75,1)="県",G79-G80,G79-G77/F77*100) ->  | X77: =IF(LEFT($R$75,1)="県",AA3,D77) -> 2010年 | Y77: =IF(LEFT($R$75,1)="県",G79,G77/F77*100) ->  | Z77: =IF(LEFT($R$75,1)="県",J79,J77/F77*100) ->  | AA77: =IF(LEFT($R$75,1)="県",L79,L77/F77*100) -> 
D78: 2015年 | F78: =IFERROR(OFFSET(INDIRECT($Y$4),$V$4,$V78),"nc") -> 0 | G78: =IFERROR(SUM(OFFSET(INDIRECT($Y$4),$V$4,$V$78+F1)),"nc") -> 0 | H78: 0 | I78: 0 | J78: 0 | K78: 0 | L78: 0 | V78: =CELL("col",'2015年'!CV6)-1 -> 99 | W78: =IF(W77=0," と同率である"," を "&TEXT(ABS(W77),"0.0")&"ポイント "&IF(W77>0,"上回る","下回る")) ->  | X78: =IF(LEFT($R$75,1)="県",D4,D78) -> 2015年 | Y78: =IF(LEFT($R$75,1)="県",G80,G79) -> nc | Z78: =IF(LEFT($R$75,1)="県",J80,J79) -> nc | AA78: =IF(LEFT($R$75,1)="県",L80,L79) -> nc
E79: 構成比(%) | F79: =IF(OR(AND(ISTEXT($F78),$F78<>"X",$F78<>"-"),AND(ISTEXT(F78),F78<>"X",F78<>"-")),"nc",IF(OR($F78="X",F78="X"),"X",IF(ROUND(SUM($F78),0)=0,"nc",SUM(F78)/$F78%))) -> nc | G79: nc | H79: nc | I79: nc | J79: nc | K79: nc | L79: nc
E80: 県計 構成比(%) | F80: 100.0 | G80: =IFERROR(OFFSET(INDIRECT($Y$4),5,$V$78+F1)/OFFSET(INDIRECT($Y$4),5,$V$78)%,"nc") -> nc | H80: nc | I80: nc | J80: nc | K80: nc | L80: nc
C84: 過去１年間の生活の主な状態別世帯員数（計）
D85: =IFERROR(" ◎ 「自営農業が主」の割合は "&TEXT(H91/100,"0.0%")&"（"&TEXT(H90,"#,###")&"戸）で、"&IF(LEFT(R87,1)="県"," 県平均"&"の "&TEXT(H93/100,"0.0%")&W90,"2010年の "&TEXT(H89/F89,"0.0%")&X90),"") -> ◎ 「自営農業が主」の割合は 43.2%（73,471戸）で、2010年の 38.5% を 4.7ポイント 上回る
M86: 単位：人 | N86: =" 《主な状態別世帯員数割合》 " -> 《主な状態別世帯員数割合》
F87: 計 | G87: 主に仕事 | K87: 主に 家事・育児 | L87: 学生 | M87: その他 | N87: =" "&IF(AND(LEFT(R87,1)<>"県",G4=""),D4,IF(LEFT(R87,1)="県",D90,AA3)) -> 長野県 | R87: 前回との比較 | W87: 自営農業の増減 | Y87: 凡例用 | AE87: 内円
G88: 小計 | H88: 自営農業が主 | I88: 勤務が主 | J88: 農業以外の自営が主 | R88: ="外円："&IF(AND(LEFT(R87,1)="県",G4=""),D4,IF(LEFT(R87,1)="県",$AA$3,"2015年"))&CHAR(10)&"内円："&IF(LEFT(R87,1)="県",$D$4,"2010年") -> 外円：2015年 内円：2010年 | V88: 列番号 | W88: 県 | X88: 前回 | Y88: 自営農業 | Z88: 勤務 | AA88: 農業以外の自営 | AB88: 家事・育児 | AC88: 学生 | AD88: その他 | AE88: offset 行数
A89: 15 | D89: 2010年 | F89: =IFERROR(OFFSET(INDIRECT($Y$3),$V$3,$V95-1),"nc") -> 216,443 | G89: =IFERROR(OFFSET(INDIRECT($Y$3),$V$3,$V95),"nc") -> 164,190 | H89: =IFERROR(OFFSET(INDIRECT($Y$3),$V$3,$V95+1),"nc") -> 83,291 | I89: =IFERROR(OFFSET(INDIRECT($Y$3),$V$3,$V95+2),"nc") -> 74,705 | J89: =IFERROR(OFFSET(INDIRECT($Y$3),$V$3,$V95+3),"nc") -> 6,194 | K89: =IFERROR(OFFSET(INDIRECT($Y$3),$V$3,$V95+4),"nc") -> 16,701 | L89: =IFERROR(OFFSET(INDIRECT($Y$3),$V$3,$V95+5),"nc") -> 15,060 | M89: =IFERROR(OFFSET(INDIRECT($Y$3),$V$3,$V95+6),"nc") -> 20,492 | V89: =CELL("col",'2010年'!DC6)-1 -> 106 | W89: =H91-H93 -> 0.00 | X89: =H91-H89/F89*100 -> 4.679385314 | AE89: =IF(LEFT(R87,1)="県",2,-1) -> -1
D90: 2015年 | F90: =IFERROR(OFFSET(INDIRECT($Y$4),$V$4,$V96-1),"nc") -> 170,225 | G90: =IFERROR((OFFSET(INDIRECT($Y$4),$V$4,$V96)),"nc") -> 135,261 | H90: =IFERROR((OFFSET(INDIRECT($Y$4),$V$4,$V96+1)),"nc") -> 73,471 | I90: =IFERROR((OFFSET(INDIRECT($Y$4),$V$4,$V96+2)),"nc") -> 55,922 | J90: =IFERROR((OFFSET(INDIRECT($Y$4),$V$4,$V96+3)),"nc") -> 5,868 | K90: =IFERROR((OFFSET(INDIRECT($Y$4),$V$4,$V96+4)),"nc") -> 10,794 | L90: =IFERROR((OFFSET(INDIRECT($Y$4),$V$4,$V96+5)),"nc") -> 10,080 | M90: =IFERROR((OFFSET(INDIRECT($Y$4),$V$4,$V96+6)),"nc") -> 14,090 | V90: =CELL("col",'2015年'!DC6)-1 -> 106 | W90: =" "&IF(W89=0,"と同率である"," を "&TEXT(ABS(W89),"0.0")&"ポイント "&IF(W89>0,"上回る","下回る")) -> と同率である | X90: =IF(X89=0,"と同率である"," を "&TEXT(ABS(X89),"0.0")&"ポイント "&IF(X89>0,"上回る","下回る")) -> を 4.7ポイント 上回る
E91: 構成比(%) | F91: =IF(OR(AND(ISTEXT($F90),$F90<>"X",$F90<>"-"),AND(ISTEXT(F90),F90<>"X",F90<>"-")),"nc",IF(OR($F90="X",F90="X"),"X",IF(ROUND(SUM($F90),0)=0,"nc",SUM(F90)/$F90%))) -> 100.0 | G91: 79.5 | H91: 43.2 | I91: 32.9 | J91: 3.4 | K91: 6.3 | L91: 5.9 | M91: 8.3
E92: 県計 実数 | F92: =IFERROR(OFFSET(INDIRECT($Y$4),5,V96-1),"nc") -> 170,225 | G92: =IFERROR(OFFSET(INDIRECT($Y$4),5,$V$96),"nc") -> 135,261 | H92: =IFERROR(OFFSET(INDIRECT($Y$4),5,V96+1),"nc") -> 73,471 | I92: =IFERROR(OFFSET(INDIRECT($Y$4),5,V96+2),"nc") -> 55,922 | J92: =IFERROR(OFFSET(INDIRECT($Y$4),5,V96+3),"nc") -> 5,868 | K92: =IFERROR(OFFSET(INDIRECT($Y$4),5,V96+4),"nc") -> 10,794 | L92: =IFERROR(OFFSET(INDIRECT($Y$4),5,V96+5),"nc") -> 10,080 | M92: =IFERROR(OFFSET(INDIRECT($Y$4),5,V96+6),"nc") -> 14,090
E93: 県計 構成比(%) | F93: 100.0 | G93: =IFERROR(OFFSET(INDIRECT($Y$4),5,$V$96)/OFFSET(INDIRECT($Y$4),5,$V$96-1)*100,"nc") -> 79.5 | H93: =IFERROR(OFFSET(INDIRECT($Y$4),5,$V$96+F1)/OFFSET(INDIRECT($Y$4),5,$V$96-1)*100,"nc") -> 43.2 | I93: 32.9 | J93: 3.4 | K93: 6.3 | L93: 5.9 | M93: 8.3 | V93: 列番号 | W93: 概要 | Y93: 縦棒 左 | Z93: 縦棒 右 | AA93: 凡例
V94: =IF(C84="過去１年間の生活の主な状態別世帯員数（計）",1,IF(C84="過去１年間の生活の主な状態別世帯員数（男）",2,IF(C84="過去１年間の生活の主な状態別世帯員数（女）",3,ERROR.TYPE(5)))) -> 1 | W94: 人数 | X94: 平均年齢 | Y94: =IF(LEFT(R100,1)="県",3,-1) -> -1 | Z94: =IF(LEFT(R100,1)="県",1,0) -> 0 | AA94: =IF(LEFT(R100,1)="県",$D$4,$D94) -> 0
V95: =IFERROR(CHOOSE(V94,CELL("col",'2010年'!DD6),CELL("col",'2010年'!EG6),CELL("col",'2010年'!EO6))-1,555) -> 107 | W95: =F95/F94-1 ->  | X95: =S95-IF(LEFT(R100,1)="県",S98,S94) -> 0.0 | AA95: =IF(LEFT(R100,1)="県",AA75,D95) -> 0
V96: =IFERROR(CHOOSE(V94,CELL("col",'2015年'!DD6),CELL("col",'2015年'!EG6),CELL("col",'2015年'!EO6))-1,555) -> 107 | W96: =IF(W95=0,"変化なし",TEXT(ABS(F95-F94),"#,##0人")&"（"&TEXT(ABS(W95),"0.0%")&"） "&IF(W95>0,"増加","減少")) ->  | X96: =IF(X95=0,"と同じである","を "&TEXT(ABS(X95),"0.0歳")&IF(X95>0,"上回る","下回る")) -> と同じである
C98: 農産物販売金額１位の部門別農家数（販売のあった農家）
D99: =IF(AA105="",""," ◎ "&AA105&"（"&TEXT(Z105,"0.0")&"%） が最も多く、次いで"&SUBSTITUTE(AA106&AA107,"」「","」、「")&"の順で、この"&DBCS(COUNTIF(AB103:AN103,"<4"))&"部門で全体の "&TEXT(Z104,"0.0")&"% を占める") -> ◎ 「稲作」（43.1%） が最も多く、次いで「果樹類」、「露地野菜」の順で、この３部門で全体の 89.5% を占める
S100: 単位：戸
F101: 計 | G101: 稲作 | H101: 麦類作 | I101: 雑穀・ いも類・ 豆類 | J101: 工芸農作物 | K101: 野菜類 | M101: 果樹類 | N101: 花き・ 花木 | O101: その他の作物 | P101: 酪農 | Q101: 肉用牛 | R101: 養豚 | S101: 養鶏
K102: 露地 | L102: 施設 | O102: その他の作物 | P102: 畜産 | V102: 列番号 | W102: offset行数 | Y102: 凡例 | Z102: 上位 | AB102: 稲作 | AC102: 麦類作 | AD102: 雑穀・ いも類・ 豆類 | AE102: 工芸 農作物 | AF102: 露地 野菜 | AG102: 施設 野菜 | AH102: 果樹類 | AI102: 花き・ 花木 | AJ102: その他 の作物 | AK102: 酪農 | AL102: 肉用牛 | AM102: 養豚 | AN102: 養鶏
D103: 2010年 | F103: =IFERROR(OFFSET(INDIRECT($Y$3),$V$3,$V103),"nc") -> 56,736 | G103: =IFERROR(OFFSET(INDIRECT($Y$3),$V$3,$V103+F$1),"nc") -> 24,914 | H103: 150 | I103: 780 | J103: 347 | K103: 8,108 | L103: 1,206 | M103: 17,216 | N103: 2,203 | O103: 875 | P103: =IFERROR(OFFSET(INDIRECT($Y$3),$V$3,$V103+O$1),"nc") -> 415 | Q103: =IFERROR(OFFSET(INDIRECT($Y$3),$V$3,$V103+P$1),"nc") -> 373 | R103: =IFERROR(OFFSET(INDIRECT($Y$3),$V$3,$V103+Q$1),"nc") -> 59 | S103: =IFERROR(OFFSET(INDIRECT($Y$3),$V$3,$V103+R$1),"nc") -> 44 | V103: =CELL("col",'2010年'!DK6)-1 -> 114 | W103: 縦棒左 | X103: 縦棒右 | Y103: =IF(LEFT(R108,1)="県",D4,D103) -> 2010年 | Z103: ３品目計 | AA103: 順位 | AB103: =IFERROR(RANK(G104,$G$104:$S$104,0),99) -> 1 | AC103: 11 | AD103: 6 | AE103: 10 | AF103: 3 | AG103: 5 | AH103: 2 | AI103: 4 | AJ103: 7 | AK103: 8 | AL103: 9 | AM103: 12 | AN103: 13
D104: 2015年 | F104: =IFERROR(OFFSET(INDIRECT($Y$4),$V$4,V104),"nc") -> 47,570 | G104: =IFERROR(OFFSET(INDIRECT($Y$4),$V$4,$V104+F1),"nc") -> 20,498 | H104: 134 | I104: 803 | J104: 138 | K104: 6,703 | L104: 973 | M104: 15,363 | N104: 1,754 | O104: 510 | P104: =IFERROR(OFFSET(INDIRECT($Y$4),$V$4,$V104+O1),"nc") -> 308 | Q104: =IFERROR(OFFSET(INDIRECT($Y$4),$V$4,$V104+P1),"nc") -> 283 | R104: =IFERROR(OFFSET(INDIRECT($Y$4),$V$4,$V104+Q1),"nc") -> 40 | S104: =IFERROR(OFFSET(INDIRECT($Y$4),$V$4,$V104+R1),"nc") -> 31 | V104: =CELL("col",'2015年'!DK6)-1 -> 114 | W104: =IF(LEFT(R108,1)="県",2,-1) -> -1 | X104: =IF(LEFT(R108,1)="県",1,0) -> 0 | Y104: =IF(AND(LEFT(R108,1)="県",G4=""),D4,IF(LEFT(R108,1)="県",AA3,D104)) -> 2015年 | Z104: =SUM(AB104:AN104) -> 89.47656086 | AA104: ％ | AB104: =IF(AB103<4,G104/$F$104%,0) -> 43.09018289 | AC104: =IF(AC103<4,H104/$F$104%,0) -> 0 | AD104: =IF(AD103<4,I104/$F$104%,0) -> 0 | AE104: 0 | AF104: 14.09081354 | AG104: 0 | AH104: 32.29556443 | AI104: 0 | AJ104: 0 | AK104: 0 | AL104: 0 | AM104: 0 | AN104: 0
E105: 構成比(%) | F105: =IF(OR(AND(ISTEXT($F104),$F104<>"X",$F104<>"-"),AND(ISTEXT(F104),F104<>"X",F104<>"-")),"nc",IF(OR($F104="X",F104="X"),"X",IF(ROUND(SUM($F104),0)=0,"nc",SUM(F104)/$F104%))) -> 100.0 | G105: 43.1 | H105: 0.3 | I105: 1.7 | J105: 0.3 | K105: 14.1 | L105: 2.0 | M105: 32.3 | N105: 3.7 | O105: 1.1 | P105: 0.6 | Q105: 0.6 | R105: 0.1 | S105: 0.1 | Y105: １位 | Z105: =SUMIF($AB$103:$AN$103,1,AB104:AN104) -> 43.09018289 | AA105: =SUBSTITUTE(AB105&AC105&AD105&AE105&AF105&AG105&AH105&AI105&AJ105&AK105&AL105&AM105&AN105,"」「","」と「") -> 「稲作」 | AB105: =IF(AB103=1,"「"&CLEAN(AB102)&"」","") -> 「稲作」
E106: 県計 構成比(%) | F106: 100.0 | G106: =IFERROR(IF(OFFSET(INDIRECT($Y$4),5,$V$104+F1)="-","-",ROUND(OFFSET(INDIRECT($Y$4),5,$V$104+F1)/OFFSET(INDIRECT($Y$4),5,$V$104)*100,1)),"nc") -> 43.1 | H106: =IFERROR(IF(OFFSET(INDIRECT($Y$4),5,$V$104+G1)="-","-",ROUND(OFFSET(INDIRECT($Y$4),5,$V$104+G1)/OFFSET(INDIRECT($Y$4),5,$V$104)*100,1)),"nc") -> 0.3 | I106: =IFERROR(IF(OFFSET(INDIRECT($Y$4),5,$V$104+H1)="-","-",ROUND(OFFSET(INDIRECT($Y$4),5,$V$104+H1)/OFFSET(INDIRECT($Y$4),5,$V$104)*100,1)),"nc") -> 1.7 | J106: =IFERROR(IF(OFFSET(INDIRECT($Y$4),5,$V$104+I1)="-","-",ROUND(OFFSET(INDIRECT($Y$4),5,$V$104+I1)/OFFSET(INDIRECT($Y$4),5,$V$104)*100,1)),"nc") -> 0.3 | K106: =IFERROR(IF(OFFSET(INDIRECT($Y$4),5,$V$104+J1)="-","-",ROUND(OFFSET(INDIRECT($Y$4),5,$V$104+J1)/OFFSET(INDIRECT($Y$4),5,$V$104)*100,1)),"nc") -> 14.1 | L106: 2.0 | M106: 32.3 | N106: 3.7 | O106: 1.1 | P106: =IFERROR(IF(OFFSET(INDIRECT($Y$4),5,$V$104+O1)="-","-",ROUND(OFFSET(INDIRECT($Y$4),5,$V$104+O1)/OFFSET(INDIRECT($Y$4),5,$V$104)*100,1)),"nc") -> 0.6 | Q106: =IFERROR(IF(OFFSET(INDIRECT($Y$4),5,$V$104+P1)="-","-",ROUND(OFFSET(INDIRECT($Y$4),5,$V$104+P1)/OFFSET(INDIRECT($Y$4),5,$V$104)*100,1)),"nc") -> 0.6 | R106: =IFERROR(IF(OFFSET(INDIRECT($Y$4),5,$V$104+Q1)="-","-",ROUND(OFFSET(INDIRECT($Y$4),5,$V$104+Q1)/OFFSET(INDIRECT($Y$4),5,$V$104)*100,1)),"nc") -> 0.1 | S106: =IFERROR(IF(OFFSET(INDIRECT($Y$4),5,$V$104+R1)="-","-",ROUND(OFFSET(INDIRECT($Y$4),5,$V$104+R1)/OFFSET(INDIRECT($Y$4),5,$V$104)*100,1)),"nc") -> 0.1 | Y106: ２位 | Z106: =SUMIF($AB$103:$AN$103,2,$AB$104:$AN$104) -> 32.29556443 | AA106: =SUBSTITUTE(AB106&AC106&AD106&AE106&AF106&AG106&AH106&AI106&AJ106&AK106&AL106&AM106&AN106,"」「","」と「") -> 「果樹類」 | AB106: =IF(AB103=2,"「"&CLEAN(AB102)&"」","") ->  | AH106: 「果樹類」
D107: =IF(LEFT(R108,1)="県","（％）","（戸）") -> （戸） | H107: ="《農産物販売金額１位の部門別農家数"&IF(LEFT(R108,1)="県","割合","")&"》 "&IF(AND(LEFT(R108,1)<>"県",G4=""),D4,IF(LEFT(R108,1)="県","2015年",AA3)) -> 《農産物販売金額１位の部門別農家数》 長野県 | Y107: ３位 | Z107: =SUMIF($AB$103:$AN$103,3,$AB$104:$AN$104) -> 14.09081354 | AA107: =SUBSTITUTE(AB107&AC107&AD107&AE107&AF107&AG107&AH107&AI107&AJ107&AK107&AL107&AM107&AN107,"」「","」と「") -> 「露地野菜」 | AB107: =IF(AB103=3,"「"&CLEAN(AB102)&"」","") ->  | AF107: 「露地野菜」
R108: 前回との比較
C121: 経営耕地面積（販売農家） | I121: =IFERROR(" ◎ 経営耕地面積は "&IF(G126=G125,"変化なし",TEXT(ABS(G126-G125),"#,##0")&"ha（"&TEXT(ABS(G126/G125-1),"0.0%"&"） "))&IF(F126=F125,"",IF(G126<G125,"減少","増加"))&"、１戸当たりでは "&IF(X125=0,"変動無し",TEXT(ABS(X125),"0.00")&"ha "&IF(X125>0,"増加","減少")),"") -> ◎ 経営耕地面積は 5,672ha（8.8%) 減少、１戸当たりでは 0.09ha 増加
D122: =AA3 -> 長野県 | K122: 単位：ha
F123: 経 営 耕 地 のある農家数 | G123: 経 営 耕 地 面 積 | K123: １戸当たり経営耕地面積
H124: 田 | I124: 畑 （樹園地を除く） | J124: 樹園地 | V124: 列番号 | W124: 凡例用 | X124: １戸当たり増減
D125: 2010年 | F125: =IFERROR(OFFSET(INDIRECT($Y$3),$V$3,V125),"nc") -> 61,943 | G125: =IFERROR(ROUND(OFFSET(INDIRECT($Y$3),$V$3,$V$125+F1)/100,0),OFFSET(INDIRECT($Y$3),$V$3,$V$125+F1)) -> 64,246 | H125: =IFERROR(ROUND(OFFSET(INDIRECT($Y$3),$V$3,$V$125+G1)/100,0),OFFSET(INDIRECT($Y$3),$V$3,$V$125+G1)) -> 33,749 | I125: =IFERROR(ROUND(OFFSET(INDIRECT($Y$3),$V$3,$V$125+H1)/100,0),OFFSET(INDIRECT($Y$3),$V$3,$V$125+H1)) -> 19,099 | J125: =IFERROR(ROUND(OFFSET(INDIRECT($Y$3),$V$3,$V$125+I1)/100,0),OFFSET(INDIRECT($Y$3),$V$3,$V$125+I1)) -> 11,398 | K125: =IF(OR(AND(ISTEXT($F125),$F125<>"X",$F125<>"-"),AND(ISTEXT(G125),G125<>"X",G125<>"-")),"nc",IF(OR($F125="X",G125="X"),"X",IF(ROUND(SUM($F125),0)=0,"nc",ROUND(SUM(G125)/$F125,2)))) -> 1.04 | V125: =CELL("col",'2010年'!EA6)-1 -> 130 | W125: 田 | X125: =K126-K125 -> 0.09
D126: 2015年 | F126: =IFERROR(OFFSET(INDIRECT($Y$4),$V$4,$V126),"nc") -> 51,641 | G126: =IFERROR(ROUND(OFFSET(INDIRECT($Y$4),$V$4,$V126+F1)/100,0),OFFSET(INDIRECT($Y$4),$V$4,$V126+F1)) -> 58,574 | H126: =IFERROR(ROUND(OFFSET(INDIRECT($Y$4),$V$4,$V126+G1)/100,0),OFFSET(INDIRECT($Y$4),$V$4,$V126+G1)) -> 30,648 | I126: =IFERROR(ROUND(OFFSET(INDIRECT($Y$4),$V$4,$V126+H1)/100,0),OFFSET(INDIRECT($Y$4),$V$4,$V126+H1)) -> 17,494 | J126: =IFERROR(ROUND(OFFSET(INDIRECT($Y$4),$V$4,$V126+I1)/100,0),OFFSET(INDIRECT($Y$4),$V$4,$V126+I1)) -> 10,433 | K126: =IF(OR(AND(ISTEXT($F126),$F126<>"X",$F126<>"-"),AND(ISTEXT(G126),G126<>"X",G126<>"-")),"nc",IF(OR($F126="X",G126="X"),"X",IF(ROUND(SUM($F126),0)=0,"nc",ROUND(SUM(G126)/$F126,2)))) -> 1.13 | V126: =CELL("col",'2015年'!EA6)-1 -> 130 | W126: 畑
E127: 構成比(%) | G127: =IF(OR(AND(ISTEXT($G126),$G126<>"X",$G126<>"-"),AND(ISTEXT(G126),G126<>"X",G126<>"-")),"nc",IF(OR($G126="X",G126="X"),"X",IF(ROUND(SUM($G126),0)=0,"nc",SUM(G126)/$G126%))) -> 100.0 | H127: =IF(OR(AND(ISTEXT($G126),$G126<>"X",$G126<>"-"),AND(ISTEXT(H126),H126<>"X",H126<>"-")),"nc",IF(OR($G126="X",H126="X"),"X",IF(ROUND(SUM($G126),0)=0,"nc",SUM(H126)/$G126%))) -> 52.3 | I127: 29.9 | J127: 17.8 | W127: 樹園地
E128: 県計 構成比(%) | G128: 100.0 | H128: =IFERROR(ROUND(OFFSET(INDIRECT($Y$4),5,$V$126+G1)/OFFSET(INDIRECT($Y$4),5,$V$126+1)*100,1),"nc") -> 52.3 | I128: =IFERROR(ROUND(OFFSET(INDIRECT($Y$4),5,$V$126+H1)/OFFSET(INDIRECT($Y$4),5,$V$126+1)*100,1),"nc") -> 29.9 | J128: =IFERROR(ROUND(OFFSET(INDIRECT($Y$4),5,$V$126+I1)/OFFSET(INDIRECT($Y$4),5,$V$126+1)*100,1),"nc") -> 17.8 | K128: =IFERROR(OFFSET(INDIRECT($Y$4),5,V126+1)/OFFSET(INDIRECT($Y$4),5,V126)/100,"nc") -> 1.13
D129: =IFERROR("《参考》"&G4&"の経営耕地面積の全国順位："&TEXT(OFFSET(#REF!,MATCH(Info!G4,#REF!,0),0),"#,##0")&"位","") -> 

Sheet 元データ (hidden)
A1: 注意事項 | C1: ･･･ | D1: 空欄追記:『調査外(湖､無人島等)』 | Z1: 別紙 2 | AB1: 市区町村名 | AC1: 旧市区町村 | AD1: 農業集落
C2: ･･･ | D2: 全角変換:『2-1』⇒『2-1』 | K2: =IF(AB2=0,"",AB2) ->  | S2: =IF(AC2=0,"",AC2) ->  | AA2: 長野県 | AB2: =Info!G4 -> 0 | AC2: =Info!J4 -> 0 | AD2: =Info!M4 -> 0
K3: 市町村 | Q3: 旧市区町村 | V3: 農業集落
A4: 農業集落 | B4: 県 | C4: 市区町村 | D4: 旧市区町村 | E4: 農業集落 | F4: 県名 | G4: 市町村名 | H4: 旧市町村名 | I4: 農業集落名 | K4: 判定１ | O4: 抽出１ | Q4: 判定2 | S4: 抽出2 | V4: 抽出3 | Z4: 通し | AA4: 都県名 | AB4: 市区町村名 | AC4: 旧区市町村名 | AD4: 農業集落名
A5: ｺｰﾄﾞ | B5: 番号 | C5: 番号 | D5: 番号 | E5: 番号 | K5: 判定 | L5: 市区町村名 | M5: 連番 | N5: 補記 | O5: 抽出 | P5: 名 | Q5: 判定 | R5: 名 | S5: 抽出 | T5: 旧区市町村名 | U5: 連番 | V5: 抽出 | W5: 農業集落名 | X5: 連番 | Z5: №
Z6: 0
A7: 2000000000 | B7: 20 | C7: 000 | D7: 00 | E7: 000 | F7: 長野県 | K7: =IF(AND($C7>0,$H7=""),"ﾘｽﾄ１","") ->  | L7: =IF(K7="ﾘｽﾄ１",G7,"") ->  | M7: =IF(K7="","",COUNTIF($K7:K$7,"ﾘｽﾄ１")) ->  | N7: =IF(AND(D7=0,E7>0),"同一区","") ->  | O7: =IF(AND(EXACT($K$2,G7),H7>0),"該当１","") ->  | P7: =IF(O7="該当１",G7,"") ->  | Q7: =IF(O7="該当１","ﾘｽﾄ2","") ->  | R7: =IF(Q7="ﾘｽﾄ2",H7,"") ->  | S7: =IF(AND(Q7="ﾘｽﾄ2",OR(I7=0,AND(N7="同一区",E7=1))),"該当２","") ->  | T7: =IF(S7="該当２",H7,"") ->  | U7: =IF(S7="","",COUNTIF($S$7:S7,"該当２")) ->  | V7: =IF(AND($S$2=H7,E7>0,E7<998),"該当３","") ->  | W7: =IF(V7="該当３",I7,"") ->  | X7: =IF(V7="","",COUNTIF($V7:V$7,"該当３")) ->  | Z7: 1 | AA7: =AA2 -> 長野県 | AB7: 長野市 | AC7: =IF($Z7>MAX($U$7:$U$5356),"",INDEX($T$7:$T$5356,MATCH($Z7,$U$7:$U$5356,0),MATCH($AC$4,$T$5:$U$5,0))) ->  | AD7: =IF($Z7>MAX($X$7:$X$5356),"",INDEX($W$7:$W$5356,MATCH($Z7,$X$7:$X$5356,0),MATCH($AD$4,$W$5:$X$5,0))) -> 
A8: 2020100000 | B8: 20 | C8: 201 | D8: 00 | E8: 000 | F8: 長野県 | G8: 長野市 | K8: ﾘｽﾄ１ | L8: 長野市 | M8: =IF(K8="","",COUNTIF($K$7:K8,"ﾘｽﾄ１")) -> 1 | O8: =IF(AND(EXACT($K$2,G8),H8>0),"該当１","") ->  | U8: =IF(S8="","",COUNTIF($S$7:S8,"該当２")) ->  | X8: =IF(V8="","",COUNTIF($V$7:V8,"該当３")) ->  | Z8: 2 | AB8: 松本市
A9: 2020101000 | B9: 20 | C9: 201 | D9: 01 | E9: 000 | F9: 長野県 | G9: 長野市 | H9: 長野市 | M9: =IF(K9="","",COUNTIF($K$7:K9,"ﾘｽﾄ１")) ->  | O9: =IF(AND(EXACT($K$2,G9),H9>0),"該当１","") ->  | U9: =IF(S9="","",COUNTIF($S$7:S9,"該当２")) ->  | X9: =IF(V9="","",COUNTIF($V$7:V9,"該当３")) ->  | Z9: 3 | AB9: 上田市
A10: 2020101001 | B10: 20 | C10: 201 | D10: 01 | E10: 001 | F10: 長野県 | G10: 長野市 | H10: 長野市 | I10: 茂菅 | M10: =IF(K10="","",COUNTIF($K$7:K10,"ﾘｽﾄ１")) ->  | U10: =IF(S10="","",COUNTIF($S$7:S10,"該当２")) ->  | X10: =IF(V10="","",COUNTIF($V$7:V10,"該当３")) ->  | Z10: 4 | AB10: 岡谷市
A11: 2020101002 | B11: 20 | C11: 201 | D11: 01 | E11: 002 | F11: 長野県 | G11: 長野市 | H11: 長野市 | I11: 新諏訪 | M11: =IF(K11="","",COUNTIF($K$7:K11,"ﾘｽﾄ１")) ->  | U11: =IF(S11="","",COUNTIF($S$7:S11,"該当２")) ->  | X11: =IF(V11="","",COUNTIF($V$7:V11,"該当３")) ->  | Z11: 5 | AB11: 飯田市
A12: 2020101003 | B12: 20 | C12: 201 | D12: 01 | E12: 003 | F12: 長野県 | G12: 長野市 | H12: 長野市 | I12: 西長野 | M12: =IF(K12="","",COUNTIF($K$7:K12,"ﾘｽﾄ１")) ->  | U12: =IF(S12="","",COUNTIF($S$7:S12,"該当２")) ->  | X12: =IF(V12="","",COUNTIF($V$7:V12,"該当３")) ->  | Z12: 6 | AB12: 諏訪市
A13: 2020101004 | B13: 20 | C13: 201 | D13: 01 | E13: 004 | F13: 長野県 | G13: 長野市 | H13: 長野市 | I13: 桜枝町外 | M13: =IF(K13="","",COUNTIF($K$7:K13,"ﾘｽﾄ１")) ->  | U13: =IF(S13="","",COUNTIF($S$7:S13,"該当２")) ->  | X13: =IF(V13="","",COUNTIF($V$7:V13,"該当３")) ->  | Z13: 7 | AB13: 須坂市
A14: 2020101005 | B14: 20 | C14: 201 | D14: 01 | E14: 005 | F14: 長野県 | G14: 長野市 | H14: 長野市 | I14: 花咲町外 | M14: =IF(K14="","",COUNTIF($K$7:K14,"ﾘｽﾄ１")) ->  | U14: =IF(S14="","",COUNTIF($S$7:S14,"該当２")) ->  | X14: =IF(V14="","",COUNTIF($V$7:V14,"該当３")) ->  | Z14: 8 | AB14: 小諸市
A15: 2020101006 | B15: 20 | C15: 201 | D15: 01 | E15: 006 | F15: 長野県 | G15: 長野市 | H15: 長野市 | I15: 往生地 | M15: =IF(K15="","",COUNTIF($K$7:K15,"ﾘｽﾄ１")) ->  | U15: =IF(S15="","",COUNTIF($S$7:S15,"該当２")) ->  | X15: =IF(V15="","",COUNTIF($V$7:V15,"該当３")) ->  | Z15: 9 | AB15: 伊那市
A16: 2020101007 | B16: 20 | C16: 201 | D16: 01 | E16: 007 | F16: 長野県 | G16: 長野市 | H16: 長野市 | I16: 横沢町外 | M16: =IF(K16="","",COUNTIF($K$7:K16,"ﾘｽﾄ１")) ->  | U16: =IF(S16="","",COUNTIF($S$7:S16,"該当２")) ->  | X16: =IF(V16="","",COUNTIF($V$7:V16,"該当３")) ->  | Z16: 10 | AB16: 駒ヶ根市
A17: 2020101008 | B17: 20 | C17: 201 | D17: 01 | E17: 008 | F17: 長野県 | G17: 長野市 | H17: 長野市 | I17: 箱清水 | M17: =IF(K17="","",COUNTIF($K$7:K17,"ﾘｽﾄ１")) ->  | U17: =IF(S17="","",COUNTIF($S$7:S17,"該当２")) ->  | X17: =IF(V17="","",COUNTIF($V$7:V17,"該当３")) ->  | Z17: 11 | AB17: 中野市
A18: 2020101009 | B18: 20 | C18: 201 | D18: 01 | E18: 009 | F18: 長野県 | G18: 長野市 | H18: 長野市 | I18: 元善町外 | M18: =IF(K18="","",COUNTIF($K$7:K18,"ﾘｽﾄ１")) ->  | U18: =IF(S18="","",COUNTIF($S$7:S18,"該当２")) ->  | X18: =IF(V18="","",COUNTIF($V$7:V18,"該当３")) ->  | Z18: 12 | AB18: 大町市
A19: 2020101010 | B19: 20 | C19: 201 | D19: 01 | E19: 010 | F19: 長野県 | G19: 長野市 | H19: 長野市 | I19: 三輪田町 | M19: =IF(K19="","",COUNTIF($K$7:K19,"ﾘｽﾄ１")) ->  | U19: =IF(S19="","",COUNTIF($S$7:S19,"該当２")) ->  | X19: =IF(V19="","",COUNTIF($V$7:V19,"該当３")) ->  | Z19: 13 | AB19: 飯山市
A20: 2020101011 | B20: 20 | C20: 201 | D20: 01 | E20: 011 | F20: 長野県 | G20: 長野市 | H20: 長野市 | I20: 淀ケ橋 | M20: =IF(K20="","",COUNTIF($K$7:K20,"ﾘｽﾄ１")) ->  | U20: =IF(S20="","",COUNTIF($S$7:S20,"該当２")) ->  | X20: =IF(V20="","",COUNTIF($V$7:V20,"該当３")) ->  | Z20: 14 | AB20: 茅野市
A21: 2020101012 | B21: 20 | C21: 201 | D21: 01 | E21: 012 | F21: 長野県 | G21: 長野市 | H21: 長野市 | I21: 上松滝 | M21: =IF(K21="","",COUNTIF($K$7:K21,"ﾘｽﾄ１")) ->  | U21: =IF(S21="","",COUNTIF($S$7:S21,"該当２")) ->  | X21: =IF(V21="","",COUNTIF($V$7:V21,"該当３")) ->  | Z21: 15 | AB21: 塩尻市
A22: 2020101013 | B22: 20 | C22: 201 | D22: 01 | E22: 013 | F22: 長野県 | G22: 長野市 | H22: 長野市 | I22: 上松 | M22: =IF(K22="","",COUNTIF($K$7:K22,"ﾘｽﾄ１")) ->  | U22: =IF(S22="","",COUNTIF($S$7:S22,"該当２")) ->  | X22: =IF(V22="","",COUNTIF($V$7:V22,"該当３")) ->  | Z22: 16 | AB22: 佐久市
A23: 2020101014 | B23: 20 | C23: 201 | D23: 01 | E23: 014 | F23: 長野県 | G23: 長野市 | H23: 長野市 | I23: 湯谷 | M23: =IF(K23="","",COUNTIF($K$7:K23,"ﾘｽﾄ１")) ->  | U23: =IF(S23="","",COUNTIF($S$7:S23,"該当２")) ->  | X23: =IF(V23="","",COUNTIF($V$7:V23,"該当３")) ->  | Z23: 17 | AB23: 千曲市
A24: 2020101015 | B24: 20 | C24: 201 | D24: 01 | E24: 015 | F24: 長野県 | G24: 長野市 | H24: 長野市 | I24: 東後町外 | M24: =IF(K24="","",COUNTIF($K$7:K24,"ﾘｽﾄ１")) ->  | U24: =IF(S24="","",COUNTIF($S$7:S24,"該当２")) ->  | X24: =IF(V24="","",COUNTIF($V$7:V24,"該当３")) ->  | Z24: 18 | AB24: 東御市
A25: 2020101016 | B25: 20 | C25: 201 | D25: 01 | E25: 016 | F25: 長野県 | G25: 長野市 | H25: 長野市 | I25: 田町外 | M25: =IF(K25="","",COUNTIF($K$7:K25,"ﾘｽﾄ１")) ->  | U25: =IF(S25="","",COUNTIF($S$7:S25,"該当２")) ->  | X25: =IF(V25="","",COUNTIF($V$7:V25,"該当３")) ->  | Z25: 19 | AB25: 安曇野市
A26: 2020101017 | B26: 20 | C26: 201 | D26: 01 | E26: 017 | F26: 長野県 | G26: 長野市 | H26: 長野市 | I26: 上千歳町外 | M26: =IF(K26="","",COUNTIF($K$7:K26,"ﾘｽﾄ１")) ->  | U26: =IF(S26="","",COUNTIF($S$7:S26,"該当２")) ->  | X26: =IF(V26="","",COUNTIF($V$7:V26,"該当３")) ->  | Z26: 20 | AB26: 小海町
A27: 2020101018 | B27: 20 | C27: 201 | D27: 01 | E27: 018 | F27: 長野県 | G27: 長野市 | H27: 長野市 | I27: 諏訪町外 | M27: =IF(K27="","",COUNTIF($K$7:K27,"ﾘｽﾄ１")) ->  | U27: =IF(S27="","",COUNTIF($S$7:S27,"該当２")) ->  | X27: =IF(V27="","",COUNTIF($V$7:V27,"該当３")) ->  | Z27: 21 | AB27: 川上村
A28: 2020101019 | B28: 20 | C28: 201 | D28: 01 | E28: 019 | F28: 長野県 | G28: 長野市 | H28: 長野市 | I28: 北石堂町外 | M28: =IF(K28="","",COUNTIF($K$7:K28,"ﾘｽﾄ１")) ->  | U28: =IF(S28="","",COUNTIF($S$7:S28,"該当２")) ->  | X28: =IF(V28="","",COUNTIF($V$7:V28,"該当３")) ->  | Z28: 22 | AB28: 南牧村
A29: 2020101020 | B29: 20 | C29: 201 | D29: 01 | E29: 020 | F29: 長野県 | G29: 長野市 | H29: 長野市 | I29: 岡田町 | M29: =IF(K29="","",COUNTIF($K$7:K29,"ﾘｽﾄ１")) ->  | U29: =IF(S29="","",COUNTIF($S$7:S29,"該当２")) ->  | X29: =IF(V29="","",COUNTIF($V$7:V29,"該当３")) ->  | Z29: 23 | AB29: 南相木村
A30: 2020101021 | B30: 20 | C30: 201 | D30: 01 | E30: 021 | F30: 長野県 | G30: 長野市 | H30: 長野市 | I30: 中御所 | M30: =IF(K30="","",COUNTIF($K$7:K30,"ﾘｽﾄ１")) ->  | U30: =IF(S30="","",COUNTIF($S$7:S30,"該当２")) ->  | X30: =IF(V30="","",COUNTIF($V$7:V30,"該当３")) ->  | Z30: 24 | AB30: 北相木村
A31: 2020101022 | B31: 20 | C31: 201 | D31: 01 | E31: 022 | F31: 長野県 | G31: 長野市 | H31: 長野市 | I31: 七瀬中部 | M31: =IF(K31="","",COUNTIF($K$7:K31,"ﾘｽﾄ１")) ->  | U31: =IF(S31="","",COUNTIF($S$7:S31,"該当２")) ->  | X31: =IF(V31="","",COUNTIF($V$7:V31,"該当３")) ->  | Z31: 25 | AB31: 佐久穂町
A32: 2020101023 | B32: 20 | C32: 201 | D32: 01 | E32: 023 | F32: 長野県 | G32: 長野市 | H32: 長野市 | I32: 七瀬北部 | M32: =IF(K32="","",COUNTIF($K$7:K32,"ﾘｽﾄ１")) ->  | U32: =IF(S32="","",COUNTIF($S$7:S32,"該当２")) ->  | X32: =IF(V32="","",COUNTIF($V$7:V32,"該当３")) ->  | Z32: 26 | AB32: 軽井沢町
A33: 2020101024 | B33: 20 | C33: 201 | D33: 01 | E33: 024 | F33: 長野県 | G33: 長野市 | H33: 長野市 | I33: 七瀬南部 | M33: =IF(K33="","",COUNTIF($K$7:K33,"ﾘｽﾄ１")) ->  | U33: =IF(S33="","",COUNTIF($S$7:S33,"該当２")) ->  | X33: =IF(V33="","",COUNTIF($V$7:V33,"該当３")) ->  | Z33: 27 | AB33: 御代田町
A34: 2020101025 | B34: 20 | C34: 201 | D34: 01 | E34: 025 | F34: 長野県 | G34: 長野市 | H34: 長野市 | I34: 栗田北中 | M34: =IF(K34="","",COUNTIF($K$7:K34,"ﾘｽﾄ１")) ->  | U34: =IF(S34="","",COUNTIF($S$7:S34,"該当２")) ->  | X34: =IF(V34="","",COUNTIF($V$7:V34,"該当３")) ->  | Z34: 28 | AB34: 立科町
A35: 2020101026 | B35: 20 | C35: 201 | D35: 01 | E35: 026 | F35: 長野県 | G35: 長野市 | H35: 長野市 | I35: 栗田 | M35: =IF(K35="","",COUNTIF($K$7:K35,"ﾘｽﾄ１")) ->  | U35: =IF(S35="","",COUNTIF($S$7:S35,"該当２")) ->  | X35: =IF(V35="","",COUNTIF($V$7:V35,"該当３")) ->  | Z35: 29 | AB35: 青木村
A36: 2020101027 | B36: 20 | C36: 201 | D36: 01 | E36: 027 | F36: 長野県 | G36: 長野市 | H36: 長野市 | I36: 北市 | M36: =IF(K36="","",COUNTIF($K$7:K36,"ﾘｽﾄ１")) ->  | U36: =IF(S36="","",COUNTIF($S$7:S36,"該当２")) ->  | X36: =IF(V36="","",COUNTIF($V$7:V36,"該当３")) ->  | Z36: 30 | AB36: 長和町
A37: 2020101028 | B37: 20 | C37: 201 | D37: 01 | E37: 028 | F37: 長野県 | G37: 長野市 | H37: 長野市 | I37: 北荒木 | M37: =IF(K37="","",COUNTIF($K$7:K37,"ﾘｽﾄ１")) ->  | U37: =IF(S37="","",COUNTIF($S$7:S37,"該当２")) ->  | X37: =IF(V37="","",COUNTIF($V$7:V37,"該当３")) ->  | Z37: 31 | AB37: 下諏訪町
A38: 2020101029 | B38: 20 | C38: 201 | D38: 01 | E38: 029 | F38: 長野県 | G38: 長野市 | H38: 長野市 | I38: 吹上 | M38: =IF(K38="","",COUNTIF($K$7:K38,"ﾘｽﾄ１")) ->  | U38: =IF(S38="","",COUNTIF($S$7:S38,"該当２")) ->  | X38: =IF(V38="","",COUNTIF($V$7:V38,"該当３")) ->  | Z38: 32 | AB38: 富士見町
A39: 2020101030 | B39: 20 | C39: 201 | D39: 01 | E39: 030 | F39: 長野県 | G39: 長野市 | H39: 長野市 | I39: 南荒木 | M39: =IF(K39="","",COUNTIF($K$7:K39,"ﾘｽﾄ１")) ->  | U39: =IF(S39="","",COUNTIF($S$7:S39,"該当２")) ->  | X39: =IF(V39="","",COUNTIF($V$7:V39,"該当３")) ->  | Z39: 33 | AB39: 原村 | AC39: =IF($Z39>MAX($U$7:$U$5356),"",INDEX($T$7:$T$5356,MATCH($Z39,$U$7:$U$5356,0),MATCH($AC$4,$T$5:$U$5,0))) ->  | AD39: =IF($Z39>MAX($X$7:$X$5356),"",INDEX($W$7:$W$5356,MATCH($Z39,$X$7:$X$5356,0),MATCH($AD$4,$W$5:$X$5,0))) -> 
A40: 2020101031 | B40: 20 | C40: 201 | D40: 01 | E40: 031 | F40: 長野県 | G40: 長野市 | H40: 長野市 | I40: 南市 | M40: =IF(K40="","",COUNTIF($K$7:K40,"ﾘｽﾄ１")) ->  | U40: =IF(S40="","",COUNTIF($S$7:S40,"該当２")) ->  | X40: =IF(V40="","",COUNTIF($V$7:V40,"該当３")) ->  | Z40: 34 | AB40: 辰野町
A41: 2020101032 | B41: 20 | C41: 201 | D41: 01 | E41: 032 | F41: 長野県 | G41: 長野市 | H41: 長野市 | I41: 川合新田 | M41: =IF(K41="","",COUNTIF($K$7:K41,"ﾘｽﾄ１")) ->  | U41: =IF(S41="","",COUNTIF($S$7:S41,"該当２")) ->  | X41: =IF(V41="","",COUNTIF($V$7:V41,"該当３")) ->  | Z41: 35 | AB41: 箕輪町
A42: 2020101033 | B42: 20 | C42: 201 | D42: 01 | E42: 033 | F42: 長野県 | G42: 長野市 | H42: 長野市 | I42: 上千田 | M42: =IF(K42="","",COUNTIF($K$7:K42,"ﾘｽﾄ１")) ->  | U42: =IF(S42="","",COUNTIF($S$7:S42,"該当２")) ->  | X42: =IF(V42="","",COUNTIF($V$7:V42,"該当３")) ->  | Z42: 36 | AB42: 飯島町
A43: 2020101034 | B43: 20 | C43: 201 | D43: 01 | E43: 034 | F43: 長野県 | G43: 長野市 | H43: 長野市 | I43: 母袋 | M43: =IF(K43="","",COUNTIF($K$7:K43,"ﾘｽﾄ１")) ->  | U43: =IF(S43="","",COUNTIF($S$7:S43,"該当２")) ->  | X43: =IF(V43="","",COUNTIF($V$7:V43,"該当３")) ->  | Z43: 37 | AB43: 南箕輪村
A44: 2020101035 | B44: 20 | C44: 201 | D44: 01 | E44: 035 | F44: 長野県 | G44: 長野市 | H44: 長野市 | I44: 中千田 | M44: =IF(K44="","",COUNTIF($K$7:K44,"ﾘｽﾄ１")) ->  | U44: =IF(S44="","",COUNTIF($S$7:S44,"該当２")) ->  | X44: =IF(V44="","",COUNTIF($V$7:V44,"該当３")) ->  | Z44: 38 | AB44: 中川村
A45: 2020101036 | B45: 20 | C45: 201 | D45: 01 | E45: 036 | F45: 長野県 | G45: 長野市 | H45: 長野市 | I45: 日詰 | M45: =IF(K45="","",COUNTIF($K$7:K45,"ﾘｽﾄ１")) ->  | U45: =IF(S45="","",COUNTIF($S$7:S45,"該当２")) ->  | X45: =IF(V45="","",COUNTIF($V$7:V45,"該当３")) ->  | Z45: 39 | AB45: 宮田村
A46: 2020101037 | B46: 20 | C46: 201 | D46: 01 | E46: 037 | F46: 長野県 | G46: 長野市 | H46: 長野市 | I46: 南俣 | M46: =IF(K46="","",COUNTIF($K$7:K46,"ﾘｽﾄ１")) ->  | U46: =IF(S46="","",COUNTIF($S$7:S46,"該当２")) ->  | X46: =IF(V46="","",COUNTIF($V$7:V46,"該当３")) ->  | Z46: 40 | AB46: 松川町
A47: 2020101038 | B47: 20 | C47: 201 | D47: 01 | E47: 038 | F47: 長野県 | G47: 長野市 | H47: 長野市 | I47: 上高田 | M47: =IF(K47="","",COUNTIF($K$7:K47,"ﾘｽﾄ１")) ->  | U47: =IF(S47="","",COUNTIF($S$7:S47,"該当２")) ->  | X47: =IF(V47="","",COUNTIF($V$7:V47,"該当３")) ->  | Z47: 41 | AB47: 高森町
A48: 2020101039 | B48: 20 | C48: 201 | D48: 01 | E48: 039 | F48: 長野県 | G48: 長野市 | H48: 長野市 | I48: 川端 | M48: =IF(K48="","",COUNTIF($K$7:K48,"ﾘｽﾄ１")) ->  | U48: =IF(S48="","",COUNTIF($S$7:S48,"該当２")) ->  | X48: =IF(V48="","",COUNTIF($V$7:V48,"該当３")) ->  | Z48: 42 | AB48: 阿南町
A49: 2020101040 | B49: 20 | C49: 201 | D49: 01 | E49: 040 | F49: 長野県 | G49: 長野市 | H49: 長野市 | I49: 中村 | M49: =IF(K49="","",COUNTIF($K$7:K49,"ﾘｽﾄ１")) ->  | U49: =IF(S49="","",COUNTIF($S$7:S49,"該当２")) ->  | X49: =IF(V49="","",COUNTIF($V$7:V49,"該当３")) ->  | Z49: 43 | AB49: 阿智村
A50: 2020101041 | B50: 20 | C50: 201 | D50: 01 | E50: 041 | F50: 長野県 | G50: 長野市 | H50: 長野市 | I50: 五分一 | M50: =IF(K50="","",COUNTIF($K$7:K50,"ﾘｽﾄ１")) ->  | U50: =IF(S50="","",COUNTIF($S$7:S50,"該当２")) ->  | X50: =IF(V50="","",COUNTIF($V$7:V50,"該当３")) ->  | Z50: 44 | AB50: 平谷村
A51: 2020101042 | B51: 20 | C51: 201 | D51: 01 | E51: 042 | F51: 長野県 | G51: 長野市 | H51: 長野市 | I51: 南高田 | M51: =IF(K51="","",COUNTIF($K$7:K51,"ﾘｽﾄ１")) ->  | U51: =IF(S51="","",COUNTIF($S$7:S51,"該当２")) ->  | X51: =IF(V51="","",COUNTIF($V$7:V51,"該当３")) ->  | Z51: 45 | AB51: 根羽村
A52: 2020101043 | B52: 20 | C52: 201 | D52: 01 | E52: 043 | F52: 長野県 | G52: 長野市 | H52: 長野市 | I52: 南長池 | M52: =IF(K52="","",COUNTIF($K$7:K52,"ﾘｽﾄ１")) ->  | U52: =IF(S52="","",COUNTIF($S$7:S52,"該当２")) ->  | X52: =IF(V52="","",COUNTIF($V$7:V52,"該当３")) ->  | Z52: 46 | AB52: 下條村
A53: 2020101044 | B53: 20 | C53: 201 | D53: 01 | E53: 044 | F53: 長野県 | G53: 長野市 | H53: 長野市 | I53: 若宮 | M53: =IF(K53="","",COUNTIF($K$7:K53,"ﾘｽﾄ１")) ->  | U53: =IF(S53="","",COUNTIF($S$7:S53,"該当２")) ->  | X53: =IF(V53="","",COUNTIF($V$7:V53,"該当３")) ->  | Z53: 47 | AB53: 売木村
A54: 2020101045 | B54: 20 | C54: 201 | D54: 01 | E54: 045 | F54: 長野県 | G54: 長野市 | H54: 長野市 | I54: 西尾張部 | M54: =IF(K54="","",COUNTIF($K$7:K54,"ﾘｽﾄ１")) ->  | U54: =IF(S54="","",COUNTIF($S$7:S54,"該当２")) ->  | X54: =IF(V54="","",COUNTIF($V$7:V54,"該当３")) ->  | Z54: 48 | AB54: 天龍村
A55: 2020101046 | B55: 20 | C55: 201 | D55: 01 | E55: 046 | F55: 長野県 | G55: 長野市 | H55: 長野市 | I55: 東和田 | M55: =IF(K55="","",COUNTIF($K$7:K55,"ﾘｽﾄ１")) ->  | U55: =IF(S55="","",COUNTIF($S$7:S55,"該当２")) ->  | X55: =IF(V55="","",COUNTIF($V$7:V55,"該当３")) ->  | Z55: 49 | AB55: 泰阜村
A56: 2020101047 | B56: 20 | C56: 201 | D56: 01 | E56: 047 | F56: 長野県 | G56: 長野市 | H56: 長野市 | I56: 西和田 | M56: =IF(K56="","",COUNTIF($K$7:K56,"ﾘｽﾄ１")) ->  | U56: =IF(S56="","",COUNTIF($S$7:S56,"該当２")) ->  | X56: =IF(V56="","",COUNTIF($V$7:V56,"該当３")) ->  | Z56: 50 | AB56: 喬木村
A57: 2020101048 | B57: 20 | C57: 201 | D57: 01 | E57: 048 | F57: 長野県 | G57: 長野市 | H57: 長野市 | I57: 平林 | M57: =IF(K57="","",COUNTIF($K$7:K57,"ﾘｽﾄ１")) ->  | U57: =IF(S57="","",COUNTIF($S$7:S57,"該当２")) ->  | X57: =IF(V57="","",COUNTIF($V$7:V57,"該当３")) ->  | Z57: 51 | AB57: 豊丘村
A58: 2020101049 | B58: 20 | C58: 201 | D58: 01 | E58: 049 | F58: 長野県 | G58: 長野市 | H58: 長野市 | I58: 北条 | M58: =IF(K58="","",COUNTIF($K$7:K58,"ﾘｽﾄ１")) ->  | U58: =IF(S58="","",COUNTIF($S$7:S58,"該当２")) ->  | X58: =IF(V58="","",COUNTIF($V$7:V58,"該当３")) ->  | Z58: 52 | AB58: 大鹿村
A59: 2020101050 | B59: 20 | C59: 201 | D59: 01 | E59: 050 | F59: 長野県 | G59: 長野市 | H59: 長野市 | I59: 荒屋 | M59: =IF(K59="","",COUNTIF($K$7:K59,"ﾘｽﾄ１")) ->  | U59: =IF(S59="","",COUNTIF($S$7:S59,"該当２")) ->  | X59: =IF(V59="","",COUNTIF($V$7:V59,"該当３")) ->  | Z59: 53 | AB59: 上松町
A60: 2020101051 | B60: 20 | C60: 201 | D60: 01 | E60: 051 | F60: 長野県 | G60: 長野市 | H60: 長野市 | I60: 桐原 | M60: =IF(K60="","",COUNTIF($K$7:K60,"ﾘｽﾄ１")) ->  | U60: =IF(S60="","",COUNTIF($S$7:S60,"該当２")) ->  | X60: =IF(V60="","",COUNTIF($V$7:V60,"該当３")) ->  | Z60: 54 | AB60: 南木曽町
A61: 2020101052 | B61: 20 | C61: 201 | D61: 01 | E61: 052 | F61: 長野県 | G61: 長野市 | H61: 長野市 | I61: 中越 | M61: =IF(K61="","",COUNTIF($K$7:K61,"ﾘｽﾄ１")) ->  | U61: =IF(S61="","",COUNTIF($S$7:S61,"該当２")) ->  | X61: =IF(V61="","",COUNTIF($V$7:V61,"該当３")) ->  | Z61: 55 | AB61: 木祖村
A62: 2020101053 | B62: 20 | C62: 201 | D62: 01 | E62: 053 | F62: 長野県 | G62: 長野市 | H62: 長野市 | I62: 鍋屋 | M62: =IF(K62="","",COUNTIF($K$7:K62,"ﾘｽﾄ１")) ->  | U62: =IF(S62="","",COUNTIF($S$7:S62,"該当２")) ->  | X62: =IF(V62="","",COUNTIF($V$7:V62,"該当３")) ->  | Z62: 56 | AB62: 王滝村
A63: 2020101054 | B63: 20 | C63: 201 | D63: 01 | E63: 054 | F63: 長野県 | G63: 長野市 | H63: 長野市 | I63: 太田 | M63: =IF(K63="","",COUNTIF($K$7:K63,"ﾘｽﾄ１")) ->  | U63: =IF(S63="","",COUNTIF($S$7:S63,"該当２")) ->  | X63: =IF(V63="","",COUNTIF($V$7:V63,"該当３")) ->  | Z63: 57 | AB63: 大桑村
A64: 2020101055 | B64: 20 | C64: 201 | D64: 01 | E64: 055 | F64: 長野県 | G64: 長野市 | H64: 長野市 | I64: 東部 | M64: =IF(K64="","",COUNTIF($K$7:K64,"ﾘｽﾄ１")) ->  | U64: =IF(S64="","",COUNTIF($S$7:S64,"該当２")) ->  | X64: =IF(V64="","",COUNTIF($V$7:V64,"該当３")) ->  | Z64: 58 | AB64: 木曽町
A65: 2020101056 | B65: 20 | C65: 201 | D65: 01 | E65: 056 | F65: 長野県 | G65: 長野市 | H65: 長野市 | I65: 西部 | M65: =IF(K65="","",COUNTIF($K$7:K65,"ﾘｽﾄ１")) ->  | U65: =IF(S65="","",COUNTIF($S$7:S65,"該当２")) ->  | X65: =IF(V65="","",COUNTIF($V$7:V65,"該当３")) ->  | Z65: 59 | AB65: 麻績村
A66: 2020101057 | B66: 20 | C66: 201 | D66: 01 | E66: 057 | F66: 長野県 | G66: 長野市 | H66: 長野市 | I66: 中部 | M66: =IF(K66="","",COUNTIF($K$7:K66,"ﾘｽﾄ１")) ->  | U66: =IF(S66="","",COUNTIF($S$7:S66,"該当２")) ->  | X66: =IF(V66="","",COUNTIF($V$7:V66,"該当３")) ->  | Z66: 60 | AB66: 生坂村
A67: 2020101058 | B67: 20 | C67: 201 | D67: 01 | E67: 058 | F67: 長野県 | G67: 長野市 | H67: 長野市 | I67: 押鐘 | M67: =IF(K67="","",COUNTIF($K$7:K67,"ﾘｽﾄ１")) ->  | U67: =IF(S67="","",COUNTIF($S$7:S67,"該当２")) ->  | X67: =IF(V67="","",COUNTIF($V$7:V67,"該当３")) ->  | Z67: 61 | AB67: 山形村
A68: 2020101059 | B68: 20 | C68: 201 | D68: 01 | E68: 059 | F68: 長野県 | G68: 長野市 | H68: 長野市 | I68: 上宇木 | M68: =IF(K68="","",COUNTIF($K$7:K68,"ﾘｽﾄ１")) ->  | U68: =IF(S68="","",COUNTIF($S$7:S68,"該当２")) ->  | X68: =IF(V68="","",COUNTIF($V$7:V68,"該当３")) ->  | Z68: 62 | AB68: 朝日村
A69: 2020101060 | B69: 20 | C69: 201 | D69: 01 | E69: 060 | F69: 長野県 | G69: 長野市 | H69: 長野市 | I69: 下宇木 | M69: =IF(K69="","",COUNTIF($K$7:K69,"ﾘｽﾄ１")) ->  | U69: =IF(S69="","",COUNTIF($S$7:S69,"該当２")) ->  | X69: =IF(V69="","",COUNTIF($V$7:V69,"該当３")) ->  | Z69: 63 | AB69: 筑北村
A70: 2020101061 | B70: 20 | C70: 201 | D70: 01 | E70: 061 | F70: 長野県 | G70: 長野市 | H70: 長野市 | I70: 相ノ木東 | M70: =IF(K70="","",COUNTIF($K$7:K70,"ﾘｽﾄ１")) ->  | U70: =IF(S70="","",COUNTIF($S$7:S70,"該当２")) ->  | X70: =IF(V70="","",COUNTIF($V$7:V70,"該当３")) ->  | Z70: 64 | AB70: 池田町
A71: 2020101062 | B71: 20 | C71: 201 | D71: 01 | E71: 062 | F71: 長野県 | G71: 長野市 | H71: 長野市 | I71: 相ノ木西 | M71: =IF(K71="","",COUNTIF($K$7:K71,"ﾘｽﾄ１")) ->  | U71: =IF(S71="","",COUNTIF($S$7:S71,"該当２")) ->  | X71: =IF(V71="","",COUNTIF($V$7:V71,"該当３")) ->  | Z71: 65 | AB71: 松川村
A72: 2020101063 | B72: 20 | C72: 201 | D72: 01 | E72: 063 | F72: 長野県 | G72: 長野市 | H72: 長野市 | I72: 横山 | M72: =IF(K72="","",COUNTIF($K$7:K72,"ﾘｽﾄ１")) ->  | P72: =IF(O72="該当１",G72,"") ->  | Q72: =IF(O72="該当１","ﾘｽﾄ2","") ->  | R72: =IF(Q72="ﾘｽﾄ2",H72,"") ->  | T72: =IF(S72="該当２",H72,"") ->  | U72: =IF(S72="","",COUNTIF($S$7:S72,"該当２")) ->  | V72: =IF(AND($S$2=H72,E72>0,E72<998),"該当３","") ->  | W72: =IF(V72="該当３",I72,"") ->  | X72: =IF(V72="","",COUNTIF($V$7:V72,"該当３")) ->  | Z72: 66 | AB72: 白馬村
A73: 2020101064 | B73: 20 | C73: 201 | D73: 01 | E73: 064 | F73: 長野県 | G73: 長野市 | H73: 長野市 | I73: 本郷 | K73: =IF(AND($C73>0,$H73=""),"ﾘｽﾄ１","") ->  | L73: =IF(K73="ﾘｽﾄ１",G73,"") ->  | M73: =IF(K73="","",COUNTIF($K$7:K73,"ﾘｽﾄ１")) ->  | N73: =IF(AND(D73=0,E73>0),"同一区","") ->  | O73: =IF(AND(EXACT($K$2,G73),H73>0),"該当１","") ->  | S73: =IF(AND(Q73="ﾘｽﾄ2",OR(I73=0,AND(N73="同一区",E73=1))),"該当２","") ->  | U73: =IF(S73="","",COUNTIF($S$7:S73,"該当２")) ->  | X73: =IF(V73="","",COUNTIF($V$7:V73,"該当３")) ->  | Z73: 67 | AB73: 小谷村
A74: 2020101065 | B74: 20 | C74: 201 | D74: 01 | E74: 065 | F74: 長野県 | G74: 長野市 | H74: 長野市 | I74: 返目 | M74: =IF(K74="","",COUNTIF($K$7:K74,"ﾘｽﾄ１")) ->  | U74: =IF(S74="","",COUNTIF($S$7:S74,"該当２")) ->  | X74: =IF(V74="","",COUNTIF($V$7:V74,"該当３")) ->  | Z74: 68 | AB74: 坂城町
A75: 2020102000 | B75: 20 | C75: 201 | D75: 02 | E75: 000 | F75: 長野県 | G75: 長野市 | H75: 芋井村 | M75: =IF(K75="","",COUNTIF($K$7:K75,"ﾘｽﾄ１")) ->  | U75: =IF(S75="","",COUNTIF($S$7:S75,"該当２")) ->  | X75: =IF(V75="","",COUNTIF($V$7:V75,"該当３")) ->  | Z75: 69 | AB75: 小布施町
A76: 2020102001 | B76: 20 | C76: 201 | D76: 02 | E76: 001 | F76: 長野県 | G76: 長野市 | H76: 芋井村 | I76: 新安 | M76: =IF(K76="","",COUNTIF($K$7:K76,"ﾘｽﾄ１")) ->  | U76: =IF(S76="","",COUNTIF($S$7:S76,"該当２")) ->  | X76: =IF(V76="","",COUNTIF($V$7:V76,"該当３")) ->  | Z76: 70 | AB76: 高山村
A77: 2020102002 | B77: 20 | C77: 201 | D77: 02 | E77: 002 | F77: 長野県 | G77: 長野市 | H77: 芋井村 | I77: 荒安 | M77: =IF(K77="","",COUNTIF($K$7:K77,"ﾘｽﾄ１")) ->  | U77: =IF(S77="","",COUNTIF($S$7:S77,"該当２")) ->  | X77: =IF(V77="","",COUNTIF($V$7:V77,"該当３")) ->  | Z77: 71 | AB77: 山ノ内町
A78: 2020102003 | B78: 20 | C78: 201 | D78: 02 | E78: 003 | F78: 長野県 | G78: 長野市 | H78: 芋井村 | I78: たたら | M78: =IF(K78="","",COUNTIF($K$7:K78,"ﾘｽﾄ１")) ->  | U78: =IF(S78="","",COUNTIF($S$7:S78,"該当２")) ->  | X78: =IF(V78="","",COUNTIF($V$7:V78,"該当３")) ->  | Z78: 72 | AB78: 木島平村
A79: 2020102004 | B79: 20 | C79: 201 | D79: 02 | E79: 004 | F79: 長野県 | G79: 長野市 | H79: 芋井村 | I79: 坂額 | M79: =IF(K79="","",COUNTIF($K$7:K79,"ﾘｽﾄ１")) ->  | U79: =IF(S79="","",COUNTIF($S$7:S79,"該当２")) ->  | X79: =IF(V79="","",COUNTIF($V$7:V79,"該当３")) ->  | Z79: 73 | AB79: 野沢温泉村
A80: 2020102005 | B80: 20 | C80: 201 | D80: 02 | E80: 005 | F80: 長野県 | G80: 長野市 | H80: 芋井村 | I80: 泉平 | M80: =IF(K80="","",COUNTIF($K$7:K80,"ﾘｽﾄ１")) ->  | U80: =IF(S80="","",COUNTIF($S$7:S80,"該当２")) ->  | X80: =IF(V80="","",COUNTIF($V$7:V80,"該当３")) ->  | Z80: 74 | AB80: 信濃町
A81: 2020102006 | B81: 20 | C81: 201 | D81: 02 | E81: 006 | F81: 長野県 | G81: 長野市 | H81: 芋井村 | I81: 中村 | M81: =IF(K81="","",COUNTIF($K$7:K81,"ﾘｽﾄ１")) ->  | U81: =IF(S81="","",COUNTIF($S$7:S81,"該当２")) ->  | X81: =IF(V81="","",COUNTIF($V$7:V81,"該当３")) ->  | Z81: 75 | AB81: 小川村
A82: 2020102007 | B82: 20 | C82: 201 | D82: 02 | E82: 007 | F82: 長野県 | G82: 長野市 | H82: 芋井村 | I82: 坂高木 | M82: =IF(K82="","",COUNTIF($K$7:K82,"ﾘｽﾄ１")) ->  | U82: =IF(S82="","",COUNTIF($S$7:S82,"該当２")) ->  | X82: =IF(V82="","",COUNTIF($V$7:V82,"該当３")) ->  | Z82: 76 | AB82: 飯綱町
A83: 2020102008 | B83: 20 | C83: 201 | D83: 02 | E83: 008 | F83: 長野県 | G83: 長野市 | H83: 芋井村 | I83: 松久保 | M83: =IF(K83="","",COUNTIF($K$7:K83,"ﾘｽﾄ１")) ->  | U83: =IF(S83="","",COUNTIF($S$7:S83,"該当２")) ->  | X83: =IF(V83="","",COUNTIF($V$7:V83,"該当３")) ->  | Z83: 77 | AB83: 栄村
A84: 2020102009 | B84: 20 | C84: 201 | D84: 02 | E84: 009 | F84: 長野県 | G84: 長野市 | H84: 芋井村 | I84: 池平 | M84: =IF(K84="","",COUNTIF($K$7:K84,"ﾘｽﾄ１")) ->  | U84: =IF(S84="","",COUNTIF($S$7:S84,"該当２")) ->  | X84: =IF(V84="","",COUNTIF($V$7:V84,"該当３")) ->  | Z84: 78
A85: 2020102010 | B85: 20 | C85: 201 | D85: 02 | E85: 010 | F85: 長野県 | G85: 長野市 | H85: 芋井村 | I85: 洞 | M85: =IF(K85="","",COUNTIF($K$7:K85,"ﾘｽﾄ１")) ->  | U85: =IF(S85="","",COUNTIF($S$7:S85,"該当２")) ->  | X85: =IF(V85="","",COUNTIF($V$7:V85,"該当３")) ->  | Z85: 79
A86: 2020102011 | B86: 20 | C86: 201 | D86: 02 | E86: 011 | F86: 長野県 | G86: 長野市 | H86: 芋井村 | I86: 清水 | M86: =IF(K86="","",COUNTIF($K$7:K86,"ﾘｽﾄ１")) ->  | U86: =IF(S86="","",COUNTIF($S$7:S86,"該当２")) ->  | X86: =IF(V86="","",COUNTIF($V$7:V86,"該当３")) -> 
A87: 2020102012 | B87: 20 | C87: 201 | D87: 02 | E87: 012 | F87: 長野県 | G87: 長野市 | H87: 芋井村 | I87: 岩戸 | M87: =IF(K87="","",COUNTIF($K$7:K87,"ﾘｽﾄ１")) ->  | U87: =IF(S87="","",COUNTIF($S$7:S87,"該当２")) ->  | X87: =IF(V87="","",COUNTIF($V$7:V87,"該当３")) -> 
A88: 2020102013 | B88: 20 | C88: 201 | D88: 02 | E88: 013 | F88: 長野県 | G88: 長野市 | H88: 芋井村 | I88: 曲戸 | M88: =IF(K88="","",COUNTIF($K$7:K88,"ﾘｽﾄ１")) ->  | U88: =IF(S88="","",COUNTIF($S$7:S88,"該当２")) ->  | X88: =IF(V88="","",COUNTIF($V$7:V88,"該当３")) -> 
A89: 2020102014 | B89: 20 | C89: 201 | D89: 02 | E89: 014 | F89: 長野県 | G89: 長野市 | H89: 芋井村 | I89: 沢尻 | M89: =IF(K89="","",COUNTIF($K$7:K89,"ﾘｽﾄ１")) ->  | U89: =IF(S89="","",COUNTIF($S$7:S89,"該当２")) ->  | X89: =IF(V89="","",COUNTIF($V$7:V89,"該当３")) -> 
A90: 2020102015 | B90: 20 | C90: 201 | D90: 02 | E90: 015 | F90: 長野県 | G90: 長野市 | H90: 芋井村 | I90: 上野平 | M90: =IF(K90="","",COUNTIF($K$7:K90,"ﾘｽﾄ１")) ->  | U90: =IF(S90="","",COUNTIF($S$7:S90,"該当２")) ->  | X90: =IF(V90="","",COUNTIF($V$7:V90,"該当３")) -> 
A91: 2020102016 | B91: 20 | C91: 201 | D91: 02 | E91: 016 | F91: 長野県 | G91: 長野市 | H91: 芋井村 | I91: 上中犬飼 | M91: =IF(K91="","",COUNTIF($K$7:K91,"ﾘｽﾄ１")) ->  | U91: =IF(S91="","",COUNTIF($S$7:S91,"該当２")) ->  | X91: =IF(V91="","",COUNTIF($V$7:V91,"該当３")) -> 
A92: 2020102017 | B92: 20 | C92: 201 | D92: 02 | E92: 017 | F92: 長野県 | G92: 長野市 | H92: 芋井村 | I92: 下犬飼 | M92: =IF(K92="","",COUNTIF($K$7:K92,"ﾘｽﾄ１")) ->  | U92: =IF(S92="","",COUNTIF($S$7:S92,"該当２")) ->  | X92: =IF(V92="","",COUNTIF($V$7:V92,"該当３")) -> 
A93: 2020102018 | B93: 20 | C93: 201 | D93: 02 | E93: 018 | F93: 長野県 | G93: 長野市 | H93: 芋井村 | I93: 荻久保 | M93: =IF(K93="","",COUNTIF($K$7:K93,"ﾘｽﾄ１")) ->  | U93: =IF(S93="","",COUNTIF($S$7:S93,"該当２")) ->  | X93: =IF(V93="","",COUNTIF($V$7:V93,"該当３")) -> 
A94: 2020102019 | B94: 20 | C94: 201 | D94: 02 | E94: 019 | F94: 長野県 | G94: 長野市 | H94: 芋井村 | I94: 影山 | M94: =IF(K94="","",COUNTIF($K$7:K94,"ﾘｽﾄ１")) ->  | U94: =IF(S94="","",COUNTIF($S$7:S94,"該当２")) ->  | X94: =IF(V94="","",COUNTIF($V$7:V94,"該当３")) -> 
A95: 2020102020 | B95: 20 | C95: 201 | D95: 02 | E95: 020 | F95: 長野県 | G95: 長野市 | H95: 芋井村 | I95: 沢浦 | M95: =IF(K95="","",COUNTIF($K$7:K95,"ﾘｽﾄ１")) ->  | U95: =IF(S95="","",COUNTIF($S$7:S95,"該当２")) ->  | X95: =IF(V95="","",COUNTIF($V$7:V95,"該当３")) -> 
A96: 2020102021 | B96: 20 | C96: 201 | D96: 02 | E96: 021 | F96: 長野県 | G96: 長野市 | H96: 芋井村 | I96: 扇平 | M96: =IF(K96="","",COUNTIF($K$7:K96,"ﾘｽﾄ１")) ->  | U96: =IF(S96="","",COUNTIF($S$7:S96,"該当２")) ->  | X96: =IF(V96="","",COUNTIF($V$7:V96,"該当３")) -> 
A97: 2020102022 | B97: 20 | C97: 201 | D97: 02 | E97: 022 | F97: 長野県 | G97: 長野市 | H97: 芋井村 | I97: 百舌原 | M97: =IF(K97="","",COUNTIF($K$7:K97,"ﾘｽﾄ１")) ->  | U97: =IF(S97="","",COUNTIF($S$7:S97,"該当２")) ->  | X97: =IF(V97="","",COUNTIF($V$7:V97,"該当３")) -> 
A98: 2020102023 | B98: 20 | C98: 201 | D98: 02 | E98: 023 | F98: 長野県 | G98: 長野市 | H98: 芋井村 | I98: 広瀬 | M98: =IF(K98="","",COUNTIF($K$7:K98,"ﾘｽﾄ１")) ->  | U98: =IF(S98="","",COUNTIF($S$7:S98,"該当２")) ->  | X98: =IF(V98="","",COUNTIF($V$7:V98,"該当３")) -> 
A99: 2020102024 | B99: 20 | C99: 201 | D99: 02 | E99: 024 | F99: 長野県 | G99: 長野市 | H99: 芋井村 | I99: 新屋 | M99: =IF(K99="","",COUNTIF($K$7:K99,"ﾘｽﾄ１")) ->  | U99: =IF(S99="","",COUNTIF($S$7:S99,"該当２")) ->  | X99: =IF(V99="","",COUNTIF($V$7:V99,"該当３")) -> 
A100: 2020102025 | B100: 20 | C100: 201 | D100: 02 | E100: 025 | F100: 長野県 | G100: 長野市 | H100: 芋井村 | I100: 荒井 | M100: =IF(K100="","",COUNTIF($K$7:K100,"ﾘｽﾄ１")) ->  | U100: =IF(S100="","",COUNTIF($S$7:S100,"該当２")) ->  | X100: =IF(V100="","",COUNTIF($V$7:V100,"該当３")) -> 
A101: 2020102026 | B101: 20 | C101: 201 | D101: 02 | E101: 026 | F101: 長野県 | G101: 長野市 | H101: 芋井村 | I101: 平 | M101: =IF(K101="","",COUNTIF($K$7:K101,"ﾘｽﾄ１")) ->  | U101: =IF(S101="","",COUNTIF($S$7:S101,"該当２")) ->  | X101: =IF(V101="","",COUNTIF($V$7:V101,"該当３")) -> 
A102: 2020102027 | B102: 20 | C102: 201 | D102: 02 | E102: 027 | F102: 長野県 | G102: 長野市 | H102: 芋井村 | I102: 京田，貉久保 | M102: =IF(K102="","",COUNTIF($K$7:K102,"ﾘｽﾄ１")) ->  | U102: =IF(S102="","",COUNTIF($S$7:S102,"該当２")) ->  | X102: =IF(V102="","",COUNTIF($V$7:V102,"該当３")) -> 
A103: 2020102028 | B103: 20 | C103: 201 | D103: 02 | E103: 028 | F103: 長野県 | G103: 長野市 | H103: 芋井村 | I103: 軍足 | M103: =IF(K103="","",COUNTIF($K$7:K103,"ﾘｽﾄ１")) ->  | U103: =IF(S103="","",COUNTIF($S$7:S103,"該当２")) ->  | X103: =IF(V103="","",COUNTIF($V$7:V103,"該当３")) -> 
A104: 2020102029 | B104: 20 | C104: 201 | D104: 02 | E104: 029 | F104: 長野県 | G104: 長野市 | H104: 芋井村 | I104: 麓原 | M104: =IF(K104="","",COUNTIF($K$7:K104,"ﾘｽﾄ１")) ->  | U104: =IF(S104="","",COUNTIF($S$7:S104,"該当２")) ->  | X104: =IF(V104="","",COUNTIF($V$7:V104,"該当３")) -> 
A105: 2020102030 | B105: 20 | C105: 201 | D105: 02 | E105: 030 | F105: 長野県 | G105: 長野市 | H105: 芋井村 | I105: 栄峯，銚子口 | M105: =IF(K105="","",COUNTIF($K$7:K105,"ﾘｽﾄ１")) ->  | U105: =IF(S105="","",COUNTIF($S$7:S105,"該当２")) ->  | X105: =IF(V105="","",COUNTIF($V$7:V105,"該当３")) -> 
A106: 2020103000 | B106: 20 | C106: 201 | D106: 03 | E106: 000 | F106: 長野県 | G106: 長野市 | H106: 浅川村 | M106: =IF(K106="","",COUNTIF($K$7:K106,"ﾘｽﾄ１")) ->  | U106: =IF(S106="","",COUNTIF($S$7:S106,"該当２")) ->  | X106: =IF(V106="","",COUNTIF($V$7:V106,"該当３")) -> 
A107: 2020103001 | B107: 20 | C107: 201 | D107: 03 | E107: 001 | F107: 長野県 | G107: 長野市 | H107: 浅川村 | I107: 東条 | M107: =IF(K107="","",COUNTIF($K$7:K107,"ﾘｽﾄ１")) ->  | U107: =IF(S107="","",COUNTIF($S$7:S107,"該当２")) ->  | X107: =IF(V107="","",COUNTIF($V$7:V107,"該当３")) -> 
A108: 2020103002 | B108: 20 | C108: 201 | D108: 03 | E108: 002 | F108: 長野県 | G108: 長野市 | H108: 浅川村 | I108: 伺去 | M108: =IF(K108="","",COUNTIF($K$7:K108,"ﾘｽﾄ１")) ->  | U108: =IF(S108="","",COUNTIF($S$7:S108,"該当２")) ->  | X108: =IF(V108="","",COUNTIF($V$7:V108,"該当３")) -> 
A109: 2020103003 | B109: 20 | C109: 201 | D109: 03 | E109: 003 | F109: 長野県 | G109: 長野市 | H109: 浅川村 | I109: 真光寺 | M109: =IF(K109="","",COUNTIF($K$7:K109,"ﾘｽﾄ１")) ->  | U109: =IF(S109="","",COUNTIF($S$7:S109,"該当２")) ->  | X109: =IF(V109="","",COUNTIF($V$7:V109,"該当３")) -> 
A110: 2020103004 | B110: 20 | C110: 201 | D110: 03 | E110: 004 | F110: 長野県 | G110: 長野市 | H110: 浅川村 | I110: 一ノ瀬 | M110: =IF(K110="","",COUNTIF($K$7:K110,"ﾘｽﾄ１")) ->  | U110: =IF(S110="","",COUNTIF($S$7:S110,"該当２")) ->  | X110: =IF(V110="","",COUNTIF($V$7:V110,"該当３")) -> 
A111: 2020103005 | B111: 20 | C111: 201 | D111: 03 | E111: 005 | F111: 長野県 | G111: 長野市 | H111: 浅川村 | I111: 清水 | M111: =IF(K111="","",COUNTIF($K$7:K111,"ﾘｽﾄ１")) ->  | U111: =IF(S111="","",COUNTIF($S$7:S111,"該当２")) ->  | X111: =IF(V111="","",COUNTIF($V$7:V111,"該当３")) -> 
A112: 2020103006 | B112: 20 | C112: 201 | D112: 03 | E112: 006 | F112: 長野県 | G112: 長野市 | H112: 浅川村 | I112: 畑山 | M112: =IF(K112="","",COUNTIF($K$7:K112,"ﾘｽﾄ１")) ->  | U112: =IF(S112="","",COUNTIF($S$7:S112,"該当２")) ->  | X112: =IF(V112="","",COUNTIF($V$7:V112,"該当３")) -> 
A113: 2020103007 | B113: 20 | C113: 201 | D113: 03 | E113: 007 | F113: 長野県 | G113: 長野市 | H113: 浅川村 | I113: 門沢 | M113: =IF(K113="","",COUNTIF($K$7:K113,"ﾘｽﾄ１")) ->  | U113: =IF(S113="","",COUNTIF($S$7:S113,"該当２")) ->  | X113: =IF(V113="","",COUNTIF($V$7:V113,"該当３")) -> 
A114: 2020103008 | B114: 20 | C114: 201 | D114: 03 | E114: 008 | F114: 長野県 | G114: 長野市 | H114: 浅川村 | I114: 中曽根 | M114: =IF(K114="","",COUNTIF($K$7:K114,"ﾘｽﾄ１")) ->  | U114: =IF(S114="","",COUNTIF($S$7:S114,"該当２")) ->  | X114: =IF(V114="","",COUNTIF($V$7:V114,"該当３")) -> 
A115: 2020103009 | B115: 20 | C115: 201 | D115: 03 | E115: 009 | F115: 長野県 | G115: 長野市 | H115: 浅川村 | I115: 本郷 | M115: =IF(K115="","",COUNTIF($K$7:K115,"ﾘｽﾄ１")) ->  | U115: =IF(S115="","",COUNTIF($S$7:S115,"該当２")) ->  | X115: =IF(V115="","",COUNTIF($V$7:V115,"該当３")) -> 
A116: 2020103010 | B116: 20 | C116: 201 | D116: 03 | E116: 010 | F116: 長野県 | G116: 長野市 | H116: 浅川村 | I116: 三ツ出 | M116: =IF(K116="","",COUNTIF($K$7:K116,"ﾘｽﾄ１")) ->  | U116: =IF(S116="","",COUNTIF($S$7:S116,"該当２")) ->  | X116: =IF(V116="","",COUNTIF($V$7:V116,"該当３")) -> 
A117: 2020103011 | B117: 20 | C117: 201 | D117: 03 | E117: 011 | F117: 長野県 | G117: 長野市 | H117: 浅川村 | I117: 台ケ窪 | M117: =IF(K117="","",COUNTIF($K$7:K117,"ﾘｽﾄ１")) ->  | U117: =IF(S117="","",COUNTIF($S$7:S117,"該当２")) ->  | X117: =IF(V117="","",COUNTIF($V$7:V117,"該当３")) -> 
A118: 2020103012 | B118: 20 | C118: 201 | D118: 03 | E118: 012 | F118: 長野県 | G118: 長野市 | H118: 浅川村 | I118: 坂中 | M118: =IF(K118="","",COUNTIF($K$7:K118,"ﾘｽﾄ１")) ->  | U118: =IF(S118="","",COUNTIF($S$7:S118,"該当２")) ->  | X118: =IF(V118="","",COUNTIF($V$7:V118,"該当３")) -> 
A119: 2020103013 | B119: 20 | C119: 201 | D119: 03 | E119: 013 | F119: 長野県 | G119: 長野市 | H119: 浅川村 | I119: 西平 | M119: =IF(K119="","",COUNTIF($K$7:K119,"ﾘｽﾄ１")) ->  | U119: =IF(S119="","",COUNTIF($S$7:S119,"該当２")) ->  | X119: =IF(V119="","",COUNTIF($V$7:V119,"該当３")) -> 
A120: 2020103014 | B120: 20 | C120: 201 | D120: 03 | E120: 014 | F120: 長野県 | G120: 長野市 | H120: 浅川村 | I120: 福岡 | M120: =IF(K120="","",COUNTIF($K$7:K120,"ﾘｽﾄ１")) ->  | U120: =IF(S120="","",COUNTIF($S$7:S120,"該当２")) ->  | X120: =IF(V120="","",COUNTIF($V$7:V120,"該当３")) -> 
A121: 2020103015 | B121: 20 | C121: 201 | D121: 03 | E121: 015 | F121: 長野県 | G121: 長野市 | H121: 浅川村 | I121: 押田 | M121: =IF(K121="","",COUNTIF($K$7:K121,"ﾘｽﾄ１")) ->  | U121: =IF(S121="","",COUNTIF($S$7:S121,"該当２")) ->  | X121: =IF(V121="","",COUNTIF($V$7:V121,"該当３")) -> 
A122: 2020103016 | B122: 20 | C122: 201 | D122: 03 | E122: 016 | F122: 長野県 | G122: 長野市 | H122: 浅川村 | I122: 西条 | M122: =IF(K122="","",COUNTIF($K$7:K122,"ﾘｽﾄ１")) ->  | U122: =IF(S122="","",COUNTIF($S$7:S122,"該当２")) ->  | X122: =IF(V122="","",COUNTIF($V$7:V122,"該当３")) -> 
A123: 2020104000 | B123: 20 | C123: 201 | D123: 04 | E123: 000 | F123: 長野県 | G123: 長野市 | H123: 若槻村 | M123: =IF(K123="","",COUNTIF($K$7:K123,"ﾘｽﾄ１")) ->  | U123: =IF(S123="","",COUNTIF($S$7:S123,"該当２")) ->  | X123: =IF(V123="","",COUNTIF($V$7:V123,"該当３")) -> 
A124: 2020104001 | B124: 20 | C124: 201 | D124: 04 | E124: 001 | F124: 長野県 | G124: 長野市 | H124: 若槻村 | I124: 檀田 | M124: =IF(K124="","",COUNTIF($K$7:K124,"ﾘｽﾄ１")) ->  | U124: =IF(S124="","",COUNTIF($S$7:S124,"該当２")) ->  | X124: =IF(V124="","",COUNTIF($V$7:V124,"該当３")) -> 
A125: 2020104002 | B125: 20 | C125: 201 | D125: 04 | E125: 002 | F125: 長野県 | G125: 長野市 | H125: 若槻村 | I125: 稲田 | M125: =IF(K125="","",COUNTIF($K$7:K125,"ﾘｽﾄ１")) ->  | U125: =IF(S125="","",COUNTIF($S$7:S125,"該当２")) ->  | X125: =IF(V125="","",COUNTIF($V$7:V125,"該当３")) -> 
A126: 2020104003 | B126: 20 | C126: 201 | D126: 04 | E126: 003 | F126: 長野県 | G126: 長野市 | H126: 若槻村 | I126: 徳間 | M126: =IF(K126="","",COUNTIF($K$7:K126,"ﾘｽﾄ１")) ->  | U126: =IF(S126="","",COUNTIF($S$7:S126,"該当２")) ->  | X126: =IF(V126="","",COUNTIF($V$7:V126,"該当３")) -> 
A127: 2020104004 | B127: 20 | C127: 201 | D127: 04 | E127: 004 | F127: 長野県 | G127: 長野市 | H127: 若槻村 | I127: 若槻東条 | M127: =IF(K127="","",COUNTIF($K$7:K127,"ﾘｽﾄ１")) ->  | U127: =IF(S127="","",COUNTIF($S$7:S127,"該当２")) ->  | X127: =IF(V127="","",COUNTIF($V$7:V127,"該当３")) -> 
A128: 2020104005 | B128: 20 | C128: 201 | D128: 04 | E128: 005 | F128: 長野県 | G128: 長野市 | H128: 若槻村 | I128: 上野 | M128: =IF(K128="","",COUNTIF($K$7:K128,"ﾘｽﾄ１")) ->  | U128: =IF(S128="","",COUNTIF($S$7:S128,"該当２")) ->  | X128: =IF(V128="","",COUNTIF($V$7:V128,"該当３")) -> 
A129: 2020104006 | B129: 20 | C129: 201 | D129: 04 | E129: 006 | F129: 長野県 | G129: 長野市 | H129: 若槻村 | I129: 田中 | M129: =IF(K129="","",COUNTIF($K$7:K129,"ﾘｽﾄ１")) ->  | U129: =IF(S129="","",COUNTIF($S$7:S129,"該当２")) ->  | X129: =IF(V129="","",COUNTIF($V$7:V129,"該当３")) -> 
A130: 2020104007 | B130: 20 | C130: 201 | D130: 04 | E130: 007 | F130: 長野県 | G130: 長野市 | H130: 若槻村 | I130: 田子 | M130: =IF(K130="","",COUNTIF($K$7:K130,"ﾘｽﾄ１")) ->  | U130: =IF(S130="","",COUNTIF($S$7:S130,"該当２")) ->  | X130: =IF(V130="","",COUNTIF($V$7:V130,"該当３")) -> 
A131: 2020104008 | B131: 20 | C131: 201 | D131: 04 | E131: 008 | F131: 長野県 | G131: 長野市 | H131: 若槻村 | I131: 吉 | M131: =IF(K131="","",COUNTIF($K$7:K131,"ﾘｽﾄ１")) ->  | U131: =IF(S131="","",COUNTIF($S$7:S131,"該当２")) ->  | X131: =IF(V131="","",COUNTIF($V$7:V131,"該当３")) -> 
A132: 2020104009 | B132: 20 | C132: 201 | D132: 04 | E132: 009 | F132: 長野県 | G132: 長野市 | H132: 若槻村 | I132: 山千寺 | M132: =IF(K132="","",COUNTIF($K$7:K132,"ﾘｽﾄ１")) ->  | U132: =IF(S132="","",COUNTIF($S$7:S132,"該当２")) ->  | X132: =IF(V132="","",COUNTIF($V$7:V132,"該当３")) -> 
A133: 2020104010 | B133: 20 | C133: 201 | D133: 04 | E133: 010 | F133: 長野県 | G133: 長野市 | H133: 若槻村 | I133: 髻 | M133: =IF(K133="","",COUNTIF($K$7:K133,"ﾘｽﾄ１")) ->  | U133: =IF(S133="","",COUNTIF($S$7:S133,"該当２")) ->  | X133: =IF(V133="","",COUNTIF($V$7:V133,"該当３")) -> 
A134: 2020105000 | B134: 20 | C134: 201 | D134: 05 | E134: 000 | F134: 長野県 | G134: 長野市 | H134: 古里村 | M134: =IF(K134="","",COUNTIF($K$7:K134,"ﾘｽﾄ１")) ->  | U134: =IF(S134="","",COUNTIF($S$7:S134,"該当２")) ->  | X134: =IF(V134="","",COUNTIF($V$7:V134,"該当３")) -> 
A135: 2020105001 | B135: 20 | C135: 201 | D135: 05 | E135: 001 | F135: 長野県 | G135: 長野市 | H135: 古里村 | I135: 西富竹 | M135: =IF(K135="","",COUNTIF($K$7:K135,"ﾘｽﾄ１")) ->  | U135: =IF(S135="","",COUNTIF($S$7:S135,"該当２")) ->  | X135: =IF(V135="","",COUNTIF($V$7:V135,"該当３")) -> 
A136: 2020105002 | B136: 20 | C136: 201 | D136: 05 | E136: 002 | F136: 長野県 | G136: 長野市 | H136: 古里村 | I136: 東富竹 | M136: =IF(K136="","",COUNTIF($K$7:K136,"ﾘｽﾄ１")) ->  | P136: =IF(O136="該当１",G136,"") ->  | Q136: =IF(O136="該当１","ﾘｽﾄ2","") ->  | R136: =IF(Q136="ﾘｽﾄ2",H136,"") ->  | T136: =IF(S136="該当２",H136,"") ->  | U136: =IF(S136="","",COUNTIF($S$7:S136,"該当２")) ->  | V136: =IF(AND($S$2=H136,E136>0,E136<998),"該当３","") ->  | W136: =IF(V136="該当３",I136,"") ->  | X136: =IF(V136="","",COUNTIF($V$7:V136,"該当３")) -> 
A137: 2020105003 | B137: 20 | C137: 201 | D137: 05 | E137: 003 | F137: 長野県 | G137: 長野市 | H137: 古里村 | I137: 荒屋 | K137: =IF(AND($C137>0,$H137=""),"ﾘｽﾄ１","") ->  | L137: =IF(K137="ﾘｽﾄ１",G137,"") ->  | M137: =IF(K137="","",COUNTIF($K$7:K137,"ﾘｽﾄ１")) ->  | N137: =IF(AND(D137=0,E137>0),"同一区","") ->  | O137: =IF(AND(EXACT($K$2,G137),H137>0),"該当１","") ->  | S137: =IF(AND(Q137="ﾘｽﾄ2",OR(I137=0,AND(N137="同一区",E137=1))),"該当２","") ->  | U137: =IF(S137="","",COUNTIF($S$7:S137,"該当２")) ->  | X137: =IF(V137="","",COUNTIF($V$7:V137,"該当３")) -> 
A138: 2020105004 | B138: 20 | C138: 201 | D138: 05 | E138: 004 | F138: 長野県 | G138: 長野市 | H138: 古里村 | I138: 金箱 | M138: =IF(K138="","",COUNTIF($K$7:K138,"ﾘｽﾄ１")) ->  | U138: =IF(S138="","",COUNTIF($S$7:S138,"該当２")) ->  | X138: =IF(V138="","",COUNTIF($V$7:V138,"該当３")) -> 
A139: 2020105005 | B139: 20 | C139: 201 | D139: 05 | E139: 005 | F139: 長野県 | G139: 長野市 | H139: 古里村 | I139: 下駒沢 | M139: =IF(K139="","",COUNTIF($K$7:K139,"ﾘｽﾄ１")) ->  | U139: =IF(S139="","",COUNTIF($S$7:S139,"該当２")) ->  | X139: =IF(V139="","",COUNTIF($V$7:V139,"該当３")) -> 
A140: 2020105006 | B140: 20 | C140: 201 | D140: 05 | E140: 006 | F140: 長野県 | G140: 長野市 | H140: 古里村 | I140: 上駒沢 | M140: =IF(K140="","",COUNTIF($K$7:K140,"ﾘｽﾄ１")) ->  | U140: =IF(S140="","",COUNTIF($S$7:S140,"該当２")) ->  | X140: =IF(V140="","",COUNTIF($V$7:V140,"該当３")) -> 
A141: 2020105007 | B141: 20 | C141: 201 | D141: 05 | E141: 007 | F141: 長野県 | G141: 長野市 | H141: 古里村 | I141: 三才 | M141: =IF(K141="","",COUNTIF($K$7:K141,"ﾘｽﾄ１")) ->  | U141: =IF(S141="","",COUNTIF($S$7:S141,"該当２")) ->  | X141: =IF(V141="","",COUNTIF($V$7:V141,"該当３")) -> 
A142: 2020106000 | B142: 20 | C142: 201 | D142: 06 | E142: 000 | F142: 長野県 | G142: 長野市 | H142: 長沼村 | M142: =IF(K142="","",COUNTIF($K$7:K142,"ﾘｽﾄ１")) ->  | U142: =IF(S142="","",COUNTIF($S$7:S142,"該当２")) ->  | X142: =IF(V142="","",COUNTIF($V$7:V142,"該当３")) -> 
A143: 2020106001 | B143: 20 | C143: 201 | D143: 06 | E143: 001 | F143: 長野県 | G143: 長野市 | H143: 長沼村 | I143: 大町 | M143: =IF(K143="","",COUNTIF($K$7:K143,"ﾘｽﾄ１")) ->  | U143: =IF(S143="","",COUNTIF($S$7:S143,"該当２")) ->  | X143: =IF(V143="","",COUNTIF($V$7:V143,"該当３")) -> 
A144: 2020106002 | B144: 20 | C144: 201 | D144: 06 | E144: 002 | F144: 長野県 | G144: 長野市 | H144: 長沼村 | I144: 穂保 | M144: =IF(K144="","",COUNTIF($K$7:K144,"ﾘｽﾄ１")) ->  | U144: =IF(S144="","",COUNTIF($S$7:S144,"該当２")) ->  | X144: =IF(V144="","",COUNTIF($V$7:V144,"該当３")) -> 
A145: 2020106003 | B145: 20 | C145: 201 | D145: 06 | E145: 003 | F145: 長野県 | G145: 長野市 | H145: 長沼村 | I145: 津野 | M145: =IF(K145="","",COUNTIF($K$7:K145,"ﾘｽﾄ１")) ->  | U145: =IF(S145="","",COUNTIF($S$7:S145,"該当２")) ->  | X145: =IF(V145="","",COUNTIF($V$7:V145,"該当３")) -> 
A146: 2020106004 | B146: 20 | C146: 201 | D146: 06 | E146: 004 | F146: 長野県 | G146: 長野市 | H146: 長沼村 | I146: 赤沼 | M146: =IF(K146="","",COUNTIF($K$7:K146,"ﾘｽﾄ１")) ->  | U146: =IF(S146="","",COUNTIF($S$7:S146,"該当２")) ->  | X146: =IF(V146="","",COUNTIF($V$7:V146,"該当３")) -> 
A147: 2020107000 | B147: 20 | C147: 201 | D147: 07 | E147: 000 | F147: 長野県 | G147: 長野市 | H147: 柳原村（長野市） | M147: =IF(K147="","",COUNTIF($K$7:K147,"ﾘｽﾄ１")) ->  | U147: =IF(S147="","",COUNTIF($S$7:S147,"該当２")) ->  | X147: =IF(V147="","",COUNTIF($V$7:V147,"該当３")) -> 
A148: 2020107001 | B148: 20 | C148: 201 | D148: 07 | E148: 001 | F148: 長野県 | G148: 長野市 | H148: 柳原村（長野市） | I148: 小島 | M148: =IF(K148="","",COUNTIF($K$7:K148,"ﾘｽﾄ１")) ->  | U148: =IF(S148="","",COUNTIF($S$7:S148,"該当２")) ->  | X148: =IF(V148="","",COUNTIF($V$7:V148,"該当３")) -> 
A149: 2020107002 | B149: 20 | C149: 201 | D149: 07 | E149: 002 | F149: 長野県 | G149: 長野市 | H149: 柳原村（長野市） | I149: 中俣 | M149: =IF(K149="","",COUNTIF($K$7:K149,"ﾘｽﾄ１")) ->  | U149: =IF(S149="","",COUNTIF($S$7:S149,"該当２")) ->  | X149: =IF(V149="","",COUNTIF($V$7:V149,"該当３")) -> 
A150: 2020107003 | B150: 20 | C150: 201 | D150: 07 | E150: 003 | F150: 長野県 | G150: 長野市 | H150: 柳原村（長野市） | I150: 布野 | M150: =IF(K150="","",COUNTIF($K$7:K150,"ﾘｽﾄ１")) ->  | U150: =IF(S150="","",COUNTIF($S$7:S150,"該当２")) ->  | X150: =IF(V150="","",COUNTIF($V$7:V150,"該当３")) -> 
A151: 2020107004 | B151: 20 | C151: 201 | D151: 07 | E151: 004 | F151: 長野県 | G151: 長野市 | H151: 柳原村（長野市） | I151: 村山 | M151: =IF(K151="","",COUNTIF($K$7:K151,"ﾘｽﾄ１")) ->  | U151: =IF(S151="","",COUNTIF($S$7:S151,"該当２")) ->  | X151: =IF(V151="","",COUNTIF($V$7:V151,"該当３")) -> 
A152: 2020108000 | B152: 20 | C152: 201 | D152: 08 | E152: 000 | F152: 長野県 | G152: 長野市 | H152: 朝陽村 | M152: =IF(K152="","",COUNTIF($K$7:K152,"ﾘｽﾄ１")) ->  | U152: =IF(S152="","",COUNTIF($S$7:S152,"該当２")) ->  | X152: =IF(V152="","",COUNTIF($V$7:V152,"該当３")) -> 
A153: 2020108001 | B153: 20 | C153: 201 | D153: 08 | E153: 001 | F153: 長野県 | G153: 長野市 | H153: 朝陽村 | I153: 南屋島 | M153: =IF(K153="","",COUNTIF($K$7:K153,"ﾘｽﾄ１")) ->  | U153: =IF(S153="","",COUNTIF($S$7:S153,"該当２")) ->  | X153: =IF(V153="","",COUNTIF($V$7:V153,"該当３")) -> 
A154: 2020108002 | B154: 20 | C154: 201 | D154: 08 | E154: 002 | F154: 長野県 | G154: 長野市 | H154: 朝陽村 | I154: 北屋島 | M154: =IF(K154="","",COUNTIF($K$7:K154,"ﾘｽﾄ１")) ->  | U154: =IF(S154="","",COUNTIF($S$7:S154,"該当２")) ->  | X154: =IF(V154="","",COUNTIF($V$7:V154,"該当３")) -> 
A155: 2020108003 | B155: 20 | C155: 201 | D155: 08 | E155: 003 | F155: 長野県 | G155: 長野市 | H155: 朝陽村 | I155: 北長池 | M155: =IF(K155="","",COUNTIF($K$7:K155,"ﾘｽﾄ１")) ->  | U155: =IF(S155="","",COUNTIF($S$7:S155,"該当２")) ->  | X155: =IF(V155="","",COUNTIF($V$7:V155,"該当３")) -> 
A156: 2020108004 | B156: 20 | C156: 201 | D156: 08 | E156: 004 | F156: 長野県 | G156: 長野市 | H156: 朝陽村 | I156: 北尾張部 | M156: =IF(K156="","",COUNTIF($K$7:K156,"ﾘｽﾄ１")) ->  | U156: =IF(S156="","",COUNTIF($S$7:S156,"該当２")) ->  | X156: =IF(V156="","",COUNTIF($V$7:V156,"該当３")) -> 
A157: 2020108005 | B157: 20 | C157: 201 | D157: 08 | E157: 005 | F157: 長野県 | G157: 長野市 | H157: 朝陽村 | I157: 石渡 | M157: =IF(K157="","",COUNTIF($K$7:K157,"ﾘｽﾄ１")) ->  | U157: =IF(S157="","",COUNTIF($S$7:S157,"該当２")) ->  | X157: =IF(V157="","",COUNTIF($V$7:V157,"該当３")) -> 
A158: 2020108006 | B158: 20 | C158: 201 | D158: 08 | E158: 006 | F158: 長野県 | G158: 長野市 | H158: 朝陽村 | I158: 南堀 | M158: =IF(K158="","",COUNTIF($K$7:K158,"ﾘｽﾄ１")) ->  | U158: =IF(S158="","",COUNTIF($S$7:S158,"該当２")) ->  | X158: =IF(V158="","",COUNTIF($V$7:V158,"該当３")) -> 
A159: 2020108007 | B159: 20 | C159: 201 | D159: 08 | E159: 007 | F159: 長野県 | G159: 長野市 | H159: 朝陽村 | I159: 北堀 | M159: =IF(K159="","",COUNTIF($K$7:K159,"ﾘｽﾄ１")) ->  | U159: =IF(S159="","",COUNTIF($S$7:S159,"該当２")) ->  | X159: =IF(V159="","",COUNTIF($V$7:V159,"該当３")) -> 
A160: 2020109000 | B160: 20 | C160: 201 | D160: 09 | E160: 000 | F160: 長野県 | G160: 長野市 | H160: 大豆島村 | M160: =IF(K160="","",COUNTIF($K$7:K160,"ﾘｽﾄ１")) ->  | U160: =IF(S160="","",COUNTIF($S$7:S160,"該当２")) ->  | X160: =IF(V160="","",COUNTIF($V$7:V160,"該当３")) -> 
A161: 2020109001 | B161: 20 | C161: 201 | D161: 09 | E161: 001 | F161: 長野県 | G161: 長野市 | H161: 大豆島村 | I161: 松岡 | M161: =IF(K161="","",COUNTIF($K$7:K161,"ﾘｽﾄ１")) ->  | U161: =IF(S161="","",COUNTIF($S$7:S161,"該当２")) ->  | X161: =IF(V161="","",COUNTIF($V$7:V161,"該当３")) -> 
A162: 2020109002 | B162: 20 | C162: 201 | D162: 09 | E162: 002 | F162: 長野県 | G162: 長野市 | H162: 大豆島村 | I162: 上区 | M162: =IF(K162="","",COUNTIF($K$7:K162,"ﾘｽﾄ１")) ->  | U162: =IF(S162="","",COUNTIF($S$7:S162,"該当２")) ->  | X162: =IF(V162="","",COUNTIF($V$7:V162,"該当３")) -> 
A163: 2020109003 | B163: 20 | C163: 201 | D163: 09 | E163: 003 | F163: 長野県 | G163: 長野市 | H163: 大豆島村 | I163: 中区 | M163: =IF(K163="","",COUNTIF($K$7:K163,"ﾘｽﾄ１")) ->  | U163: =IF(S163="","",COUNTIF($S$7:S163,"該当２")) ->  | X163: =IF(V163="","",COUNTIF($V$7:V163,"該当３")) -> 
A164: 2020109004 | B164: 20 | C164: 201 | D164: 09 | E164: 004 | F164: 長野県 | G164: 長野市 | H164: 大豆島村 | I164: 下区 | M164: =IF(K164="","",COUNTIF($K$7:K164,"ﾘｽﾄ１")) ->  | U164: =IF(S164="","",COUNTIF($S$7:S164,"該当２")) ->  | X164: =IF(V164="","",COUNTIF($V$7:V164,"該当３")) -> 
A165: 2020109006 | B165: 20 | C165: 201 | D165: 09 | E165: 006 | F165: 長野県 | G165: 長野市 | H165: 大豆島村 | I165: 西風間 | M165: =IF(K165="","",COUNTIF($K$7:K165,"ﾘｽﾄ１")) ->  | U165: =IF(S165="","",COUNTIF($S$7:S165,"該当２")) ->  | X165: =IF(V165="","",COUNTIF($V$7:V165,"該当３")) -> 
A166: 2020109007 | B166: 20 | C166: 201 | D166: 09 | E166: 007 | F166: 長野県 | G166: 長野市 | H166: 大豆島村 | I166: 東風間 | M166: =IF(K166="","",COUNTIF($K$7:K166,"ﾘｽﾄ１")) ->  | U166: =IF(S166="","",COUNTIF($S$7:S166,"該当２")) ->  | X166: =IF(V166="","",COUNTIF($V$7:V166,"該当３")) -> 
A167: 2020110000 | B167: 20 | C167: 201 | D167: 10 | E167: 000 | F167: 長野県 | G167: 長野市 | H167: 安茂里村 | M167: =IF(K167="","",COUNTIF($K$7:K167,"ﾘｽﾄ１")) ->  | U167: =IF(S167="","",COUNTIF($S$7:S167,"該当２")) ->  | X167: =IF(V167="","",COUNTIF($V$7:V167,"該当３")) -> 
A168: 2020110001 | B168: 20 | C168: 201 | D168: 10 | E168: 001 | F168: 長野県 | G168: 長野市 | H168: 安茂里村 | I168: 平柴 | M168: =IF(K168="","",COUNTIF($K$7:K168,"ﾘｽﾄ１")) ->  | U168: =IF(S168="","",COUNTIF($S$7:S168,"該当２")) ->  | X168: =IF(V168="","",COUNTIF($V$7:V168,"該当３")) -> 
A169: 2020110002 | B169: 20 | C169: 201 | D169: 10 | E169: 002 | F169: 長野県 | G169: 長野市 | H169: 安茂里村 | I169: 小柴見 | M169: =IF(K169="","",COUNTIF($K$7:K169,"ﾘｽﾄ１")) ->  | U169: =IF(S169="","",COUNTIF($S$7:S169,"該当２")) ->  | X169: =IF(V169="","",COUNTIF($V$7:V169,"該当３")) -> 
A170: 2020110003 | B170: 20 | C170: 201 | D170: 10 | E170: 003 | F170: 長野県 | G170: 長野市 | H170: 安茂里村 | I170: 差出 | M170: =IF(K170="","",COUNTIF($K$7:K170,"ﾘｽﾄ１")) ->  | U170: =IF(S170="","",COUNTIF($S$7:S170,"該当２")) ->  | X170: =IF(V170="","",COUNTIF($V$7:V170,"該当３")) -> 
A171: 2020110004 | B171: 20 | C171: 201 | D171: 10 | E171: 004 | F171: 長野県 | G171: 長野市 | H171: 安茂里村 | I171: 大門 | M171: =IF(K171="","",COUNTIF($K$7:K171,"ﾘｽﾄ１")) ->  | U171: =IF(S171="","",COUNTIF($S$7:S171,"該当２")) ->  | X171: =IF(V171="","",COUNTIF($V$7:V171,"該当３")) -> 
A172: 2020110005 | B172: 20 | C172: 201 | D172: 10 | E172: 005 | F172: 長野県 | G172: 長野市 | H172: 安茂里村 | I172: 小路 | M172: =IF(K172="","",COUNTIF($K$7:K172,"ﾘｽﾄ１")) ->  | U172: =IF(S172="","",COUNTIF($S$7:S172,"該当２")) ->  | X172: =IF(V172="","",COUNTIF($V$7:V172,"該当３")) -> 
A173: 2020110006 | B173: 20 | C173: 201 | D173: 10 | E173: 006 | F173: 長野県 | G173: 長野市 | H173: 安茂里村 | I173: 西河原 | M173: =IF(K173="","",COUNTIF($K$7:K173,"ﾘｽﾄ１")) ->  | U173: =IF(S173="","",COUNTIF($S$7:S173,"該当２")) ->  | X173: =IF(V173="","",COUNTIF($V$7:V173,"該当３")) -> 
A174: 2020110007 | B174: 20 | C174: 201 | D174: 10 | E174: 007 | F174: 長野県 | G174: 長野市 | H174: 安茂里村 | I174: 小市 | M174: =IF(K174="","",COUNTIF($K$7:K174,"ﾘｽﾄ１")) ->  | U174: =IF(S174="","",COUNTIF($S$7:S174,"該当２")) ->  | X174: =IF(V174="","",COUNTIF($V$7:V174,"該当３")) -> 
A175: 2020111000 | B175: 20 | C175: 201 | D175: 11 | E175: 000 | F175: 長野県 | G175: 長野市 | H175: 小田切村 | M175: =IF(K175="","",COUNTIF($K$7:K175,"ﾘｽﾄ１")) ->  | U175: =IF(S175="","",COUNTIF($S$7:S175,"該当２")) ->  | X175: =IF(V175="","",COUNTIF($V$7:V175,"該当３")) -> 
A176: 2020111001 | B176: 20 | C176: 201 | D176: 11 | E176: 001 | F176: 長野県 | G176: 長野市 | H176: 小田切村 | I176: 平林 | M176: =IF(K176="","",COUNTIF($K$7:K176,"ﾘｽﾄ１")) ->  | U176: =IF(S176="","",COUNTIF($S$7:S176,"該当２")) ->  | X176: =IF(V176="","",COUNTIF($V$7:V176,"該当３")) -> 
A177: 2020111002 | B177: 20 | C177: 201 | D177: 11 | E177: 002 | F177: 長野県 | G177: 長野市 | H177: 小田切村 | I177: 下深沢 | M177: =IF(K177="","",COUNTIF($K$7:K177,"ﾘｽﾄ１")) ->  | U177: =IF(S177="","",COUNTIF($S$7:S177,"該当２")) ->  | X177: =IF(V177="","",COUNTIF($V$7:V177,"該当３")) -> 
A178: 2020111003 | B178: 20 | C178: 201 | D178: 11 | E178: 003 | F178: 長野県 | G178: 長野市 | H178: 小田切村 | I178: 平深沢 | M178: =IF(K178="","",COUNTIF($K$7:K178,"ﾘｽﾄ１")) ->  | U178: =IF(S178="","",COUNTIF($S$7:S178,"該当２")) ->  | X178: =IF(V178="","",COUNTIF($V$7:V178,"該当３")) -> 
A179: 2020111004 | B179: 20 | C179: 201 | D179: 11 | E179: 004 | F179: 長野県 | G179: 長野市 | H179: 小田切村 | I179: 上深沢 | M179: =IF(K179="","",COUNTIF($K$7:K179,"ﾘｽﾄ１")) ->  | U179: =IF(S179="","",COUNTIF($S$7:S179,"該当２")) ->  | X179: =IF(V179="","",COUNTIF($V$7:V179,"該当３")) -> 
A180: 2020111005 | B180: 20 | C180: 201 | D180: 11 | E180: 005 | F180: 長野県 | G180: 長野市 | H180: 小田切村 | I180: 本郷 | M180: =IF(K180="","",COUNTIF($K$7:K180,"ﾘｽﾄ１")) ->  | U180: =IF(S180="","",COUNTIF($S$7:S180,"該当２")) ->  | X180: =IF(V180="","",COUNTIF($V$7:V180,"該当３")) -> 
A181: 2020111006 | B181: 20 | C181: 201 | D181: 11 | E181: 006 | F181: 長野県 | G181: 長野市 | H181: 小田切村 | I181: 中組 | M181: =IF(K181="","",COUNTIF($K$7:K181,"ﾘｽﾄ１")) ->  | U181: =IF(S181="","",COUNTIF($S$7:S181,"該当２")) ->  | X181: =IF(V181="","",COUNTIF($V$7:V181,"該当３")) -> 
A182: 2020111007 | B182: 20 | C182: 201 | D182: 11 | E182: 007 | F182: 長野県 | G182: 長野市 | H182: 小田切村 | I182: 塩日方 | M182: =IF(K182="","",COUNTIF($K$7:K182,"ﾘｽﾄ１")) ->  | U182: =IF(S182="","",COUNTIF($S$7:S182,"該当２")) ->  | X182: =IF(V182="","",COUNTIF($V$7:V182,"該当３")) -> 
A183: 2020111008 | B183: 20 | C183: 201 | D183: 11 | E183: 008 | F183: 長野県 | G183: 長野市 | H183: 小田切村 | I183: 無及平 | M183: =IF(K183="","",COUNTIF($K$7:K183,"ﾘｽﾄ１")) ->  | U183: =IF(S183="","",COUNTIF($S$7:S183,"該当２")) ->  | X183: =IF(V183="","",COUNTIF($V$7:V183,"該当３")) -> 
A184: 2020111009 | B184: 20 | C184: 201 | D184: 11 | E184: 009 | F184: 長野県 | G184: 長野市 | H184: 小田切村 | I184: 草崎 | M184: =IF(K184="","",COUNTIF($K$7:K184,"ﾘｽﾄ１")) ->  | U184: =IF(S184="","",COUNTIF($S$7:S184,"該当２")) ->  | X184: =IF(V184="","",COUNTIF($V$7:V184,"該当３")) -> 
A185: 2020111010 | B185: 20 | C185: 201 | D185: 11 | E185: 010 | F185: 長野県 | G185: 長野市 | H185: 小田切村 | I185: 榎，新分市 | M185: =IF(K185="","",COUNTIF($K$7:K185,"ﾘｽﾄ１")) ->  | U185: =IF(S185="","",COUNTIF($S$7:S185,"該当２")) ->  | X185: =IF(V185="","",COUNTIF($V$7:V185,"該当３")) -> 
A186: 2020111011 | B186: 20 | C186: 201 | D186: 11 | E186: 011 | F186: 長野県 | G186: 長野市 | H186: 小田切村 | I186: 久保北畠 | M186: =IF(K186="","",COUNTIF($K$7:K186,"ﾘｽﾄ１")) ->  | U186: =IF(S186="","",COUNTIF($S$7:S186,"該当２")) ->  | X186: =IF(V186="","",COUNTIF($V$7:V186,"該当３")) -> 
A187: 2020111012 | B187: 20 | C187: 201 | D187: 11 | E187: 012 | F187: 長野県 | G187: 長野市 | H187: 小田切村 | I187: 三組 | M187: =IF(K187="","",COUNTIF($K$7:K187,"ﾘｽﾄ１")) ->  | U187: =IF(S187="","",COUNTIF($S$7:S187,"該当２")) ->  | X187: =IF(V187="","",COUNTIF($V$7:V187,"該当３")) -> 
A188: 2020111013 | B188: 20 | C188: 201 | D188: 11 | E188: 013 | F188: 長野県 | G188: 長野市 | H188: 小田切村 | I188: 麻庭 | M188: =IF(K188="","",COUNTIF($K$7:K188,"ﾘｽﾄ１")) ->  | U188: =IF(S188="","",COUNTIF($S$7:S188,"該当２")) ->  | X188: =IF(V188="","",COUNTIF($V$7:V188,"該当３")) -> 
A189: 2020111014 | B189: 20 | C189: 201 | D189: 11 | E189: 014 | F189: 長野県 | G189: 長野市 | H189: 小田切村 | I189: 山田中 | M189: =IF(K189="","",COUNTIF($K$7:K189,"ﾘｽﾄ１")) ->  | U189: =IF(S189="","",COUNTIF($S$7:S189,"該当２")) ->  | X189: =IF(V189="","",COUNTIF($V$7:V189,"該当３")) -> 
A190: 2020111015 | B190: 20 | C190: 201 | D190: 11 | E190: 015 | F190: 長野県 | G190: 長野市 | H190: 小田切村 | I190: 川後 | M190: =IF(K190="","",COUNTIF($K$7:K190,"ﾘｽﾄ１")) ->  | U190: =IF(S190="","",COUNTIF($S$7:S190,"該当２")) ->  | X190: =IF(V190="","",COUNTIF($V$7:V190,"該当３")) -> 
A191: 2020111016 | B191: 20 | C191: 201 | D191: 11 | E191: 016 | F191: 長野県 | G191: 長野市 | H191: 小田切村 | I191: 松枇 | M191: =IF(K191="","",COUNTIF($K$7:K191,"ﾘｽﾄ１")) ->  | U191: =IF(S191="","",COUNTIF($S$7:S191,"該当２")) ->  | X191: =IF(V191="","",COUNTIF($V$7:V191,"該当３")) -> 
A192: 2020111017 | B192: 20 | C192: 201 | D192: 11 | E192: 017 | F192: 長野県 | G192: 長野市 | H192: 小田切村 | I192: 日影繁 | M192: =IF(K192="","",COUNTIF($K$7:K192,"ﾘｽﾄ１")) ->  | U192: =IF(S192="","",COUNTIF($S$7:S192,"該当２")) ->  | X192: =IF(V192="","",COUNTIF($V$7:V192,"該当３")) -> 
A193: 2020111018 | B193: 20 | C193: 201 | D193: 11 | E193: 018 | F193: 長野県 | G193: 長野市 | H193: 小田切村 | I193: 西繁 | M193: =IF(K193="","",COUNTIF($K$7:K193,"ﾘｽﾄ１")) ->  | U193: =IF(S193="","",COUNTIF($S$7:S193,"該当２")) ->  | X193: =IF(V193="","",COUNTIF($V$7:V193,"該当３")) -> 
A194: 2020111019 | B194: 20 | C194: 201 | D194: 11 | E194: 019 | F194: 長野県 | G194: 長野市 | H194: 小田切村 | I194: 小野平 | M194: =IF(K194="","",COUNTIF($K$7:K194,"ﾘｽﾄ１")) ->  | U194: =IF(S194="","",COUNTIF($S$7:S194,"該当２")) ->  | X194: =IF(V194="","",COUNTIF($V$7:V194,"該当３")) -> 
A195: 2020111020 | B195: 20 | C195: 201 | D195: 11 | E195: 020 | F195: 長野県 | G195: 長野市 | H195: 小田切村 | I195: 東繁 | M195: =IF(K195="","",COUNTIF($K$7:K195,"ﾘｽﾄ１")) ->  | U195: =IF(S195="","",COUNTIF($S$7:S195,"該当２")) ->  | X195: =IF(V195="","",COUNTIF($V$7:V195,"該当３")) -> 
A196: 2020111021 | B196: 20 | C196: 201 | D196: 11 | E196: 021 | F196: 長野県 | G196: 長野市 | H196: 小田切村 | I196: 二ツ石 | M196: =IF(K196="","",COUNTIF($K$7:K196,"ﾘｽﾄ１")) ->  | U196: =IF(S196="","",COUNTIF($S$7:S196,"該当２")) ->  | X196: =IF(V196="","",COUNTIF($V$7:V196,"該当３")) -> 
A197: 2020111022 | B197: 20 | C197: 201 | D197: 11 | E197: 022 | F197: 長野県 | G197: 長野市 | H197: 小田切村 | I197: 国見 | M197: =IF(K197="","",COUNTIF($K$7:K197,"ﾘｽﾄ１")) ->  | U197: =IF(S197="","",COUNTIF($S$7:S197,"該当２")) ->  | X197: =IF(V197="","",COUNTIF($V$7:V197,"該当３")) -> 
A198: 2020111023 | B198: 20 | C198: 201 | D198: 11 | E198: 023 | F198: 長野県 | G198: 長野市 | H198: 小田切村 | I198: 湯山 | M198: =IF(K198="","",COUNTIF($K$7:K198,"ﾘｽﾄ１")) ->  | U198: =IF(S198="","",COUNTIF($S$7:S198,"該当２")) ->  | X198: =IF(V198="","",COUNTIF($V$7:V198,"該当３")) -> 
A199: 2020111024 | B199: 20 | C199: 201 | D199: 11 | E199: 024 | F199: 長野県 | G199: 長野市 | H199: 小田切村 | I199: 百瀬 | M199: =IF(K199="","",COUNTIF($K$7:K199,"ﾘｽﾄ１")) ->  | U199: =IF(S199="","",COUNTIF($S$7:S199,"該当２")) ->  | X199: =IF(V199="","",COUNTIF($V$7:V199,"該当３")) -> 
A200: 2020111025 | B200: 20 | C200: 201 | D200: 11 | E200: 025 | F200: 長野県 | G200: 長野市 | H200: 小田切村 | I200: 下小鍋 | M200: =IF(K200="","",COUNTIF($K$7:K200,"ﾘｽﾄ１")) ->  | P200: =IF(O200="該当１",G200,"") ->  | Q200: =IF(O200="該当１","ﾘｽﾄ2","") ->  | R200: =IF(Q200="ﾘｽﾄ2",H200,"") ->  | T200: =IF(S200="該当２",H200,"") ->  | U200: =IF(S200="","",COUNTIF($S$7:S200,"該当２")) ->  | V200: =IF(AND($S$2=H200,E200>0,E200<998),"該当３","") ->  | W200: =IF(V200="該当３",I200,"") ->  | X200: =IF(V200="","",COUNTIF($V$7:V200,"該当３")) -> 
... 2050 more rows

Sheet 2010年 (hidden)
A1: 都道府県名（支庁名） | B1: 市区町村名 | C1: 旧市区町村名 | D1: 農業集落名 | E1: 総農家数 | M1: （７）年齢別の農業従事者数（自営農業に従事した世帯員数）男女計 | AC1: 農業従事者の平均年齢 | AF1: 年齢別の農業就業人口（自営農業に主として従事した世帯員数）男女計 | AV1: 農業就業人口 | AY1: （11）年齢別の基幹的農業従事者数（自営農業に主として従事した世帯員のうち仕事が主の世帯員数）男女計 | BO1: 基幹的農業従事者 平均年齢 | BR1: （２）年齢別の経営者数男女計 | CH1: ウ後継者がいる経営者 | CV1: 家族経営構成別農家数 | DC1: （６）過去１年間の生活の主な状態別世帯員数 | DH1: 男女計 | DK1: （４）農産物販売金額１位の部門別農家数 | EA1: （１）経営耕地の状況 | EF1: （６）過去１年間の生活の主な状態別世帯員数(男) | EN1: （６）過去１年間の生活の主な状態別世帯員数(女)
F2: 販売農家数 | L2: 自給的農家 | M2: 計 | N2: 15～19歳 | O2: 20～24 | P2: 25～29 | Q2: 30～34 | R2: 35～39 | S2: 40～44 | T2: 45～49 | U2: 50～54 | V2: 55～59 | W2: 60～64 | X2: 65～69 | Y2: 70～74 | Z2: 75～79 | AA2: 80～84 | AB2: 85歳以上 | AC2: 男女計 | AD2: 男 | AE2: 女 | AF2: 計 | AG2: 15～19歳 | AH2: 20～24 | AI2: 25～29 | AJ2: 30～34 | AK2: 35～39 | AL2: 40～44 | AM2: 45～49 | AN2: 50～54 | AO2: 55～59 | AP2: 60～64 | AQ2: 65～69 | AR2: 70～74 | AS2: 75～79 | AT2: 80～84 | AU2: 85歳以上 | AY2: 計 | AZ2: 15～19歳 | BA2: 20～24 | BB2: 25～29 | BC2: 30～34 | BD2: 35～39 | BE2: 40～44 | BF2: 45～49 | BG2: 50～54 | BH2: 55～59 | BI2: 60～64 | BJ2: 65～69 | BK2: 70～74 | BL2: 75～79 | BM2: 80～84 | BN2: 85歳以上 | BR2: 計 | BS2: 15～19歳 | BT2: 20～24 | BU2: 25～29 | BV2: 30～34 | BW2: 35～39 | BX2: 40～44 | BY2: 45～49 | BZ2: 50～54 | CA2: 55～59 | CB2: 60～64 | CC2: 65～69 | CD2: 70～74 | CE2: 75～79 | CF2: 80～84 | CG2: 85歳以上 | CH2: 計 | CI2: 30歳未満 | CJ2: 30～34 | CK2: 35～39 | CL2: 40～44 | CM2: 45～49 | CN2: 50～54 | CO2: 55～59 | CP2: 60～64 | CQ2: 65～69 | CR2: 70～74 | CS2: 75～79 | CT2: 80～84 | CU2: 85歳以上 | DD2: 主に仕事 | DN2: 雑穀・ | EA2: 経営耕地 のある 農家数 | EB2: 経営耕地 総面積 | EC2: 田 | ED2: 畑（樹園地を除く） | EE2: 樹園地 | EF2: 計 | EG2: 主に仕事 | EK2: 主に家事 ・育児 | EL2: 学生 | EM2: その他 | EN2: 計 | EO2: 主に仕事 | ES2: 主に家事 ・育児 | ET2: 学生 | EU2: その他
G3: 主業農家 | I3: 準主業農家 | K3: 副業的農家 | AV3: 男女計の 平均年齢 | AW3: 男の 平均年齢 | AX3: 女の 平均年齢 | BO3: 男女計 | BP3: 男 | BQ3: 女 | DC3: 計 | DD3: 小計 | DE3: 自営農業 が主 | DF3: 勤務が主 | DG3: 農業以外の | DH3: 主に家事 ・育児 | DI3: 学生 | DJ3: その他 | DK3: 計 | DL3: 稲作 | DM3: 麦類作 | DN3: いも類 | DO3: 工芸農作物 | DP3: 露地野菜 | DQ3: 施設野菜 | DR3: 果樹類 | DS3: 花き・花木 | DT3: その他の 作物 | DU3: 酪農 | DV3: 肉用牛 | DW3: 養豚 | DX3: 養鶏 | DY3: 養蚕 | DZ3: その他の 畜産 | EG3: 小計 | EH3: 自営農業 が主 | EI3: 勤務が主 | EJ3: 農業以外の 自営業が主 | EO3: 小計 | EP3: 自営農業 が主 | EQ3: 勤務が主 | ER3: 農業以外の 自営業が主
H4: 65歳未満の農業専従者がいる | J4: 65歳未満の農業専従者がいる | DG4: 自営業が主 | DN4: ・豆類
A6: 長野県 | E6: 117,316 | F6: 62,076 | G6: 11,460 | H6: 9,869 | I6: 14,357 | J6: 5,797 | K6: 36,259 | L6: 55,240 | M6: 178,081 | N6: 4,779 | O6: 5,246 | P6: 6,023 | Q6: 6,579 | R6: 8,310 | S6: 9,759 | T6: 11,673 | U6: 14,352 | V6: 17,306 | W6: 18,660 | X6: 18,645 | Y6: 18,806 | Z6: 18,093 | AA6: 13,094 | AB6: 6,756 | AC6: 58.3 | AD6: 57.5 | AE6: 59.3 | AF6: 100,244 | AG6: 2,199 | AH6: 1,061 | AI6: 811 | AJ6: 1,249 | AK6: 1,768 | AL6: 2,146 | AM6: 2,719 | AN6: 4,027 | AO6: 6,350 | AP6: 10,881 | AQ6: 15,027 | AR6: 17,040 | AS6: 16,989 | AT6: 12,091 | AU6: 5,886 | AV6: 66.8 | AW6: 67.2 | AX6: 66.5 | AY6: 83,247 | AZ6: 28 | BA6: 267 | BB6: 539 | BC6: 826 | BD6: 1,159 | BE6: 1,622 | BF6: 2,285 | BG6: 3,600 | BH6: 5,687 | BI6: 9,757 | BJ6: 13,559 | BK6: 15,335 | BL6: 14,879 | BM6: 9,797 | BN6: 3,907 | BO6: 68.3 | BP6: 68.6 | BQ6: 67.9 | BR6: 62,076 | BS6: - | BT6: 11 | BU6: 54 | BV6: 190 | BW6: 550 | BX6: 1,298 | BY6: 2,585 | BZ6: 4,642 | CA6: 7,354 | CB6: 9,281 | CC6: 9,289 | CD6: 9,496 | CE6: 8,917 | CF6: 5,854 | CG6: 2,555 | CH6: 38,149 | CI6: 6 | CJ6: 11 | CK6: 49 | CL6: 210 | CM6: 831 | CN6: 2,104 | CO6: 4,027 | CP6: 5,703 | CQ6: 6,006 | CR6: 6,326 | CS6: 6,273 | CT6: 4,459 | CU6: 2,144 | DC6: 216,443 | DD6: 164,190 | DE6: 83,291 | DF6: 74,705 | DG6: 6,194 | DH6: 16,701 | DI6: 15,060 | DJ6: 20,492 | DK6: 56,736 | DL6: 24,914 | DM6: 150 | DN6: 780 | DO6: 347 | DP6: 8,108 | DQ6: 1,206 | DR6: 17,216 | DS6: 2,203 | DT6: 875 | DU6: 415 | DV6: 373 | DW6: 59 | DX6: 44 | DY6: 12 | DZ6: 34 | EA6: 61,943 | EB6: 6,424,565 | EC6: 3,374,939 | ED6: 1,909,873 | EE6: 1,139,753 | EF6: 107,153 | EG6: 91,739 | EH6: 44,814 | EI6: 42,821 | EJ6: 4,104 | EK6: 240 | EL6: 7,868 | EM6: 7,306 | EN6: 109,290 | EO6: 72,451 | EP6: 38,477 | EQ6: 31,884 | ER6: 2,090 | ES6: 16,461 | ET6: 7,192 | EU6: 13,186
A7: 長野県 | B7: 長野市 | E7: 13,496 | F7: 6,277 | G7: 1,006 | H7: 814 | I7: 1,481 | J7: 680 | K7: 3,790 | L7: 7,219 | M7: 17,448 | N7: 408 | O7: 458 | P7: 523 | Q7: 537 | R7: 714 | S7: 808 | T7: 1,055 | U7: 1,315 | V7: 1,480 | W7: 1,745 | X7: 2,003 | Y7: 2,114 | Z7: 2,046 | AA7: 1,465 | AB7: 777 | AC7: 60.2 | AD7: 59.6 | AE7: 61.0 | AF7: 11,058 | AG7: 239 | AH7: 107 | AI7: 50 | AJ7: 106 | AK7: 147 | AL7: 175 | AM7: 243 | AN7: 342 | AO7: 602 | AP7: 1,136 | AQ7: 1,757 | AR7: 2,009 | AS7: 2,007 | AT7: 1,412 | AU7: 726 | AV7: 68.2 | AW7: 68.9 | AX7: 67.6 | AY7: 9,462 | AZ7: 2 | BA7: 10 | BB7: 24 | BC7: 48 | BD7: 69 | BE7: 106 | BF7: 172 | BG7: 278 | BH7: 535 | BI7: 1,044 | BJ7: 1,665 | BK7: 1,889 | BL7: 1,878 | BM7: 1,228 | BN7: 514 | BO7: 70.3 | BP7: 70.9 | BQ7: 69.7 | BR7: 6,277 | BS7: - | BT7: - | BU7: 6 | BV7: 6 | BW7: 21 | BX7: 60 | BY7: 172 | BZ7: 313 | CA7: 548 | CB7: 788 | CC7: 975 | CD7: 1,107 | CE7: 1,143 | CF7: 742 | CG7: 396 | CH7: 3,570 | CI7: - | CJ7: - | CK7: 5 | CL7: 8 | CM7: 44 | CN7: 114 | CO7: 235 | CP7: 420 | CQ7: 563 | CR7: 608 | CS7: 719 | CT7: 531 | CU7: 323 | DC7: 20,848 | DD7: 16,692 | DE7: 9,462 | DF7: 6,765 | DG7: 465 | DH7: 1,162 | DI7: 1,335 | DJ7: 1,659 | DK7: 5,750 | DL7: 912 | DM7: 2 | DN7: 102 | DO7: 108 | DP7: 598 | DQ7: 159 | DR7: 3,709 | DS7: 93 | DT7: 46 | DU7: 10 | DV7: 5 | DW7: 3 | DX7: - | DY7: 1 | DZ7: 2 | EA7: 6,272 | EB7: 426,891 | EC7: 132,906 | ED7: 108,925 | EE7: 185,060 | EF7: 10,181 | EG7: 8,889 | EH7: 4,686 | EI7: 3,884 | EJ7: 319 | EK7: 21 | EL7: 702 | EM7: 569 | EN7: 10,667 | EO7: 7,803 | EP7: 4,776 | EQ7: 2,881 | ER7: 146 | ES7: 1,141 | ET7: 633 | EU7: 1,090
A8: 長野県 | B8: 長野市 | C8: 長野市 | E8: 476 | F8: 110 | G8: 20 | H8: 17 | I8: 28 | J8: 14 | K8: 62 | L8: 366 | M8: 333 | N8: 8 | O8: 7 | P8: 16 | Q8: 16 | R8: 18 | S8: 16 | T8: 20 | U8: 27 | V8: 20 | W8: 40 | X8: 37 | Y8: 43 | Z8: 35 | AA8: 19 | AB8: 11 | AC8: 57.8 | AD8: 57.1 | AE8: 58.5 | AF8: 209 | AG8: 4 | AH8: 2 | AI8: 1 | AJ8: 3 | AK8: 7 | AL8: 4 | AM8: 4 | AN8: 10 | AO8: 10 | AP8: 30 | AQ8: 32 | AR8: 41 | AS8: 34 | AT8: 17 | AU8: 10 | AV8: 65.7 | AW8: 64.9 | AX8: 66.5 | AY8: 173 | AZ8: - | BA8: - | BB8: - | BC8: 3 | BD8: 3 | BE8: 3 | BF8: 4 | BG8: 6 | BH8: 8 | BI8: 27 | BJ8: 26 | BK8: 38 | BL8: 34 | BM8: 16 | BN8: 5 | BO8: 68.0 | BP8: 68.0 | BQ8: 68.1 | BR8: 110 | BS8: - | BT8: - | BU8: - | BV8: 1 | BW8: - | BX8: 2 | BY8: 1 | BZ8: 4 | CA8: 8 | CB8: 17 | CC8: 20 | CD8: 22 | CE8: 21 | CF8: 10 | CG8: 4 | CH8: 69 | CI8: - | CJ8: - | CK8: - | CL8: - | CM8: - | CN8: 2 | CO8: 3 | CP8: 10 | CQ8: 14 | CR8: 13 | CS8: 16 | CT8: 8 | CU8: 3 | DC8: 404 | DD8: 301 | DE8: 173 | DF8: 118 | DG8: 10 | DH8: 32 | DI8: 37 | DJ8: 34 | DK8: 104 | DL8: 32 | DM8: - | DN8: 3 | DO8: - | DP8: 14 | DQ8: 1 | DR8: 52 | DS8: - | DT8: 1 | DU8: 1 | DV8: - | DW8: - | DX8: - | DY8: - | DZ8: - | EA8: 110 | EB8: 7,653 | EC8: 3,490 | ED8: 1,637 | EE8: 2,526 | EF8: 193 | EG8: 160 | EH8: 91 | EI8: 64 | EJ8: 5 | EK8: 1 | EL8: 21 | EM8: 11 | EN8: 211 | EO8: 141 | EP8: 82 | EQ8: 54 | ER8: 5 | ES8: 31 | ET8: 16 | EU8: 23
A9: 長野県 | B9: 長野市 | C9: 長野市 | D9: 茂菅 | E9: 11 | F9: 5 | G9: - | H9: - | I9: - | J9: - | K9: 5 | L9: 6 | M9: 17 | N9: 2 | O9: 1 | P9: - | Q9: - | R9: 1 | S9: 1 | T9: 1 | U9: 1 | V9: - | W9: 3 | X9: 4 | Y9: 1 | Z9: 1 | AA9: - | AB9: 1 | AC9: 53.8 | AD9: 48.7 | AE9: 59.5 | AF9: 12 | AG9: 2 | AH9: 1 | AI9: - | AJ9: - | AK9: 1 | AL9: - | AM9: - | AN9: 1 | AO9: - | AP9: - | AQ9: 4 | AR9: 1 | AS9: 1 | AT9: - | AU9: 1 | AV9: 53.8 | AW9: 48.3 | AX9: 61.4 | AY9: 5 | AZ9: - | BA9: - | BB9: - | BC9: - | BD9: - | BE9: - | BF9: - | BG9: - | BH9: - | BI9: - | BJ9: 2 | BK9: 1 | BL9: 1 | BM9: - | BN9: 1 | BO9: 74.0 | BP9: 70.7 | BQ9: 79.0 | BR9: 5 | BS9: - | BT9: - | BU9: - | BV9: - | BW9: - | BX9: - | BY9: - | BZ9: - | CA9: - | CB9: 2 | CC9: 2 | CD9: - | CE9: 1 | CF9: - | CG9: - | CH9: 4 | CI9: - | CJ9: - | CK9: - | CL9: - | CM9: - | CN9: - | CO9: - | CP9: 1 | CQ9: 2 | CR9: - | CS9: 1 | CT9: - | CU9: - | DC9: 19 | DD9: 11 | DE9: 5 | DF9: 5 | DG9: 1 | DH9: 2 | DI9: 3 | DJ9: 3 | DK9: 4 | DL9: - | DM9: - | DN9: - | DO9: - | DP9: - | DQ9: - | DR9: 4 | DS9: - | DT9: - | DU9: - | DV9: - | DW9: - | DX9: - | DY9: - | DZ9: - | EA9: 5 | EB9: 262 | EC9: 60 | ED9: 52 | EE9: 150 | EF9: 10 | EG9: 6 | EH9: 3 | EI9: 3 | EJ9: - | EK9: - | EL9: 2 | EM9: 2 | EN9: 9 | EO9: 5 | EP9: 2 | EQ9: 2 | ER9: 1 | ES9: 2 | ET9: 1 | EU9: 1
A10: 長野県 | B10: 長野市 | C10: 長野市 | D10: 新諏訪 | E10: 10 | F10: 4 | G10: - | H10: - | I10: 1 | J10: 1 | K10: 3 | L10: 6 | M10: 8 | N10: - | O10: - | P10: - | Q10: - | R10: - | S10: - | T10: - | U10: 1 | V10: 1 | W10: 1 | X10: - | Y10: 2 | Z10: 1 | AA10: 2 | AB10: - | AC10: 70.0 | AD10: 71.3 | AE10: 68.8 | AF10: 7 | AG10: - | AH10: - | AI10: - | AJ10: - | AK10: - | AL10: - | AM10: - | AN10: - | AO10: 1 | AP10: 1 | AQ10: - | AR10: 2 | AS10: 1 | AT10: 2 | AU10: - | AV10: 72.3 | AW10: 71.3 | AX10: 73.7 | AY10: 7 | AZ10: - | BA10: - | BB10: - | BC10: - | BD10: - | BE10: - | BF10: - | BG10: - | BH10: 1 | BI10: 1 | BJ10: - | BK10: 2 | BL10: 1 | BM10: 2 | BN10: - | BO10: 72.3 | BP10: 71.3 | BQ10: 73.7 | BR10: 4 | BS10: - | BT10: - | BU10: - | BV10: - | BW10: - | BX10: - | BY10: - | BZ10: - | CA10: 1 | CB10: - | CC10: - | CD10: 1 | CE10: 1 | CF10: 1 | CG10: - | CH10: 2 | CI10: - | CJ10: - | CK10: - | CL10: - | CM10: - | CN10: - | CO10: 1 | CP10: - | CQ10: - | CR10: - | CS10: - | CT10: 1 | CU10: - | DC10: 10 | DD10: 7 | DE10: 7 | DF10: - | DG10: - | DH10: 1 | DI10: 2 | DJ10: - | DK10: 3 | DL10: - | DM10: - | DN10: - | DO10: - | DP10: - | DQ10: - | DR10: 3 | DS10: - | DT10: - | DU10: - | DV10: - | DW10: - | DX10: - | DY10: - | DZ10: - | EA10: 4 | EB10: 200 | EC10: - | ED10: 139 | EE10: 61 | EF10: 5 | EG10: 4 | EH10: 4 | EI10: - | EJ10: - | EK10: - | EL10: 1 | EM10: - | EN10: 5 | EO10: 3 | EP10: 3 | EQ10: - | ER10: - | ES10: 1 | ET10: 1 | EU10: -
A11: 長野県 | B11: 長野市 | C11: 長野市 | D11: 西長野 | E11: 3 | F11: - | G11: - | H11: - | I11: - | J11: - | K11: - | L11: 3 | M11: - | N11: - | O11: - | P11: - | Q11: - | R11: - | S11: - | T11: - | U11: - | V11: - | W11: - | X11: - | Y11: - | Z11: - | AA11: - | AB11: - | AC11: … | AD11: … | AE11: … | AF11: - | AG11: - | AH11: - | AI11: - | AJ11: - | AK11: - | AL11: - | AM11: - | AN11: - | AO11: - | AP11: - | AQ11: - | AR11: - | AS11: - | AT11: - | AU11: - | AV11: … | AW11: … | AX11: … | AY11: - | AZ11: - | BA11: - | BB11: - | BC11: - | BD11: - | BE11: - | BF11: - | BG11: - | BH11: - | BI11: - | BJ11: - | BK11: - | BL11: - | BM11: - | BN11: - | BO11: … | BP11: … | BQ11: … | BR11: - | BS11: - | BT11: - | BU11: - | BV11: - | BW11: - | BX11: - | BY11: - | BZ11: - | CA11: - | CB11: - | CC11: - | CD11: - | CE11: - | CF11: - | CG11: - | CH11: - | CI11: - | CJ11: - | CK11: - | CL11: - | CM11: - | CN11: - | CO11: - | CP11: - | CQ11: - | CR11: - | CS11: - | CT11: - | CU11: - | DC11: - | DD11: - | DE11: - | DF11: - | DG11: - | DH11: - | DI11: - | DJ11: - | DK11: - | DL11: - | DM11: - | DN11: - | DO11: - | DP11: - | DQ11: - | DR11: - | DS11: - | DT11: - | DU11: - | DV11: - | DW11: - | DX11: - | DY11: - | DZ11: - | EA11: - | EB11: - | EC11: - | ED11: - | EE11: - | EF11: - | EG11: - | EH11: - | EI11: - | EJ11: - | EK11: - | EL11: - | EM11: - | EN11: - | EO11: - | EP11: - | EQ11: - | ER11: - | ES11: - | ET11: - | EU11: -
A12: 長野県 | B12: 長野市 | C12: 長野市 | D12: 桜枝町外 | E12: 1 | F12: 1 | G12: x | H12: x | I12: x | J12: x | K12: x | L12: - | M12: x | N12: x | O12: x | P12: x | Q12: x | R12: x | S12: x | T12: x | U12: x | V12: x | W12: x | X12: x | Y12: x | Z12: x | AA12: x | AB12: x | AC12: 62.5 | AD12: 63.5 | AE12: 61.5 | AF12: x | AG12: x | AH12: x | AI12: x | AJ12: x | AK12: x | AL12: x | AM12: x | AN12: x | AO12: x | AP12: x | AQ12: x | AR12: x | AS12: x | AT12: x | AU12: x | AV12: 75.0 | AW12: 75.0 | AX12: … | AY12: x | AZ12: x | BA12: x | BB12: x | BC12: x | BD12: x | BE12: x | BF12: x | BG12: x | BH12: x | BI12: x | BJ12: x | BK12: x | BL12: x | BM12: x | BN12: x | BO12: 75.0 | BP12: 75.0 | BQ12: … | BR12: 1 | BS12: - | BT12: - | BU12: - | BV12: - | BW12: - | BX12: - | BY12: - | BZ12: - | CA12: - | CB12: - | CC12: - | CD12: - | CE12: 1 | CF12: - | CG12: - | CH12: 1 | CI12: - | CJ12: - | CK12: - | CL12: - | CM12: - | CN12: - | CO12: - | CP12: - | CQ12: - | CR12: - | CS12: 1 | CT12: - | CU12: - | DC12: 8 | DD12: 5 | DE12: 1 | DF12: 1 | DG12: 3 | DH12: - | DI12: 3 | DJ12: - | DK12: 1 | DL12: - | DM12: - | DN12: - | DO12: - | DP12: - | DQ12: - | DR12: 1 | DS12: - | DT12: - | DU12: - | DV12: - | DW12: - | DX12: - | DY12: - | DZ12: - | EA12: 1 | EB12: 60 | EC12: - | ED12: - | EE12: 60 | EF12: 5 | EG12: 3 | EH12: 1 | EI12: 1 | EJ12: 1 | EK12: - | EL12: 2 | EM12: - | EN12: 3 | EO12: 2 | EP12: - | EQ12: - | ER12: 2 | ES12: - | ET12: 1 | EU12: -
A13: 長野県 | B13: 長野市 | C13: 長野市 | D13: 花咲町外 | E13: - | F13: - | G13: - | H13: - | I13: - | J13: - | K13: - | L13: - | M13: - | N13: - | O13: - | P13: - | Q13: - | R13: - | S13: - | T13: - | U13: - | V13: - | W13: - | X13: - | Y13: - | Z13: - | AA13: - | AB13: - | AC13: … | AD13: … | AE13: … | AF13: - | AG13: - | AH13: - | AI13: - | AJ13: - | AK13: - | AL13: - | AM13: - | AN13: - | AO13: - | AP13: - | AQ13: - | AR13: - | AS13: - | AT13: - | AU13: - | AV13: … | AW13: … | AX13: … | AY13: - | AZ13: - | BA13: - | BB13: - | BC13: - | BD13: - | BE13: - | BF13: - | BG13: - | BH13: - | BI13: - | BJ13: - | BK13: - | BL13: - | BM13: - | BN13: - | BO13: … | BP13: … | BQ13: … | BR13: - | BS13: - | BT13: - | BU13: - | BV13: - | BW13: - | BX13: - | BY13: - | BZ13: - | CA13: - | CB13: - | CC13: - | CD13: - | CE13: - | CF13: - | CG13: - | CH13: - | CI13: - | CJ13: - | CK13: - | CL13: - | CM13: - | CN13: - | CO13: - | CP13: - | CQ13: - | CR13: - | CS13: - | CT13: - | CU13: - | DC13: - | DD13: - | DE13: - | DF13: - | DG13: - | DH13: - | DI13: - | DJ13: - | DK13: - | DL13: - | DM13: - | DN13: - | DO13: - | DP13: - | DQ13: - | DR13: - | DS13: - | DT13: - | DU13: - | DV13: - | DW13: - | DX13: - | DY13: - | DZ13: - | EA13: - | EB13: - | EC13: - | ED13: - | EE13: - | EF13: - | EG13: - | EH13: - | EI13: - | EJ13: - | EK13: - | EL13: - | EM13: - | EN13: - | EO13: - | EP13: - | EQ13: - | ER13: - | ES13: - | ET13: - | EU13: -
A14: 長野県 | B14: 長野市 | C14: 長野市 | D14: 往生地 | E14: 16 | F14: 8 | G14: 3 | H14: 3 | I14: 3 | J14: 2 | K14: 2 | L14: 8 | M14: 27 | N14: - | O14: 1 | P14: 2 | Q14: 1 | R14: 2 | S14: 2 | T14: 1 | U14: 1 | V14: 3 | W14: 5 | X14: 1 | Y14: 3 | Z14: 2 | AA14: 2 | AB14: 1 | AC14: 56.7 | AD14: 50.6 | AE14: 65.6 | AF14: 19 | AG14: - | AH14: 1 | AI14: - | AJ14: 1 | AK14: - | AL14: - | AM14: - | AN14: 1 | AO14: 2 | AP14: 5 | AQ14: 1 | AR14: 3 | AS14: 2 | AT14: 2 | AU14: 1 | AV14: 64.2 | AW14: 59.8 | AX14: 69.0 | AY14: 17 | AZ14: - | BA14: - | BB14: - | BC14: 1 | BD14: - | BE14: - | BF14: - | BG14: 1 | BH14: 2 | BI14: 4 | BJ14: 1 | BK14: 3 | BL14: 2 | BM14: 2 | BN14: 1 | BO14: 66.6 | BP14: 64.0 | BQ14: 69.0 | BR14: 8 | BS14: - | BT14: - | BU14: - | BV14: - | BW14: - | BX14: - | BY14: 1 | BZ14: - | CA14: 1 | CB14: 3 | CC14: 1 | CD14: 1 | CE14: 1 | CF14: - | CG14: - | CH14: 5 | CI14: - | CJ14: - | CK14: - | CL14: - | CM14: - | CN14: - | CO14: - | CP14: 2 | CQ14: 1 | CR14: 1 | CS14: 1 | CT14: - | CU14: - | DC14: 34 | DD14: 29 | DE14: 17 | DF14: 12 | DG14: - | DH14: - | DI14: 3 | DJ14: 2 | DK14: 8 | DL14: - | DM14: - | DN14: - | DO14: - | DP14: - | DQ14: - | DR14: 8 | DS14: - | DT14: - | DU14: - | DV14: - | DW14: - | DX14: - | DY14: - | DZ14: - | EA14: 8 | EB14: 536 | EC14: - | ED14: - | EE14: 536 | EF14: 17 | EG14: 15 | EH14: 8 | EI14: 7 | EJ14: - | EK14: - | EL14: - | EM14: 2 | EN14: 17 | EO14: 14 | EP14: 9 | EQ14: 5 | ER14: - | ES14: - | ET14: 3 | EU14: -
A15: 長野県 | B15: 長野市 | C15: 長野市 | D15: 横沢町外 | E15: 1 | F15: - | G15: - | H15: - | I15: - | J15: - | K15: - | L15: 1 | M15: - | N15: - | O15: - | P15: - | Q15: - | R15: - | S15: - | T15: - | U15: - | V15: - | W15: - | X15: - | Y15: - | Z15: - | AA15: - | AB15: - | AC15: … | AD15: … | AE15: … | AF15: - | AG15: - | AH15: - | AI15: - | AJ15: - | AK15: - | AL15: - | AM15: - | AN15: - | AO15: - | AP15: - | AQ15: - | AR15: - | AS15: - | AT15: - | AU15: - | AV15: … | AW15: … | AX15: … | AY15: - | AZ15: - | BA15: - | BB15: - | BC15: - | BD15: - | BE15: - | BF15: - | BG15: - | BH15: - | BI15: - | BJ15: - | BK15: - | BL15: - | BM15: - | BN15: - | BO15: … | BP15: … | BQ15: … | BR15: - | BS15: - | BT15: - | BU15: - | BV15: - | BW15: - | BX15: - | BY15: - | BZ15: - | CA15: - | CB15: - | CC15: - | CD15: - | CE15: - | CF15: - | CG15: - | CH15: - | CI15: - | CJ15: - | CK15: - | CL15: - | CM15: - | CN15: - | CO15: - | CP15: - | CQ15: - | CR15: - | CS15: - | CT15: - | CU15: - | DC15: - | DD15: - | DE15: - | DF15: - | DG15: - | DH15: - | DI15: - | DJ15: - | DK15: - | DL15: - | DM15: - | DN15: - | DO15: - | DP15: - | DQ15: - | DR15: - | DS15: - | DT15: - | DU15: - | DV15: - | DW15: - | DX15: - | DY15: - | DZ15: - | EA15: - | EB15: - | EC15: - | ED15: - | EE15: - | EF15: - | EG15: - | EH15: - | EI15: - | EJ15: - | EK15: - | EL15: - | EM15: - | EN15: - | EO15: - | EP15: - | EQ15: - | ER15: - | ES15: - | ET15: - | EU15: -
A16: 長野県 | B16: 長野市 | C16: 長野市 | D16: 箱清水 | E16: 8 | F16: 2 | G16: x | H16: x | I16: x | J16: x | K16: x | L16: 6 | M16: x | N16: x | O16: x | P16: x | Q16: x | R16: x | S16: x | T16: x | U16: x | V16: x | W16: x | X16: x | Y16: x | Z16: x | AA16: x | AB16: x | AC16: 57.0 | AD16: 51.0 | AE16: 66.0 | AF16: x | AG16: x | AH16: x | AI16: x | AJ16: x | AK16: x | AL16: x | AM16: x | AN16: x | AO16: x | AP16: x | AQ16: x | AR16: x | AS16: x | AT16: x | AU16: x | AV16: 56.3 | AW16: 46.5 | AX16: 76.0 | AY16: x | AZ16: x | BA16: x | BB16: x | BC16: x | BD16: x | BE16: x | BF16: x | BG16: x | BH16: x | BI16: x | BJ16: x | BK16: x | BL16: x | BM16: x | BN16: x | BO16: 76.5 | BP16: 77.0 | BQ16: 76.0 | BR16: 2 | BS16: - | BT16: - | BU16: - | BV16: - | BW16: - | BX16: - | BY16: - | BZ16: - | CA16: - | CB16: 1 | CC16: - | CD16: - | CE16: 1 | CF16: - | CG16: - | CH16: 1 | CI16: - | CJ16: - | CK16: - | CL16: - | CM16: - | CN16: - | CO16: - | CP16: 1 | CQ16: - | CR16: - | CS16: - | CT16: - | CU16: - | DC16: 5 | DD16: 4 | DE16: 2 | DF16: 2 | DG16: - | DH16: - | DI16: 1 | DJ16: - | DK16: 2 | DL16: - | DM16: - | DN16: - | DO16: - | DP16: - | DQ16: - | DR16: 2 | DS16: - | DT16: - | DU16: - | DV16: - | DW16: - | DX16: - | DY16: - | DZ16: - | EA16: 2 | EB16: 110 | EC16: 30 | ED16: 30 | EE16: 50 | EF16: 3 | EG16: 2 | EH16: 1 | EI16: 1 | EJ16: - | EK16: - | EL16: 1 | EM16: - | EN16: 2 | EO16: 2 | EP16: 1 | EQ16: 1 | ER16: - | ES16: - | ET16: - | EU16: -
A17: 長野県 | B17: 長野市 | C17: 長野市 | D17: 元善町外 | E17: - | F17: - | G17: - | H17: - | I17: - | J17: - | K17: - | L17: - | M17: - | N17: - | O17: - | P17: - | Q17: - | R17: - | S17: - | T17: - | U17: - | V17: - | W17: - | X17: - | Y17: - | Z17: - | AA17: - | AB17: - | AC17: … | AD17: … | AE17: … | AF17: - | AG17: - | AH17: - | AI17: - | AJ17: - | AK17: - | AL17: - | AM17: - | AN17: - | AO17: - | AP17: - | AQ17: - | AR17: - | AS17: - | AT17: - | AU17: - | AV17: … | AW17: … | AX17: … | AY17: - | AZ17: - | BA17: - | BB17: - | BC17: - | BD17: - | BE17: - | BF17: - | BG17: - | BH17: - | BI17: - | BJ17: - | BK17: - | BL17: - | BM17: - | BN17: - | BO17: … | BP17: … | BQ17: … | BR17: - | BS17: - | BT17: - | BU17: - | BV17: - | BW17: - | BX17: - | BY17: - | BZ17: - | CA17: - | CB17: - | CC17: - | CD17: - | CE17: - | CF17: - | CG17: - | CH17: - | CI17: - | CJ17: - | CK17: - | CL17: - | CM17: - | CN17: - | CO17: - | CP17: - | CQ17: - | CR17: - | CS17: - | CT17: - | CU17: - | DC17: - | DD17: - | DE17: - | DF17: - | DG17: - | DH17: - | DI17: - | DJ17: - | DK17: - | DL17: - | DM17: - | DN17: - | DO17: - | DP17: - | DQ17: - | DR17: - | DS17: - | DT17: - | DU17: - | DV17: - | DW17: - | DX17: - | DY17: - | DZ17: - | EA17: - | EB17: - | EC17: - | ED17: - | EE17: - | EF17: - | EG17: - | EH17: - | EI17: - | EJ17: - | EK17: - | EL17: - | EM17: - | EN17: - | EO17: - | EP17: - | EQ17: - | ER17: - | ES17: - | ET17: - | EU17: -
A18: 長野県 | B18: 長野市 | C18: 長野市 | D18: 三輪田町 | E18: - | F18: - | G18: - | H18: - | I18: - | J18: - | K18: - | L18: - | M18: - | N18: - | O18: - | P18: - | Q18: - | R18: - | S18: - | T18: - | U18: - | V18: - | W18: - | X18: - | Y18: - | Z18: - | AA18: - | AB18: - | AC18: … | AD18: … | AE18: … | AF18: - | AG18: - | AH18: - | AI18: - | AJ18: - | AK18: - | AL18: - | AM18: - | AN18: - | AO18: - | AP18: - | AQ18: - | AR18: - | AS18: - | AT18: - | AU18: - | AV18: … | AW18: … | AX18: … | AY18: - | AZ18: - | BA18: - | BB18: - | BC18: - | BD18: - | BE18: - | BF18: - | BG18: - | BH18: - | BI18: - | BJ18: - | BK18: - | BL18: - | BM18: - | BN18: - | BO18: … | BP18: … | BQ18: … | BR18: - | BS18: - | BT18: - | BU18: - | BV18: - | BW18: - | BX18: - | BY18: - | BZ18: - | CA18: - | CB18: - | CC18: - | CD18: - | CE18: - | CF18: - | CG18: - | CH18: - | CI18: - | CJ18: - | CK18: - | CL18: - | CM18: - | CN18: - | CO18: - | CP18: - | CQ18: - | CR18: - | CS18: - | CT18: - | CU18: - | DC18: - | DD18: - | DE18: - | DF18: - | DG18: - | DH18: - | DI18: - | DJ18: - | DK18: - | DL18: - | DM18: - | DN18: - | DO18: - | DP18: - | DQ18: - | DR18: - | DS18: - | DT18: - | DU18: - | DV18: - | DW18: - | DX18: - | DY18: - | DZ18: - | EA18: - | EB18: - | EC18: - | ED18: - | EE18: - | EF18: - | EG18: - | EH18: - | EI18: - | EJ18: - | EK18: - | EL18: - | EM18: - | EN18: - | EO18: - | EP18: - | EQ18: - | ER18: - | ES18: - | ET18: - | EU18: -
A19: 長野県 | B19: 長野市 | C19: 長野市 | D19: 淀ケ橋 | E19: - | F19: - | G19: - | H19: - | I19: - | J19: - | K19: - | L19: - | M19: - | N19: - | O19: - | P19: - | Q19: - | R19: - | S19: - | T19: - | U19: - | V19: - | W19: - | X19: - | Y19: - | Z19: - | AA19: - | AB19: - | AC19: … | AD19: … | AE19: … | AF19: - | AG19: - | AH19: - | AI19: - | AJ19: - | AK19: - | AL19: - | AM19: - | AN19: - | AO19: - | AP19: - | AQ19: - | AR19: - | AS19: - | AT19: - | AU19: - | AV19: … | AW19: … | AX19: … | AY19: - | AZ19: - | BA19: - | BB19: - | BC19: - | BD19: - | BE19: - | BF19: - | BG19: - | BH19: - | BI19: - | BJ19: - | BK19: - | BL19: - | BM19: - | BN19: - | BO19: … | BP19: … | BQ19: … | BR19: - | BS19: - | BT19: - | BU19: - | BV19: - | BW19: - | BX19: - | BY19: - | BZ19: - | CA19: - | CB19: - | CC19: - | CD19: - | CE19: - | CF19: - | CG19: - | CH19: - | CI19: - | CJ19: - | CK19: - | CL19: - | CM19: - | CN19: - | CO19: - | CP19: - | CQ19: - | CR19: - | CS19: - | CT19: - | CU19: - | DC19: - | DD19: - | DE19: - | DF19: - | DG19: - | DH19: - | DI19: - | DJ19: - | DK19: - | DL19: - | DM19: - | DN19: - | DO19: - | DP19: - | DQ19: - | DR19: - | DS19: - | DT19: - | DU19: - | DV19: - | DW19: - | DX19: - | DY19: - | DZ19: - | EA19: - | EB19: - | EC19: - | ED19: - | EE19: - | EF19: - | EG19: - | EH19: - | EI19: - | EJ19: - | EK19: - | EL19: - | EM19: - | EN19: - | EO19: - | EP19: - | EQ19: - | ER19: - | ES19: - | ET19: - | EU19: -
A20: 長野県 | B20: 長野市 | C20: 長野市 | D20: 上松滝 | E20: 11 | F20: 3 | G20: - | H20: - | I20: - | J20: - | K20: 3 | L20: 8 | M20: 9 | N20: - | O20: 1 | P20: 1 | Q20: - | R20: - | S20: - | T20: - | U20: 2 | V20: - | W20: - | X20: 2 | Y20: 1 | Z20: 1 | AA20: 1 | AB20: - | AC20: 56.8 | AD20: 56.5 | AE20: 57.0 | AF20: 6 | AG20: - | AH20: - | AI20: - | AJ20: - | AK20: - | AL20: - | AM20: - | AN20: 1 | AO20: - | AP20: - | AQ20: 2 | AR20: 1 | AS20: 1 | AT20: 1 | AU20: - | AV20: 68.7 | AW20: 76.0 | AX20: 65.0 | AY20: 4 | AZ20: - | BA20: - | BB20: - | BC20: - | BD20: - | BE20: - | BF20: - | BG20: - | BH20: - | BI20: - | BJ20: 1 | BK20: 1 | BL20: 1 | BM20: 1 | BN20: - | BO20: 74.0 | BP20: 76.0 | BQ20: 72.0 | BR20: 3 | BS20: - | BT20: - | BU20: - | BV20: - | BW20: - | BX20: - | BY20: - | BZ20: - | CA20: - | CB20: - | CC20: 1 | CD20: 1 | CE20: - | CF20: 1 | CG20: - | CH20: 1 | CI20: - | CJ20: - | CK20: - | CL20: - | CM20: - | CN20: - | CO20: - | CP20: - | CQ20: 1 | CR20: - | CS20: - | CT20: - | CU20: - | DC20: 10 | DD20: 6 | DE20: 4 | DF20: 2 | DG20: - | DH20: 2 | DI20: 1 | DJ20: 1 | DK20: 3 | DL20: - | DM20: - | DN20: - | DO20: - | DP20: - | DQ20: - | DR20: 3 | DS20: - | DT20: - | DU20: - | DV20: - | DW20: - | DX20: - | DY20: - | DZ20: - | EA20: 3 | EB20: 133 | EC20: - | ED20: - | EE20: 133 | EF20: 5 | EG20: 3 | EH20: 2 | EI20: 1 | EJ20: - | EK20: - | EL20: 1 | EM20: 1 | EN20: 5 | EO20: 3 | EP20: 2 | EQ20: 1 | ER20: - | ES20: 2 | ET20: - | EU20: -
A21: 長野県 | B21: 長野市 | C21: 長野市 | D21: 上松 | E21: 8 | F21: 3 | G21: - | H21: - | I21: 1 | J21: 1 | K21: 2 | L21: 5 | M21: 9 | N21: - | O21: - | P21: 1 | Q21: 1 | R21: - | S21: - | T21: - | U21: 2 | V21: - | W21: 1 | X21: 1 | Y21: 1 | Z21: - | AA21: 1 | AB21: 1 | AC21: 58.6 | AD21: 61.2 | AE21: 55.3 | AF21: 5 | AG21: - | AH21: - | AI21: - | AJ21: - | AK21: - | AL21: - | AM21: - | AN21: - | AO21: - | AP21: 1 | AQ21: 1 | AR21: 1 | AS21: - | AT21: 1 | AU21: 1 | AV21: 73.4 | AW21: 74.7 | AX21: 71.5 | AY21: 5 | AZ21: - | BA21: - | BB21: - | BC21: - | BD21: - | BE21: - | BF21: - | BG21: - | BH21: - | BI21: 1 | BJ21: 1 | BK21: 1 | BL21: - | BM21: 1 | BN21: 1 | BO21: 73.4 | BP21: 74.7 | BQ21: 71.5 | BR21: 3 | BS21: - | BT21: - | BU21: - | BV21: - | BW21: - | BX21: - | BY21: - | BZ21: - | CA21: - | CB21: - | CC21: 1 | CD21: 1 | CE21: - | CF21: - | CG21: 1 | CH21: 2 | CI21: - | CJ21: - | CK21: - | CL21: - | CM21: - | CN21: - | CO21: - | CP21: - | CQ21: - | CR21: 1 | CS21: - | CT21: - | CU21: 1 | DC21: 16 | DD21: 10 | DE21: 5 | DF21: 5 | DG21: - | DH21: 1 | DI21: 3 | DJ21: 2 | DK21: 3 | DL21: 1 | DM21: - | DN21: - | DO21: - | DP21: 1 | DQ21: - | DR21: 1 | DS21: - | DT21: - | DU21: - | DV21: - | DW21: - | DX21: - | DY21: - | DZ21: - | EA21: 3 | EB21: 231 | EC21: 46 | ED21: 98 | EE21: 87 | EF21: 7 | EG21: 6 | EH21: 3 | EI21: 3 | EJ21: - | EK21: - | EL21: 1 | EM21: - | EN21: 9 | EO21: 4 | EP21: 2 | EQ21: 2 | ER21: - | ES21: 1 | ET21: 2 | EU21: 2
A22: 長野県 | B22: 長野市 | C22: 長野市 | D22: 湯谷 | E22: 19 | F22: 10 | G22: 2 | H22: 1 | I22: 3 | J22: 1 | K22: 5 | L22: 9 | M22: 30 | N22: - | O22: - | P22: 3 | Q22: 1 | R22: 1 | S22: - | T22: 5 | U22: 5 | V22: - | W22: 1 | X22: 2 | Y22: 2 | Z22: 7 | AA22: 3 | AB22: - | AC22: 58.7 | AD22: 56.2 | AE22: 61.9 | AF22: 20 | AG22: - | AH22: - | AI22: - | AJ22: - | AK22: 1 | AL22: - | AM22: 1 | AN22: 3 | AO22: - | AP22: 1 | AQ22: 2 | AR22: 2 | AS22: 7 | AT22: 3 | AU22: - | AV22: 68.0 | AW22: 67.7 | AX22: 68.2 | AY22: 19 | AZ22: - | BA22: - | BB22: - | BC22: - | BD22: 1 | BE22: - | BF22: 1 | BG22: 2 | BH22: - | BI22: 1 | BJ22: 2 | BK22: 2 | BL22: 7 | BM22: 3 | BN22: - | BO22: 68.8 | BP22: 67.7 | BQ22: 70.0 | BR22: 10 | BS22: - | BT22: - | BU22: - | BV22: - | BW22: - | BX22: - | BY22: - | BZ22: 2 | CA22: - | CB22: 1 | CC22: - | CD22: 2 | CE22: 3 | CF22: 2 | CG22: - | CH22: 5 | CI22: - | CJ22: - | CK22: - | CL22: - | CM22: - | CN22: 1 | CO22: - | CP22: - | CQ22: - | CR22: 1 | CS22: 2 | CT22: 1 | CU22: - | DC22: 42 | DD22: 32 | DE22: 19 | DF22: 12 | DG22: 1 | DH22: 4 | DI22: 3 | DJ22: 3 | DK22: 10 | DL22: - | DM22: - | DN22: - | DO22: - | DP22: - | DQ22: - | DR22: 10 | DS22: - | DT22: - | DU22: - | DV22: - | DW22: - | DX22: - | DY22: - | DZ22: - | EA22: 10 | EB22: 787 | EC22: 110 | ED22: - | EE22: 677 | EF22: 22 | EG22: 19 | EH22: 10 | EI22: 8 | EJ22: 1 | EK22: 1 | EL22: 2 | EM22: - | EN22: 20 | EO22: 13 | EP22: 9 | EQ22: 4 | ER22: - | ES22: 3 | ET22: 1 | EU22: 3
A23: 長野県 | B23: 長野市 | C23: 長野市 | D23: 東後町外 | E23: - | F23: - | G23: - | H23: - | I23: - | J23: - | K23: - | L23: - | M23: - | N23: - | O23: - | P23: - | Q23: - | R23: - | S23: - | T23: - | U23: - | V23: - | W23: - | X23: - | Y23: - | Z23: - | AA23: - | AB23: - | AC23: … | AD23: … | AE23: … | AF23: - | AG23: - | AH23: - | AI23: - | AJ23: - | AK23: - | AL23: - | AM23: - | AN23: - | AO23: - | AP23: - | AQ23: - | AR23: - | AS23: - | AT23: - | AU23: - | AV23: … | AW23: … | AX23: … | AY23: - | AZ23: - | BA23: - | BB23: - | BC23: - | BD23: - | BE23: - | BF23: - | BG23: - | BH23: - | BI23: - | BJ23: - | BK23: - | BL23: - | BM23: - | BN23: - | BO23: … | BP23: … | BQ23: … | BR23: - | BS23: - | BT23: - | BU23: - | BV23: - | BW23: - | BX23: - | BY23: - | BZ23: - | CA23: - | CB23: - | CC23: - | CD23: - | CE23: - | CF23: - | CG23: - | CH23: - | CI23: - | CJ23: - | CK23: - | CL23: - | CM23: - | CN23: - | CO23: - | CP23: - | CQ23: - | CR23: - | CS23: - | CT23: - | CU23: - | DC23: - | DD23: - | DE23: - | DF23: - | DG23: - | DH23: - | DI23: - | DJ23: - | DK23: - | DL23: - | DM23: - | DN23: - | DO23: - | DP23: - | DQ23: - | DR23: - | DS23: - | DT23: - | DU23: - | DV23: - | DW23: - | DX23: - | DY23: - | DZ23: - | EA23: - | EB23: - | EC23: - | ED23: - | EE23: - | EF23: - | EG23: - | EH23: - | EI23: - | EJ23: - | EK23: - | EL23: - | EM23: - | EN23: - | EO23: - | EP23: - | EQ23: - | ER23: - | ES23: - | ET23: - | EU23: -
A24: 長野県 | B24: 長野市 | C24: 長野市 | D24: 田町外 | E24: 3 | F24: 2 | G24: x | H24: x | I24: x | J24: x | K24: x | L24: 1 | M24: x | N24: x | O24: x | P24: x | Q24: x | R24: x | S24: x | T24: x | U24: x | V24: x | W24: x | X24: x | Y24: x | Z24: x | AA24: x | AB24: x | AC24: 60.4 | AD24: 61.0 | AE24: 60.0 | AF24: x | AG24: x | AH24: x | AI24: x | AJ24: x | AK24: x | AL24: x | AM24: x | AN24: x | AO24: x | AP24: x | AQ24: x | AR24: x | AS24: x | AT24: x | AU24: x | AV24: 60.7 | AW24: 60.0 | AX24: 61.0 | AY24: x | AZ24: x | BA24: x | BB24: x | BC24: x | BD24: x | BE24: x | BF24: x | BG24: x | BH24: x | BI24: x | BJ24: x | BK24: x | BL24: x | BM24: x | BN24: x | BO24: 48.5 | BP24: 60.0 | BQ24: 37.0 | BR24: 2 | BS24: - | BT24: - | BU24: - | BV24: - | BW24: - | BX24: - | BY24: - | BZ24: - | CA24: - | CB24: 2 | CC24: - | CD24: - | CE24: - | CF24: - | CG24: - | CH24: - | CI24: - | CJ24: - | CK24: - | CL24: - | CM24: - | CN24: - | CO24: - | CP24: - | CQ24: - | CR24: - | CS24: - | CT24: - | CU24: - | DC24: 6 | DD24: 4 | DE24: 2 | DF24: 2 | DG24: - | DH24: - | DI24: 1 | DJ24: 1 | DK24: 2 | DL24: 1 | DM24: - | DN24: - | DO24: - | DP24: - | DQ24: - | DR24: 1 | DS24: - | DT24: - | DU24: - | DV24: - | DW24: - | DX24: - | DY24: - | DZ24: - | EA24: 2 | EB24: 75 | EC24: 33 | ED24: 30 | EE24: 12 | EF24: 2 | EG24: 2 | EH24: 1 | EI24: 1 | EJ24: - | EK24: - | EL24: - | EM24: - | EN24: 4 | EO24: 2 | EP24: 1 | EQ24: 1 | ER24: - | ES24: - | ET24: 1 | EU24: 1
A25: 長野県 | B25: 長野市 | C25: 長野市 | D25: 上千歳町外 | E25: - | F25: - | G25: - | H25: - | I25: - | J25: - | K25: - | L25: - | M25: - | N25: - | O25: - | P25: - | Q25: - | R25: - | S25: - | T25: - | U25: - | V25: - | W25: - | X25: - | Y25: - | Z25: - | AA25: - | AB25: - | AC25: … | AD25: … | AE25: … | AF25: - | AG25: - | AH25: - | AI25: - | AJ25: - | AK25: - | AL25: - | AM25: - | AN25: - | AO25: - | AP25: - | AQ25: - | AR25: - | AS25: - | AT25: - | AU25: - | AV25: … | AW25: … | AX25: … | AY25: - | AZ25: - | BA25: - | BB25: - | BC25: - | BD25: - | BE25: - | BF25: - | BG25: - | BH25: - | BI25: - | BJ25: - | BK25: - | BL25: - | BM25: - | BN25: - | BO25: … | BP25: … | BQ25: … | BR25: - | BS25: - | BT25: - | BU25: - | BV25: - | BW25: - | BX25: - | BY25: - | BZ25: - | CA25: - | CB25: - | CC25: - | CD25: - | CE25: - | CF25: - | CG25: - | CH25: - | CI25: - | CJ25: - | CK25: - | CL25: - | CM25: - | CN25: - | CO25: - | CP25: - | CQ25: - | CR25: - | CS25: - | CT25: - | CU25: - | DC25: - | DD25: - | DE25: - | DF25: - | DG25: - | DH25: - | DI25: - | DJ25: - | DK25: - | DL25: - | DM25: - | DN25: - | DO25: - | DP25: - | DQ25: - | DR25: - | DS25: - | DT25: - | DU25: - | DV25: - | DW25: - | DX25: - | DY25: - | DZ25: - | EA25: - | EB25: - | EC25: - | ED25: - | EE25: - | EF25: - | EG25: - | EH25: - | EI25: - | EJ25: - | EK25: - | EL25: - | EM25: - | EN25: - | EO25: - | EP25: - | EQ25: - | ER25: - | ES25: - | ET25: - | EU25: -
A26: 長野県 | B26: 長野市 | C26: 長野市 | D26: 諏訪町外 | E26: - | F26: - | G26: - | H26: - | I26: - | J26: - | K26: - | L26: - | M26: - | N26: - | O26: - | P26: - | Q26: - | R26: - | S26: - | T26: - | U26: - | V26: - | W26: - | X26: - | Y26: - | Z26: - | AA26: - | AB26: - | AC26: … | AD26: … | AE26: … | AF26: - | AG26: - | AH26: - | AI26: - | AJ26: - | AK26: - | AL26: - | AM26: - | AN26: - | AO26: - | AP26: - | AQ26: - | AR26: - | AS26: - | AT26: - | AU26: - | AV26: … | AW26: … | AX26: … | AY26: - | AZ26: - | BA26: - | BB26: - | BC26: - | BD26: - | BE26: - | BF26: - | BG26: - | BH26: - | BI26: - | BJ26: - | BK26: - | BL26: - | BM26: - | BN26: - | BO26: … | BP26: … | BQ26: … | BR26: - | BS26: - | BT26: - | BU26: - | BV26: - | BW26: - | BX26: - | BY26: - | BZ26: - | CA26: - | CB26: - | CC26: - | CD26: - | CE26: - | CF26: - | CG26: - | CH26: - | CI26: - | CJ26: - | CK26: - | CL26: - | CM26: - | CN26: - | CO26: - | CP26: - | CQ26: - | CR26: - | CS26: - | CT26: - | CU26: - | DC26: - | DD26: - | DE26: - | DF26: - | DG26: - | DH26: - | DI26: - | DJ26: - | DK26: - | DL26: - | DM26: - | DN26: - | DO26: - | DP26: - | DQ26: - | DR26: - | DS26: - | DT26: - | DU26: - | DV26: - | DW26: - | DX26: - | DY26: - | DZ26: - | EA26: - | EB26: - | EC26: - | ED26: - | EE26: - | EF26: - | EG26: - | EH26: - | EI26: - | EJ26: - | EK26: - | EL26: - | EM26: - | EN26: - | EO26: - | EP26: - | EQ26: - | ER26: - | ES26: - | ET26: - | EU26: -
A27: 長野県 | B27: 長野市 | C27: 長野市 | D27: 北石堂町外 | E27: - | F27: - | G27: - | H27: - | I27: - | J27: - | K27: - | L27: - | M27: - | N27: - | O27: - | P27: - | Q27: - | R27: - | S27: - | T27: - | U27: - | V27: - | W27: - | X27: - | Y27: - | Z27: - | AA27: - | AB27: - | AC27: … | AD27: … | AE27: … | AF27: - | AG27: - | AH27: - | AI27: - | AJ27: - | AK27: - | AL27: - | AM27: - | AN27: - | AO27: - | AP27: - | AQ27: - | AR27: - | AS27: - | AT27: - | AU27: - | AV27: … | AW27: … | AX27: … | AY27: - | AZ27: - | BA27: - | BB27: - | BC27: - | BD27: - | BE27: - | BF27: - | BG27: - | BH27: - | BI27: - | BJ27: - | BK27: - | BL27: - | BM27: - | BN27: - | BO27: … | BP27: … | BQ27: … | BR27: - | BS27: - | BT27: - | BU27: - | BV27: - | BW27: - | BX27: - | BY27: - | BZ27: - | CA27: - | CB27: - | CC27: - | CD27: - | CE27: - | CF27: - | CG27: - | CH27: - | CI27: - | CJ27: - | CK27: - | CL27: - | CM27: - | CN27: - | CO27: - | CP27: - | CQ27: - | CR27: - | CS27: - | CT27: - | CU27: - | DC27: - | DD27: - | DE27: - | DF27: - | DG27: - | DH27: - | DI27: - | DJ27: - | DK27: - | DL27: - | DM27: - | DN27: - | DO27: - | DP27: - | DQ27: - | DR27: - | DS27: - | DT27: - | DU27: - | DV27: - | DW27: - | DX27: - | DY27: - | DZ27: - | EA27: - | EB27: - | EC27: - | ED27: - | EE27: - | EF27: - | EG27: - | EH27: - | EI27: - | EJ27: - | EK27: - | EL27: - | EM27: - | EN27: - | EO27: - | EP27: - | EQ27: - | ER27: - | ES27: - | ET27: - | EU27: -
A28: 長野県 | B28: 長野市 | C28: 長野市 | D28: 岡田町 | E28: - | F28: - | G28: - | H28: - | I28: - | J28: - | K28: - | L28: - | M28: - | N28: - | O28: - | P28: - | Q28: - | R28: - | S28: - | T28: - | U28: - | V28: - | W28: - | X28: - | Y28: - | Z28: - | AA28: - | AB28: - | AC28: … | AD28: … | AE28: … | AF28: - | AG28: - | AH28: - | AI28: - | AJ28: - | AK28: - | AL28: - | AM28: - | AN28: - | AO28: - | AP28: - | AQ28: - | AR28: - | AS28: - | AT28: - | AU28: - | AV28: … | AW28: … | AX28: … | AY28: - | AZ28: - | BA28: - | BB28: - | BC28: - | BD28: - | BE28: - | BF28: - | BG28: - | BH28: - | BI28: - | BJ28: - | BK28: - | BL28: - | BM28: - | BN28: - | BO28: … | BP28: … | BQ28: … | BR28: - | BS28: - | BT28: - | BU28: - | BV28: - | BW28: - | BX28: - | BY28: - | BZ28: - | CA28: - | CB28: - | CC28: - | CD28: - | CE28: - | CF28: - | CG28: - | CH28: - | CI28: - | CJ28: - | CK28: - | CL28: - | CM28: - | CN28: - | CO28: - | CP28: - | CQ28: - | CR28: - | CS28: - | CT28: - | CU28: - | DC28: - | DD28: - | DE28: - | DF28: - | DG28: - | DH28: - | DI28: - | DJ28: - | DK28: - | DL28: - | DM28: - | DN28: - | DO28: - | DP28: - | DQ28: - | DR28: - | DS28: - | DT28: - | DU28: - | DV28: - | DW28: - | DX28: - | DY28: - | DZ28: - | EA28: - | EB28: - | EC28: - | ED28: - | EE28: - | EF28: - | EG28: - | EH28: - | EI28: - | EJ28: - | EK28: - | EL28: - | EM28: - | EN28: - | EO28: - | EP28: - | EQ28: - | ER28: - | ES28: - | ET28: - | EU28: -
A29: 長野県 | B29: 長野市 | C29: 長野市 | D29: 中御所 | E29: 5 | F29: 2 | G29: x | H29: x | I29: x | J29: x | K29: x | L29: 3 | M29: x | N29: x | O29: x | P29: x | Q29: x | R29: x | S29: x | T29: x | U29: x | V29: x | W29: x | X29: x | Y29: x | Z29: x | AA29: x | AB29: x | AC29: 60.2 | AD29: 47.0 | AE29: 69.0 | AF29: x | AG29: x | AH29: x | AI29: x | AJ29: x | AK29: x | AL29: x | AM29: x | AN29: x | AO29: x | AP29: x | AQ29: x | AR29: x | AS29: x | AT29: x | AU29: x | AV29: 69.0 | AW29: 69.0 | AX29: 69.0 | AY29: x | AZ29: x | BA29: x | BB29: x | BC29: x | BD29: x | BE29: x | BF29: x | BG29: x | BH29: x | BI29: x | BJ29: x | BK29: x | BL29: x | BM29: x | BN29: x | BO29: 65.5 | BP29: 69.0 | BQ29: 62.0 | BR29: 2 | BS29: - | BT29: - | BU29: - | BV29: - | BW29: - | BX29: - | BY29: - | BZ29: - | CA29: - | CB29: - | CC29: 1 | CD29: - | CE29: - | CF29: - | CG29: 1 | CH29: 1 | CI29: - | CJ29: - | CK29: - | CL29: - | CM29: - | CN29: - | CO29: - | CP29: - | CQ29: 1 | CR29: - | CS29: - | CT29: - | CU29: - | DC29: 6 | DD29: 2 | DE29: 2 | DF29: - | DG29: - | DH29: 1 | DI29: - | DJ29: 3 | DK29: 2 | DL29: 1 | DM29: - | DN29: - | DO29: - | DP29: - | DQ29: - | DR29: 1 | DS29: - | DT29: - | DU29: - | DV29: - | DW29: - | DX29: - | DY29: - | DZ29: - | EA29: 2 | EB29: 93 | EC29: 21 | ED29: 6 | EE29: 66 | EF29: 3 | EG29: 1 | EH29: 1 | EI29: - | EJ29: - | EK29: - | EL29: - | EM29: 2 | EN29: 3 | EO29: 1 | EP29: 1 | EQ29: - | ER29: - | ES29: 1 | ET29: - | EU29: 1
A30: 長野県 | B30: 長野市 | C30: 長野市 | D30: 七瀬中部 | E30: 4 | F30: - | G30: - | H30: - | I30: - | J30: - | K30: - | L30: 4 | M30: - | N30: - | O30: - | P30: - | Q30: - | R30: - | S30: - | T30: - | U30: - | V30: - | W30: - | X30: - | Y30: - | Z30: - | AA30: - | AB30: - | AC30: … | AD30: … | AE30: … | AF30: - | AG30: - | AH30: - | AI30: - | AJ30: - | AK30: - | AL30: - | AM30: - | AN30: - | AO30: - | AP30: - | AQ30: - | AR30: - | AS30: - | AT30: - | AU30: - | AV30: … | AW30: … | AX30: … | AY30: - | AZ30: - | BA30: - | BB30: - | BC30: - | BD30: - | BE30: - | BF30: - | BG30: - | BH30: - | BI30: - | BJ30: - | BK30: - | BL30: - | BM30: - | BN30: - | BO30: … | BP30: … | BQ30: … | BR30: - | BS30: - | BT30: - | BU30: - | BV30: - | BW30: - | BX30: - | BY30: - | BZ30: - | CA30: - | CB30: - | CC30: - | CD30: - | CE30: - | CF30: - | CG30: - | CH30: - | CI30: - | CJ30: - | CK30: - | CL30: - | CM30: - | CN30: - | CO30: - | CP30: - | CQ30: - | CR30: - | CS30: - | CT30: - | CU30: - | DC30: - | DD30: - | DE30: - | DF30: - | DG30: - | DH30: - | DI30: - | DJ30: - | DK30: - | DL30: - | DM30: - | DN30: - | DO30: - | DP30: - | DQ30: - | DR30: - | DS30: - | DT30: - | DU30: - | DV30: - | DW30: - | DX30: - | DY30: - | DZ30: - | EA30: - | EB30: - | EC30: - | ED30: - | EE30: - | EF30: - | EG30: - | EH30: - | EI30: - | EJ30: - | EK30: - | EL30: - | EM30: - | EN30: - | EO30: - | EP30: - | EQ30: - | ER30: - | ES30: - | ET30: - | EU30: -
A31: 長野県 | B31: 長野市 | C31: 長野市 | D31: 七瀬北部 | E31: 2 | F31: - | G31: - | H31: - | I31: - | J31: - | K31: - | L31: 2 | M31: - | N31: - | O31: - | P31: - | Q31: - | R31: - | S31: - | T31: - | U31: - | V31: - | W31: - | X31: - | Y31: - | Z31: - | AA31: - | AB31: - | AC31: … | AD31: … | AE31: … | AF31: - | AG31: - | AH31: - | AI31: - | AJ31: - | AK31: - | AL31: - | AM31: - | AN31: - | AO31: - | AP31: - | AQ31: - | AR31: - | AS31: - | AT31: - | AU31: - | AV31: … | AW31: … | AX31: … | AY31: - | AZ31: - | BA31: - | BB31: - | BC31: - | BD31: - | BE31: - | BF31: - | BG31: - | BH31: - | BI31: - | BJ31: - | BK31: - | BL31: - | BM31: - | BN31: - | BO31: … | BP31: … | BQ31: … | BR31: - | BS31: - | BT31: - | BU31: - | BV31: - | BW31: - | BX31: - | BY31: - | BZ31: - | CA31: - | CB31: - | CC31: - | CD31: - | CE31: - | CF31: - | CG31: - | CH31: - | CI31: - | CJ31: - | CK31: - | CL31: - | CM31: - | CN31: - | CO31: - | CP31: - | CQ31: - | CR31: - | CS31: - | CT31: - | CU31: - | DC31: - | DD31: - | DE31: - | DF31: - | DG31: - | DH31: - | DI31: - | DJ31: - | DK31: - | DL31: - | DM31: - | DN31: - | DO31: - | DP31: - | DQ31: - | DR31: - | DS31: - | DT31: - | DU31: - | DV31: - | DW31: - | DX31: - | DY31: - | DZ31: - | EA31: - | EB31: - | EC31: - | ED31: - | EE31: - | EF31: - | EG31: - | EH31: - | EI31: - | EJ31: - | EK31: - | EL31: - | EM31: - | EN31: - | EO31: - | EP31: - | EQ31: - | ER31: - | ES31: - | ET31: - | EU31: -
A32: 長野県 | B32: 長野市 | C32: 長野市 | D32: 七瀬南部 | E32: 2 | F32: - | G32: - | H32: - | I32: - | J32: - | K32: - | L32: 2 | M32: - | N32: - | O32: - | P32: - | Q32: - | R32: - | S32: - | T32: - | U32: - | V32: - | W32: - | X32: - | Y32: - | Z32: - | AA32: - | AB32: - | AC32: … | AD32: … | AE32: … | AF32: - | AG32: - | AH32: - | AI32: - | AJ32: - | AK32: - | AL32: - | AM32: - | AN32: - | AO32: - | AP32: - | AQ32: - | AR32: - | AS32: - | AT32: - | AU32: - | AV32: … | AW32: … | AX32: … | AY32: - | AZ32: - | BA32: - | BB32: - | BC32: - | BD32: - | BE32: - | BF32: - | BG32: - | BH32: - | BI32: - | BJ32: - | BK32: - | BL32: - | BM32: - | BN32: - | BO32: … | BP32: … | BQ32: … | BR32: - | BS32: - | BT32: - | BU32: - | BV32: - | BW32: - | BX32: - | BY32: - | BZ32: - | CA32: - | CB32: - | CC32: - | CD32: - | CE32: - | CF32: - | CG32: - | CH32: - | CI32: - | CJ32: - | CK32: - | CL32: - | CM32: - | CN32: - | CO32: - | CP32: - | CQ32: - | CR32: - | CS32: - | CT32: - | CU32: - | DC32: - | DD32: - | DE32: - | DF32: - | DG32: - | DH32: - | DI32: - | DJ32: - | DK32: - | DL32: - | DM32: - | DN32: - | DO32: - | DP32: - | DQ32: - | DR32: - | DS32: - | DT32: - | DU32: - | DV32: - | DW32: - | DX32: - | DY32: - | DZ32: - | EA32: - | EB32: - | EC32: - | ED32: - | EE32: - | EF32: - | EG32: - | EH32: - | EI32: - | EJ32: - | EK32: - | EL32: - | EM32: - | EN32: - | EO32: - | EP32: - | EQ32: - | ER32: - | ES32: - | ET32: - | EU32: -
A33: 長野県 | B33: 長野市 | C33: 長野市 | D33: 栗田北中 | E33: - | F33: - | G33: - | H33: - | I33: - | J33: - | K33: - | L33: - | M33: - | N33: - | O33: - | P33: - | Q33: - | R33: - | S33: - | T33: - | U33: - | V33: - | W33: - | X33: - | Y33: - | Z33: - | AA33: - | AB33: - | AC33: … | AD33: … | AE33: … | AF33: - | AG33: - | AH33: - | AI33: - | AJ33: - | AK33: - | AL33: - | AM33: - | AN33: - | AO33: - | AP33: - | AQ33: - | AR33: - | AS33: - | AT33: - | AU33: - | AV33: … | AW33: … | AX33: … | AY33: - | AZ33: - | BA33: - | BB33: - | BC33: - | BD33: - | BE33: - | BF33: - | BG33: - | BH33: - | BI33: - | BJ33: - | BK33: - | BL33: - | BM33: - | BN33: - | BO33: … | BP33: … | BQ33: … | BR33: - | BS33: - | BT33: - | BU33: - | BV33: - | BW33: - | BX33: - | BY33: - | BZ33: - | CA33: - | CB33: - | CC33: - | CD33: - | CE33: - | CF33: - | CG33: - | CH33: - | CI33: - | CJ33: - | CK33: - | CL33: - | CM33: - | CN33: - | CO33: - | CP33: - | CQ33: - | CR33: - | CS33: - | CT33: - | CU33: - | DC33: - | DD33: - | DE33: - | DF33: - | DG33: - | DH33: - | DI33: - | DJ33: - | DK33: - | DL33: - | DM33: - | DN33: - | DO33: - | DP33: - | DQ33: - | DR33: - | DS33: - | DT33: - | DU33: - | DV33: - | DW33: - | DX33: - | DY33: - | DZ33: - | EA33: - | EB33: - | EC33: - | ED33: - | EE33: - | EF33: - | EG33: - | EH33: - | EI33: - | EJ33: - | EK33: - | EL33: - | EM33: - | EN33: - | EO33: - | EP33: - | EQ33: - | ER33: - | ES33: - | ET33: - | EU33: -
A34: 長野県 | B34: 長野市 | C34: 長野市 | D34: 栗田 | E34: 7 | F34: - | G34: - | H34: - | I34: - | J34: - | K34: - | L34: 7 | M34: - | N34: - | O34: - | P34: - | Q34: - | R34: - | S34: - | T34: - | U34: - | V34: - | W34: - | X34: - | Y34: - | Z34: - | AA34: - | AB34: - | AC34: … | AD34: … | AE34: … | AF34: - | AG34: - | AH34: - | AI34: - | AJ34: - | AK34: - | AL34: - | AM34: - | AN34: - | AO34: - | AP34: - | AQ34: - | AR34: - | AS34: - | AT34: - | AU34: - | AV34: … | AW34: … | AX34: … | AY34: - | AZ34: - | BA34: - | BB34: - | BC34: - | BD34: - | BE34: - | BF34: - | BG34: - | BH34: - | BI34: - | BJ34: - | BK34: - | BL34: - | BM34: - | BN34: - | BO34: … | BP34: … | BQ34: … | BR34: - | BS34: - | BT34: - | BU34: - | BV34: - | BW34: - | BX34: - | BY34: - | BZ34: - | CA34: - | CB34: - | CC34: - | CD34: - | CE34: - | CF34: - | CG34: - | CH34: - | CI34: - | CJ34: - | CK34: - | CL34: - | CM34: - | CN34: - | CO34: - | CP34: - | CQ34: - | CR34: - | CS34: - | CT34: - | CU34: - | DC34: - | DD34: - | DE34: - | DF34: - | DG34: - | DH34: - | DI34: - | DJ34: - | DK34: - | DL34: - | DM34: - | DN34: - | DO34: - | DP34: - | DQ34: - | DR34: - | DS34: - | DT34: - | DU34: - | DV34: - | DW34: - | DX34: - | DY34: - | DZ34: - | EA34: - | EB34: - | EC34: - | ED34: - | EE34: - | EF34: - | EG34: - | EH34: - | EI34: - | EJ34: - | EK34: - | EL34: - | EM34: - | EN34: - | EO34: - | EP34: - | EQ34: - | ER34: - | ES34: - | ET34: - | EU34: -
A35: 長野県 | B35: 長野市 | C35: 長野市 | D35: 北市 | E35: 2 | F35: 1 | G35: x | H35: x | I35: x | J35: x | K35: x | L35: 1 | M35: x | N35: x | O35: x | P35: x | Q35: x | R35: x | S35: x | T35: x | U35: x | V35: x | W35: x | X35: x | Y35: x | Z35: x | AA35: x | AB35: x | AC35: 45.3 | AD35: 57.0 | AE35: 39.5 | AF35: x | AG35: x | AH35: x | AI35: x | AJ35: x | AK35: x | AL35: x | AM35: x | AN35: x | AO35: x | AP35: x | AQ35: x | AR35: x | AS35: x | AT35: x | AU35: x | AV35: 55.5 | AW35: 57.0 | AX35: 54.0 | AY35: x | AZ35: x | BA35: x | BB35: x | BC35: x | BD35: x | BE35: x | BF35: x | BG35: x | BH35: x | BI35: x | BJ35: x | BK35: x | BL35: x | BM35: x | BN35: x | BO35: 55.5 | BP35: 57.0 | BQ35: 54.0 | BR35: 1 | BS35: - | BT35: - | BU35: - | BV35: - | BW35: - | BX35: - | BY35: - | BZ35: - | CA35: 1 | CB35: - | CC35: - | CD35: - | CE35: - | CF35: - | CG35: - | CH35: - | CI35: - | CJ35: - | CK35: - | CL35: - | CM35: - | CN35: - | CO35: - | CP35: - | CQ35: - | CR35: - | CS35: - | CT35: - | CU35: - | DC35: 6 | DD35: 3 | DE35: 2 | DF35: 1 | DG35: - | DH35: - | DI35: 2 | DJ35: 1 | DK35: 1 | DL35: - | DM35: - | DN35: - | DO35: - | DP35: 1 | DQ35: - | DR35: - | DS35: - | DT35: - | DU35: - | DV35: - | DW35: - | DX35: - | DY35: - | DZ35: - | EA35: 1 | EB35: 51 | EC35: 26 | ED35: 25 | EE35: - | EF35: 3 | EG35: 1 | EH35: 1 | EI35: - | EJ35: - | EK35: - | EL35: 2 | EM35: - | EN35: 3 | EO35: 2 | EP35: 1 | EQ35: 1 | ER35: - | ES35: - | ET35: - | EU35: 1
A36: 長野県 | B36: 長野市 | C36: 長野市 | D36: 北荒木 | E36: 1 | F36: - | G36: - | H36: - | I36: - | J36: - | K36: - | L36: 1 | M36: - | N36: - | O36: - | P36: - | Q36: - | R36: - | S36: - | T36: - | U36: - | V36: - | W36: - | X36: - | Y36: - | Z36: - | AA36: - | AB36: - | AC36: … | AD36: … | AE36: … | AF36: - | AG36: - | AH36: - | AI36: - | AJ36: - | AK36: - | AL36: - | AM36: - | AN36: - | AO36: - | AP36: - | AQ36: - | AR36: - | AS36: - | AT36: - | AU36: - | AV36: … | AW36: … | AX36: … | AY36: - | AZ36: - | BA36: - | BB36: - | BC36: - | BD36: - | BE36: - | BF36: - | BG36: - | BH36: - | BI36: - | BJ36: - | BK36: - | BL36: - | BM36: - | BN36: - | BO36: … | BP36: … | BQ36: … | BR36: - | BS36: - | BT36: - | BU36: - | BV36: - | BW36: - | BX36: - | BY36: - | BZ36: - | CA36: - | CB36: - | CC36: - | CD36: - | CE36: - | CF36: - | CG36: - | CH36: - | CI36: - | CJ36: - | CK36: - | CL36: - | CM36: - | CN36: - | CO36: - | CP36: - | CQ36: - | CR36: - | CS36: - | CT36: - | CU36: - | DC36: - | DD36: - | DE36: - | DF36: - | DG36: - | DH36: - | DI36: - | DJ36: - | DK36: - | DL36: - | DM36: - | DN36: - | DO36: - | DP36: - | DQ36: - | DR36: - | DS36: - | DT36: - | DU36: - | DV36: - | DW36: - | DX36: - | DY36: - | DZ36: - | EA36: - | EB36: - | EC36: - | ED36: - | EE36: - | EF36: - | EG36: - | EH36: - | EI36: - | EJ36: - | EK36: - | EL36: - | EM36: - | EN36: - | EO36: - | EP36: - | EQ36: - | ER36: - | ES36: - | ET36: - | EU36: -
A37: 長野県 | B37: 長野市 | C37: 長野市 | D37: 吹上 | E37: - | F37: - | G37: - | H37: - | I37: - | J37: - | K37: - | L37: - | M37: - | N37: - | O37: - | P37: - | Q37: - | R37: - | S37: - | T37: - | U37: - | V37: - | W37: - | X37: - | Y37: - | Z37: - | AA37: - | AB37: - | AC37: … | AD37: … | AE37: … | AF37: - | AG37: - | AH37: - | AI37: - | AJ37: - | AK37: - | AL37: - | AM37: - | AN37: - | AO37: - | AP37: - | AQ37: - | AR37: - | AS37: - | AT37: - | AU37: - | AV37: … | AW37: … | AX37: … | AY37: - | AZ37: - | BA37: - | BB37: - | BC37: - | BD37: - | BE37: - | BF37: - | BG37: - | BH37: - | BI37: - | BJ37: - | BK37: - | BL37: - | BM37: - | BN37: - | BO37: … | BP37: … | BQ37: … | BR37: - | BS37: - | BT37: - | BU37: - | BV37: - | BW37: - | BX37: - | BY37: - | BZ37: - | CA37: - | CB37: - | CC37: - | CD37: - | CE37: - | CF37: - | CG37: - | CH37: - | CI37: - | CJ37: - | CK37: - | CL37: - | CM37: - | CN37: - | CO37: - | CP37: - | CQ37: - | CR37: - | CS37: - | CT37: - | CU37: - | DC37: - | DD37: - | DE37: - | DF37: - | DG37: - | DH37: - | DI37: - | DJ37: - | DK37: - | DL37: - | DM37: - | DN37: - | DO37: - | DP37: - | DQ37: - | DR37: - | DS37: - | DT37: - | DU37: - | DV37: - | DW37: - | DX37: - | DY37: - | DZ37: - | EA37: - | EB37: - | EC37: - | ED37: - | EE37: - | EF37: - | EG37: - | EH37: - | EI37: - | EJ37: - | EK37: - | EL37: - | EM37: - | EN37: - | EO37: - | EP37: - | EQ37: - | ER37: - | ES37: - | ET37: - | EU37: -
A38: 長野県 | B38: 長野市 | C38: 長野市 | D38: 南荒木 | E38: 4 | F38: - | G38: - | H38: - | I38: - | J38: - | K38: - | L38: 4 | M38: - | N38: - | O38: - | P38: - | Q38: - | R38: - | S38: - | T38: - | U38: - | V38: - | W38: - | X38: - | Y38: - | Z38: - | AA38: - | AB38: - | AC38: … | AD38: … | AE38: … | AF38: - | AG38: - | AH38: - | AI38: - | AJ38: - | AK38: - | AL38: - | AM38: - | AN38: - | AO38: - | AP38: - | AQ38: - | AR38: - | AS38: - | AT38: - | AU38: - | AV38: … | AW38: … | AX38: … | AY38: - | AZ38: - | BA38: - | BB38: - | BC38: - | BD38: - | BE38: - | BF38: - | BG38: - | BH38: - | BI38: - | BJ38: - | BK38: - | BL38: - | BM38: - | BN38: - | BO38: … | BP38: … | BQ38: … | BR38: - | BS38: - | BT38: - | BU38: - | BV38: - | BW38: - | BX38: - | BY38: - | BZ38: - | CA38: - | CB38: - | CC38: - | CD38: - | CE38: - | CF38: - | CG38: - | CH38: - | CI38: - | CJ38: - | CK38: - | CL38: - | CM38: - | CN38: - | CO38: - | CP38: - | CQ38: - | CR38: - | CS38: - | CT38: - | CU38: - | DC38: - | DD38: - | DE38: - | DF38: - | DG38: - | DH38: - | DI38: - | DJ38: - | DK38: - | DL38: - | DM38: - | DN38: - | DO38: - | DP38: - | DQ38: - | DR38: - | DS38: - | DT38: - | DU38: - | DV38: - | DW38: - | DX38: - | DY38: - | DZ38: - | EA38: - | EB38: - | EC38: - | ED38: - | EE38: - | EF38: - | EG38: - | EH38: - | EI38: - | EJ38: - | EK38: - | EL38: - | EM38: - | EN38: - | EO38: - | EP38: - | EQ38: - | ER38: - | ES38: - | ET38: - | EU38: -
A39: 長野県 | B39: 長野市 | C39: 長野市 | D39: 南市 | E39: 1 | F39: - | G39: - | H39: - | I39: - | J39: - | K39: - | L39: 1 | M39: - | N39: - | O39: - | P39: - | Q39: - | R39: - | S39: - | T39: - | U39: - | V39: - | W39: - | X39: - | Y39: - | Z39: - | AA39: - | AB39: - | AC39: … | AD39: … | AE39: … | AF39: - | AG39: - | AH39: - | AI39: - | AJ39: - | AK39: - | AL39: - | AM39: - | AN39: - | AO39: - | AP39: - | AQ39: - | AR39: - | AS39: - | AT39: - | AU39: - | AV39: … | AW39: … | AX39: … | AY39: - | AZ39: - | BA39: - | BB39: - | BC39: - | BD39: - | BE39: - | BF39: - | BG39: - | BH39: - | BI39: - | BJ39: - | BK39: - | BL39: - | BM39: - | BN39: - | BO39: … | BP39: … | BQ39: … | BR39: - | BS39: - | BT39: - | BU39: - | BV39: - | BW39: - | BX39: - | BY39: - | BZ39: - | CA39: - | CB39: - | CC39: - | CD39: - | CE39: - | CF39: - | CG39: - | CH39: - | CI39: - | CJ39: - | CK39: - | CL39: - | CM39: - | CN39: - | CO39: - | CP39: - | CQ39: - | CR39: - | CS39: - | CT39: - | CU39: - | DC39: - | DD39: - | DE39: - | DF39: - | DG39: - | DH39: - | DI39: - | DJ39: - | DK39: - | DL39: - | DM39: - | DN39: - | DO39: - | DP39: - | DQ39: - | DR39: - | DS39: - | DT39: - | DU39: - | DV39: - | DW39: - | DX39: - | DY39: - | DZ39: - | EA39: - | EB39: - | EC39: - | ED39: - | EE39: - | EF39: - | EG39: - | EH39: - | EI39: - | EJ39: - | EK39: - | EL39: - | EM39: - | EN39: - | EO39: - | EP39: - | EQ39: - | ER39: - | ES39: - | ET39: - | EU39: -
A40: 長野県 | B40: 長野市 | C40: 長野市 | D40: 川合新田 | E40: 62 | F40: 19 | G40: 5 | H40: 5 | I40: 5 | J40: 3 | K40: 9 | L40: 43 | M40: 60 | N40: 2 | O40: 3 | P40: 2 | Q40: 3 | R40: 1 | S40: 3 | T40: 2 | U40: 6 | V40: 2 | W40: 8 | X40: 5 | Y40: 11 | Z40: 8 | AA40: 3 | AB40: 1 | AC40: 58.4 | AD40: 61.0 | AE40: 56.2 | AF40: 40 | AG40: - | AH40: - | AI40: - | AJ40: - | AK40: 1 | AL40: 1 | AM40: 1 | AN40: 1 | AO40: 2 | AP40: 7 | AQ40: 4 | AR40: 11 | AS40: 8 | AT40: 3 | AU40: 1 | AV40: 68.5 | AW40: 69.6 | AX40: 67.4 | AY40: 36 | AZ40: - | BA40: - | BB40: - | BC40: - | BD40: - | BE40: 1 | BF40: 1 | BG40: - | BH40: 2 | BI40: 7 | BJ40: 4 | BK40: 10 | BL40: 8 | BM40: 3 | BN40: - | BO40: 69.2 | BP40: 69.6 | BQ40: 68.6 | BR40: 19 | BS40: - | BT40: - | BU40: - | BV40: - | BW40: - | BX40: 1 | BY40: - | BZ40: - | CA40: 1 | CB40: 3 | CC40: 3 | CD40: 5 | CE40: 4 | CF40: 2 | CG40: - | CH40: 10 | CI40: - | CJ40: - | CK40: - | CL40: - | CM40: - | CN40: - | CO40: - | CP40: 2 | CQ40: 1 | CR40: 2 | CS40: 3 | CT40: 2 | CU40: - | DC40: 66 | DD40: 55 | DE40: 36 | DF40: 19 | DG40: - | DH40: 3 | DI40: 5 | DJ40: 3 | DK40: 19 | DL40: 1 | DM40: - | DN40: - | DO40: - | DP40: 3 | DQ40: - | DR40: 14 | DS40: - | DT40: - | DU40: 1 | DV40: - | DW40: - | DX40: - | DY40: - | DZ40: - | EA40: 19 | EB40: 1,354 | EC40: 416 | ED40: 519 | EE40: 419 | EF40: 29 | EG40: 27 | EH40: 19 | EI40: 8 | EJ40: - | EK40: - | EL40: 2 | EM40: - | EN40: 37 | EO40: 28 | EP40: 17 | EQ40: 11 | ER40: - | ES40: 3 | ET40: 3 | EU40: 3
A41: 長野県 | B41: 長野市 | C41: 長野市 | D41: 上千田 | E41: 11 | F41: - | G41: - | H41: - | I41: - | J41: - | K41: - | L41: 11 | M41: - | N41: - | O41: - | P41: - | Q41: - | R41: - | S41: - | T41: - | U41: - | V41: - | W41: - | X41: - | Y41: - | Z41: - | AA41: - | AB41: - | AC41: … | AD41: … | AE41: … | AF41: - | AG41: - | AH41: - | AI41: - | AJ41: - | AK41: - | AL41: - | AM41: - | AN41: - | AO41: - | AP41: - | AQ41: - | AR41: - | AS41: - | AT41: - | AU41: - | AV41: … | AW41: … | AX41: … | AY41: - | AZ41: - | BA41: - | BB41: - | BC41: - | BD41: - | BE41: - | BF41: - | BG41: - | BH41: - | BI41: - | BJ41: - | BK41: - | BL41: - | BM41: - | BN41: - | BO41: … | BP41: … | BQ41: … | BR41: - | BS41: - | BT41: - | BU41: - | BV41: - | BW41: - | BX41: - | BY41: - | BZ41: - | CA41: - | CB41: - | CC41: - | CD41: - | CE41: - | CF41: - | CG41: - | CH41: - | CI41: - | CJ41: - | CK41: - | CL41: - | CM41: - | CN41: - | CO41: - | CP41: - | CQ41: - | CR41: - | CS41: - | CT41: - | CU41: - | DC41: - | DD41: - | DE41: - | DF41: - | DG41: - | DH41: - | DI41: - | DJ41: - | DK41: - | DL41: - | DM41: - | DN41: - | DO41: - | DP41: - | DQ41: - | DR41: - | DS41: - | DT41: - | DU41: - | DV41: - | DW41: - | DX41: - | DY41: - | DZ41: - | EA41: - | EB41: - | EC41: - | ED41: - | EE41: - | EF41: - | EG41: - | EH41: - | EI41: - | EJ41: - | EK41: - | EL41: - | EM41: - | EN41: - | EO41: - | EP41: - | EQ41: - | ER41: - | ES41: - | ET41: - | EU41: -
A42: 長野県 | B42: 長野市 | C42: 長野市 | D42: 母袋 | E42: 9 | F42: 2 | G42: x | H42: x | I42: x | J42: x | K42: x | L42: 7 | M42: x | N42: x | O42: x | P42: x | Q42: x | R42: x | S42: x | T42: x | U42: x | V42: x | W42: x | X42: x | Y42: x | Z42: x | AA42: x | AB42: x | AC42: 73.7 | AD42: 77.0 | AE42: 72.0 | AF42: x | AG42: x | AH42: x | AI42: x | AJ42: x | AK42: x | AL42: x | AM42: x | AN42: x | AO42: x | AP42: x | AQ42: x | AR42: x | AS42: x | AT42: x | AU42: x | AV42: 73.7 | AW42: 77.0 | AX42: 72.0 | AY42: x | AZ42: x | BA42: x | BB42: x | BC42: x | BD42: x | BE42: x | BF42: x | BG42: x | BH42: x | BI42: x | BJ42: x | BK42: x | BL42: x | BM42: x | BN42: x | BO42: 73.7 | BP42: 77.0 | BQ42: 72.0 | BR42: 2 | BS42: - | BT42: - | BU42: - | BV42: - | BW42: - | BX42: - | BY42: - | BZ42: - | CA42: - | CB42: - | CC42: - | CD42: 1 | CE42: 1 | CF42: - | CG42: - | CH42: 2 | CI42: - | CJ42: - | CK42: - | CL42: - | CM42: - | CN42: - | CO42: - | CP42: - | CQ42: - | CR42: 1 | CS42: 1 | CT42: - | CU42: - | DC42: 3 | DD42: 3 | DE42: 3 | DF42: - | DG42: - | DH42: - | DI42: - | DJ42: - | DK42: 2 | DL42: 2 | DM42: - | DN42: - | DO42: - | DP42: - | DQ42: - | DR42: - | DS42: - | DT42: - | DU42: - | DV42: - | DW42: - | DX42: - | DY42: - | DZ42: - | EA42: 2 | EB42: 84 | EC42: 77 | ED42: 7 | EE42: - | EF42: 1 | EG42: 1 | EH42: 1 | EI42: - | EJ42: - | EK42: - | EL42: - | EM42: - | EN42: 2 | EO42: 2 | EP42: 2 | EQ42: - | ER42: - | ES42: - | ET42: - | EU42: -
A43: 長野県 | B43: 長野市 | C43: 長野市 | D43: 中千田 | E43: 6 | F43: 1 | G43: x | H43: x | I43: x | J43: x | K43: x | L43: 5 | M43: x | N43: x | O43: x | P43: x | Q43: x | R43: x | S43: x | T43: x | U43: x | V43: x | W43: x | X43: x | Y43: x | Z43: x | AA43: x | AB43: x | AC43: 77.0 | AD43: 77.0 | AE43: … | AF43: x | AG43: x | AH43: x | AI43: x | AJ43: x | AK43: x | AL43: x | AM43: x | AN43: x | AO43: x | AP43: x | AQ43: x | AR43: x | AS43: x | AT43: x | AU43: x | AV43: … | AW43: … | AX43: … | AY43: x | AZ43: x | BA43: x | BB43: x | BC43: x | BD43: x | BE43: x | BF43: x | BG43: x | BH43: x | BI43: x | BJ43: x | BK43: x | BL43: x | BM43: x | BN43: x | BO43: … | BP43: … | BQ43: … | BR43: 1 | BS43: - | BT43: - | BU43: - | BV43: - | BW43: - | BX43: - | BY43: - | BZ43: - | CA43: - | CB43: - | CC43: - | CD43: - | CE43: 1 | CF43: - | CG43: - | CH43: - | CI43: - | CJ43: - | CK43: - | CL43: - | CM43: - | CN43: - | CO43: - | CP43: - | CQ43: - | CR43: - | CS43: - | CT43: - | CU43: - | DC43: 1 | DD43: 1 | DE43: - | DF43: - | DG43: 1 | DH43: - | DI43: - | DJ43: - | DK43: 1 | DL43: - | DM43: - | DN43: - | DO43: - | DP43: 1 | DQ43: - | DR43: - | DS43: - | DT43: - | DU43: - | DV43: - | DW43: - | DX43: - | DY43: - | DZ43: - | EA43: 1 | EB43: 30 | EC43: - | ED43: 30 | EE43: - | EF43: 1 | EG43: 1 | EH43: - | EI43: - | EJ43: 1 | EK43: - | EL43: - | EM43: - | EN43: - | EO43: - | EP43: - | EQ43: - | ER43: - | ES43: - | ET43: - | EU43: -
A44: 長野県 | B44: 長野市 | C44: 長野市 | D44: 日詰 | E44: 25 | F44: 3 | G44: - | H44: - | I44: - | J44: - | K44: 3 | L44: 22 | M44: 8 | N44: - | O44: - | P44: - | Q44: - | R44: - | S44: 1 | T44: 1 | U44: 1 | V44: - | W44: - | X44: - | Y44: 3 | Z44: 2 | AA44: - | AB44: - | AC44: 63.3 | AD44: 63.0 | AE44: 63.7 | AF44: 5 | AG44: - | AH44: - | AI44: - | AJ44: - | AK44: - | AL44: - | AM44: - | AN44: - | AO44: - | AP44: - | AQ44: - | AR44: 3 | AS44: 2 | AT44: - | AU44: - | AV44: 73.4 | AW44: 74.7 | AX44: 71.5 | AY44: 5 | AZ44: - | BA44: - | BB44: - | BC44: - | BD44: - | BE44: - | BF44: - | BG44: - | BH44: - | BI44: - | BJ44: - | BK44: 3 | BL44: 2 | BM44: - | BN44: - | BO44: 73.4 | BP44: 74.7 | BQ44: 71.5 | BR44: 3 | BS44: - | BT44: - | BU44: - | BV44: - | BW44: - | BX44: - | BY44: - | BZ44: - | CA44: - | CB44: - | CC44: - | CD44: 1 | CE44: 2 | CF44: - | CG44: - | CH44: 3 | CI44: - | CJ44: - | CK44: - | CL44: - | CM44: - | CN44: - | CO44: - | CP44: - | CQ44: - | CR44: 1 | CS44: 2 | CT44: - | CU44: - | DC44: 11 | DD44: 9 | DE44: 5 | DF44: 4 | DG44: - | DH44: 1 | DI44: 1 | DJ44: - | DK44: 3 | DL44: 2 | DM44: - | DN44: - | DO44: - | DP44: 1 | DQ44: - | DR44: - | DS44: - | DT44: - | DU44: - | DV44: - | DW44: - | DX44: - | DY44: - | DZ44: - | EA44: 3 | EB44: 126 | EC44: 65 | ED44: 61 | EE44: - | EF44: 5 | EG44: 5 | EH44: 3 | EI44: 2 | EJ44: - | EK44: - | EL44: - | EM44: - | EN44: 6 | EO44: 4 | EP44: 2 | EQ44: 2 | ER44: - | ES44: 1 | ET44: 1 | EU44: -
A45: 長野県 | B45: 長野市 | C45: 長野市 | D45: 南俣 | E45: 9 | F45: 2 | G45: x | H45: x | I45: x | J45: x | K45: x | L45: 7 | M45: x | N45: x | O45: x | P45: x | Q45: x | R45: x | S45: x | T45: x | U45: x | V45: x | W45: x | X45: x | Y45: x | Z45: x | AA45: x | AB45: x | AC45: 45.5 | AD45: 47.0 | AE45: 44.6 | AF45: x | AG45: x | AH45: x | AI45: x | AJ45: x | AK45: x | AL45: x | AM45: x | AN45: x | AO45: x | AP45: x | AQ45: x | AR45: x | AS45: x | AT45: x | AU45: x | AV45: 48.3 | AW45: 40.0 | AX45: 52.5 | AY45: x | AZ45: x | BA45: x | BB45: x | BC45: x | BD45: x | BE45: x | BF45: x | BG45: x | BH45: x | BI45: x | BJ45: x | BK45: x | BL45: x | BM45: x | BN45: x | BO45: 52.5 | BP45: 40.0 | BQ45: 65.0 | BR45: 2 | BS45: - | BT45: - | BU45: - | BV45: - | BW45: - | BX45: - | BY45: - | BZ45: - | CA45: - | CB45: - | CC45: 2 | CD45: - | CE45: - | CF45: - | CG45: - | CH45: 1 | CI45: - | CJ45: - | CK45: - | CL45: - | CM45: - | CN45: - | CO45: - | CP45: - | CQ45: 1 | CR45: - | CS45: - | CT45: - | CU45: - | DC45: 8 | DD45: 7 | DE45: 2 | DF45: 3 | DG45: 2 | DH45: 1 | DI45: - | DJ45: - | DK45: 2 | DL45: 1 | DM45: - | DN45: - | DO45: - | DP45: - | DQ45: - | DR45: - | DS45: - | DT45: 1 | DU45: - | DV45: - | DW45: - | DX45: - | DY45: - | DZ45: - | EA45: 2 | EB45: 136 | EC45: 33 | ED45: 103 | EE45: - | EF45: 3 | EG45: 3 | EH45: 1 | EI45: 1 | EJ45: 1 | EK45: - | EL45: - | EM45: - | EN45: 5 | EO45: 4 | EP45: 1 | EQ45: 2 | ER45: 1 | ES45: 1 | ET45: - | EU45: -
A46: 長野県 | B46: 長野市 | C46: 長野市 | D46: 上高田 | E46: 20 | F46: 6 | G46: 2 | H46: 2 | I46: 1 | J46: 1 | K46: 3 | L46: 14 | M46: 17 | N46: - | O46: - | P46: - | Q46: 1 | R46: - | S46: 1 | T46: 3 | U46: 2 | V46: 1 | W46: 2 | X46: 1 | Y46: 3 | Z46: 1 | AA46: 2 | AB46: - | AC46: 60.5 | AD46: 56.9 | AE46: 63.8 | AF46: 12 | AG46: - | AH46: - | AI46: - | AJ46: 1 | AK46: - | AL46: 1 | AM46: 1 | AN46: 1 | AO46: - | AP46: 1 | AQ46: 1 | AR46: 3 | AS46: 1 | AT46: 2 | AU46: - | AV46: 63.3 | AW46: 57.2 | AX46: 69.5 | AY46: 9 | AZ46: - | BA46: - | BB46: - | BC46: 1 | BD46: - | BE46: 1 | BF46: 1 | BG46: 1 | BH46: - | BI46: 1 | BJ46: - | BK46: 2 | BL46: 1 | BM46: 1 | BN46: - | BO46: 59.7 | BP46: 57.2 | BQ46: 64.7 | BR46: 6 | BS46: - | BT46: - | BU46: - | BV46: 1 | BW46: - | BX46: 1 | BY46: - | BZ46: 1 | CA46: - | CB46: 1 | CC46: - | CD46: 1 | CE46: - | CF46: 1 | CG46: - | CH46: 2 | CI46: - | CJ46: - | CK46: - | CL46: - | CM46: - | CN46: - | CO46: - | CP46: - | CQ46: - | CR46: 1 | CS46: - | CT46: 1 | CU46: - | DC46: 21 | DD46: 13 | DE46: 9 | DF46: 3 | DG46: 1 | DH46: 1 | DI46: 3 | DJ46: 4 | DK46: 6 | DL46: 1 | DM46: - | DN46: 2 | DO46: - | DP46: 2 | DQ46: 1 | DR46: - | DS46: - | DT46: - | DU46: - | DV46: - | DW46: - | DX46: - | DY46: - | DZ46: - | EA46: 6 | EB46: 531 | EC46: 240 | ED46: 201 | EE46: 90 | EF46: 10 | EG46: 7 | EH46: 6 | EI46: 1 | EJ46: - | EK46: - | EL46: 2 | EM46: 1 | EN46: 11 | EO46: 6 | EP46: 3 | EQ46: 2 | ER46: 1 | ES46: 1 | ET46: 1 | EU46: 3
A47: 長野県 | B47: 長野市 | C47: 長野市 | D47: 川端 | E47: 2 | F47: - | G47: - | H47: - | I47: - | J47: - | K47: - | L47: 2 | M47: - | N47: - | O47: - | P47: - | Q47: - | R47: - | S47: - | T47: - | U47: - | V47: - | W47: - | X47: - | Y47: - | Z47: - | AA47: - | AB47: - | AC47: … | AD47: … | AE47: … | AF47: - | AG47: - | AH47: - | AI47: - | AJ47: - | AK47: - | AL47: - | AM47: - | AN47: - | AO47: - | AP47: - | AQ47: - | AR47: - | AS47: - | AT47: - | AU47: - | AV47: … | AW47: … | AX47: … | AY47: - | AZ47: - | BA47: - | BB47: - | BC47: - | BD47: - | BE47: - | BF47: - | BG47: - | BH47: - | BI47: - | BJ47: - | BK47: - | BL47: - | BM47: - | BN47: - | BO47: … | BP47: … | BQ47: … | BR47: - | BS47: - | BT47: - | BU47: - | BV47: - | BW47: - | BX47: - | BY47: - | BZ47: - | CA47: - | CB47: - | CC47: - | CD47: - | CE47: - | CF47: - | CG47: - | CH47: - | CI47: - | CJ47: - | CK47: - | CL47: - | CM47: - | CN47: - | CO47: - | CP47: - | CQ47: - | CR47: - | CS47: - | CT47: - | CU47: - | DC47: - | DD47: - | DE47: - | DF47: - | DG47: - | DH47: - | DI47: - | DJ47: - | DK47: - | DL47: - | DM47: - | DN47: - | DO47: - | DP47: - | DQ47: - | DR47: - | DS47: - | DT47: - | DU47: - | DV47: - | DW47: - | DX47: - | DY47: - | DZ47: - | EA47: - | EB47: - | EC47: - | ED47: - | EE47: - | EF47: - | EG47: - | EH47: - | EI47: - | EJ47: - | EK47: - | EL47: - | EM47: - | EN47: - | EO47: - | EP47: - | EQ47: - | ER47: - | ES47: - | ET47: - | EU47: -
A48: 長野県 | B48: 長野市 | C48: 長野市 | D48: 中村 | E48: 6 | F48: - | G48: - | H48: - | I48: - | J48: - | K48: - | L48: 6 | M48: - | N48: - | O48: - | P48: - | Q48: - | R48: - | S48: - | T48: - | U48: - | V48: - | W48: - | X48: - | Y48: - | Z48: - | AA48: - | AB48: - | AC48: … | AD48: … | AE48: … | AF48: - | AG48: - | AH48: - | AI48: - | AJ48: - | AK48: - | AL48: - | AM48: - | AN48: - | AO48: - | AP48: - | AQ48: - | AR48: - | AS48: - | AT48: - | AU48: - | AV48: … | AW48: … | AX48: … | AY48: - | AZ48: - | BA48: - | BB48: - | BC48: - | BD48: - | BE48: - | BF48: - | BG48: - | BH48: - | BI48: - | BJ48: - | BK48: - | BL48: - | BM48: - | BN48: - | BO48: … | BP48: … | BQ48: … | BR48: - | BS48: - | BT48: - | BU48: - | BV48: - | BW48: - | BX48: - | BY48: - | BZ48: - | CA48: - | CB48: - | CC48: - | CD48: - | CE48: - | CF48: - | CG48: - | CH48: - | CI48: - | CJ48: - | CK48: - | CL48: - | CM48: - | CN48: - | CO48: - | CP48: - | CQ48: - | CR48: - | CS48: - | CT48: - | CU48: - | DC48: - | DD48: - | DE48: - | DF48: - | DG48: - | DH48: - | DI48: - | DJ48: - | DK48: - | DL48: - | DM48: - | DN48: - | DO48: - | DP48: - | DQ48: - | DR48: - | DS48: - | DT48: - | DU48: - | DV48: - | DW48: - | DX48: - | DY48: - | DZ48: - | EA48: - | EB48: - | EC48: - | ED48: - | EE48: - | EF48: - | EG48: - | EH48: - | EI48: - | EJ48: - | EK48: - | EL48: - | EM48: - | EN48: - | EO48: - | EP48: - | EQ48: - | ER48: - | ES48: - | ET48: - | EU48: -
A49: 長野県 | B49: 長野市 | C49: 長野市 | D49: 五分一 | E49: 9 | F49: - | G49: - | H49: - | I49: - | J49: - | K49: - | L49: 9 | M49: - | N49: - | O49: - | P49: - | Q49: - | R49: - | S49: - | T49: - | U49: - | V49: - | W49: - | X49: - | Y49: - | Z49: - | AA49: - | AB49: - | AC49: … | AD49: … | AE49: … | AF49: - | AG49: - | AH49: - | AI49: - | AJ49: - | AK49: - | AL49: - | AM49: - | AN49: - | AO49: - | AP49: - | AQ49: - | AR49: - | AS49: - | AT49: - | AU49: - | AV49: … | AW49: … | AX49: … | AY49: - | AZ49: - | BA49: - | BB49: - | BC49: - | BD49: - | BE49: - | BF49: - | BG49: - | BH49: - | BI49: - | BJ49: - | BK49: - | BL49: - | BM49: - | BN49: - | BO49: … | BP49: … | BQ49: … | BR49: - | BS49: - | BT49: - | BU49: - | BV49: - | BW49: - | BX49: - | BY49: - | BZ49: - | CA49: - | CB49: - | CC49: - | CD49: - | CE49: - | CF49: - | CG49: - | CH49: - | CI49: - | CJ49: - | CK49: - | CL49: - | CM49: - | CN49: - | CO49: - | CP49: - | CQ49: - | CR49: - | CS49: - | CT49: - | CU49: - | DC49: - | DD49: - | DE49: - | DF49: - | DG49: - | DH49: - | DI49: - | DJ49: - | DK49: - | DL49: - | DM49: - | DN49: - | DO49: - | DP49: - | DQ49: - | DR49: - | DS49: - | DT49: - | DU49: - | DV49: - | DW49: - | DX49: - | DY49: - | DZ49: - | EA49: - | EB49: - | EC49: - | ED49: - | EE49: - | EF49: - | EG49: - | EH49: - | EI49: - | EJ49: - | EK49: - | EL49: - | EM49: - | EN49: - | EO49: - | EP49: - | EQ49: - | ER49: - | ES49: - | ET49: - | EU49: -
A50: 長野県 | B50: 長野市 | C50: 長野市 | D50: 南高田 | E50: 41 | F50: 12 | G50: 1 | H50: 1 | I50: 5 | J50: 2 | K50: 6 | L50: 29 | M50: 37 | N50: - | O50: - | P50: 1 | Q50: 3 | R50: 5 | S50: 2 | T50: - | U50: - | V50: 3 | W50: 7 | X50: 6 | Y50: 6 | Z50: - | AA50: 2 | AB50: 2 | AC50: 58.1 | AD50: 58.2 | AE50: 57.9 | AF50: 23 | AG50: - | AH50: - | AI50: 1 | AJ50: - | AK50: 1 | AL50: - | AM50: - | AN50: - | AO50: 2 | AP50: 6 | AQ50: 4 | AR50: 5 | AS50: - | AT50: 2 | AU50: 2 | AV50: 65.6 | AW50: 70.2 | AX50: 62.6 | AY50: 17 | AZ50: - | BA50: - | BB50: - | BC50: - | BD50: 1 | BE50: - | BF50: - | BG50: - | BH50: 1 | BI50: 5 | BJ50: 3 | BK50: 4 | BL50: - | BM50: 2 | BN50: 1 | BO50: 66.9 | BP50: 71.8 | BQ50: 62.6 | BR50: 12 | BS50: - | BT50: - | BU50: - | BV50: - | BW50: - | BX50: - | BY50: - | BZ50: - | CA50: 1 | CB50: 2 | CC50: 3 | CD50: 4 | CE50: - | CF50: 1 | CG50: 1 | CH50: 9 | CI50: - | CJ50: - | CK50: - | CL50: - | CM50: - | CN50: - | CO50: - | CP50: 2 | CQ50: 3 | CR50: 2 | CS50: - | CT50: 1 | CU50: 1 | DC50: 38 | DD50: 30 | DE50: 17 | DF50: 13 | DG50: - | DH50: 5 | DI50: - | DJ50: 3 | DK50: 11 | DL50: 9 | DM50: - | DN50: - | DO50: - | DP50: 1 | DQ50: - | DR50: 1 | DS50: - | DT50: - | DU50: - | DV50: - | DW50: - | DX50: - | DY50: - | DZ50: - | EA50: 12 | EB50: 648 | EC50: 523 | ED50: 72 | EE50: 53 | EF50: 19 | EG50: 17 | EH50: 8 | EI50: 9 | EJ50: - | EK50: - | EL50: - | EM50: 2 | EN50: 19 | EO50: 13 | EP50: 9 | EQ50: 4 | ER50: - | ES50: 5 | ET50: - | EU50: 1
A51: 長野県 | B51: 長野市 | C51: 長野市 | D51: 南長池 | E51: 42 | F51: 12 | G51: 2 | H51: 2 | I51: 1 | J51: - | K51: 9 | L51: 30 | M51: 38 | N51: 2 | O51: - | P51: - | Q51: 3 | R51: 4 | S51: 3 | T51: 3 | U51: - | V51: 2 | W51: 3 | X51: 9 | Y51: 5 | Z51: 2 | AA51: 1 | AB51: 1 | AC51: 55.7 | AD51: 53.5 | AE51: 57.8 | AF51: 22 | AG51: - | AH51: - | AI51: - | AJ51: - | AK51: 1 | AL51: - | AM51: - | AN51: - | AO51: 1 | AP51: 3 | AQ51: 8 | AR51: 5 | AS51: 2 | AT51: 1 | AU51: 1 | AV51: 67.8 | AW51: 69.0 | AX51: 66.9 | AY51: 19 | AZ51: - | BA51: - | BB51: - | BC51: - | BD51: - | BE51: - | BF51: - | BG51: - | BH51: 1 | BI51: 2 | BJ51: 7 | BK51: 5 | BL51: 2 | BM51: 1 | BN51: 1 | BO51: 69.6 | BP51: 69.0 | BQ51: 70.2 | BR51: 12 | BS51: - | BT51: - | BU51: - | BV51: - | BW51: - | BX51: - | BY51: - | BZ51: - | CA51: 1 | CB51: - | CC51: 4 | CD51: 4 | CE51: 1 | CF51: 1 | CG51: 1 | CH51: 9 | CI51: - | CJ51: - | CK51: - | CL51: - | CM51: - | CN51: - | CO51: 1 | CP51: - | CQ51: 2 | CR51: 3 | CS51: 1 | CT51: 1 | CU51: 1 | DC51: 45 | DD51: 34 | DE51: 19 | DF51: 15 | DG51: - | DH51: 5 | DI51: 4 | DJ51: 2 | DK51: 12 | DL51: 10 | DM51: - | DN51: - | DO51: - | DP51: 1 | DQ51: - | DR51: 1 | DS51: - | DT51: - | DU51: - | DV51: - | DW51: - | DX51: - | DY51: - | DZ51: - | EA51: 12 | EB51: 1,518 | EC51: 1,405 | ED51: 86 | EE51: 27 | EF51: 21 | EG51: 17 | EH51: 9 | EI51: 8 | EJ51: - | EK51: - | EL51: 3 | EM51: 1 | EN51: 24 | EO51: 17 | EP51: 10 | EQ51: 7 | ER51: - | ES51: 5 | ET51: 1 | EU51: 1
A52: 長野県 | B52: 長野市 | C52: 長野市 | D52: 若宮 | E52: 11 | F52: - | G52: - | H52: - | I52: - | J52: - | K52: - | L52: 11 | M52: - | N52: - | O52: - | P52: - | Q52: - | R52: - | S52: - | T52: - | U52: - | V52: - | W52: - | X52: - | Y52: - | Z52: - | AA52: - | AB52: - | AC52: … | AD52: … | AE52: … | AF52: - | AG52: - | AH52: - | AI52: - | AJ52: - | AK52: - | AL52: - | AM52: - | AN52: - | AO52: - | AP52: - | AQ52: - | AR52: - | AS52: - | AT52: - | AU52: - | AV52: … | AW52: … | AX52: … | AY52: - | AZ52: - | BA52: - | BB52: - | BC52: - | BD52: - | BE52: - | BF52: - | BG52: - | BH52: - | BI52: - | BJ52: - | BK52: - | BL52: - | BM52: - | BN52: - | BO52: … | BP52: … | BQ52: … | BR52: - | BS52: - | BT52: - | BU52: - | BV52: - | BW52: - | BX52: - | BY52: - | BZ52: - | CA52: - | CB52: - | CC52: - | CD52: - | CE52: - | CF52: - | CG52: - | CH52: - | CI52: - | CJ52: - | CK52: - | CL52: - | CM52: - | CN52: - | CO52: - | CP52: - | CQ52: - | CR52: - | CS52: - | CT52: - | CU52: - | DC52: - | DD52: - | DE52: - | DF52: - | DG52: - | DH52: - | DI52: - | DJ52: - | DK52: - | DL52: - | DM52: - | DN52: - | DO52: - | DP52: - | DQ52: - | DR52: - | DS52: - | DT52: - | DU52: - | DV52: - | DW52: - | DX52: - | DY52: - | DZ52: - | EA52: - | EB52: - | EC52: - | ED52: - | EE52: - | EF52: - | EG52: - | EH52: - | EI52: - | EJ52: - | EK52: - | EL52: - | EM52: - | EN52: - | EO52: - | EP52: - | EQ52: - | ER52: - | ES52: - | ET52: - | EU52: -
A53: 長野県 | B53: 長野市 | C53: 長野市 | D53: 西尾張部 | E53: 12 | F53: - | G53: - | H53: - | I53: - | J53: - | K53: - | L53: 12 | M53: - | N53: - | O53: - | P53: - | Q53: - | R53: - | S53: - | T53: - | U53: - | V53: - | W53: - | X53: - | Y53: - | Z53: - | AA53: - | AB53: - | AC53: … | AD53: … | AE53: … | AF53: - | AG53: - | AH53: - | AI53: - | AJ53: - | AK53: - | AL53: - | AM53: - | AN53: - | AO53: - | AP53: - | AQ53: - | AR53: - | AS53: - | AT53: - | AU53: - | AV53: … | AW53: … | AX53: … | AY53: - | AZ53: - | BA53: - | BB53: - | BC53: - | BD53: - | BE53: - | BF53: - | BG53: - | BH53: - | BI53: - | BJ53: - | BK53: - | BL53: - | BM53: - | BN53: - | BO53: … | BP53: … | BQ53: … | BR53: - | BS53: - | BT53: - | BU53: - | BV53: - | BW53: - | BX53: - | BY53: - | BZ53: - | CA53: - | CB53: - | CC53: - | CD53: - | CE53: - | CF53: - | CG53: - | CH53: - | CI53: - | CJ53: - | CK53: - | CL53: - | CM53: - | CN53: - | CO53: - | CP53: - | CQ53: - | CR53: - | CS53: - | CT53: - | CU53: - | DC53: - | DD53: - | DE53: - | DF53: - | DG53: - | DH53: - | DI53: - | DJ53: - | DK53: - | DL53: - | DM53: - | DN53: - | DO53: - | DP53: - | DQ53: - | DR53: - | DS53: - | DT53: - | DU53: - | DV53: - | DW53: - | DX53: - | DY53: - | DZ53: - | EA53: - | EB53: - | EC53: - | ED53: - | EE53: - | EF53: - | EG53: - | EH53: - | EI53: - | EJ53: - | EK53: - | EL53: - | EM53: - | EN53: - | EO53: - | EP53: - | EQ53: - | ER53: - | ES53: - | ET53: - | EU53: -
A54: 長野県 | B54: 長野市 | C54: 長野市 | D54: 東和田 | E54: 13 | F54: 4 | G54: 2 | H54: 1 | I54: 1 | J54: - | K54: 1 | L54: 9 | M54: 13 | N54: 1 | O54: - | P54: 1 | Q54: 1 | R54: 1 | S54: - | T54: 1 | U54: 1 | V54: - | W54: 2 | X54: 1 | Y54: 1 | Z54: 2 | AA54: - | AB54: 1 | AC54: 55.6 | AD54: 59.1 | AE54: 50.0 | AF54: 9 | AG54: 1 | AH54: - | AI54: - | AJ54: 1 | AK54: 1 | AL54: - | AM54: 1 | AN54: - | AO54: - | AP54: 1 | AQ54: 1 | AR54: 1 | AS54: 2 | AT54: - | AU54: - | AV54: 54.7 | AW54: 53.7 | AX54: 56.7 | AY54: 7 | AZ54: - | BA54: - | BB54: - | BC54: 1 | BD54: - | BE54: - | BF54: 1 | BG54: - | BH54: - | BI54: 1 | BJ54: 1 | BK54: 1 | BL54: 2 | BM54: - | BN54: - | BO54: 62.1 | BP54: 60.6 | BQ54: 66.0 | BR54: 4 | BS54: - | BT54: - | BU54: - | BV54: - | BW54: - | BX54: - | BY54: - | BZ54: - | CA54: - | CB54: 1 | CC54: 1 | CD54: - | CE54: 2 | CF54: - | CG54: - | CH54: 4 | CI54: - | CJ54: - | CK54: - | CL54: - | CM54: - | CN54: - | CO54: - | CP54: 1 | CQ54: 1 | CR54: - | CS54: 2 | CT54: - | CU54: - | DC54: 18 | DD54: 12 | DE54: 7 | DF54: 5 | DG54: - | DH54: 1 | DI54: 1 | DJ54: 4 | DK54: 4 | DL54: 2 | DM54: - | DN54: 1 | DO54: - | DP54: 1 | DQ54: - | DR54: - | DS54: - | DT54: - | DU54: - | DV54: - | DW54: - | DX54: - | DY54: - | DZ54: - | EA54: 4 | EB54: 262 | EC54: 140 | ED54: 98 | EE54: 24 | EF54: 9 | EG54: 8 | EH54: 5 | EI54: 3 | EJ54: - | EK54: - | EL54: 1 | EM54: - | EN54: 9 | EO54: 4 | EP54: 2 | EQ54: 2 | ER54: - | ES54: 1 | ET54: - | EU54: 4
A55: 長野県 | B55: 長野市 | C55: 長野市 | D55: 西和田 | E55: 10 | F55: 3 | G55: - | H55: - | I55: 1 | J55: - | K55: 2 | L55: 7 | M55: 10 | N55: - | O55: - | P55: - | Q55: - | R55: - | S55: 1 | T55: 1 | U55: - | V55: 1 | W55: 1 | X55: 2 | Y55: 1 | Z55: 1 | AA55: 2 | AB55: - | AC55: 65.2 | AD55: 67.6 | AE55: 62.8 | AF55: 5 | AG55: - | AH55: - | AI55: - | AJ55: - | AK55: - | AL55: - | AM55: - | AN55: - | AO55: - | AP55: 1 | AQ55: 2 | AR55: 1 | AS55: 1 | AT55: - | AU55: - | AV55: 68.6 | AW55: 69.0 | AX55: 68.0 | AY55: 5 | AZ55: - | BA55: - | BB55: - | BC55: - | BD55: - | BE55: - | BF55: - | BG55: - | BH55: - | BI55: 1 | BJ55: 2 | BK55: 1 | BL55: 1 | BM55: - | BN55: - | BO55: 68.6 | BP55: 69.0 | BQ55: 68.0 | BR55: 3 | BS55: - | BT55: - | BU55: - | BV55: - | BW55: - | BX55: - | BY55: - | BZ55: - | CA55: - | CB55: - | CC55: 1 | CD55: - | CE55: 1 | CF55: 1 | CG55: - | CH55: 3 | CI55: - | CJ55: - | CK55: - | CL55: - | CM55: - | CN55: - | CO55: - | CP55: - | CQ55: 1 | CR55: - | CS55: 1 | CT55: 1 | CU55: - | DC55: 13 | DD55: 9 | DE55: 5 | DF55: 3 | DG55: 1 | DH55: 3 | DI55: - | DJ55: 1 | DK55: 3 | DL55: 1 | DM55: - | DN55: - | DO55: - | DP55: 1 | DQ55: - | DR55: 1 | DS55: - | DT55: - | DU55: - | DV55: - | DW55: - | DX55: - | DY55: - | DZ55: - | EA55: 3 | EB55: 151 | EC55: 89 | ED55: 34 | EE55: 28 | EF55: 5 | EG55: 5 | EH55: 3 | EI55: 1 | EJ55: 1 | EK55: - | EL55: - | EM55: - | EN55: 8 | EO55: 4 | EP55: 2 | EQ55: 2 | ER55: - | ES55: 3 | ET55: - | EU55: 1
A56: 長野県 | B56: 長野市 | C56: 長野市 | D56: 平林 | E56: 3 | F56: - | G56: - | H56: - | I56: - | J56: - | K56: - | L56: 3 | M56: - | N56: - | O56: - | P56: - | Q56: - | R56: - | S56: - | T56: - | U56: - | V56: - | W56: - | X56: - | Y56: - | Z56: - | AA56: - | AB56: - | AC56: … | AD56: … | AE56: … | AF56: - | AG56: - | AH56: - | AI56: - | AJ56: - | AK56: - | AL56: - | AM56: - | AN56: - | AO56: - | AP56: - | AQ56: - | AR56: - | AS56: - | AT56: - | AU56: - | AV56: … | AW56: … | AX56: … | AY56: - | AZ56: - | BA56: - | BB56: - | BC56: - | BD56: - | BE56: - | BF56: - | BG56: - | BH56: - | BI56: - | BJ56: - | BK56: - | BL56: - | BM56: - | BN56: - | BO56: … | BP56: … | BQ56: … | BR56: - | BS56: - | BT56: - | BU56: - | BV56: - | BW56: - | BX56: - | BY56: - | BZ56: - | CA56: - | CB56: - | CC56: - | CD56: - | CE56: - | CF56: - | CG56: - | CH56: - | CI56: - | CJ56: - | CK56: - | CL56: - | CM56: - | CN56: - | CO56: - | CP56: - | CQ56: - | CR56: - | CS56: - | CT56: - | CU56: - | DC56: - | DD56: - | DE56: - | DF56: - | DG56: - | DH56: - | DI56: - | DJ56: - | DK56: - | DL56: - | DM56: - | DN56: - | DO56: - | DP56: - | DQ56: - | DR56: - | DS56: - | DT56: - | DU56: - | DV56: - | DW56: - | DX56: - | DY56: - | DZ56: - | EA56: - | EB56: - | EC56: - | ED56: - | EE56: - | EF56: - | EG56: - | EH56: - | EI56: - | EJ56: - | EK56: - | EL56: - | EM56: - | EN56: - | EO56: - | EP56: - | EQ56: - | ER56: - | ES56: - | ET56: - | EU56: -
A57: 長野県 | B57: 長野市 | C57: 長野市 | D57: 北条 | E57: 8 | F57: 1 | G57: x | H57: x | I57: x | J57: x | K57: x | L57: 7 | M57: x | N57: x | O57: x | P57: x | Q57: x | R57: x | S57: x | T57: x | U57: x | V57: x | W57: x | X57: x | Y57: x | Z57: x | AA57: x | AB57: x | AC57: 41.8 | AD57: 44.0 | AE57: 39.5 | AF57: x | AG57: x | AH57: x | AI57: x | AJ57: x | AK57: x | AL57: x | AM57: x | AN57: x | AO57: x | AP57: x | AQ57: x | AR57: x | AS57: x | AT57: x | AU57: x | AV57: 54.0 | AW57: … | AX57: 54.0 | AY57: x | AZ57: x | BA57: x | BB57: x | BC57: x | BD57: x | BE57: x | BF57: x | BG57: x | BH57: x | BI57: x | BJ57: x | BK57: x | BL57: x | BM57: x | BN57: x | BO57: 54.0 | BP57: … | BQ57: 54.0 | BR57: 1 | BS57: - | BT57: - | BU57: - | BV57: - | BW57: - | BX57: - | BY57: - | BZ57: - | CA57: 1 | CB57: - | CC57: - | CD57: - | CE57: - | CF57: - | CG57: - | CH57: 1 | CI57: - | CJ57: - | CK57: - | CL57: - | CM57: - | CN57: - | CO57: 1 | CP57: - | CQ57: - | CR57: - | CS57: - | CT57: - | CU57: - | DC57: 5 | DD57: 4 | DE57: 1 | DF57: 3 | DG57: - | DH57: - | DI57: - | DJ57: 1 | DK57: - | DL57: - | DM57: - | DN57: - | DO57: - | DP57: - | DQ57: - | DR57: - | DS57: - | DT57: - | DU57: - | DV57: - | DW57: - | DX57: - | DY57: - | DZ57: - | EA57: 1 | EB57: 33 | EC57: 33 | ED57: - | EE57: - | EF57: 2 | EG57: 2 | EH57: - | EI57: 2 | EJ57: - | EK57: - | EL57: - | EM57: - | EN57: 3 | EO57: 2 | EP57: 1 | EQ57: 1 | ER57: - | ES57: - | ET57: - | EU57: 1
A58: 長野県 | B58: 長野市 | C58: 長野市 | D58: 荒屋 | E58: 1 | F58: - | G58: - | H58: - | I58: - | J58: - | K58: - | L58: 1 | M58: - | N58: - | O58: - | P58: - | Q58: - | R58: - | S58: - | T58: - | U58: - | V58: - | W58: - | X58: - | Y58: - | Z58: - | AA58: - | AB58: - | AC58: … | AD58: … | AE58: … | AF58: - | AG58: - | AH58: - | AI58: - | AJ58: - | AK58: - | AL58: - | AM58: - | AN58: - | AO58: - | AP58: - | AQ58: - | AR58: - | AS58: - | AT58: - | AU58: - | AV58: … | AW58: … | AX58: … | AY58: - | AZ58: - | BA58: - | BB58: - | BC58: - | BD58: - | BE58: - | BF58: - | BG58: - | BH58: - | BI58: - | BJ58: - | BK58: - | BL58: - | BM58: - | BN58: - | BO58: … | BP58: … | BQ58: … | BR58: - | BS58: - | BT58: - | BU58: - | BV58: - | BW58: - | BX58: - | BY58: - | BZ58: - | CA58: - | CB58: - | CC58: - | CD58: - | CE58: - | CF58: - | CG58: - | CH58: - | CI58: - | CJ58: - | CK58: - | CL58: - | CM58: - | CN58: - | CO58: - | CP58: - | CQ58: - | CR58: - | CS58: - | CT58: - | CU58: - | DC58: - | DD58: - | DE58: - | DF58: - | DG58: - | DH58: - | DI58: - | DJ58: - | DK58: - | DL58: - | DM58: - | DN58: - | DO58: - | DP58: - | DQ58: - | DR58: - | DS58: - | DT58: - | DU58: - | DV58: - | DW58: - | DX58: - | DY58: - | DZ58: - | EA58: - | EB58: - | EC58: - | ED58: - | EE58: - | EF58: - | EG58: - | EH58: - | EI58: - | EJ58: - | EK58: - | EL58: - | EM58: - | EN58: - | EO58: - | EP58: - | EQ58: - | ER58: - | ES58: - | ET58: - | EU58: -
A59: 長野県 | B59: 長野市 | C59: 長野市 | D59: 桐原 | E59: 2 | F59: - | G59: - | H59: - | I59: - | J59: - | K59: - | L59: 2 | M59: - | N59: - | O59: - | P59: - | Q59: - | R59: - | S59: - | T59: - | U59: - | V59: - | W59: - | X59: - | Y59: - | Z59: - | AA59: - | AB59: - | AC59: … | AD59: … | AE59: … | AF59: - | AG59: - | AH59: - | AI59: - | AJ59: - | AK59: - | AL59: - | AM59: - | AN59: - | AO59: - | AP59: - | AQ59: - | AR59: - | AS59: - | AT59: - | AU59: - | AV59: … | AW59: … | AX59: … | AY59: - | AZ59: - | BA59: - | BB59: - | BC59: - | BD59: - | BE59: - | BF59: - | BG59: - | BH59: - | BI59: - | BJ59: - | BK59: - | BL59: - | BM59: - | BN59: - | BO59: … | BP59: … | BQ59: … | BR59: - | BS59: - | BT59: - | BU59: - | BV59: - | BW59: - | BX59: - | BY59: - | BZ59: - | CA59: - | CB59: - | CC59: - | CD59: - | CE59: - | CF59: - | CG59: - | CH59: - | CI59: - | CJ59: - | CK59: - | CL59: - | CM59: - | CN59: - | CO59: - | CP59: - | CQ59: - | CR59: - | CS59: - | CT59: - | CU59: - | DC59: - | DD59: - | DE59: - | DF59: - | DG59: - | DH59: - | DI59: - | DJ59: - | DK59: - | DL59: - | DM59: - | DN59: - | DO59: - | DP59: - | DQ59: - | DR59: - | DS59: - | DT59: - | DU59: - | DV59: - | DW59: - | DX59: - | DY59: - | DZ59: - | EA59: - | EB59: - | EC59: - | ED59: - | EE59: - | EF59: - | EG59: - | EH59: - | EI59: - | EJ59: - | EK59: - | EL59: - | EM59: - | EN59: - | EO59: - | EP59: - | EQ59: - | ER59: - | ES59: - | ET59: - | EU59: -
A60: 長野県 | B60: 長野市 | C60: 長野市 | D60: 中越 | E60: 17 | F60: - | G60: - | H60: - | I60: - | J60: - | K60: - | L60: 17 | M60: - | N60: - | O60: - | P60: - | Q60: - | R60: - | S60: - | T60: - | U60: - | V60: - | W60: - | X60: - | Y60: - | Z60: - | AA60: - | AB60: - | AC60: … | AD60: … | AE60: … | AF60: - | AG60: - | AH60: - | AI60: - | AJ60: - | AK60: - | AL60: - | AM60: - | AN60: - | AO60: - | AP60: - | AQ60: - | AR60: - | AS60: - | AT60: - | AU60: - | AV60: … | AW60: … | AX60: … | AY60: - | AZ60: - | BA60: - | BB60: - | BC60: - | BD60: - | BE60: - | BF60: - | BG60: - | BH60: - | BI60: - | BJ60: - | BK60: - | BL60: - | BM60: - | BN60: - | BO60: … | BP60: … | BQ60: … | BR60: - | BS60: - | BT60: - | BU60: - | BV60: - | BW60: - | BX60: - | BY60: - | BZ60: - | CA60: - | CB60: - | CC60: - | CD60: - | CE60: - | CF60: - | CG60: - | CH60: - | CI60: - | CJ60: - | CK60: - | CL60: - | CM60: - | CN60: - | CO60: - | CP60: - | CQ60: - | CR60: - | CS60: - | CT60: - | CU60: - | DC60: - | DD60: - | DE60: - | DF60: - | DG60: - | DH60: - | DI60: - | DJ60: - | DK60: - | DL60: - | DM60: - | DN60: - | DO60: - | DP60: - | DQ60: - | DR60: - | DS60: - | DT60: - | DU60: - | DV60: - | DW60: - | DX60: - | DY60: - | DZ60: - | EA60: - | EB60: - | EC60: - | ED60: - | EE60: - | EF60: - | EG60: - | EH60: - | EI60: - | EJ60: - | EK60: - | EL60: - | EM60: - | EN60: - | EO60: - | EP60: - | EQ60: - | ER60: - | ES60: - | ET60: - | EU60: -
A61: 長野県 | B61: 長野市 | C61: 長野市 | D61: 鍋屋 | E61: 7 | F61: 1 | G61: x | H61: x | I61: x | J61: x | K61: x | L61: 6 | M61: x | N61: x | O61: x | P61: x | Q61: x | R61: x | S61: x | T61: x | U61: x | V61: x | W61: x | X61: x | Y61: x | Z61: x | AA61: x | AB61: x | AC61: 76.0 | AD61: 77.0 | AE61: 75.0 | AF61: x | AG61: x | AH61: x | AI61: x | AJ61: x | AK61: x | AL61: x | AM61: x | AN61: x | AO61: x | AP61: x | AQ61: x | AR61: x | AS61: x | AT61: x | AU61: x | AV61: 76.0 | AW61: 77.0 | AX61: 75.0 | AY61: x | AZ61: x | BA61: x | BB61: x | BC61: x | BD61: x | BE61: x | BF61: x | BG61: x | BH61: x | BI61: x | BJ61: x | BK61: x | BL61: x | BM61: x | BN61: x | BO61: 76.0 | BP61: 77.0 | BQ61: 75.0 | BR61: 1 | BS61: - | BT61: - | BU61: - | BV61: - | BW61: - | BX61: - | BY61: - | BZ61: - | CA61: - | CB61: - | CC61: - | CD61: - | CE61: 1 | CF61: - | CG61: - | CH61: 1 | CI61: - | CJ61: - | CK61: - | CL61: - | CM61: - | CN61: - | CO61: - | CP61: - | CQ61: - | CR61: - | CS61: 1 | CT61: - | CU61: - | DC61: 2 | DD61: 2 | DE61: 2 | DF61: - | DG61: - | DH61: - | DI61: - | DJ61: - | DK61: - | DL61: - | DM61: - | DN61: - | DO61: - | DP61: - | DQ61: - | DR61: - | DS61: - | DT61: - | DU61: - | DV61: - | DW61: - | DX61: - | DY61: - | DZ61: - | EA61: 1 | EB61: 37 | EC61: 16 | ED61: 18 | EE61: 3 | EF61: 1 | EG61: 1 | EH61: 1 | EI61: - | EJ61: - | EK61: - | EL61: - | EM61: - | EN61: 1 | EO61: 1 | EP61: 1 | EQ61: - | ER61: - | ES61: - | ET61: - | EU61: -
A62: 長野県 | B62: 長野市 | C62: 長野市 | D62: 太田 | E62: 3 | F62: - | G62: - | H62: - | I62: - | J62: - | K62: - | L62: 3 | M62: - | N62: - | O62: - | P62: - | Q62: - | R62: - | S62: - | T62: - | U62: - | V62: - | W62: - | X62: - | Y62: - | Z62: - | AA62: - | AB62: - | AC62: … | AD62: … | AE62: … | AF62: - | AG62: - | AH62: - | AI62: - | AJ62: - | AK62: - | AL62: - | AM62: - | AN62: - | AO62: - | AP62: - | AQ62: - | AR62: - | AS62: - | AT62: - | AU62: - | AV62: … | AW62: … | AX62: … | AY62: - | AZ62: - | BA62: - | BB62: - | BC62: - | BD62: - | BE62: - | BF62: - | BG62: - | BH62: - | BI62: - | BJ62: - | BK62: - | BL62: - | BM62: - | BN62: - | BO62: … | BP62: … | BQ62: … | BR62: - | BS62: - | BT62: - | BU62: - | BV62: - | BW62: - | BX62: - | BY62: - | BZ62: - | CA62: - | CB62: - | CC62: - | CD62: - | CE62: - | CF62: - | CG62: - | CH62: - | CI62: - | CJ62: - | CK62: - | CL62: - | CM62: - | CN62: - | CO62: - | CP62: - | CQ62: - | CR62: - | CS62: - | CT62: - | CU62: - | DC62: - | DD62: - | DE62: - | DF62: - | DG62: - | DH62: - | DI62: - | DJ62: - | DK62: - | DL62: - | DM62: - | DN62: - | DO62: - | DP62: - | DQ62: - | DR62: - | DS62: - | DT62: - | DU62: - | DV62: - | DW62: - | DX62: - | DY62: - | DZ62: - | EA62: - | EB62: - | EC62: - | ED62: - | EE62: - | EF62: - | EG62: - | EH62: - | EI62: - | EJ62: - | EK62: - | EL62: - | EM62: - | EN62: - | EO62: - | EP62: - | EQ62: - | ER62: - | ES62: - | ET62: - | EU62: -
A63: 長野県 | B63: 長野市 | C63: 長野市 | D63: 東部 | E63: 4 | F63: 1 | G63: x | H63: x | I63: x | J63: x | K63: x | L63: 3 | M63: x | N63: x | O63: x | P63: x | Q63: x | R63: x | S63: x | T63: x | U63: x | V63: x | W63: x | X63: x | Y63: x | Z63: x | AA63: x | AB63: x | AC63: 54.4 | AD63: 46.5 | AE63: 59.7 | AF63: x | AG63: x | AH63: x | AI63: x | AJ63: x | AK63: x | AL63: x | AM63: x | AN63: x | AO63: x | AP63: x | AQ63: x | AR63: x | AS63: x | AT63: x | AU63: x | AV63: 73.5 | AW63: … | AX63: 73.5 | AY63: x | AZ63: x | BA63: x | BB63: x | BC63: x | BD63: x | BE63: x | BF63: x | BG63: x | BH63: x | BI63: x | BJ63: x | BK63: x | BL63: x | BM63: x | BN63: x | BO63: 60.0 | BP63: … | BQ63: 60.0 | BR63: 1 | BS63: - | BT63: - | BU63: - | BV63: - | BW63: - | BX63: - | BY63: - | BZ63: - | CA63: - | CB63: 1 | CC63: - | CD63: - | CE63: - | CF63: - | CG63: - | CH63: 1 | CI63: - | CJ63: - | CK63: - | CL63: - | CM63: - | CN63: - | CO63: - | CP63: 1 | CQ63: - | CR63: - | CS63: - | CT63: - | CU63: - | DC63: 5 | DD63: 4 | DE63: 1 | DF63: 3 | DG63: - | DH63: 1 | DI63: - | DJ63: - | DK63: 1 | DL63: - | DM63: - | DN63: - | DO63: - | DP63: 1 | DQ63: - | DR63: - | DS63: - | DT63: - | DU63: - | DV63: - | DW63: - | DX63: - | DY63: - | DZ63: - | EA63: 1 | EB63: 30 | EC63: 10 | ED63: 20 | EE63: - | EF63: 2 | EG63: 2 | EH63: - | EI63: 2 | EJ63: - | EK63: - | EL63: - | EM63: - | EN63: 3 | EO63: 2 | EP63: 1 | EQ63: 1 | ER63: - | ES63: 1 | ET63: - | EU63: -
A64: 長野県 | B64: 長野市 | C64: 長野市 | D64: 西部 | E64: 1 | F64: - | G64: - | H64: - | I64: - | J64: - | K64: - | L64: 1 | M64: - | N64: - | O64: - | P64: - | Q64: - | R64: - | S64: - | T64: - | U64: - | V64: - | W64: - | X64: - | Y64: - | Z64: - | AA64: - | AB64: - | AC64: … | AD64: … | AE64: … | AF64: - | AG64: - | AH64: - | AI64: - | AJ64: - | AK64: - | AL64: - | AM64: - | AN64: - | AO64: - | AP64: - | AQ64: - | AR64: - | AS64: - | AT64: - | AU64: - | AV64: … | AW64: … | AX64: … | AY64: - | AZ64: - | BA64: - | BB64: - | BC64: - | BD64: - | BE64: - | BF64: - | BG64: - | BH64: - | BI64: - | BJ64: - | BK64: - | BL64: - | BM64: - | BN64: - | BO64: … | BP64: … | BQ64: … | BR64: - | BS64: - | BT64: - | BU64: - | BV64: - | BW64: - | BX64: - | BY64: - | BZ64: - | CA64: - | CB64: - | CC64: - | CD64: - | CE64: - | CF64: - | CG64: - | CH64: - | CI64: - | CJ64: - | CK64: - | CL64: - | CM64: - | CN64: - | CO64: - | CP64: - | CQ64: - | CR64: - | CS64: - | CT64: - | CU64: - | DC64: - | DD64: - | DE64: - | DF64: - | DG64: - | DH64: - | DI64: - | DJ64: - | DK64: - | DL64: - | DM64: - | DN64: - | DO64: - | DP64: - | DQ64: - | DR64: - | DS64: - | DT64: - | DU64: - | DV64: - | DW64: - | DX64: - | DY64: - | DZ64: - | EA64: - | EB64: - | EC64: - | ED64: - | EE64: - | EF64: - | EG64: - | EH64: - | EI64: - | EJ64: - | EK64: - | EL64: - | EM64: - | EN64: - | EO64: - | EP64: - | EQ64: - | ER64: - | ES64: - | ET64: - | EU64: -
A65: 長野県 | B65: 長野市 | C65: 長野市 | D65: 中部 | E65: 3 | F65: - | G65: - | H65: - | I65: - | J65: - | K65: - | L65: 3 | M65: - | N65: - | O65: - | P65: - | Q65: - | R65: - | S65: - | T65: - | U65: - | V65: - | W65: - | X65: - | Y65: - | Z65: - | AA65: - | AB65: - | AC65: … | AD65: … | AE65: … | AF65: - | AG65: - | AH65: - | AI65: - | AJ65: - | AK65: - | AL65: - | AM65: - | AN65: - | AO65: - | AP65: - | AQ65: - | AR65: - | AS65: - | AT65: - | AU65: - | AV65: … | AW65: … | AX65: … | AY65: - | AZ65: - | BA65: - | BB65: - | BC65: - | BD65: - | BE65: - | BF65: - | BG65: - | BH65: - | BI65: - | BJ65: - | BK65: - | BL65: - | BM65: - | BN65: - | BO65: … | BP65: … | BQ65: … | BR65: - | BS65: - | BT65: - | BU65: - | BV65: - | BW65: - | BX65: - | BY65: - | BZ65: - | CA65: - | CB65: - | CC65: - | CD65: - | CE65: - | CF65: - | CG65: - | CH65: - | CI65: - | CJ65: - | CK65: - | CL65: - | CM65: - | CN65: - | CO65: - | CP65: - | CQ65: - | CR65: - | CS65: - | CT65: - | CU65: - | DC65: - | DD65: - | DE65: - | DF65: - | DG65: - | DH65: - | DI65: - | DJ65: - | DK65: - | DL65: - | DM65: - | DN65: - | DO65: - | DP65: - | DQ65: - | DR65: - | DS65: - | DT65: - | DU65: - | DV65: - | DW65: - | DX65: - | DY65: - | DZ65: - | EA65: - | EB65: - | EC65: - | ED65: - | EE65: - | EF65: - | EG65: - | EH65: - | EI65: - | EJ65: - | EK65: - | EL65: - | EM65: - | EN65: - | EO65: - | EP65: - | EQ65: - | ER65: - | ES65: - | ET65: - | EU65: -
A66: 長野県 | B66: 長野市 | C66: 長野市 | D66: 押鐘 | E66: 3 | F66: 1 | G66: x | H66: x | I66: x | J66: x | K66: x | L66: 2 | M66: x | N66: x | O66: x | P66: x | Q66: x | R66: x | S66: x | T66: x | U66: x | V66: x | W66: x | X66: x | Y66: x | Z66: x | AA66: x | AB66: x | AC66: 45.3 | AD66: 56.0 | AE66: 40.0 | AF66: x | AG66: x | AH66: x | AI66: x | AJ66: x | AK66: x | AL66: x | AM66: x | AN66: x | AO66: x | AP66: x | AQ66: x | AR66: x | AS66: x | AT66: x | AU66: x | AV66: … | AW66: … | AX66: … | AY66: x | AZ66: x | BA66: x | BB66: x | BC66: x | BD66: x | BE66: x | BF66: x | BG66: x | BH66: x | BI66: x | BJ66: x | BK66: x | BL66: x | BM66: x | BN66: x | BO66: … | BP66: … | BQ66: … | BR66: 1 | BS66: - | BT66: - | BU66: - | BV66: - | BW66: - | BX66: - | BY66: - | BZ66: - | CA66: 1 | CB66: - | CC66: - | CD66: - | CE66: - | CF66: - | CG66: - | CH66: - | CI66: - | CJ66: - | CK66: - | CL66: - | CM66: - | CN66: - | CO66: - | CP66: - | CQ66: - | CR66: - | CS66: - | CT66: - | CU66: - | DC66: 3 | DD66: 3 | DE66: - | DF66: 3 | DG66: - | DH66: - | DI66: - | DJ66: - | DK66: 1 | DL66: - | DM66: - | DN66: - | DO66: - | DP66: - | DQ66: - | DR66: 1 | DS66: - | DT66: - | DU66: - | DV66: - | DW66: - | DX66: - | DY66: - | DZ66: - | EA66: 1 | EB66: 61 | EC66: 10 | ED66: 1 | EE66: 50 | EF66: 1 | EG66: 1 | EH66: - | EI66: 1 | EJ66: - | EK66: - | EL66: - | EM66: - | EN66: 2 | EO66: 2 | EP66: - | EQ66: 2 | ER66: - | ES66: - | ET66: - | EU66: -
A67: 長野県 | B67: 長野市 | C67: 長野市 | D67: 上宇木 | E67: 5 | F67: - | G67: - | H67: - | I67: - | J67: - | K67: - | L67: 5 | M67: - | N67: - | O67: - | P67: - | Q67: - | R67: - | S67: - | T67: - | U67: - | V67: - | W67: - | X67: - | Y67: - | Z67: - | AA67: - | AB67: - | AC67: … | AD67: … | AE67: … | AF67: - | AG67: - | AH67: - | AI67: - | AJ67: - | AK67: - | AL67: - | AM67: - | AN67: - | AO67: - | AP67: - | AQ67: - | AR67: - | AS67: - | AT67: - | AU67: - | AV67: … | AW67: … | AX67: … | AY67: - | AZ67: - | BA67: - | BB67: - | BC67: - | BD67: - | BE67: - | BF67: - | BG67: - | BH67: - | BI67: - | BJ67: - | BK67: - | BL67: - | BM67: - | BN67: - | BO67: … | BP67: … | BQ67: … | BR67: - | BS67: - | BT67: - | BU67: - | BV67: - | BW67: - | BX67: - | BY67: - | BZ67: - | CA67: - | CB67: - | CC67: - | CD67: - | CE67: - | CF67: - | CG67: - | CH67: - | CI67: - | CJ67: - | CK67: - | CL67: - | CM67: - | CN67: - | CO67: - | CP67: - | CQ67: - | CR67: - | CS67: - | CT67: - | CU67: - | DC67: - | DD67: - | DE67: - | DF67: - | DG67: - | DH67: - | DI67: - | DJ67: - | DK67: - | DL67: - | DM67: - | DN67: - | DO67: - | DP67: - | DQ67: - | DR67: - | DS67: - | DT67: - | DU67: - | DV67: - | DW67: - | DX67: - | DY67: - | DZ67: - | EA67: - | EB67: - | EC67: - | ED67: - | EE67: - | EF67: - | EG67: - | EH67: - | EI67: - | EJ67: - | EK67: - | EL67: - | EM67: - | EN67: - | EO67: - | EP67: - | EQ67: - | ER67: - | ES67: - | ET67: - | EU67: -
A68: 長野県 | B68: 長野市 | C68: 長野市 | D68: 下宇木 | E68: 3 | F68: - | G68: - | H68: - | I68: - | J68: - | K68: - | L68: 3 | M68: - | N68: - | O68: - | P68: - | Q68: - | R68: - | S68: - | T68: - | U68: - | V68: - | W68: - | X68: - | Y68: - | Z68: - | AA68: - | AB68: - | AC68: … | AD68: … | AE68: … | AF68: - | AG68: - | AH68: - | AI68: - | AJ68: - | AK68: - | AL68: - | AM68: - | AN68: - | AO68: - | AP68: - | AQ68: - | AR68: - | AS68: - | AT68: - | AU68: - | AV68: … | AW68: … | AX68: … | AY68: - | AZ68: - | BA68: - | BB68: - | BC68: - | BD68: - | BE68: - | BF68: - | BG68: - | BH68: - | BI68: - | BJ68: - | BK68: - | BL68: - | BM68: - | BN68: - | BO68: … | BP68: … | BQ68: … | BR68: - | BS68: - | BT68: - | BU68: - | BV68: - | BW68: - | BX68: - | BY68: - | BZ68: - | CA68: - | CB68: - | CC68: - | CD68: - | CE68: - | CF68: - | CG68: - | CH68: - | CI68: - | CJ68: - | CK68: - | CL68: - | CM68: - | CN68: - | CO68: - | CP68: - | CQ68: - | CR68: - | CS68: - | CT68: - | CU68: - | DC68: - | DD68: - | DE68: - | DF68: - | DG68: - | DH68: - | DI68: - | DJ68: - | DK68: - | DL68: - | DM68: - | DN68: - | DO68: - | DP68: - | DQ68: - | DR68: - | DS68: - | DT68: - | DU68: - | DV68: - | DW68: - | DX68: - | DY68: - | DZ68: - | EA68: - | EB68: - | EC68: - | ED68: - | EE68: - | EF68: - | EG68: - | EH68: - | EI68: - | EJ68: - | EK68: - | EL68: - | EM68: - | EN68: - | EO68: - | EP68: - | EQ68: - | ER68: - | ES68: - | ET68: - | EU68: -
A69: 長野県 | B69: 長野市 | C69: 長野市 | D69: 相ノ木東 | E69: - | F69: - | G69: - | H69: - | I69: - | J69: - | K69: - | L69: - | M69: - | N69: - | O69: - | P69: - | Q69: - | R69: - | S69: - | T69: - | U69: - | V69: - | W69: - | X69: - | Y69: - | Z69: - | AA69: - | AB69: - | AC69: … | AD69: … | AE69: … | AF69: - | AG69: - | AH69: - | AI69: - | AJ69: - | AK69: - | AL69: - | AM69: - | AN69: - | AO69: - | AP69: - | AQ69: - | AR69: - | AS69: - | AT69: - | AU69: - | AV69: … | AW69: … | AX69: … | AY69: - | AZ69: - | BA69: - | BB69: - | BC69: - | BD69: - | BE69: - | BF69: - | BG69: - | BH69: - | BI69: - | BJ69: - | BK69: - | BL69: - | BM69: - | BN69: - | BO69: … | BP69: … | BQ69: … | BR69: - | BS69: - | BT69: - | BU69: - | BV69: - | BW69: - | BX69: - | BY69: - | BZ69: - | CA69: - | CB69: - | CC69: - | CD69: - | CE69: - | CF69: - | CG69: - | CH69: - | CI69: - | CJ69: - | CK69: - | CL69: - | CM69: - | CN69: - | CO69: - | CP69: - | CQ69: - | CR69: - | CS69: - | CT69: - | CU69: - | DC69: - | DD69: - | DE69: - | DF69: - | DG69: - | DH69: - | DI69: - | DJ69: - | DK69: - | DL69: - | DM69: - | DN69: - | DO69: - | DP69: - | DQ69: - | DR69: - | DS69: - | DT69: - | DU69: - | DV69: - | DW69: - | DX69: - | DY69: - | DZ69: - | EA69: - | EB69: - | EC69: - | ED69: - | EE69: - | EF69: - | EG69: - | EH69: - | EI69: - | EJ69: - | EK69: - | EL69: - | EM69: - | EN69: - | EO69: - | EP69: - | EQ69: - | ER69: - | ES69: - | ET69: - | EU69: -
A70: 長野県 | B70: 長野市 | C70: 長野市 | D70: 相ノ木西 | E70: - | F70: - | G70: - | H70: - | I70: - | J70: - | K70: - | L70: - | M70: - | N70: - | O70: - | P70: - | Q70: - | R70: - | S70: - | T70: - | U70: - | V70: - | W70: - | X70: - | Y70: - | Z70: - | AA70: - | AB70: - | AC70: … | AD70: … | AE70: … | AF70: - | AG70: - | AH70: - | AI70: - | AJ70: - | AK70: - | AL70: - | AM70: - | AN70: - | AO70: - | AP70: - | AQ70: - | AR70: - | AS70: - | AT70: - | AU70: - | AV70: … | AW70: … | AX70: … | AY70: - | AZ70: - | BA70: - | BB70: - | BC70: - | BD70: - | BE70: - | BF70: - | BG70: - | BH70: - | BI70: - | BJ70: - | BK70: - | BL70: - | BM70: - | BN70: - | BO70: … | BP70: … | BQ70: … | BR70: - | BS70: - | BT70: - | BU70: - | BV70: - | BW70: - | BX70: - | BY70: - | BZ70: - | CA70: - | CB70: - | CC70: - | CD70: - | CE70: - | CF70: - | CG70: - | CH70: - | CI70: - | CJ70: - | CK70: - | CL70: - | CM70: - | CN70: - | CO70: - | CP70: - | CQ70: - | CR70: - | CS70: - | CT70: - | CU70: - | DC70: - | DD70: - | DE70: - | DF70: - | DG70: - | DH70: - | DI70: - | DJ70: - | DK70: - | DL70: - | DM70: - | DN70: - | DO70: - | DP70: - | DQ70: - | DR70: - | DS70: - | DT70: - | DU70: - | DV70: - | DW70: - | DX70: - | DY70: - | DZ70: - | EA70: - | EB70: - | EC70: - | ED70: - | EE70: - | EF70: - | EG70: - | EH70: - | EI70: - | EJ70: - | EK70: - | EL70: - | EM70: - | EN70: - | EO70: - | EP70: - | EQ70: - | ER70: - | ES70: - | ET70: - | EU70: -
A71: 長野県 | B71: 長野市 | C71: 長野市 | D71: 横山 | E71: 2 | F71: - | G71: - | H71: - | I71: - | J71: - | K71: - | L71: 2 | M71: - | N71: - | O71: - | P71: - | Q71: - | R71: - | S71: - | T71: - | U71: - | V71: - | W71: - | X71: - | Y71: - | Z71: - | AA71: - | AB71: - | AC71: … | AD71: … | AE71: … | AF71: - | AG71: - | AH71: - | AI71: - | AJ71: - | AK71: - | AL71: - | AM71: - | AN71: - | AO71: - | AP71: - | AQ71: - | AR71: - | AS71: - | AT71: - | AU71: - | AV71: … | AW71: … | AX71: … | AY71: - | AZ71: - | BA71: - | BB71: - | BC71: - | BD71: - | BE71: - | BF71: - | BG71: - | BH71: - | BI71: - | BJ71: - | BK71: - | BL71: - | BM71: - | BN71: - | BO71: … | BP71: … | BQ71: … | BR71: - | BS71: - | BT71: - | BU71: - | BV71: - | BW71: - | BX71: - | BY71: - | BZ71: - | CA71: - | CB71: - | CC71: - | CD71: - | CE71: - | CF71: - | CG71: - | CH71: - | CI71: - | CJ71: - | CK71: - | CL71: - | CM71: - | CN71: - | CO71: - | CP71: - | CQ71: - | CR71: - | CS71: - | CT71: - | CU71: - | DC71: - | DD71: - | DE71: - | DF71: - | DG71: - | DH71: - | DI71: - | DJ71: - | DK71: - | DL71: - | DM71: - | DN71: - | DO71: - | DP71: - | DQ71: - | DR71: - | DS71: - | DT71: - | DU71: - | DV71: - | DW71: - | DX71: - | DY71: - | DZ71: - | EA71: - | EB71: - | EC71: - | ED71: - | EE71: - | EF71: - | EG71: - | EH71: - | EI71: - | EJ71: - | EK71: - | EL71: - | EM71: - | EN71: - | EO71: - | EP71: - | EQ71: - | ER71: - | ES71: - | ET71: - | EU71: -
A72: 長野県 | B72: 長野市 | C72: 長野市 | D72: 本郷 | E72: 5 | F72: 1 | G72: x | H72: x | I72: x | J72: x | K72: x | L72: 4 | M72: x | N72: x | O72: x | P72: x | Q72: x | R72: x | S72: x | T72: x | U72: x | V72: x | W72: x | X72: x | Y72: x | Z72: x | AA72: x | AB72: x | AC72: 49.0 | AD72: 50.0 | AE72: 48.0 | AF72: x | AG72: x | AH72: x | AI72: x | AJ72: x | AK72: x | AL72: x | AM72: x | AN72: x | AO72: x | AP72: x | AQ72: x | AR72: x | AS72: x | AT72: x | AU72: x | AV72: … | AW72: … | AX72: … | AY72: x | AZ72: x | BA72: x | BB72: x | BC72: x | BD72: x | BE72: x | BF72: x | BG72: x | BH72: x | BI72: x | BJ72: x | BK72: x | BL72: x | BM72: x | BN72: x | BO72: … | BP72: … | BQ72: … | BR72: 1 | BS72: - | BT72: - | BU72: - | BV72: - | BW72: - | BX72: - | BY72: - | BZ72: 1 | CA72: - | CB72: - | CC72: - | CD72: - | CE72: - | CF72: - | CG72: - | CH72: 1 | CI72: - | CJ72: - | CK72: - | CL72: - | CM72: - | CN72: 1 | CO72: - | CP72: - | CQ72: - | CR72: - | CS72: - | CT72: - | CU72: - | DC72: 3 | DD72: 2 | DE72: - | DF72: 2 | DG72: - | DH72: - | DI72: 1 | DJ72: - | DK72: - | DL72: - | DM72: - | DN72: - | DO72: - | DP72: - | DQ72: - | DR72: - | DS72: - | DT72: - | DU72: - | DV72: - | DW72: - | DX72: - | DY72: - | DZ72: - | EA72: 1 | EB72: 114 | EC72: 107 | ED72: 7 | EE72: - | EF72: 2 | EG72: 1 | EH72: - | EI72: 1 | EJ72: - | EK72: - | EL72: 1 | EM72: - | EN72: 1 | EO72: 1 | EP72: - | EQ72: 1 | ER72: - | ES72: - | ET72: - | EU72: -
A73: 長野県 | B73: 長野市 | C73: 長野市 | D73: 返目 | E73: 2 | F73: - | G73: - | H73: - | I73: - | J73: - | K73: - | L73: 2 | M73: - | N73: - | O73: - | P73: - | Q73: - | R73: - | S73: - | T73: - | U73: - | V73: - | W73: - | X73: - | Y73: - | Z73: - | AA73: - | AB73: - | AC73: … | AD73: … | AE73: … | AF73: - | AG73: - | AH73: - | AI73: - | AJ73: - | AK73: - | AL73: - | AM73: - | AN73: - | AO73: - | AP73: - | AQ73: - | AR73: - | AS73: - | AT73: - | AU73: - | AV73: … | AW73: … | AX73: … | AY73: - | AZ73: - | BA73: - | BB73: - | BC73: - | BD73: - | BE73: - | BF73: - | BG73: - | BH73: - | BI73: - | BJ73: - | BK73: - | BL73: - | BM73: - | BN73: - | BO73: … | BP73: … | BQ73: … | BR73: - | BS73: - | BT73: - | BU73: - | BV73: - | BW73: - | BX73: - | BY73: - | BZ73: - | CA73: - | CB73: - | CC73: - | CD73: - | CE73: - | CF73: - | CG73: - | CH73: - | CI73: - | CJ73: - | CK73: - | CL73: - | CM73: - | CN73: - | CO73: - | CP73: - | CQ73: - | CR73: - | CS73: - | CT73: - | CU73: - | DC73: - | DD73: - | DE73: - | DF73: - | DG73: - | DH73: - | DI73: - | DJ73: - | DK73: - | DL73: - | DM73: - | DN73: - | DO73: - | DP73: - | DQ73: - | DR73: - | DS73: - | DT73: - | DU73: - | DV73: - | DW73: - | DX73: - | DY73: - | DZ73: - | EA73: - | EB73: - | EC73: - | ED73: - | EE73: - | EF73: - | EG73: - | EH73: - | EI73: - | EJ73: - | EK73: - | EL73: - | EM73: - | EN73: - | EO73: - | EP73: - | EQ73: - | ER73: - | ES73: - | ET73: - | EU73: -
A74: 長野県 | B74: 長野市 | C74: 芋井村 | E74: 333 | F74: 176 | G74: 22 | H74: 19 | I74: 41 | J74: 15 | K74: 113 | L74: 157 | M74: 469 | N74: 9 | O74: 7 | P74: 13 | Q74: 11 | R74: 19 | S74: 21 | T74: 17 | U74: 27 | V74: 50 | W74: 52 | X74: 51 | Y74: 61 | Z74: 68 | AA74: 42 | AB74: 21 | AC74: 62.3 | AD74: 61.5 | AE74: 63.2 | AF74: 298 | AG74: 6 | AH74: - | AI74: 1 | AJ74: 1 | AK74: 2 | AL74: 4 | AM74: 3 | AN74: 5 | AO74: 16 | AP74: 33 | AQ74: 42 | AR74: 58 | AS74: 65 | AT74: 42 | AU74: 20 | AV74: 70.4 | AW74: 70.4 | AX74: 70.4 | AY74: 261 | AZ74: - | BA74: - | BB74: 1 | BC74: - | BD74: - | BE74: 2 | BF74: 2 | BG74: 4 | BH74: 13 | BI74: 30 | BJ74: 42 | BK74: 56 | BL74: 62 | BM74: 35 | BN74: 14 | BO74: 71.9 | BP74: 72.8 | BQ74: 71.0 | BR74: 176 | BS74: - | BT74: - | BU74: 1 | BV74: - | BW74: - | BX74: - | BY74: 4 | BZ74: 6 | CA74: 10 | CB74: 25 | CC74: 28 | CD74: 28 | CE74: 38 | CF74: 24 | CG74: 12 | CH74: 99 | CI74: - | CJ74: - | CK74: - | CL74: - | CM74: 2 | CN74: 2 | CO74: 2 | CP74: 12 | CQ74: 16 | CR74: 13 | CS74: 26 | CT74: 16 | CU74: 10 | DC74: 558 | DD74: 456 | DE74: 261 | DF74: 189 | DG74: 6 | DH74: 23 | DI74: 30 | DJ74: 49 | DK74: 163 | DL74: 34 | DM74: - | DN74: 4 | DO74: 5 | DP74: 30 | DQ74: 15 | DR74: 72 | DS74: 2 | DT74: 1 | DU74: - | DV74: - | DW74: - | DX74: - | DY74: - | DZ74: - | EA74: 176 | EB74: 12,474 | EC74: 3,881 | ED74: 5,242 | EE74: 3,351 | EF74: 282 | EG74: 243 | EH74: 124 | EI74: 113 | EJ74: 6 | EK74: - | EL74: 17 | EM74: 22 | EN74: 276 | EO74: 213 | EP74: 137 | EQ74: 76 | ER74: - | ES74: 23 | ET74: 13 | EU74: 27
A75: 長野県 | B75: 長野市 | C75: 芋井村 | D75: 新安 | E75: 11 | F75: 6 | G75: 1 | H75: 1 | I75: - | J75: - | K75: 5 | L75: 5 | M75: 14 | N75: - | O75: 1 | P75: - | Q75: - | R75: 2 | S75: - | T75: - | U75: - | V75: - | W75: 1 | X75: 1 | Y75: 6 | Z75: 1 | AA75: 1 | AB75: 1 | AC75: 64.4 | AD75: 61.2 | AE75: 70.2 | AF75: 11 | AG75: - | AH75: - | AI75: - | AJ75: - | AK75: - | AL75: - | AM75: - | AN75: - | AO75: - | AP75: 1 | AQ75: 1 | AR75: 6 | AS75: 1 | AT75: 1 | AU75: 1 | AV75: 73.3 | AW75: 75.8 | AX75: 70.2 | AY75: 10 | AZ75: - | BA75: - | BB75: - | BC75: - | BD75: - | BE75: - | BF75: - | BG75: - | BH75: - | BI75: 1 | BJ75: 1 | BK75: 6 | BL75: 1 | BM75: 1 | BN75: - | BO75: 71.8 | BP75: 73.4 | BQ75: 70.2 | BR75: 6 | BS75: - | BT75: - | BU75: - | BV75: - | BW75: - | BX75: - | BY75: - | BZ75: - | CA75: - | CB75: - | CC75: 1 | CD75: 2 | CE75: 1 | CF75: 1 | CG75: 1 | CH75: 4 | CI75: - | CJ75: - | CK75: - | CL75: - | CM75: - | CN75: - | CO75: - | CP75: - | CQ75: 1 | CR75: - | CS75: 1 | CT75: 1 | CU75: 1 | DC75: 15 | DD75: 12 | DE75: 10 | DF75: 2 | DG75: - | DH75: 1 | DI75: - | DJ75: 2 | DK75: 6 | DL75: - | DM75: - | DN75: - | DO75: - | DP75: - | DQ75: - | DR75: 6 | DS75: - | DT75: - | DU75: - | DV75: - | DW75: - | DX75: - | DY75: - | DZ75: - | EA75: 6 | EB75: 215 | EC75: - | ED75: 23 | EE75: 192 | EF75: 9 | EG75: 7 | EH75: 5 | EI75: 2 | EJ75: - | EK75: - | EL75: - | EM75: 2 | EN75: 6 | EO75: 5 | EP75: 5 | EQ75: - | ER75: - | ES75: 1 | ET75: - | EU75: -
A76: 長野県 | B76: 長野市 | C76: 芋井村 | D76: 荒安 | E76: 11 | F76: 7 | G76: 3 | H76: 3 | I76: 2 | J76: 2 | K76: 2 | L76: 4 | M76: 15 | N76: - | O76: - | P76: 1 | Q76: - | R76: - | S76: - | T76: - | U76: 1 | V76: 2 | W76: 6 | X76: 1 | Y76: - | Z76: 2 | AA76: 1 | AB76: 1 | AC76: 63.0 | AD76: 63.6 | AE76: 62.2 | AF76: 10 | AG76: - | AH76: - | AI76: 1 | AJ76: - | AK76: - | AL76: - | AM76: - | AN76: - | AO76: 1 | AP76: 5 | AQ76: - | AR76: - | AS76: 1 | AT76: 1 | AU76: 1 | AV76: 63.7 | AW76: 62.8 | AX76: 65.0 | AY76: 9 | AZ76: - | BA76: - | BB76: 1 | BC76: - | BD76: - | BE76: - | BF76: - | BG76: - | BH76: 1 | BI76: 5 | BJ76: - | BK76: - | BL76: 1 | BM76: - | BN76: 1 | BO76: 61.4 | BP76: 62.8 | BQ76: 58.7 | BR76: 7 | BS76: - | BT76: - | BU76: 1 | BV76: - | BW76: - | BX76: - | BY76: - | BZ76: - | CA76: - | CB76: 3 | CC76: 1 | CD76: - | CE76: 1 | CF76: - | CG76: 1 | CH76: 1 | CI76: - | CJ76: - | CK76: - | CL76: - | CM76: - | CN76: - | CO76: - | CP76: - | CQ76: - | CR76: - | CS76: - | CT76: - | CU76: 1 | DC76: 25 | DD76: 19 | DE76: 9 | DF76: 10 | DG76: - | DH76: 1 | DI76: 3 | DJ76: 2 | DK76: 7 | DL76: - | DM76: - | DN76: - | DO76: - | DP76: 2 | DQ76: - | DR76: 4 | DS76: - | DT76: 1 | DU76: - | DV76: - | DW76: - | DX76: - | DY76: - | DZ76: - | EA76: 7 | EB76: 1,774 | EC76: 68 | ED76: 1,534 | EE76: 172 | EF76: 14 | EG76: 12 | EH76: 6 | EI76: 6 | EJ76: - | EK76: - | EL76: 2 | EM76: - | EN76: 11 | EO76: 7 | EP76: 3 | EQ76: 4 | ER76: - | ES76: 1 | ET76: 1 | EU76: 2
A77: 長野県 | B77: 長野市 | C77: 芋井村 | D77: たたら | E77: 7 | F77: 1 | G77: x | H77: x | I77: x | J77: x | K77: x | L77: 6 | M77: x | N77: x | O77: x | P77: x | Q77: x | R77: x | S77: x | T77: x | U77: x | V77: x | W77: x | X77: x | Y77: x | Z77: x | AA77: x | AB77: x | AC77: 58.0 | AD77: 60.0 | AE77: 56.0 | AF77: x | AG77: x | AH77: x | AI77: x | AJ77: x | AK77: x | AL77: x | AM77: x | AN77: x | AO77: x | AP77: x | AQ77: x | AR77: x | AS77: x | AT77: x | AU77: x | AV77: … | AW77: … | AX77: … | AY77: x | AZ77: x | BA77: x | BB77: x | BC77: x | BD77: x | BE77: x | BF77: x | BG77: x | BH77: x | BI77: x | BJ77: x | BK77: x | BL77: x | BM77: x | BN77: x | BO77: … | BP77: … | BQ77: … | BR77: 1 | BS77: - | BT77: - | BU77: - | BV77: - | BW77: - | BX77: - | BY77: - | BZ77: - | CA77: - | CB77: 1 | CC77: - | CD77: - | CE77: - | CF77: - | CG77: - | CH77: - | CI77: - | CJ77: - | CK77: - | CL77: - | CM77: - | CN77: - | CO77: - | CP77: - | CQ77: - | CR77: - | CS77: - | CT77: - | CU77: - | DC77: 2 | DD77: 2 | DE77: - | DF77: 2 | DG77: - | DH77: - | DI77: - | DJ77: - | DK77: 1 | DL77: - | DM77: - | DN77: - | DO77: - | DP77: - | DQ77: - | DR77: 1 | DS77: - | DT77: - | DU77: - | DV77: - | DW77: - | DX77: - | DY77: - | DZ77: - | EA77: 1 | EB77: 42 | EC77: 12 | ED77: 5 | EE77: 25 | EF77: 1 | EG77: 1 | EH77: - | EI77: 1 | EJ77: - | EK77: - | EL77: - | EM77: - | EN77: 1 | EO77: 1 | EP77: - | EQ77: 1 | ER77: - | ES77: - | ET77: - | EU77: -
A78: 長野県 | B78: 長野市 | C78: 芋井村 | D78: 坂額 | E78: 13 | F78: 11 | G78: 2 | H78: 2 | I78: 2 | J78: 1 | K78: 7 | L78: 2 | M78: 28 | N78: - | O78: - | P78: 1 | Q78: 1 | R78: - | S78: 2 | T78: 1 | U78: 1 | V78: 3 | W78: 4 | X78: 2 | Y78: 4 | Z78: 2 | AA78: 6 | AB78: 1 | AC78: 64.6 | AD78: 63.9 | AE78: 65.4 | AF78: 18 | AG78: - | AH78: - | AI78: - | AJ78: - | AK78: - | AL78: - | AM78: - | AN78: 1 | AO78: - | AP78: 2 | AQ78: 2 | AR78: 4 | AS78: 2 | AT78: 6 | AU78: 1 | AV78: 73.9 | AW78: 75.9 | AX78: 72.0 | AY78: 18 | AZ78: - | BA78: - | BB78: - | BC78: - | BD78: - | BE78: - | BF78: - | BG78: 1 | BH78: - | BI78: 2 | BJ78: 2 | BK78: 4 | BL78: 2 | BM78: 6 | BN78: 1 | BO78: 73.9 | BP78: 75.9 | BQ78: 72.0 | BR78: 11 | BS78: - | BT78: - | BU78: - | BV78: - | BW78: - | BX78: - | BY78: - | BZ78: - | CA78: - | CB78: 3 | CC78: 1 | CD78: 2 | CE78: 1 | CF78: 4 | CG78: - | CH78: 9 | CI78: - | CJ78: - | CK78: - | CL78: - | CM78: - | CN78: - | CO78: - | CP78: 3 | CQ78: 1 | CR78: 1 | CS78: 1 | CT78: 3 | CU78: - | DC78: 36 | DD78: 34 | DE78: 18 | DF78: 15 | DG78: 1 | DH78: - | DI78: - | DJ78: 2 | DK78: 11 | DL78: - | DM78: - | DN78: - | DO78: - | DP78: - | DQ78: - | DR78: 11 | DS78: - | DT78: - | DU78: - | DV78: - | DW78: - | DX78: - | DY78: - | DZ78: - | EA78: 11 | EB78: 869 | EC78: 175 | ED78: 55 | EE78: 639 | EF78: 19 | EG78: 18 | EH78: 9 | EI78: 8 | EJ78: 1 | EK78: - | EL78: - | EM78: 1 | EN78: 17 | EO78: 16 | EP78: 9 | EQ78: 7 | ER78: - | ES78: - | ET78: - | EU78: 1
A79: 長野県 | B79: 長野市 | C79: 芋井村 | D79: 泉平 | E79: 19 | F79: 14 | G79: 1 | H79: 1 | I79: 4 | J79: 3 | K79: 9 | L79: 5 | M79: 40 | N79: - | O79: - | P79: - | Q79: 1 | R79: 5 | S79: 4 | T79: 2 | U79: 1 | V79: 4 | W79: 2 | X79: 8 | Y79: 6 | Z79: 5 | AA79: 1 | AB79: 1 | AC79: 60.2 | AD79: 61.6 | AE79: 59.1 | AF79: 26 | AG79: - | AH79: - | AI79: - | AJ79: - | AK79: 1 | AL79: - | AM79: - | AN79: - | AO79: 3 | AP79: 2 | AQ79: 7 | AR79: 6 | AS79: 5 | AT79: 1 | AU79: 1 | AV79: 69.2 | AW79: 72.6 | AX79: 67.0 | AY79: 24 | AZ79: - | BA79: - | BB79: - | BC79: - | BD79: - | BE79: - | BF79: - | BG79: - | BH79: 3 | BI79: 2 | BJ79: 7 | BK79: 6 | BL79: 5 | BM79: - | BN79: 1 | BO79: 70.0 | BP79: 71.6 | BQ79: 69.0 | BR79: 14 | BS79: - | BT79: - | BU79: - | BV79: - | BW79: - | BX79: - | BY79: - | BZ79: - | CA79: 2 | CB79: - | CC79: 5 | CD79: 3 | CE79: 3 | CF79: 1 | CG79: - | CH79: 6 | CI79: - | CJ79: - | CK79: - | CL79: - | CM79: - | CN79: - | CO79: - | CP79: - | CQ79: 2 | CR79: 1 | CS79: 2 | CT79: 1 | CU79: - | DC79: 43 | DD79: 37 | DE79: 24 | DF79: 13 | DG79: - | DH79: 3 | DI79: 1 | DJ79: 2 | DK79: 14 | DL79: - | DM79: - | DN79: - | DO79: - | DP79: - | DQ79: - | DR79: 14 | DS79: - | DT79: - | DU79: - | DV79: - | DW79: - | DX79: - | DY79: - | DZ79: - | EA79: 14 | EB79: 987 | EC79: 243 | ED79: 135 | EE79: 609 | EF79: 20 | EG79: 18 | EH79: 9 | EI79: 9 | EJ79: - | EK79: - | EL79: 1 | EM79: 1 | EN79: 23 | EO79: 19 | EP79: 15 | EQ79: 4 | ER79: - | ES79: 3 | ET79: - | EU79: 1
A80: 長野県 | B80: 長野市 | C80: 芋井村 | D80: 中村 | E80: 5 | F80: 2 | G80: x | H80: x | I80: x | J80: x | K80: x | L80: 3 | M80: x | N80: x | O80: x | P80: x | Q80: x | R80: x | S80: x | T80: x | U80: x | V80: x | W80: x | X80: x | Y80: x | Z80: x | AA80: x | AB80: x | AC80: 62.4 | AD80: 59.0 | AE80: 65.0 | AF80: x | AG80: x | AH80: x | AI80: x | AJ80: x | AK80: x | AL80: x | AM80: x | AN80: x | AO80: x | AP80: x | AQ80: x | AR80: x | AS80: x | AT80: x | AU80: x | AV80: 81.0 | AW80: 80.0 | AX80: 81.5 | AY80: x | AZ80: x | BA80: x | BB80: x | BC80: x | BD80: x | BE80: x | BF80: x | BG80: x | BH80: x | BI80: x | BJ80: x | BK80: x | BL80: x | BM80: x | BN80: x | BO80: 84.5 | BP80: 80.0 | BQ80: 89.0 | BR80: 2 | BS80: - | BT80: - | BU80: - | BV80: - | BW80: - | BX80: - | BY80: - | BZ80: - | CA80: - | CB80: - | CC80: - | CD80: - | CE80: - | CF80: 1 | CG80: 1 | CH80: 2 | CI80: - | CJ80: - | CK80: - | CL80: - | CM80: - | CN80: - | CO80: - | CP80: - | CQ80: - | CR80: - | CS80: - | CT80: 1 | CU80: 1 | DC80: 7 | DD80: 6 | DE80: 2 | DF80: 4 | DG80: - | DH80: 1 | DI80: - | DJ80: - | DK80: 2 | DL80: - | DM80: - | DN80: - | DO80: - | DP80: - | DQ80: - | DR80: 2 | DS80: - | DT80: - | DU80: - | DV80: - | DW80: - | DX80: - | DY80: - | DZ80: - | EA80: 2 | EB80: 155 | EC80: 50 | ED80: 5 | EE80: 100 | EF80: 3 | EG80: 3 | EH80: 1 | EI80: 2 | EJ80: - | EK80: - | EL80: - | EM80: - | EN80: 4 | EO80: 3 | EP80: 1 | EQ80: 2 | ER80: - | ES80: 1 | ET80: - | EU80: -
A81: 長野県 | B81: 長野市 | C81: 芋井村 | D81: 坂高木 | E81: 14 | F81: 9 | G81: 2 | H81: 2 | I81: 5 | J81: 4 | K81: 2 | L81: 5 | M81: 24 | N81: - | O81: - | P81: - | Q81: - | R81: - | S81: 2 | T81: - | U81: 1 | V81: 7 | W81: 5 | X81: 3 | Y81: - | Z81: 2 | AA81: 1 | AB81: 3 | AC81: 64.4 | AD81: 63.7 | AE81: 65.2 | AF81: 14 | AG81: - | AH81: - | AI81: - | AJ81: - | AK81: - | AL81: 1 | AM81: - | AN81: - | AO81: 2 | AP81: 3 | AQ81: 2 | AR81: - | AS81: 2 | AT81: 1 | AU81: 3 | AV81: 69.9 | AW81: 70.2 | AX81: 69.8 | AY81: 12 | AZ81: - | BA81: - | BB81: - | BC81: - | BD81: - | BE81: 1 | BF81: - | BG81: - | BH81: 2 | BI81: 3 | BJ81: 2 | BK81: - | BL81: 2 | BM81: 1 | BN81: 1 | BO81: 66.8 | BP81: 70.2 | BQ81: 64.4 | BR81: 9 | BS81: - | BT81: - | BU81: - | BV81: - | BW81: - | BX81: - | BY81: - | BZ81: - | CA81: 1 | CB81: 3 | CC81: 2 | CD81: - | CE81: 1 | CF81: - | CG81: 2 | CH81: 4 | CI81: - | CJ81: - | CK81: - | CL81: - | CM81: - | CN81: - | CO81: - | CP81: - | CQ81: 1 | CR81: - | CS81: 1 | CT81: - | CU81: 2 | DC81: 26 | DD81: 23 | DE81: 12 | DF81: 10 | DG81: 1 | DH81: - | DI81: - | DJ81: 3 | DK81: 9 | DL81: 1 | DM81: - | DN81: - | DO81: 1 | DP81: - | DQ81: - | DR81: 6 | DS81: 1 | DT81: - | DU81: - | DV81: - | DW81: - | DX81: - | DY81: - | DZ81: - | EA81: 9 | EB81: 449 | EC81: 197 | ED81: 74 | EE81: 178 | EF81: 13 | EG81: 13 | EH81: 5 | EI81: 7 | EJ81: 1 | EK81: - | EL81: - | EM81: - | EN81: 13 | EO81: 10 | EP81: 7 | EQ81: 3 | ER81: - | ES81: - | ET81: - | EU81: 3
A82: 長野県 | B82: 長野市 | C82: 芋井村 | D82: 松久保 | E82: 5 | F82: 1 | G82: x | H82: x | I82: x | J82: x | K82: x | L82: 4 | M82: x | N82: x | O82: x | P82: x | Q82: x | R82: x | S82: x | T82: x | U82: x | V82: x | W82: x | X82: x | Y82: x | Z82: x | AA82: x | AB82: x | AC82: 77.5 | AD82: 76.0 | AE82: 79.0 | AF82: x | AG82: x | AH82: x | AI82: x | AJ82: x | AK82: x | AL82: x | AM82: x | AN82: x | AO82: x | AP82: x | AQ82: x | AR82: x | AS82: x | AT82: x | AU82: x | AV82: 77.5 | AW82: 76.0 | AX82: 79.0 | AY82: x | AZ82: x | BA82: x | BB82: x | BC82: x | BD82: x | BE82: x | BF82: x | BG82: x | BH82: x | BI82: x | BJ82: x | BK82: x | BL82: x | BM82: x | BN82: x | BO82: 77.5 | BP82: 76.0 | BQ82: 79.0 | BR82: 1 | BS82: - | BT82: - | BU82: - | BV82: - | BW82: - | BX82: - | BY82: - | BZ82: - | CA82: - | CB82: - | CC82: - | CD82: - | CE82: 1 | CF82: - | CG82: - | CH82: 1 | CI82: - | CJ82: - | CK82: - | CL82: - | CM82: - | CN82: - | CO82: - | CP82: - | CQ82: - | CR82: - | CS82: 1 | CT82: - | CU82: - | DC82: 2 | DD82: 2 | DE82: 2 | DF82: - | DG82: - | DH82: - | DI82: - | DJ82: - | DK82: 1 | DL82: - | DM82: - | DN82: - | DO82: - | DP82: - | DQ82: - | DR82: 1 | DS82: - | DT82: - | DU82: - | DV82: - | DW82: - | DX82: - | DY82: - | DZ82: - | EA82: 1 | EB82: 108 | EC82: 8 | ED82: 70 | EE82: 30 | EF82: 1 | EG82: 1 | EH82: 1 | EI82: - | EJ82: - | EK82: - | EL82: - | EM82: - | EN82: 1 | EO82: 1 | EP82: 1 | EQ82: - | ER82: - | ES82: - | ET82: - | EU82: -
A83: 長野県 | B83: 長野市 | C83: 芋井村 | D83: 池平 | E83: 7 | F83: 3 | G83: - | H83: - | I83: 2 | J83: 1 | K83: 1 | L83: 4 | M83: 8 | N83: - | O83: 1 | P83: - | Q83: - | R83: - | S83: - | T83: - | U83: 2 | V83: 2 | W83: 1 | X83: 1 | Y83: - | Z83: - | AA83: 1 | AB83: - | AC83: 56.5 | AD83: 50.8 | AE83: 66.0 | AF83: 4 | AG83: - | AH83: - | AI83: - | AJ83: - | AK83: - | AL83: - | AM83: - | AN83: 1 | AO83: 1 | AP83: - | AQ83: 1 | AR83: - | AS83: - | AT83: 1 | AU83: - | AV83: 63.8 | AW83: 58.0 | AX83: 69.5 | AY83: 3 | AZ83: - | BA83: - | BB83: - | BC83: - | BD83: - | BE83: - | BF83: - | BG83: 1 | BH83: 1 | BI83: - | BJ83: 1 | BK83: - | BL83: - | BM83: - | BN83: - | BO83: 57.7 | BP83: 58.0 | BQ83: 57.0 | BR83: 3 | BS83: - | BT83: - | BU83: - | BV83: - | BW83: - | BX83: - | BY83: - | BZ83: 1 | CA83: - | CB83: 1 | CC83: 1 | CD83: - | CE83: - | CF83: - | CG83: - | CH83: 1 | CI83: - | CJ83: - | CK83: - | CL83: - | CM83: - | CN83: - | CO83: - | CP83: - | CQ83: 1 | CR83: - | CS83: - | CT83: - | CU83: - | DC83: 8 | DD83: 7 | DE83: 3 | DF83: 4 | DG83: - | DH83: 1 | DI83: - | DJ83: - | DK83: 2 | DL83: 1 | DM83: - | DN83: - | DO83: - | DP83: - | DQ83: - | DR83: 1 | DS83: - | DT83: - | DU83: - | DV83: - | DW83: - | DX83: - | DY83: - | DZ83: - | EA83: 3 | EB83: 119 | EC83: 76 | ED83: 15 | EE83: 28 | EF83: 5 | EG83: 5 | EH83: 2 | EI83: 3 | EJ83: - | EK83: - | EL83: - | EM83: - | EN83: 3 | EO83: 2 | EP83: 1 | EQ83: 1 | ER83: - | ES83: 1 | ET83: - | EU83: -
A84: 長野県 | B84: 長野市 | C84: 芋井村 | D84: 洞 | E84: 11 | F84: 6 | G84: 2 | H84: 2 | I84: 1 | J84: - | K84: 3 | L84: 5 | M84: 15 | N84: - | O84: - | P84: - | Q84: - | R84: - | S84: - | T84: 1 | U84: 1 | V84: 3 | W84: 2 | X84: 4 | Y84: - | Z84: 2 | AA84: 1 | AB84: 1 | AC84: 65.7 | AD84: 66.3 | AE84: 65.1 | AF84: 12 | AG84: - | AH84: - | AI84: - | AJ84: - | AK84: - | AL84: - | AM84: - | AN84: - | AO84: 2 | AP84: 2 | AQ84: 4 | AR84: - | AS84: 2 | AT84: 1 | AU84: 1 | AV84: 69.2 | AW84: 68.4 | AX84: 70.2 | AY84: 10 | AZ84: - | BA84: - | BB84: - | BC84: - | BD84: - | BE84: - | BF84: - | BG84: - | BH84: 2 | BI84: 1 | BJ84: 4 | BK84: - | BL84: 2 | BM84: - | BN84: 1 | BO84: 68.4 | BP84: 66.2 | BQ84: 71.8 | BR84: 6 | BS84: - | BT84: - | BU84: - | BV84: - | BW84: - | BX84: - | BY84: - | BZ84: - | CA84: 1 | CB84: 1 | CC84: 2 | CD84: - | CE84: 1 | CF84: 1 | CG84: - | CH84: 5 | CI84: - | CJ84: - | CK84: - | CL84: - | CM84: - | CN84: - | CO84: - | CP84: 1 | CQ84: 2 | CR84: - | CS84: 1 | CT84: 1 | CU84: - | DC84: 17 | DD84: 13 | DE84: 10 | DF84: 3 | DG84: - | DH84: 1 | DI84: - | DJ84: 3 | DK84: 5 | DL84: 1 | DM84: - | DN84: - | DO84: - | DP84: - | DQ84: - | DR84: 4 | DS84: - | DT84: - | DU84: - | DV84: - | DW84: - | DX84: - | DY84: - | DZ84: - | EA84: 6 | EB84: 319 | EC84: 161 | ED84: 20 | EE84: 138 | EF84: 8 | EG84: 7 | EH84: 6 | EI84: 1 | EJ84: - | EK84: - | EL84: - | EM84: 1 | EN84: 9 | EO84: 6 | EP84: 4 | EQ84: 2 | ER84: - | ES84: 1 | ET84: - | EU84: 2
A85: 長野県 | B85: 長野市 | C85: 芋井村 | D85: 清水 | E85: 12 | F85: 7 | G85: 2 | H85: 2 | I85: 2 | J85: 2 | K85: 3 | L85: 5 | M85: 13 | N85: - | O85: - | P85: - | Q85: - | R85: - | S85: - | T85: 1 | U85: 1 | V85: 1 | W85: 4 | X85: 2 | Y85: 2 | Z85: 2 | AA85: - | AB85: - | AC85: 65.2 | AD85: 65.8 | AE85: 64.7 | AF85: 12 | AG85: - | AH85: - | AI85: - | AJ85: - | AK85: - | AL85: - | AM85: 1 | AN85: 1 | AO85: 1 | AP85: 4 | AQ85: 1 | AR85: 2 | AS85: 2 | AT85: - | AU85: - | AV85: 65.2 | AW85: 65.8 | AX85: 64.7 | AY85: 11 | AZ85: - | BA85: - | BB85: - | BC85: - | BD85: - | BE85: - | BF85: 1 | BG85: - | BH85: 1 | BI85: 4 | BJ85: 1 | BK85: 2 | BL85: 2 | BM85: - | BN85: - | BO85: 66.4 | BP85: 69.3 | BQ85: 64.7 | BR85: 7 | BS85: - | BT85: - | BU85: - | BV85: - | BW85: - | BX85: - | BY85: 1 | BZ85: - | CA85: - | CB85: 2 | CC85: 1 | CD85: 2 | CE85: 1 | CF85: - | CG85: - | CH85: 1 | CI85: - | CJ85: - | CK85: - | CL85: - | CM85: - | CN85: - | CO85: - | CP85: 1 | CQ85: - | CR85: - | CS85: - | CT85: - | CU85: - | DC85: 18 | DD85: 13 | DE85: 11 | DF85: 2 | DG85: - | DH85: 1 | DI85: 1 | DJ85: 3 | DK85: 6 | DL85: - | DM85: - | DN85: - | DO85: - | DP85: - | DQ85: - | DR85: 6 | DS85: - | DT85: - | DU85: - | DV85: - | DW85: - | DX85: - | DY85: - | DZ85: - | EA85: 7 | EB85: 543 | EC85: 131 | ED85: 45 | EE85: 367 | EF85: 8 | EG85: 5 | EH85: 4 | EI85: 1 | EJ85: - | EK85: - | EL85: 1 | EM85: 2 | EN85: 10 | EO85: 8 | EP85: 7 | EQ85: 1 | ER85: - | ES85: 1 | ET85: - | EU85: 1
A86: 長野県 | B86: 長野市 | C86: 芋井村 | D86: 岩戸 | E86: 9 | F86: 3 | G86: - | H86: - | I86: 1 | J86: - | K86: 2 | L86: 6 | M86: 8 | N86: - | O86: - | P86: - | Q86: - | R86: - | S86: - | T86: 1 | U86: 2 | V86: - | W86: - | X86: 2 | Y86: - | Z86: 3 | AA86: - | AB86: - | AC86: 64.9 | AD86: 64.8 | AE86: 65.0 | AF86: 5 | AG86: - | AH86: - | AI86: - | AJ86: - | AK86: - | AL86: - | AM86: - | AN86: - | AO86: - | AP86: - | AQ86: 2 | AR86: - | AS86: 3 | AT86: - | AU86: - | AV86: 73.0 | AW86: 73.7 | AX86: 72.0 | AY86: 5 | AZ86: - | BA86: - | BB86: - | BC86: - | BD86: - | BE86: - | BF86: - | BG86: - | BH86: - | BI86: - | BJ86: 2 | BK86: - | BL86: 3 | BM86: - | BN86: - | BO86: 73.0 | BP86: 73.7 | BQ86: 72.0 | BR86: 3 | BS86: - | BT86: - | BU86: - | BV86: - | BW86: - | BX86: - | BY86: - | BZ86: - | CA86: - | CB86: - | CC86: 1 | CD86: - | CE86: 2 | CF86: - | CG86: - | CH86: 3 | CI86: - | CJ86: - | CK86: - | CL86: - | CM86: - | CN86: - | CO86: - | CP86: - | CQ86: 1 | CR86: - | CS86: 2 | CT86: - | CU86: - | DC86: 10 | DD86: 9 | DE86: 5 | DF86: 4 | DG86: - | DH86: - | DI86: - | DJ86: 1 | DK86: 3 | DL86: - | DM86: - | DN86: - | DO86: - | DP86: - | DQ86: - | DR86: 3 | DS86: - | DT86: - | DU86: - | DV86: - | DW86: - | DX86: - | DY86: - | DZ86: - | EA86: 3 | EB86: 124 | EC86: 42 | ED86: 10 | EE86: 72 | EF86: 5 | EG86: 5 | EH86: 3 | EI86: 2 | EJ86: - | EK86: - | EL86: - | EM86: - | EN86: 5 | EO86: 4 | EP86: 2 | EQ86: 2 | ER86: - | ES86: - | ET86: - | EU86: 1
A87: 長野県 | B87: 長野市 | C87: 芋井村 | D87: 曲戸 | E87: 4 | F87: 2 | G87: x | H87: x | I87: x | J87: x | K87: x | L87: 2 | M87: x | N87: x | O87: x | P87: x | Q87: x | R87: x | S87: x | T87: x | U87: x | V87: x | W87: x | X87: x | Y87: x | Z87: x | AA87: x | AB87: x | AC87: 74.6 | AD87: 73.3 | AE87: 76.5 | AF87: x | AG87: x | AH87: x | AI87: x | AJ87: x | AK87: x | AL87: x | AM87: x | AN87: x | AO87: x | AP87: x | AQ87: x | AR87: x | AS87: x | AT87: x | AU87: x | AV87: 78.0 | AW87: 79.5 | AX87: 76.5 | AY87: x | AZ87: x | BA87: x | BB87: x | BC87: x | BD87: x | BE87: x | BF87: x | BG87: x | BH87: x | BI87: x | BJ87: x | BK87: x | BL87: x | BM87: x | BN87: x | BO87: 78.0 | BP87: 79.5 | BQ87: 76.5 | BR87: 2 | BS87: - | BT87: - | BU87: - | BV87: - | BW87: - | BX87: - | BY87: - | BZ87: - | CA87: - | CB87: - | CC87: - | CD87: 1 | CE87: - | CF87: - | CG87: 1 | CH87: 1 | CI87: - | CJ87: - | CK87: - | CL87: - | CM87: - | CN87: - | CO87: - | CP87: - | CQ87: - | CR87: - | CS87: - | CT87: - | CU87: 1 | DC87: 6 | DD87: 6 | DE87: 4 | DF87: 2 | DG87: - | DH87: - | DI87: - | DJ87: - | DK87: 2 | DL87: - | DM87: - | DN87: - | DO87: - | DP87: - | DQ87: - | DR87: 2 | DS87: - | DT87: - | DU87: - | DV87: - | DW87: - | DX87: - | DY87: - | DZ87: - | EA87: 2 | EB87: 85 | EC87: 23 | ED87: 34 | EE87: 28 | EF87: 3 | EG87: 3 | EH87: 2 | EI87: 1 | EJ87: - | EK87: - | EL87: - | EM87: - | EN87: 3 | EO87: 3 | EP87: 2 | EQ87: 1 | ER87: - | ES87: - | ET87: - | EU87: -
A88: 長野県 | B88: 長野市 | C88: 芋井村 | D88: 沢尻 | E88: 5 | F88: 1 | G88: x | H88: x | I88: x | J88: x | K88: x | L88: 4 | M88: x | N88: x | O88: x | P88: x | Q88: x | R88: x | S88: x | T88: x | U88: x | V88: x | W88: x | X88: x | Y88: x | Z88: x | AA88: x | AB88: x | AC88: 63.0 | AD88: 58.0 | AE88: 73.0 | AF88: x | AG88: x | AH88: x | AI88: x | AJ88: x | AK88: x | AL88: x | AM88: x | AN88: x | AO88: x | AP88: x | AQ88: x | AR88: x | AS88: x | AT88: x | AU88: x | AV88: 63.0 | AW88: 58.0 | AX88: 73.0 | AY88: x | AZ88: x | BA88: x | BB88: x | BC88: x | BD88: x | BE88: x | BF88: x | BG88: x | BH88: x | BI88: x | BJ88: x | BK88: x | BL88: x | BM88: x | BN88: x | BO88: 63.0 | BP88: 58.0 | BQ88: 73.0 | BR88: 1 | BS88: - | BT88: - | BU88: - | BV88: - | BW88: - | BX88: - | BY88: - | BZ88: - | CA88: - | CB88: - | CC88: - | CD88: 1 | CE88: - | CF88: - | CG88: - | CH88: 1 | CI88: - | CJ88: - | CK88: - | CL88: - | CM88: - | CN88: - | CO88: - | CP88: - | CQ88: - | CR88: 1 | CS88: - | CT88: - | CU88: - | DC88: 3 | DD88: 3 | DE88: 3 | DF88: - | DG88: - | DH88: - | DI88: - | DJ88: - | DK88: 1 | DL88: - | DM88: - | DN88: - | DO88: - | DP88: 1 | DQ88: - | DR88: - | DS88: - | DT88: - | DU88: - | DV88: - | DW88: - | DX88: - | DY88: - | DZ88: - | EA88: 1 | EB88: 129 | EC88: 19 | ED88: 100 | EE88: 10 | EF88: 2 | EG88: 2 | EH88: 2 | EI88: - | EJ88: - | EK88: - | EL88: - | EM88: - | EN88: 1 | EO88: 1 | EP88: 1 | EQ88: - | ER88: - | ES88: - | ET88: - | EU88: -
A89: 長野県 | B89: 長野市 | C89: 芋井村 | D89: 上野平 | E89: 6 | F89: 1 | G89: x | H89: x | I89: x | J89: x | K89: x | L89: 5 | M89: x | N89: x | O89: x | P89: x | Q89: x | R89: x | S89: x | T89: x | U89: x | V89: x | W89: x | X89: x | Y89: x | Z89: x | AA89: x | AB89: x | AC89: 38.3 | AD89: 39.0 | AE89: 37.5 | AF89: x | AG89: x | AH89: x | AI89: x | AJ89: x | AK89: x | AL89: x | AM89: x | AN89: x | AO89: x | AP89: x | AQ89: x | AR89: x | AS89: x | AT89: x | AU89: x | AV89: … | AW89: … | AX89: … | AY89: x | AZ89: x | BA89: x | BB89: x | BC89: x | BD89: x | BE89: x | BF89: x | BG89: x | BH89: x | BI89: x | BJ89: x | BK89: x | BL89: x | BM89: x | BN89: x | BO89: … | BP89: … | BQ89: … | BR89: 1 | BS89: - | BT89: - | BU89: - | BV89: - | BW89: - | BX89: - | BY89: - | BZ89: - | CA89: - | CB89: 1 | CC89: - | CD89: - | CE89: - | CF89: - | CG89: - | CH89: 1 | CI89: - | CJ89: - | CK89: - | CL89: - | CM89: - | CN89: - | CO89: - | CP89: 1 | CQ89: - | CR89: - | CS89: - | CT89: - | CU89: - | DC89: 6 | DD89: 3 | DE89: - | DF89: 3 | DG89: - | DH89: - | DI89: 2 | DJ89: 1 | DK89: 1 | DL89: 1 | DM89: - | DN89: - | DO89: - | DP89: - | DQ89: - | DR89: - | DS89: - | DT89: - | DU89: - | DV89: - | DW89: - | DX89: - | DY89: - | DZ89: - | EA89: 1 | EB89: 42 | EC89: 27 | ED89: 15 | EE89: - | EF89: 2 | EG89: 1 | EH89: - | EI89: 1 | EJ89: - | EK89: - | EL89: 1 | EM89: - | EN89: 4 | EO89: 2 | EP89: - | EQ89: 2 | ER89: - | ES89: - | ET89: 1 | EU89: 1
A90: 長野県 | B90: 長野市 | C90: 芋井村 | D90: 上中犬飼 | E90: 11 | F90: 7 | G90: - | H90: - | I90: 1 | J90: - | K90: 6 | L90: 4 | M90: 18 | N90: 1 | O90: - | P90: - | Q90: - | R90: - | S90: 1 | T90: 3 | U90: 1 | V90: - | W90: 1 | X90: 1 | Y90: 3 | Z90: 4 | AA90: 3 | AB90: - | AC90: 63.9 | AD90: 62.2 | AE90: 66.1 | AF90: 12 | AG90: 1 | AH90: - | AI90: - | AJ90: - | AK90: - | AL90: - | AM90: - | AN90: - | AO90: - | AP90: - | AQ90: 1 | AR90: 3 | AS90: 4 | AT90: 3 | AU90: - | AV90: 71.2 | AW90: 68.1 | AX90: 75.4 | AY90: 10 | AZ90: - | BA90: - | BB90: - | BC90: - | BD90: - | BE90: - | BF90: - | BG90: - | BH90: - | BI90: - | BJ90: 1 | BK90: 3 | BL90: 3 | BM90: 3 | BN90: - | BO90: 76.1 | BP90: 77.0 | BQ90: 74.8 | BR90: 7 | BS90: - | BT90: - | BU90: - | BV90: - | BW90: - | BX90: - | BY90: - | BZ90: 1 | CA90: - | CB90: - | CC90: 1 | CD90: 1 | CE90: 1 | CF90: 3 | CG90: - | CH90: 3 | CI90: - | CJ90: - | CK90: - | CL90: - | CM90: - | CN90: - | CO90: - | CP90: - | CQ90: 1 | CR90: 1 | CS90: - | CT90: 1 | CU90: - | DC90: 24 | DD90: 19 | DE90: 10 | DF90: 9 | DG90: - | DH90: 1 | DI90: 3 | DJ90: 1 | DK90: 7 | DL90: - | DM90: - | DN90: - | DO90: - | DP90: 4 | DQ90: 3 | DR90: - | DS90: - | DT90: - | DU90: - | DV90: - | DW90: - | DX90: - | DY90: - | DZ90: - | EA90: 7 | EB90: 408 | EC90: 187 | ED90: 216 | EE90: 5 | EF90: 12 | EG90: 10 | EH90: 6 | EI90: 4 | EJ90: - | EK90: - | EL90: 2 | EM90: - | EN90: 12 | EO90: 9 | EP90: 4 | EQ90: 5 | ER90: - | ES90: 1 | ET90: 1 | EU90: 1
A91: 長野県 | B91: 長野市 | C91: 芋井村 | D91: 下犬飼 | E91: 8 | F91: 3 | G91: - | H91: - | I91: 1 | J91: - | K91: 2 | L91: 5 | M91: 8 | N91: - | O91: - | P91: - | Q91: - | R91: - | S91: 2 | T91: - | U91: 1 | V91: 1 | W91: - | X91: 1 | Y91: - | Z91: - | AA91: 3 | AB91: - | AC91: 62.1 | AD91: 59.3 | AE91: 63.8 | AF91: 5 | AG91: - | AH91: - | AI91: - | AJ91: - | AK91: - | AL91: 1 | AM91: - | AN91: - | AO91: - | AP91: - | AQ91: 1 | AR91: - | AS91: - | AT91: 3 | AU91: - | AV91: 69.2 | AW91: 80.0 | AX91: 66.5 | AY91: 4 | AZ91: - | BA91: - | BB91: - | BC91: - | BD91: - | BE91: - | BF91: - | BG91: - | BH91: - | BI91: - | BJ91: 1 | BK91: - | BL91: - | BM91: 3 | BN91: - | BO91: 76.5 | BP91: 80.0 | BQ91: 75.3 | BR91: 3 | BS91: - | BT91: - | BU91: - | BV91: - | BW91: - | BX91: - | BY91: - | BZ91: - | CA91: 1 | CB91: - | CC91: 1 | CD91: - | CE91: - | CF91: 1 | CG91: - | CH91: 1 | CI91: - | CJ91: - | CK91: - | CL91: - | CM91: - | CN91: - | CO91: - | CP91: - | CQ91: 1 | CR91: - | CS91: - | CT91: - | CU91: - | DC91: 10 | DD91: 8 | DE91: 4 | DF91: 4 | DG91: - | DH91: 1 | DI91: - | DJ91: 1 | DK91: 3 | DL91: 1 | DM91: - | DN91: 1 | DO91: - | DP91: 1 | DQ91: - | DR91: - | DS91: - | DT91: - | DU91: - | DV91: - | DW91: - | DX91: - | DY91: - | DZ91: - | EA91: 3 | EB91: 165 | EC91: 110 | ED91: 55 | EE91: - | EF91: 4 | EG91: 4 | EH91: 1 | EI91: 3 | EJ91: - | EK91: - | EL91: - | EM91: - | EN91: 6 | EO91: 4 | EP91: 3 | EQ91: 1 | ER91: - | ES91: 1 | ET91: - | EU91: 1
A92: 長野県 | B92: 長野市 | C92: 芋井村 | D92: 荻久保 | E92: 12 | F92: 11 | G92: 2 | H92: 2 | I92: 2 | J92: - | K92: 7 | L92: 1 | M92: 25 | N92: - | O92: - | P92: - | Q92: - | R92: - | S92: 1 | T92: - | U92: 1 | V92: 1 | W92: 5 | X92: 2 | Y92: 5 | Z92: 5 | AA92: 3 | AB92: 2 | AC92: 70.6 | AD92: 68.4 | AE92: 73.5 | AF92: 22 | AG92: - | AH92: - | AI92: - | AJ92: - | AK92: - | AL92: - | AM92: - | AN92: - | AO92: - | AP92: 5 | AQ92: 2 | AR92: 5 | AS92: 5 | AT92: 3 | AU92: 2 | AV92: 73.4 | AW92: 73.2 | AX92: 73.5 | AY92: 18 | AZ92: - | BA92: - | BB92: - | BC92: - | BD92: - | BE92: - | BF92: - | BG92: - | BH92: - | BI92: 3 | BJ92: 2 | BK92: 5 | BL92: 5 | BM92: 2 | BN92: 1 | BO92: 73.5 | BP92: 73.3 | BQ92: 73.7 | BR92: 11 | BS92: - | BT92: - | BU92: - | BV92: - | BW92: - | BX92: - | BY92: - | BZ92: - | CA92: - | CB92: 2 | CC92: - | CD92: 4 | CE92: 2 | CF92: 1 | CG92: 2 | CH92: 6 | CI92: - | CJ92: - | CK92: - | CL92: - | CM92: - | CN92: - | CO92: - | CP92: - | CQ92: - | CR92: 2 | CS92: 1 | CT92: 1 | CU92: 2 | DC92: 30 | DD92: 23 | DE92: 18 | DF92: 5 | DG92: - | DH92: 1 | DI92: 2 | DJ92: 4 | DK92: 11 | DL92: 2 | DM92: - | DN92: 1 | DO92: 1 | DP92: 4 | DQ92: 3 | DR92: - | DS92: - | DT92: - | DU92: - | DV92: - | DW92: - | DX92: - | DY92: - | DZ92: - | EA92: 11 | EB92: 520 | EC92: 167 | ED92: 262 | EE92: 91 | EF92: 15 | EG92: 12 | EH92: 9 | EI92: 3 | EJ92: - | EK92: - | EL92: 1 | EM92: 2 | EN92: 15 | EO92: 11 | EP92: 9 | EQ92: 2 | ER92: - | ES92: 1 | ET92: 1 | EU92: 2
A93: 長野県 | B93: 長野市 | C93: 芋井村 | D93: 影山 | E93: 25 | F93: 9 | G93: 1 | H93: - | I93: 1 | J93: - | K93: 7 | L93: 16 | M93: 22 | N93: - | O93: - | P93: 1 | Q93: - | R93: 1 | S93: 2 | T93: - | U93: - | V93: 2 | W93: 2 | X93: 5 | Y93: 3 | Z93: 5 | AA93: 1 | AB93: - | AC93: 64.0 | AD93: 62.2 | AE93: 66.3 | AF93: 14 | AG93: - | AH93: - | AI93: - | AJ93: - | AK93: - | AL93: - | AM93: - | AN93: - | AO93: 1 | AP93: 2 | AQ93: 4 | AR93: 2 | AS93: 4 | AT93: 1 | AU93: - | AV93: 70.6 | AW93: 72.7 | AX93: 68.4 | AY93: 14 | AZ93: - | BA93: - | BB93: - | BC93: - | BD93: - | BE93: - | BF93: - | BG93: - | BH93: 1 | BI93: 2 | BJ93: 4 | BK93: 2 | BL93: 4 | BM93: 1 | BN93: - | BO93: 70.6 | BP93: 72.7 | BQ93: 68.4 | BR93: 9 | BS93: - | BT93: - | BU93: - | BV93: - | BW93: - | BX93: - | BY93: - | BZ93: - | CA93: 1 | CB93: 1 | CC93: 2 | CD93: 1 | CE93: 3 | CF93: 1 | CG93: - | CH93: 5 | CI93: - | CJ93: - | CK93: - | CL93: - | CM93: - | CN93: - | CO93: 1 | CP93: - | CQ93: 1 | CR93: 1 | CS93: 2 | CT93: - | CU93: - | DC93: 27 | DD93: 24 | DE93: 14 | DF93: 10 | DG93: - | DH93: - | DI93: 1 | DJ93: 2 | DK93: 9 | DL93: - | DM93: - | DN93: - | DO93: 2 | DP93: 6 | DQ93: 1 | DR93: - | DS93: - | DT93: - | DU93: - | DV93: - | DW93: - | DX93: - | DY93: - | DZ93: - | EA93: 9 | EB93: 368 | EC93: 134 | ED93: 234 | EE93: - | EF93: 15 | EG93: 13 | EH93: 7 | EI93: 6 | EJ93: - | EK93: - | EL93: 1 | EM93: 1 | EN93: 12 | EO93: 11 | EP93: 7 | EQ93: 4 | ER93: - | ES93: - | ET93: - | EU93: 1
A94: 長野県 | B94: 長野市 | C94: 芋井村 | D94: 沢浦 | E94: 12 | F94: 8 | G94: - | H94: - | I94: 3 | J94: - | K94: 5 | L94: 4 | M94: 23 | N94: 1 | O94: 1 | P94: 2 | Q94: - | R94: 1 | S94: 1 | T94: 1 | U94: 5 | V94: 2 | W94: - | X94: 1 | Y94: 1 | Z94: 5 | AA94: 2 | AB94: - | AC94: 55.3 | AD94: 59.8 | AE94: 50.3 | AF94: 9 | AG94: - | AH94: - | AI94: - | AJ94: - | AK94: - | AL94: - | AM94: 1 | AN94: - | AO94: - | AP94: - | AQ94: - | AR94: 1 | AS94: 5 | AT94: 2 | AU94: - | AV94: 74.0 | AW94: 79.5 | AX94: 69.6 | AY94: 8 | AZ94: - | BA94: - | BB94: - | BC94: - | BD94: - | BE94: - | BF94: - | BG94: - | BH94: - | BI94: - | BJ94: - | BK94: 1 | BL94: 5 | BM94: 2 | BN94: - | BO94: 77.5 | BP94: 79.5 | BQ94: 75.5 | BR94: 8 | BS94: - | BT94: - | BU94: - | BV94: - | BW94: - | BX94: - | BY94: - | BZ94: 1 | CA94: 1 | CB94: - | CC94: 1 | CD94: 1 | CE94: 2 | CF94: 2 | CG94: - | CH94: 5 | CI94: - | CJ94: - | CK94: - | CL94: - | CM94: - | CN94: - | CO94: - | CP94: - | CQ94: - | CR94: 1 | CS94: 2 | CT94: 2 | CU94: - | DC94: 26 | DD94: 20 | DE94: 8 | DF94: 11 | DG94: 1 | DH94: 2 | DI94: 3 | DJ94: 1 | DK94: 7 | DL94: 1 | DM94: - | DN94: 1 | DO94: - | DP94: 2 | DQ94: 3 | DR94: - | DS94: - | DT94: - | DU94: - | DV94: - | DW94: - | DX94: - | DY94: - | DZ94: - | EA94: 8 | EB94: 432 | EC94: 240 | ED94: 192 | EE94: - | EF94: 13 | EG94: 13 | EH94: 4 | EI94: 8 | EJ94: 1 | EK94: - | EL94: - | EM94: - | EN94: 13 | EO94: 7 | EP94: 4 | EQ94: 3 | ER94: - | ES94: 2 | ET94: 3 | EU94: 1
A95: 長野県 | B95: 長野市 | C95: 芋井村 | D95: 扇平 | E95: 4 | F95: 1 | G95: x | H95: x | I95: x | J95: x | K95: x | L95: 3 | M95: x | N95: x | O95: x | P95: x | Q95: x | R95: x | S95: x | T95: x | U95: x | V95: x | W95: x | X95: x | Y95: x | Z95: x | AA95: x | AB95: x | AC95: 76.5 | AD95: 78.0 | AE95: 75.0 | AF95: x | AG95: x | AH95: x | AI95: x | AJ95: x | AK95: x | AL95: x | AM95: x | AN95: x | AO95: x | AP95: x | AQ95: x | AR95: x | AS95: x | AT95: x | AU95: x | AV95: 76.5 | AW95: 78.0 | AX95: 75.0 | AY95: x | AZ95: x | BA95: x | BB95: x | BC95: x | BD95: x | BE95: x | BF95: x | BG95: x | BH95: x | BI95: x | BJ95: x | BK95: x | BL95: x | BM95: x | BN95: x | BO95: 76.5 | BP95: 78.0 | BQ95: 75.0 | BR95: 1 | BS95: - | BT95: - | BU95: - | BV95: - | BW95: - | BX95: - | BY95: - | BZ95: - | CA95: - | CB95: - | CC95: - | CD95: - | CE95: 1 | CF95: - | CG95: - | CH95: - | CI95: - | CJ95: - | CK95: - | CL95: - | CM95: - | CN95: - | CO95: - | CP95: - | CQ95: - | CR95: - | CS95: - | CT95: - | CU95: - | DC95: 2 | DD95: 2 | DE95: 2 | DF95: - | DG95: - | DH95: - | DI95: - | DJ95: - | DK95: 1 | DL95: - | DM95: - | DN95: - | DO95: - | DP95: - | DQ95: 1 | DR95: - | DS95: - | DT95: - | DU95: - | DV95: - | DW95: - | DX95: - | DY95: - | DZ95: - | EA95: 1 | EB95: 39 | EC95: 7 | ED95: 32 | EE95: - | EF95: 1 | EG95: 1 | EH95: 1 | EI95: - | EJ95: - | EK95: - | EL95: - | EM95: - | EN95: 1 | EO95: 1 | EP95: 1 | EQ95: - | ER95: - | ES95: - | ET95: - | EU95: -
A96: 長野県 | B96: 長野市 | C96: 芋井村 | D96: 百舌原 | E96: 16 | F96: 10 | G96: - | H96: - | I96: 3 | J96: 2 | K96: 7 | L96: 6 | M96: 29 | N96: - | O96: - | P96: 3 | Q96: 1 | R96: 2 | S96: - | T96: - | U96: 1 | V96: 5 | W96: 1 | X96: 3 | Y96: 1 | Z96: 5 | AA96: 6 | AB96: 1 | AC96: 62.6 | AD96: 61.7 | AE96: 63.9 | AF96: 17 | AG96: - | AH96: - | AI96: - | AJ96: - | AK96: - | AL96: - | AM96: - | AN96: - | AO96: - | AP96: 1 | AQ96: 3 | AR96: 1 | AS96: 5 | AT96: 6 | AU96: 1 | AV96: 76.1 | AW96: 78.0 | AX96: 74.0 | AY96: 15 | AZ96: - | BA96: - | BB96: - | BC96: - | BD96: - | BE96: - | BF96: - | BG96: - | BH96: - | BI96: 1 | BJ96: 3 | BK96: 1 | BL96: 5 | BM96: 4 | BN96: 1 | BO96: 75.4 | BP96: 77.6 | BQ96: 72.9 | BR96: 10 | BS96: - | BT96: - | BU96: - | BV96: - | BW96: - | BX96: - | BY96: - | BZ96: - | CA96: 1 | CB96: - | CC96: 1 | CD96: 1 | CE96: 2 | CF96: 4 | CG96: 1 | CH96: 5 | CI96: - | CJ96: - | CK96: - | CL96: - | CM96: - | CN96: - | CO96: - | CP96: - | CQ96: 1 | CR96: - | CS96: 2 | CT96: 1 | CU96: 1 | DC96: 29 | DD96: 27 | DE96: 15 | DF96: 12 | DG96: - | DH96: 1 | DI96: - | DJ96: 1 | DK96: 8 | DL96: 5 | DM96: - | DN96: - | DO96: - | DP96: - | DQ96: 3 | DR96: - | DS96: - | DT96: - | DU96: - | DV96: - | DW96: - | DX96: - | DY96: - | DZ96: - | EA96: 10 | EB96: 502 | EC96: 308 | ED96: 189 | EE96: 5 | EF96: 17 | EG96: 16 | EH96: 8 | EI96: 8 | EJ96: - | EK96: - | EL96: - | EM96: 1 | EN96: 12 | EO96: 11 | EP96: 7 | EQ96: 4 | ER96: - | ES96: 1 | ET96: - | EU96: -
A97: 長野県 | B97: 長野市 | C97: 芋井村 | D97: 広瀬 | E97: 12 | F97: 7 | G97: - | H97: - | I97: 1 | J97: - | K97: 6 | L97: 5 | M97: 19 | N97: 1 | O97: 1 | P97: - | Q97: - | R97: - | S97: 2 | T97: 1 | U97: 1 | V97: 2 | W97: - | X97: - | Y97: 6 | Z97: 2 | AA97: 3 | AB97: - | AC97: 61.2 | AD97: 64.0 | AE97: 58.6 | AF97: 10 | AG97: - | AH97: - | AI97: - | AJ97: - | AK97: - | AL97: - | AM97: - | AN97: - | AO97: - | AP97: - | AQ97: - | AR97: 5 | AS97: 2 | AT97: 3 | AU97: - | AV97: 75.9 | AW97: 77.3 | AX97: 75.0 | AY97: 10 | AZ97: - | BA97: - | BB97: - | BC97: - | BD97: - | BE97: - | BF97: - | BG97: - | BH97: - | BI97: - | BJ97: - | BK97: 5 | BL97: 2 | BM97: 3 | BN97: - | BO97: 75.9 | BP97: 77.3 | BQ97: 75.0 | BR97: 7 | BS97: - | BT97: - | BU97: - | BV97: - | BW97: - | BX97: - | BY97: - | BZ97: - | CA97: 1 | CB97: - | CC97: - | CD97: 3 | CE97: 2 | CF97: 1 | CG97: - | CH97: 5 | CI97: - | CJ97: - | CK97: - | CL97: - | CM97: - | CN97: - | CO97: - | CP97: - | CQ97: - | CR97: 3 | CS97: 1 | CT97: 1 | CU97: - | DC97: 25 | DD97: 19 | DE97: 10 | DF97: 8 | DG97: 1 | DH97: 1 | DI97: 3 | DJ97: 2 | DK97: 7 | DL97: 2 | DM97: - | DN97: - | DO97: - | DP97: 1 | DQ97: - | DR97: 4 | DS97: - | DT97: - | DU97: - | DV97: - | DW97: - | DX97: - | DY97: - | DZ97: - | EA97: 7 | EB97: 549 | EC97: 268 | ED97: 101 | EE97: 180 | EF97: 11 | EG97: 8 | EH97: 4 | EI97: 3 | EJ97: 1 | EK97: - | EL97: 2 | EM97: 1 | EN97: 14 | EO97: 11 | EP97: 6 | EQ97: 5 | ER97: - | ES97: 1 | ET97: 1 | EU97: 1
A98: 長野県 | B98: 長野市 | C98: 芋井村 | D98: 新屋 | E98: 11 | F98: 3 | G98: - | H98: - | I98: - | J98: - | K98: 3 | L98: 8 | M98: 4 | N98: - | O98: - | P98: - | Q98: - | R98: - | S98: - | T98: - | U98: - | V98: - | W98: - | X98: - | Y98: 1 | Z98: 3 | AA98: - | AB98: - | AC98: 76.8 | AD98: 76.3 | AE98: 78.0 | AF98: 3 | AG98: - | AH98: - | AI98: - | AJ98: - | AK98: - | AL98: - | AM98: - | AN98: - | AO98: - | AP98: - | AQ98: - | AR98: - | AS98: 3 | AT98: - | AU98: - | AV98: 78.0 | AW98: 78.0 | AX98: 78.0 | AY98: 3 | AZ98: - | BA98: - | BB98: - | BC98: - | BD98: - | BE98: - | BF98: - | BG98: - | BH98: - | BI98: - | BJ98: - | BK98: - | BL98: 3 | BM98: - | BN98: - | BO98: 78.0 | BP98: 78.0 | BQ98: 78.0 | BR98: 3 | BS98: - | BT98: - | BU98: - | BV98: - | BW98: - | BX98: - | BY98: - | BZ98: - | CA98: - | CB98: - | CC98: - | CD98: 1 | CE98: 2 | CF98: - | CG98: - | CH98: 3 | CI98: - | CJ98: - | CK98: - | CL98: - | CM98: - | CN98: - | CO98: - | CP98: - | CQ98: - | CR98: 1 | CS98: 2 | CT98: - | CU98: - | DC98: 4 | DD98: 3 | DE98: 3 | DF98: - | DG98: - | DH98: - | DI98: - | DJ98: 1 | DK98: 2 | DL98: 1 | DM98: - | DN98: - | DO98: - | DP98: 1 | DQ98: - | DR98: - | DS98: - | DT98: - | DU98: - | DV98: - | DW98: - | DX98: - | DY98: - | DZ98: - | EA98: 3 | EB98: 188 | EC98: 103 | ED98: 48 | EE98: 37 | EF98: 3 | EG98: 2 | EH98: 2 | EI98: - | EJ98: - | EK98: - | EL98: - | EM98: 1 | EN98: 1 | EO98: 1 | EP98: 1 | EQ98: - | ER98: - | ES98: - | ET98: - | EU98: -
A99: 長野県 | B99: 長野市 | C99: 芋井村 | D99: 荒井 | E99: 17 | F99: 4 | G99: - | H99: - | I99: - | J99: - | K99: 4 | L99: 13 | M99: 18 | N99: 1 | O99: 1 | P99: 1 | Q99: 1 | R99: 4 | S99: - | T99: - | U99: 1 | V99: 1 | W99: - | X99: 2 | Y99: 1 | Z99: 3 | AA99: 2 | AB99: - | AC99: 53.2 | AD99: 51.0 | AE99: 56.0 | AF99: 9 | AG99: 1 | AH99: - | AI99: - | AJ99: - | AK99: 1 | AL99: - | AM99: - | AN99: - | AO99: - | AP99: - | AQ99: 1 | AR99: 1 | AS99: 3 | AT99: 2 | AU99: - | AV99: 64.9 | AW99: 63.0 | AX99: 66.4 | AY99: 7 | AZ99: - | BA99: - | BB99: - | BC99: - | BD99: - | BE99: - | BF99: - | BG99: - | BH99: - | BI99: - | BJ99: 1 | BK99: 1 | BL99: 3 | BM99: 2 | BN99: - | BO99: 76.1 | BP99: 78.7 | BQ99: 74.3 | BR99: 4 | BS99: - | BT99: - | BU99: - | BV99: - | BW99: - | BX99: - | BY99: - | BZ99: - | CA99: - | CB99: - | CC99: 1 | CD99: - | CE99: 2 | CF99: 1 | CG99: - | CH99: 4 | CI99: - | CJ99: - | CK99: - | CL99: - | CM99: - | CN99: - | CO99: - | CP99: - | CQ99: 1 | CR99: - | CS99: 2 | CT99: 1 | CU99: - | DC99: 20 | DD99: 17 | DE99: 7 | DF99: 10 | DG99: - | DH99: 2 | DI99: 1 | DJ99: - | DK99: 3 | DL99: 2 | DM99: - | DN99: - | DO99: - | DP99: 1 | DQ99: - | DR99: - | DS99: - | DT99: - | DU99: - | DV99: - | DW99: - | DX99: - | DY99: - | DZ99: - | EA99: 4 | EB99: 182 | EC99: 112 | ED99: 43 | EE99: 27 | EF99: 11 | EG99: 10 | EH99: 3 | EI99: 7 | EJ99: - | EK99: - | EL99: 1 | EM99: - | EN99: 9 | EO99: 7 | EP99: 4 | EQ99: 3 | ER99: - | ES99: 2 | ET99: - | EU99: -
A100: 長野県 | B100: 長野市 | C100: 芋井村 | D100: 平 | E100: 31 | F100: 17 | G100: 2 | H100: 1 | I100: 1 | J100: - | K100: 14 | L100: 14 | M100: 49 | N100: - | O100: - | P100: - | Q100: 5 | R100: 2 | S100: 2 | T100: 1 | U100: 1 | V100: 1 | W100: 7 | X100: 10 | Y100: 9 | Z100: 8 | AA100: - | AB100: 3 | AC100: 63.7 | AD100: 63.3 | AE100: 64.0 | AF100: 32 | AG100: - | AH100: - | AI100: - | AJ100: - | AK100: - | AL100: 1 | AM100: - | AN100: - | AO100: - | AP100: 5 | AQ100: 8 | AR100: 9 | AS100: 7 | AT100: - | AU100: 2 | AV100: 70.6 | AW100: 69.3 | AX100: 71.6 | AY100: 28 | AZ100: - | BA100: - | BB100: - | BC100: - | BD100: - | BE100: - | BF100: - | BG100: - | BH100: - | BI100: 5 | BJ100: 8 | BK100: 8 | BL100: 6 | BM100: - | BN100: 1 | BO100: 70.7 | BP100: 71.0 | BQ100: 70.5 | BR100: 17 | BS100: - | BT100: - | BU100: - | BV100: - | BW100: - | BX100: - | BY100: - | BZ100: - | CA100: - | CB100: 3 | CC100: 5 | CD100: 3 | CE100: 6 | CF100: - | CG100: - | CH100: 8 | CI100: - | CJ100: - | CK100: - | CL100: - | CM100: - | CN100: - | CO100: - | CP100: 2 | CQ100: 2 | CR100: - | CS100: 4 | CT100: - | CU100: - | DC100: 60 | DD100: 46 | DE100: 28 | DF100: 16 | DG100: 2 | DH100: 2 | DI100: 3 | DJ100: 9 | DK100: 15 | DL100: 5 | DM100: - | DN100: 1 | DO100: - | DP100: 2 | DQ100: - | DR100: 7 | DS100: - | DT100: - | DU100: - | DV100: - | DW100: - | DX100: - | DY100: - | DZ100: - | EA100: 17 | EB100: 1,164 | EC100: 515 | ED100: 251 | EE100: 398 | EF100: 28 | EG100: 22 | EH100: 12 | EI100: 8 | EJ100: 2 | EK100: - | EL100: 1 | EM100: 5 | EN100: 32 | EO100: 24 | EP100: 16 | EQ100: 8 | ER100: - | ES100: 2 | ET100: 2 | EU100: 4
A101: 長野県 | B101: 長野市 | C101: 芋井村 | D101: 京田，貉久保 | E101: 13 | F101: 7 | G101: - | H101: - | I101: 2 | J101: - | K101: 5 | L101: 6 | M101: 19 | N101: 2 | O101: - | P101: - | Q101: 1 | R101: - | S101: - | T101: 2 | U101: 2 | V101: 1 | W101: 3 | X101: 1 | Y101: 2 | Z101: 1 | AA101: 3 | AB101: 1 | AC101: 59.5 | AD101: 50.5 | AE101: 69.4 | AF101: 12 | AG101: 2 | AH101: - | AI101: - | AJ101: 1 | AK101: - | AL101: - | AM101: - | AN101: - | AO101: - | AP101: 1 | AQ101: 1 | AR101: 2 | AS101: 1 | AT101: 3 | AU101: 1 | AV101: 62.7 | AW101: 47.8 | AX101: 77.5 | AY101: 8 | AZ101: - | BA101: - | BB101: - | BC101: - | BD101: - | BE101: - | BF101: - | BG101: - | BH101: - | BI101: 1 | BJ101: 1 | BK101: 2 | BL101: - | BM101: 3 | BN101: 1 | BO101: 75.9 | BP101: 73.3 | BQ101: 77.4 | BR101: 7 | BS101: - | BT101: - | BU101: - | BV101: - | BW101: - | BX101: - | BY101: 1 | BZ101: 1 | CA101: - | CB101: 1 | CC101: 1 | CD101: 1 | CE101: - | CF101: 2 | CG101: - | CH101: 5 | CI101: - | CJ101: - | CK101: - | CL101: - | CM101: 1 | CN101: 1 | CO101: - | CP101: 1 | CQ101: - | CR101: - | CS101: - | CT101: 2 | CU101: - | DC101: 21 | DD101: 15 | DE101: 8 | DF101: 7 | DG101: - | DH101: - | DI101: 4 | DJ101: 2 | DK101: 6 | DL101: 6 | DM101: - | DN101: - | DO101: - | DP101: - | DQ101: - | DR101: - | DS101: - | DT101: - | DU101: - | DV101: - | DW101: - | DX101: - | DY101: - | DZ101: - | EA101: 7 | EB101: 385 | EC101: 287 | ED101: 78 | EE101: 20 | EF101: 11 | EG101: 7 | EH101: 3 | EI101: 4 | EJ101: - | EK101: - | EL101: 3 | EM101: 1 | EN101: 10 | EO101: 8 | EP101: 5 | EQ101: 3 | ER101: - | ES101: - | ET101: 1 | EU101: 1
A102: 長野県 | B102: 長野市 | C102: 芋井村 | D102: 軍足 | E102: 13 | F102: 7 | G102: - | H102: - | I102: 2 | J102: - | K102: 5 | L102: 6 | M102: 21 | N102: - | O102: - | P102: 4 | Q102: 1 | R102: - | S102: - | T102: - | U102: - | V102: 7 | W102: 3 | X102: - | Y102: 3 | Z102: 1 | AA102: 1 | AB102: 1 | AC102: 57.0 | AD102: 54.6 | AE102: 60.1 | AF102: 7 | AG102: - | AH102: - | AI102: - | AJ102: - | AK102: - | AL102: - | AM102: - | AN102: - | AO102: 1 | AP102: - | AQ102: - | AR102: 3 | AS102: 1 | AT102: 1 | AU102: 1 | AV102: 74.4 | AW102: 78.7 | AX102: 71.3 | AY102: 6 | AZ102: - | BA102: - | BB102: - | BC102: - | BD102: - | BE102: - | BF102: - | BG102: - | BH102: - | BI102: - | BJ102: - | BK102: 3 | BL102: 1 | BM102: 1 | BN102: 1 | BO102: 77.3 | BP102: 78.7 | BQ102: 76.0 | BR102: 7 | BS102: - | BT102: - | BU102: - | BV102: - | BW102: - | BX102: - | BY102: - | BZ102: - | CA102: 1 | CB102: 3 | CC102: - | CD102: 1 | CE102: 1 | CF102: - | CG102: 1 | CH102: 7 | CI102: - | CJ102: - | CK102: - | CL102: - | CM102: - | CN102: - | CO102: 1 | CP102: 3 | CQ102: - | CR102: 1 | CS102: 1 | CT102: - | CU102: 1 | DC102: 24 | DD102: 20 | DE102: 6 | DF102: 14 | DG102: - | DH102: 3 | DI102: - | DJ102: 1 | DK102: 6 | DL102: 5 | DM102: - | DN102: - | DO102: 1 | DP102: - | DQ102: - | DR102: - | DS102: - | DT102: - | DU102: - | DV102: - | DW102: - | DX102: - | DY102: - | DZ102: - | EA102: 7 | EB102: 306 | EC102: 181 | ED102: 125 | EE102: - | EF102: 13 | EG102: 13 | EH102: 3 | EI102: 10 | EJ102: - | EK102: - | EL102: - | EM102: - | EN102: 11 | EO102: 7 | EP102: 3 | EQ102: 4 | ER102: - | ES102: 3 | ET102: - | EU102: 1
A103: 長野県 | B103: 長野市 | C103: 芋井村 | D103: 麓原 | E103: 4 | F103: 3 | G103: - | H103: - | I103: 1 | J103: - | K103: 2 | L103: 1 | M103: 10 | N103: 2 | O103: - | P103: - | Q103: - | R103: - | S103: 1 | T103: 1 | U103: - | V103: - | W103: - | X103: - | Y103: 3 | Z103: 3 | AA103: - | AB103: - | AC103: 57.0 | AD103: 58.8 | AE103: 55.2 | AF103: 8 | AG103: 2 | AH103: - | AI103: - | AJ103: - | AK103: - | AL103: - | AM103: - | AN103: - | AO103: - | AP103: - | AQ103: - | AR103: 3 | AS103: 3 | AT103: - | AU103: - | AV103: 59.8 | AW103: 61.5 | AX103: 58.0 | AY103: 6 | AZ103: - | BA103: - | BB103: - | BC103: - | BD103: - | BE103: - | BF103: - | BG103: - | BH103: - | BI103: - | BJ103: - | BK103: 3 | BL103: 3 | BM103: - | BN103: - | BO103: 74.3 | BP103: 77.0 | BQ103: 71.7 | BR103: 3 | BS103: - | BT103: - | BU103: - | BV103: - | BW103: - | BX103: - | BY103: 1 | BZ103: - | CA103: - | CB103: - | CC103: - | CD103: - | CE103: 2 | CF103: - | CG103: - | CH103: 1 | CI103: - | CJ103: - | CK103: - | CL103: - | CM103: 1 | CN103: - | CO103: - | CP103: - | CQ103: - | CR103: - | CS103: - | CT103: - | CU103: - | DC103: 12 | DD103: 10 | DE103: 6 | DF103: 4 | DG103: - | DH103: - | DI103: 2 | DJ103: - | DK103: 3 | DL103: - | DM103: - | DN103: - | DO103: - | DP103: 3 | DQ103: - | DR103: - | DS103: - | DT103: - | DU103: - | DV103: - | DW103: - | DX103: - | DY103: - | DZ103: - | EA103: 3 | EB103: 450 | EC103: - | ED103: 450 | EE103: - | EF103: 6 | EG103: 5 | EH103: 3 | EI103: 2 | EJ103: - | EK103: - | EL103: 1 | EM103: - | EN103: 6 | EO103: 5 | EP103: 3 | EQ103: 2 | ER103: - | ES103: - | ET103: 1 | EU103: -
A104: 長野県 | B104: 長野市 | C104: 芋井村 | D104: 栄峯，銚子口 | E104: 5 | F104: 5 | G104: 3 | H104: 2 | I104: 1 | J104: - | K104: 1 | L104: - | M104: 14 | N104: - | O104: 1 | P104: - | Q104: - | R104: - | S104: - | T104: 2 | U104: 2 | V104: 4 | W104: - | X104: - | Y104: 1 | Z104: - | AA104: 1 | AB104: 3 | AC104: 61.6 | AD104: 60.2 | AE104: 62.8 | AF104: 12 | AG104: - | AH104: - | AI104: - | AJ104: - | AK104: - | AL104: - | AM104: 1 | AN104: 2 | AO104: 4 | AP104: - | AQ104: - | AR104: 1 | AS104: - | AT104: 1 | AU104: 3 | AV104: 66.2 | AW104: 67.6 | AX104: 65.1 | AY104: 9 | AZ104: - | BA104: - | BB104: - | BC104: - | BD104: - | BE104: - | BF104: 1 | BG104: 2 | BH104: 2 | BI104: - | BJ104: - | BK104: 1 | BL104: - | BM104: 1 | BN104: 2 | BO104: 66.2 | BP104: 65.3 | BQ104: 66.7 | BR104: 5 | BS104: - | BT104: - | BU104: - | BV104: - | BW104: - | BX104: - | BY104: 1 | BZ104: 2 | CA104: - | CB104: - | CC104: - | CD104: - | CE104: - | CF104: - | CG104: 2 | CH104: 1 | CI104: - | CJ104: - | CK104: - | CL104: - | CM104: - | CN104: 1 | CO104: - | CP104: - | CQ104: - | CR104: - | CS104: - | CT104: - | CU104: - | DC104: 20 | DD104: 14 | DE104: 9 | DF104: 5 | DG104: - | DH104: - | DI104: 1 | DJ104: 5 | DK104: 4 | DL104: - | DM104: - | DN104: - | DO104: - | DP104: 2 | DQ104: 1 | DR104: - | DS104: 1 | DT104: - | DU104: - | DV104: - | DW104: - | DX104: - | DY104: - | DZ104: - | EA104: 5 | EB104: 856 | EC104: 30 | ED104: 826 | EE104: - | EF104: 9 | EG104: 6 | EH104: 3 | EI104: 3 | EJ104: - | EK104: - | EL104: - | EM104: 3 | EN104: 11 | EO104: 8 | EP104: 6 | EQ104: 2 | ER104: - | ES104: - | ET104: 1 | EU104: 2
A105: 長野県 | B105: 長野市 | C105: 浅川村 | E105: 206 | F105: 110 | G105: 19 | H105: 14 | I105: 17 | J105: 7 | K105: 74 | L105: 96 | M105: 274 | N105: 5 | O105: 4 | P105: 6 | Q105: 7 | R105: 5 | S105: 13 | T105: 13 | U105: 14 | V105: 12 | W105: 30 | X105: 43 | Y105: 62 | Z105: 26 | AA105: 27 | AB105: 7 | AC105: 63.4 | AD105: 62.5 | AE105: 64.3 | AF105: 193 | AG105: - | AH105: - | AI105: - | AJ105: 2 | AK105: 2 | AL105: 2 | AM105: 2 | AN105: 1 | AO105: 4 | AP105: 22 | AQ105: 41 | AR105: 59 | AS105: 26 | AT105: 25 | AU105: 7 | AV105: 70.7 | AW105: 71.4 | AX105: 70.1 | AY105: 183 | AZ105: - | BA105: - | BB105: - | BC105: 2 | BD105: 2 | BE105: 2 | BF105: 1 | BG105: 1 | BH105: 3 | BI105: 22 | BJ105: 40 | BK105: 56 | BL105: 25 | BM105: 25 | BN105: 4 | BO105: 70.5 | BP105: 71.3 | BQ105: 69.8 | BR105: 110 | BS105: - | BT105: - | BU105: - | BV105: - | BW105: - | BX105: 2 | BY105: 2 | BZ105: 1 | CA105: 4 | CB105: 11 | CC105: 19 | CD105: 32 | CE105: 18 | CF105: 16 | CG105: 5 | CH105: 63 | CI105: - | CJ105: - | CK105: - | CL105: - | CM105: - | CN105: - | CO105: 2 | CP105: 8 | CQ105: 10 | CR105: 16 | CS105: 15 | CT105: 9 | CU105: 3 | DC105: 330 | DD105: 274 | DE105: 183 | DF105: 90 | DG105: 1 | DH105: 14 | DI105: 12 | DJ105: 30 | DK105: 106 | DL105: 7 | DM105: - | DN105: - | DO105: - | DP105: 5 | DQ105: - | DR105: 94 | DS105: - | DT105: - | DU105: - | DV105: - | DW105: - | DX105: - | DY105: - | DZ105: - | EA105: 110 | EB105: 6,969 | EC105: 1,851 | ED105: 803 | EE105: 4,315 | EF105: 160 | EG105: 146 | EH105: 90 | EI105: 56 | EJ105: - | EK105: 1 | EL105: 6 | EM105: 7 | EN105: 170 | EO105: 128 | EP105: 93 | EQ105: 34 | ER105: 1 | ES105: 13 | ET105: 6 | EU105: 23
A106: 長野県 | B106: 長野市 | C106: 浅川村 | D106: 東条 | E106: 15 | F106: 4 | G106: 1 | H106: 1 | I106: - | J106: - | K106: 3 | L106: 11 | M106: 11 | N106: - | O106: - | P106: - | Q106: - | R106: 2 | S106: - | T106: 1 | U106: - | V106: - | W106: 1 | X106: 1 | Y106: 4 | Z106: 2 | AA106: - | AB106: - | AC106: 63.5 | AD106: 67.4 | AE106: 60.2 | AF106: 10 | AG106: - | AH106: - | AI106: - | AJ106: - | AK106: 2 | AL106: - | AM106: - | AN106: - | AO106: - | AP106: 1 | AQ106: 1 | AR106: 4 | AS106: 2 | AT106: - | AU106: - | AV106: 65.3 | AW106: 67.4 | AX106: 63.2 | AY106: 10 | AZ106: - | BA106: - | BB106: - | BC106: - | BD106: 2 | BE106: - | BF106: - | BG106: - | BH106: - | BI106: 1 | BJ106: 1 | BK106: 4 | BL106: 2 | BM106: - | BN106: - | BO106: 65.3 | BP106: 67.4 | BQ106: 63.2 | BR106: 4 | BS106: - | BT106: - | BU106: - | BV106: - | BW106: - | BX106: - | BY106: - | BZ106: - | CA106: - | CB106: - | CC106: 1 | CD106: 1 | CE106: 2 | CF106: - | CG106: - | CH106: 4 | CI106: - | CJ106: - | CK106: - | CL106: - | CM106: - | CN106: - | CO106: - | CP106: - | CQ106: 1 | CR106: 1 | CS106: 2 | CT106: - | CU106: - | DC106: 13 | DD106: 13 | DE106: 10 | DF106: 3 | DG106: - | DH106: - | DI106: - | DJ106: - | DK106: 4 | DL106: - | DM106: - | DN106: - | DO106: - | DP106: - | DQ106: - | DR106: 4 | DS106: - | DT106: - | DU106: - | DV106: - | DW106: - | DX106: - | DY106: - | DZ106: - | EA106: 4 | EB106: 606 | EC106: 96 | ED106: 60 | EE106: 450 | EF106: 6 | EG106: 6 | EH106: 5 | EI106: 1 | EJ106: - | EK106: - | EL106: - | EM106: - | EN106: 7 | EO106: 7 | EP106: 5 | EQ106: 2 | ER106: - | ES106: - | ET106: - | EU106: -
A107: 長野県 | B107: 長野市 | C107: 浅川村 | D107: 伺去 | E107: 27 | F107: 13 | G107: 2 | H107: 2 | I107: 3 | J107: 1 | K107: 8 | L107: 14 | M107: 31 | N107: - | O107: - | P107: 1 | Q107: - | R107: - | S107: - | T107: 2 | U107: - | V107: 1 | W107: 8 | X107: 6 | Y107: 7 | Z107: 3 | AA107: 1 | AB107: 2 | AC107: 66.7 | AD107: 65.5 | AE107: 67.9 | AF107: 24 | AG107: - | AH107: - | AI107: - | AJ107: - | AK107: - | AL107: - | AM107: - | AN107: - | AO107: - | AP107: 6 | AQ107: 6 | AR107: 6 | AS107: 3 | AT107: 1 | AU107: 2 | AV107: 70.7 | AW107: 71.3 | AX107: 70.3 | AY107: 22 | AZ107: - | BA107: - | BB107: - | BC107: - | BD107: - | BE107: - | BF107: - | BG107: - | BH107: - | BI107: 6 | BJ107: 6 | BK107: 6 | BL107: 3 | BM107: 1 | BN107: - | BO107: 69.0 | BP107: 71.3 | BQ107: 67.1 | BR107: 13 | BS107: - | BT107: - | BU107: - | BV107: - | BW107: - | BX107: - | BY107: - | BZ107: - | CA107: - | CB107: 4 | CC107: 2 | CD107: 4 | CE107: 2 | CF107: 1 | CG107: - | CH107: 7 | CI107: - | CJ107: - | CK107: - | CL107: - | CM107: - | CN107: - | CO107: - | CP107: 2 | CQ107: 1 | CR107: 1 | CS107: 2 | CT107: 1 | CU107: - | DC107: 36 | DD107: 31 | DE107: 22 | DF107: 9 | DG107: - | DH107: - | DI107: - | DJ107: 5 | DK107: 13 | DL107: - | DM107: - | DN107: - | DO107: - | DP107: 1 | DQ107: - | DR107: 12 | DS107: - | DT107: - | DU107: - | DV107: - | DW107: - | DX107: - | DY107: - | DZ107: - | EA107: 13 | EB107: 569 | EC107: 10 | ED107: 38 | EE107: 521 | EF107: 17 | EG107: 17 | EH107: 10 | EI107: 7 | EJ107: - | EK107: - | EL107: - | EM107: - | EN107: 19 | EO107: 14 | EP107: 12 | EQ107: 2 | ER107: - | ES107: - | ET107: - | EU107: 5
A108: 長野県 | B108: 長野市 | C108: 浅川村 | D108: 真光寺 | E108: 5 | F108: 4 | G108: - | H108: - | I108: - | J108: - | K108: 4 | L108: 1 | M108: 11 | N108: 2 | O108: - | P108: - | Q108: - | R108: - | S108: 2 | T108: - | U108: - | V108: - | W108: - | X108: 3 | Y108: 3 | Z108: 1 | AA108: - | AB108: - | AC108: 56.5 | AD108: 49.7 | AE108: 64.6 | AF108: 7 | AG108: - | AH108: - | AI108: - | AJ108: - | AK108: - | AL108: - | AM108: - | AN108: - | AO108: - | AP108: - | AQ108: 3 | AR108: 3 | AS108: 1 | AT108: - | AU108: - | AV108: 71.7 | AW108: 73.7 | AX108: 70.3 | AY108: 6 | AZ108: - | BA108: - | BB108: - | BC108: - | BD108: - | BE108: - | BF108: - | BG108: - | BH108: - | BI108: - | BJ108: 3 | BK108: 2 | BL108: 1 | BM108: - | BN108: - | BO108: 72.0 | BP108: 73.7 | BQ108: 70.3 | BR108: 4 | BS108: - | BT108: - | BU108: - | BV108: - | BW108: - | BX108: - | BY108: - | BZ108: - | CA108: - | CB108: - | CC108: 1 | CD108: 2 | CE108: 1 | CF108: - | CG108: - | CH108: 3 | CI108: - | CJ108: - | CK108: - | CL108: - | CM108: - | CN108: - | CO108: - | CP108: - | CQ108: 1 | CR108: 1 | CS108: 1 | CT108: - | CU108: - | DC108: 13 | DD108: 10 | DE108: 6 | DF108: 4 | DG108: - | DH108: 1 | DI108: 2 | DJ108: - | DK108: 4 | DL108: - | DM108: - | DN108: - | DO108: - | DP108: 1 | DQ108: - | DR108: 3 | DS108: - | DT108: - | DU108: - | DV108: - | DW108: - | DX108: - | DY108: - | DZ108: - | EA108: 4 | EB108: 138 | EC108: 30 | ED108: 58 | EE108: 50 | EF108: 8 | EG108: 6 | EH108: 3 | EI108: 3 | EJ108: - | EK108: - | EL108: 2 | EM108: - | EN108: 5 | EO108: 4 | EP108: 3 | EQ108: 1 | ER108: - | ES108: 1 | ET108: - | EU108: -
A109: 長野県 | B109: 長野市 | C109: 浅川村 | D109: 一ノ瀬 | E109: - | F109: - | G109: - | H109: - | I109: - | J109: - | K109: - | L109: - | M109: - | N109: - | O109: - | P109: - | Q109: - | R109: - | S109: - | T109: - | U109: - | V109: - | W109: - | X109: - | Y109: - | Z109: - | AA109: - | AB109: - | AC109: … | AD109: … | AE109: … | AF109: - | AG109: - | AH109: - | AI109: - | AJ109: - | AK109: - | AL109: - | AM109: - | AN109: - | AO109: - | AP109: - | AQ109: - | AR109: - | AS109: - | AT109: - | AU109: - | AV109: … | AW109: … | AX109: … | AY109: - | AZ109: - | BA109: - | BB109: - | BC109: - | BD109: - | BE109: - | BF109: - | BG109: - | BH109: - | BI109: - | BJ109: - | BK109: - | BL109: - | BM109: - | BN109: - | BO109: … | BP109: … | BQ109: … | BR109: - | BS109: - | BT109: - | BU109: - | BV109: - | BW109: - | BX109: - | BY109: - | BZ109: - | CA109: - | CB109: - | CC109: - | CD109: - | CE109: - | CF109: - | CG109: - | CH109: - | CI109: - | CJ109: - | CK109: - | CL109: - | CM109: - | CN109: - | CO109: - | CP109: - | CQ109: - | CR109: - | CS109: - | CT109: - | CU109: - | DC109: - | DD109: - | DE109: - | DF109: - | DG109: - | DH109: - | DI109: - | DJ109: - | DK109: - | DL109: - | DM109: - | DN109: - | DO109: - | DP109: - | DQ109: - | DR109: - | DS109: - | DT109: - | DU109: - | DV109: - | DW109: - | DX109: - | DY109: - | DZ109: - | EA109: - | EB109: - | EC109: - | ED109: - | EE109: - | EF109: - | EG109: - | EH109: - | EI109: - | EJ109: - | EK109: - | EL109: - | EM109: - | EN109: - | EO109: - | EP109: - | EQ109: - | ER109: - | ES109: - | ET109: - | EU109: -
A110: 長野県 | B110: 長野市 | C110: 浅川村 | D110: 清水 | E110: 9 | F110: 8 | G110: 1 | H110: 1 | I110: 1 | J110: 1 | K110: 6 | L110: 1 | M110: 19 | N110: - | O110: - | P110: - | Q110: 1 | R110: 1 | S110: 2 | T110: - | U110: - | V110: - | W110: 2 | X110: 8 | Y110: 1 | Z110: 1 | AA110: 2 | AB110: 1 | AC110: 63.7 | AD110: 65.7 | AE110: 61.4 | AF110: 14 | AG110: - | AH110: - | AI110: - | AJ110: - | AK110: - | AL110: - | AM110: - | AN110: - | AO110: - | AP110: 2 | AQ110: 7 | AR110: 1 | AS110: 1 | AT110: 2 | AU110: 1 | AV110: 70.9 | AW110: 74.0 | AX110: 67.7 | AY110: 14 | AZ110: - | BA110: - | BB110: - | BC110: - | BD110: - | BE110: - | BF110: - | BG110: - | BH110: - | BI110: 2 | BJ110: 7 | BK110: 1 | BL110: 1 | BM110: 2 | BN110: 1 | BO110: 70.9 | BP110: 74.0 | BQ110: 67.7 | BR110: 8 | BS110: - | BT110: - | BU110: - | BV110: - | BW110: - | BX110: - | BY110: - | BZ110: - | CA110: - | CB110: - | CC110: 4 | CD110: 1 | CE110: 1 | CF110: 1 | CG110: 1 | CH110: 3 | CI110: - | CJ110: - | CK110: - | CL110: - | CM110: - | CN110: - | CO110: - | CP110: - | CQ110: 2 | CR110: 1 | CS110: - | CT110: - | CU110: - | DC110: 21 | DD110: 19 | DE110: 14 | DF110: 5 | DG110: - | DH110: - | DI110: - | DJ110: 2 | DK110: 8 | DL110: - | DM110: - | DN110: - | DO110: - | DP110: - | DQ110: - | DR110: 8 | DS110: - | DT110: - | DU110: - | DV110: - | DW110: - | DX110: - | DY110: - | DZ110: - | EA110: 8 | EB110: 539 | EC110: 60 | ED110: 13 | EE110: 466 | EF110: 10 | EG110: 10 | EH110: 7 | EI110: 3 | EJ110: - | EK110: - | EL110: - | EM110: - | EN110: 11 | EO110: 9 | EP110: 7 | EQ110: 2 | ER110: - | ES110: - | ET110: - | EU110: 2
A111: 長野県 | B111: 長野市 | C111: 浅川村 | D111: 畑山 | E111: 9 | F111: 6 | G111: 3 | H111: 2 | I111: - | J111: - | K111: 3 | L111: 3 | M111: 17 | N111: - | O111: - | P111: - | Q111: 4 | R111: - | S111: 1 | T111: - | U111: - | V111: - | W111: 3 | X111: 3 | Y111: 2 | Z111: - | AA111: 4 | AB111: - | AC111: 60.6 | AD111: 60.0 | AE111: 61.3 | AF111: 13 | AG111: - | AH111: - | AI111: - | AJ111: 1 | AK111: - | AL111: - | AM111: - | AN111: - | AO111: - | AP111: 3 | AQ111: 3 | AR111: 2 | AS111: - | AT111: 4 | AU111: - | AV111: 68.5 | AW111: 67.0 | AX111: 70.3 | AY111: 13 | AZ111: - | BA111: - | BB111: - | BC111: 1 | BD111: - | BE111: - | BF111: - | BG111: - | BH111: - | BI111: 3 | BJ111: 3 | BK111: 2 | BL111: - | BM111: 4 | BN111: - | BO111: 68.5 | BP111: 67.0 | BQ111: 70.3 | BR111: 6 | BS111: - | BT111: - | BU111: - | BV111: - | BW111: - | BX111: - | BY111: - | BZ111: - | CA111: - | CB111: 1 | CC111: 2 | CD111: 1 | CE111: - | CF111: 2 | CG111: - | CH111: 2 | CI111: - | CJ111: - | CK111: - | CL111: - | CM111: - | CN111: - | CO111: - | CP111: 1 | CQ111: 1 | CR111: - | CS111: - | CT111: - | CU111: - | DC111: 17 | DD111: 17 | DE111: 13 | DF111: 4 | DG111: - | DH111: - | DI111: - | DJ111: - | DK111: 6 | DL111: - | DM111: - | DN111: - | DO111: - | DP111: - | DQ111: - | DR111: 6 | DS111: - | DT111: - | DU111: - | DV111: - | DW111: - | DX111: - | DY111: - | DZ111: - | EA111: 6 | EB111: 403 | EC111: - | ED111: 18 | EE111: 385 | EF111: 9 | EG111: 9 | EH111: 7 | EI111: 2 | EJ111: - | EK111: - | EL111: - | EM111: - | EN111: 8 | EO111: 8 | EP111: 6 | EQ111: 2 | ER111: - | ES111: - | ET111: - | EU111: -
A112: 長野県 | B112: 長野市 | C112: 浅川村 | D112: 門沢 | E112: 11 | F112: 4 | G112: - | H112: - | I112: - | J112: - | K112: 4 | L112: 7 | M112: 7 | N112: - | O112: - | P112: - | Q112: - | R112: - | S112: - | T112: - | U112: - | V112: - | W112: - | X112: 3 | Y112: 3 | Z112: 1 | AA112: - | AB112: - | AC112: 71.3 | AD112: 71.3 | AE112: 71.3 | AF112: 7 | AG112: - | AH112: - | AI112: - | AJ112: - | AK112: - | AL112: - | AM112: - | AN112: - | AO112: - | AP112: - | AQ112: 3 | AR112: 3 | AS112: 1 | AT112: - | AU112: - | AV112: 71.3 | AW112: 71.3 | AX112: 71.3 | AY112: 6 | AZ112: - | BA112: - | BB112: - | BC112: - | BD112: - | BE112: - | BF112: - | BG112: - | BH112: - | BI112: - | BJ112: 2 | BK112: 3 | BL112: 1 | BM112: - | BN112: - | BO112: 71.8 | BP112: 71.3 | BQ112: 72.3 | BR112: 4 | BS112: - | BT112: - | BU112: - | BV112: - | BW112: - | BX112: - | BY112: - | BZ112: - | CA112: - | CB112: - | CC112: 1 | CD112: 2 | CE112: 1 | CF112: - | CG112: - | CH112: 3 | CI112: - | CJ112: - | CK112: - | CL112: - | CM112: - | CN112: - | CO112: - | CP112: - | CQ112: - | CR112: 2 | CS112: 1 | CT112: - | CU112: - | DC112: 8 | DD112: 7 | DE112: 6 | DF112: 1 | DG112: - | DH112: 1 | DI112: - | DJ112: - | DK112: 4 | DL112: 2 | DM112: - | DN112: - | DO112: - | DP112: - | DQ112: - | DR112: 2 | DS112: - | DT112: - | DU112: - | DV112: - | DW112: - | DX112: - | DY112: - | DZ112: - | EA112: 4 | EB112: 254 | EC112: 154 | ED112: 41 | EE112: 59 | EF112: 4 | EG112: 4 | EH112: 3 | EI112: 1 | EJ112: - | EK112: - | EL112: - | EM112: - | EN112: 4 | EO112: 3 | EP112: 3 | EQ112: - | ER112: - | ES112: 1 | ET112: - | EU112: -
A113: 長野県 | B113: 長野市 | C113: 浅川村 | D113: 中曽根 | E113: 10 | F113: 8 | G113: 1 | H113: 1 | I113: - | J113: - | K113: 7 | L113: 2 | M113: 21 | N113: - | O113: 1 | P113: 1 | Q113: - | R113: - | S113: - | T113: 1 | U113: 2 | V113: - | W113: 3 | X113: 3 | Y113: 4 | Z113: 3 | AA113: 3 | AB113: - | AC113: 64.4 | AD113: 61.9 | AE113: 68.5 | AF113: 15 | AG113: - | AH113: - | AI113: - | AJ113: - | AK113: - | AL113: - | AM113: - | AN113: - | AO113: - | AP113: 2 | AQ113: 3 | AR113: 4 | AS113: 3 | AT113: 3 | AU113: - | AV113: 72.5 | AW113: 73.4 | AX113: 71.4 | AY113: 15 | AZ113: - | BA113: - | BB113: - | BC113: - | BD113: - | BE113: - | BF113: - | BG113: - | BH113: - | BI113: 2 | BJ113: 3 | BK113: 4 | BL113: 3 | BM113: 3 | BN113: - | BO113: 72.5 | BP113: 73.4 | BQ113: 71.4 | BR113: 8 | BS113: - | BT113: - | BU113: - | BV113: - | BW113: - | BX113: - | BY113: - | BZ113: - | CA113: - | CB113: 1 | CC113: 1 | CD113: 2 | CE113: 2 | CF113: 2 | CG113: - | CH113: 4 | CI113: - | CJ113: - | CK113: - | CL113: - | CM113: - | CN113: - | CO113: - | CP113: 1 | CQ113: - | CR113: - | CS113: 1 | CT113: 2 | CU113: - | DC113: 27 | DD113: 25 | DE113: 15 | DF113: 10 | DG113: - | DH113: - | DI113: 1 | DJ113: 1 | DK113: 8 | DL113: - | DM113: - | DN113: - | DO113: - | DP113: 3 | DQ113: - | DR113: 5 | DS113: - | DT113: - | DU113: - | DV113: - | DW113: - | DX113: - | DY113: - | DZ113: - | EA113: 8 | EB113: 713 | EC113: 273 | ED113: 262 | EE113: 178 | EF113: 16 | EG113: 15 | EH113: 8 | EI113: 7 | EJ113: - | EK113: - | EL113: 1 | EM113: - | EN113: 11 | EO113: 10 | EP113: 7 | EQ113: 3 | ER113: - | ES113: - | ET113: - | EU113: 1
A114: 長野県 | B114: 長野市 | C114: 浅川村 | D114: 本郷 | E114: 37 | F114: 28 | G114: 5 | H114: 3 | I114: 6 | J114: 2 | K114: 17 | L114: 9 | M114: 69 | N114: - | O114: 1 | P114: 1 | Q114: 2 | R114: - | S114: 4 | T114: 6 | U114: 4 | V114: 3 | W114: 8 | X114: 7 | Y114: 20 | Z114: 7 | AA114: 5 | AB114: 1 | AC114: 63.3 | AD114: 62.7 | AE114: 64.0 | AF114: 46 | AG114: - | AH114: - | AI114: - | AJ114: 1 | AK114: - | AL114: - | AM114: 1 | AN114: 1 | AO114: 1 | AP114: 5 | AQ114: 6 | AR114: 19 | AS114: 7 | AT114: 4 | AU114: 1 | AV114: 69.8 | AW114: 71.8 | AX114: 68.2 | AY114: 41 | AZ114: - | BA114: - | BB114: - | BC114: 1 | BD114: - | BE114: - | BF114: - | BG114: 1 | BH114: - | BI114: 5 | BJ114: 6 | BK114: 17 | BL114: 6 | BM114: 4 | BN114: 1 | BO114: 70.4 | BP114: 71.5 | BQ114: 69.3 | BR114: 28 | BS114: - | BT114: - | BU114: - | BV114: - | BW114: - | BX114: 1 | BY114: 2 | BZ114: 1 | CA114: 2 | CB114: 2 | CC114: 3 | CD114: 11 | CE114: 3 | CF114: 2 | CG114: 1 | CH114: 14 | CI114: - | CJ114: - | CK114: - | CL114: - | CM114: - | CN114: - | CO114: 2 | CP114: 1 | CQ114: 2 | CR114: 5 | CS114: 3 | CT114: 1 | CU114: - | DC114: 77 | DD114: 64 | DE114: 41 | DF114: 23 | DG114: - | DH114: 7 | DI114: 2 | DJ114: 4 | DK114: 25 | DL114: 3 | DM114: - | DN114: - | DO114: - | DP114: - | DQ114: - | DR114: 22 | DS114: - | DT114: - | DU114: - | DV114: - | DW114: - | DX114: - | DY114: - | DZ114: - | EA114: 28 | EB114: 1,944 | EC114: 875 | ED114: 244 | EE114: 825 | EF114: 36 | EG114: 34 | EH114: 20 | EI114: 14 | EJ114: - | EK114: 1 | EL114: 1 | EM114: - | EN114: 41 | EO114: 30 | EP114: 21 | EQ114: 9 | ER114: - | ES114: 6 | ET114: 1 | EU114: 4
A115: 長野県 | B115: 長野市 | C115: 浅川村 | D115: 三ツ出 | E115: 10 | F115: 2 | G115: x | H115: x | I115: x | J115: x | K115: x | L115: 8 | M115: x | N115: x | O115: x | P115: x | Q115: x | R115: x | S115: x | T115: x | U115: x | V115: x | W115: x | X115: x | Y115: x | Z115: x | AA115: x | AB115: x | AC115: 61.0 | AD115: 73.0 | AE115: 53.0 | AF115: x | AG115: x | AH115: x | AI115: x | AJ115: x | AK115: x | AL115: x | AM115: x | AN115: x | AO115: x | AP115: x | AQ115: x | AR115: x | AS115: x | AT115: x | AU115: x | AV115: 74.7 | AW115: 73.0 | AX115: 78.0 | AY115: x | AZ115: x | BA115: x | BB115: x | BC115: x | BD115: x | BE115: x | BF115: x | BG115: x | BH115: x | BI115: x | BJ115: x | BK115: x | BL115: x | BM115: x | BN115: x | BO115: 74.7 | BP115: 73.0 | BQ115: 78.0 | BR115: 2 | BS115: - | BT115: - | BU115: - | BV115: - | BW115: - | BX115: - | BY115: - | BZ115: - | CA115: - | CB115: 1 | CC115: - | CD115: - | CE115: - | CF115: 1 | CG115: - | CH115: 2 | CI115: - | CJ115: - | CK115: - | CL115: - | CM115: - | CN115: - | CO115: - | CP115: 1 | CQ115: - | CR115: - | CS115: - | CT115: 1 | CU115: - | DC115: 6 | DD115: 5 | DE115: 3 | DF115: 2 | DG115: - | DH115: - | DI115: - | DJ115: 1 | DK115: 2 | DL115: - | DM115: - | DN115: - | DO115: - | DP115: - | DQ115: - | DR115: 2 | DS115: - | DT115: - | DU115: - | DV115: - | DW115: - | DX115: - | DY115: - | DZ115: - | EA115: 2 | EB115: 100 | EC115: 31 | ED115: 19 | EE115: 50 | EF115: 2 | EG115: 2 | EH115: 2 | EI115: - | EJ115: - | EK115: - | EL115: - | EM115: - | EN115: 4 | EO115: 3 | EP115: 1 | EQ115: 2 | ER115: - | ES115: - | ET115: - | EU115: 1
A116: 長野県 | B116: 長野市 | C116: 浅川村 | D116: 台ケ窪 | E116: 3 | F116: 1 | G116: x | H116: x | I116: x | J116: x | K116: x | L116: 2 | M116: x | N116: x | O116: x | P116: x | Q116: x | R116: x | S116: x | T116: x | U116: x | V116: x | W116: x | X116: x | Y116: x | Z116: x | AA116: x | AB116: x | AC116: 64.5 | AD116: 67.0 | AE116: 62.0 | AF116: x | AG116: x | AH116: x | AI116: x | AJ116: x | AK116: x | AL116: x | AM116: x | AN116: x | AO116: x | AP116: x | AQ116: x | AR116: x | AS116: x | AT116: x | AU116: x | AV116: 64.5 | AW116: 67.0 | AX116: 62.0 | AY116: x | AZ116: x | BA116: x | BB116: x | BC116: x | BD116: x | BE116: x | BF116: x | BG116: x | BH116: x | BI116: x | BJ116: x | BK116: x | BL116: x | BM116: x | BN116: x | BO116: 64.5 | BP116: 67.0 | BQ116: 62.0 | BR116: 1 | BS116: - | BT116: - | BU116: - | BV116: - | BW116: - | BX116: - | BY116: - | BZ116: - | CA116: - | CB116: - | CC116: 1 | CD116: - | CE116: - | CF116: - | CG116: - | CH116: - | CI116: - | CJ116: - | CK116: - | CL116: - | CM116: - | CN116: - | CO116: - | CP116: - | CQ116: - | CR116: - | CS116: - | CT116: - | CU116: - | DC116: 2 | DD116: 2 | DE116: 2 | DF116: - | DG116: - | DH116: - | DI116: - | DJ116: - | DK116: 1 | DL116: - | DM116: - | DN116: - | DO116: - | DP116: - | DQ116: - | DR116: 1 | DS116: - | DT116: - | DU116: - | DV116: - | DW116: - | DX116: - | DY116: - | DZ116: - | EA116: 1 | EB116: 60 | EC116: - | ED116: - | EE116: 60 | EF116: 1 | EG116: 1 | EH116: 1 | EI116: - | EJ116: - | EK116: - | EL116: - | EM116: - | EN116: 1 | EO116: 1 | EP116: 1 | EQ116: - | ER116: - | ES116: - | ET116: - | EU116: -
A117: 長野県 | B117: 長野市 | C117: 浅川村 | D117: 坂中 | E117: 19 | F117: 7 | G117: 1 | H117: 1 | I117: - | J117: - | K117: 6 | L117: 12 | M117: 17 | N117: 2 | O117: - | P117: 1 | Q117: - | R117: - | S117: 1 | T117: 1 | U117: 1 | V117: 1 | W117: 1 | X117: 1 | Y117: 6 | Z117: - | AA117: 2 | AB117: - | AC117: 57.8 | AD117: 57.8 | AE117: 57.9 | AF117: 10 | AG117: - | AH117: - | AI117: - | AJ117: - | AK117: - | AL117: 1 | AM117: - | AN117: - | AO117: - | AP117: - | AQ117: 1 | AR117: 6 | AS117: - | AT117: 2 | AU117: - | AV117: 70.3 | AW117: 70.0 | AX117: 70.8 | AY117: 10 | AZ117: - | BA117: - | BB117: - | BC117: - | BD117: - | BE117: 1 | BF117: - | BG117: - | BH117: - | BI117: - | BJ117: 1 | BK117: 6 | BL117: - | BM117: 2 | BN117: - | BO117: 70.3 | BP117: 70.0 | BQ117: 70.8 | BR117: 7 | BS117: - | BT117: - | BU117: - | BV117: - | BW117: - | BX117: 1 | BY117: - | BZ117: - | CA117: - | CB117: 1 | CC117: - | CD117: 3 | CE117: - | CF117: 2 | CG117: - | CH117: 4 | CI117: - | CJ117: - | CK117: - | CL117: - | CM117: - | CN117: - | CO117: - | CP117: 1 | CQ117: - | CR117: 2 | CS117: - | CT117: 1 | CU117: - | DC117: 20 | DD117: 14 | DE117: 10 | DF117: 4 | DG117: - | DH117: 1 | DI117: 2 | DJ117: 3 | DK117: 7 | DL117: - | DM117: - | DN117: - | DO117: - | DP117: - | DQ117: - | DR117: 7 | DS117: - | DT117: - | DU117: - | DV117: - | DW117: - | DX117: - | DY117: - | DZ117: - | EA117: 7 | EB117: 381 | EC117: 157 | ED117: 40 | EE117: 184 | EF117: 11 | EG117: 9 | EH117: 6 | EI117: 3 | EJ117: - | EK117: - | EL117: 1 | EM117: 1 | EN117: 9 | EO117: 5 | EP117: 4 | EQ117: 1 | ER117: - | ES117: 1 | ET117: 1 | EU117: 2
A118: 長野県 | B118: 長野市 | C118: 浅川村 | D118: 西平 | E118: 14 | F118: 9 | G118: 2 | H118: 1 | I118: 1 | J118: 1 | K118: 6 | L118: 5 | M118: 26 | N118: - | O118: - | P118: 2 | Q118: - | R118: 2 | S118: - | T118: - | U118: 2 | V118: 1 | W118: 2 | X118: 4 | Y118: 6 | Z118: 3 | AA118: 4 | AB118: - | AC118: 64.2 | AD118: 61.7 | AE118: 66.7 | AF118: 17 | AG118: - | AH118: - | AI118: - | AJ118: - | AK118: - | AL118: - | AM118: - | AN118: - | AO118: 1 | AP118: 1 | AQ118: 4 | AR118: 5 | AS118: 3 | AT118: 3 | AU118: - | AV118: 72.1 | AW118: 74.0 | AX118: 70.7 | AY118: 17 | AZ118: - | BA118: - | BB118: - | BC118: - | BD118: - | BE118: - | BF118: - | BG118: - | BH118: 1 | BI118: 1 | BJ118: 4 | BK118: 5 | BL118: 3 | BM118: 3 | BN118: - | BO118: 72.1 | BP118: 74.0 | BQ118: 70.7 | BR118: 9 | BS118: - | BT118: - | BU118: - | BV118: - | BW118: - | BX118: - | BY118: - | BZ118: - | CA118: - | CB118: 1 | CC118: 2 | CD118: 3 | CE118: 2 | CF118: 1 | CG118: - | CH118: 7 | CI118: - | CJ118: - | CK118: - | CL118: - | CM118: - | CN118: - | CO118: - | CP118: 1 | CQ118: 2 | CR118: 2 | CS118: 2 | CT118: - | CU118: - | DC118: 32 | DD118: 27 | DE118: 17 | DF118: 9 | DG118: 1 | DH118: 2 | DI118: - | DJ118: 3 | DK118: 9 | DL118: - | DM118: - | DN118: - | DO118: - | DP118: - | DQ118: - | DR118: 9 | DS118: - | DT118: - | DU118: - | DV118: - | DW118: - | DX118: - | DY118: - | DZ118: - | EA118: 9 | EB118: 482 | EC118: 60 | ED118: 5 | EE118: 417 | EF118: 16 | EG118: 15 | EH118: 7 | EI118: 8 | EJ118: - | EK118: - | EL118: - | EM118: 1 | EN118: 16 | EO118: 12 | EP118: 10 | EQ118: 1 | ER118: 1 | ES118: 2 | ET118: - | EU118: 2
A119: 長野県 | B119: 長野市 | C119: 浅川村 | D119: 福岡 | E119: 5 | F119: 1 | G119: x | H119: x | I119: x | J119: x | K119: x | L119: 4 | M119: x | N119: x | O119: x | P119: x | Q119: x | R119: x | S119: x | T119: x | U119: x | V119: x | W119: x | X119: x | Y119: x | Z119: x | AA119: x | AB119: x | AC119: 55.0 | AD119: 58.0 | AE119: 52.0 | AF119: x | AG119: x | AH119: x | AI119: x | AJ119: x | AK119: x | AL119: x | AM119: x | AN119: x | AO119: x | AP119: x | AQ119: x | AR119: x | AS119: x | AT119: x | AU119: x | AV119: 58.0 | AW119: 58.0 | AX119: … | AY119: x | AZ119: x | BA119: x | BB119: x | BC119: x | BD119: x | BE119: x | BF119: x | BG119: x | BH119: x | BI119: x | BJ119: x | BK119: x | BL119: x | BM119: x | BN119: x | BO119: 58.0 | BP119: 58.0 | BQ119: … | BR119: 1 | BS119: - | BT119: - | BU119: - | BV119: - | BW119: - | BX119: - | BY119: - | BZ119: - | CA119: 1 | CB119: - | CC119: - | CD119: - | CE119: - | CF119: - | CG119: - | CH119: - | CI119: - | CJ119: - | CK119: - | CL119: - | CM119: - | CN119: - | CO119: - | CP119: - | CQ119: - | CR119: - | CS119: - | CT119: - | CU119: - | DC119: 5 | DD119: 1 | DE119: 1 | DF119: - | DG119: - | DH119: 1 | DI119: - | DJ119: 3 | DK119: 1 | DL119: - | DM119: - | DN119: - | DO119: - | DP119: - | DQ119: - | DR119: 1 | DS119: - | DT119: - | DU119: - | DV119: - | DW119: - | DX119: - | DY119: - | DZ119: - | EA119: 1 | EB119: 40 | EC119: - | ED119: - | EE119: 40 | EF119: 4 | EG119: 1 | EH119: 1 | EI119: - | EJ119: - | EK119: - | EL119: - | EM119: 3 | EN119: 1 | EO119: - | EP119: - | EQ119: - | ER119: - | ES119: 1 | ET119: - | EU119: -
A120: 長野県 | B120: 長野市 | C120: 浅川村 | D120: 押田 | E120: 20 | F120: 9 | G120: - | H120: - | I120: 3 | J120: - | K120: 6 | L120: 11 | M120: 22 | N120: 1 | O120: - | P120: - | Q120: - | R120: - | S120: 2 | T120: 1 | U120: 3 | V120: 2 | W120: - | X120: 2 | Y120: 2 | Z120: 2 | AA120: 4 | AB120: 3 | AC120: 65.7 | AD120: 64.5 | AE120: 66.4 | AF120: 14 | AG120: - | AH120: - | AI120: - | AJ120: - | AK120: - | AL120: - | AM120: - | AN120: - | AO120: 1 | AP120: - | AQ120: 2 | AR120: 2 | AS120: 2 | AT120: 4 | AU120: 3 | AV120: 77.9 | AW120: 73.2 | AX120: 80.4 | AY120: 13 | AZ120: - | BA120: - | BB120: - | BC120: - | BD120: - | BE120: - | BF120: - | BG120: - | BH120: 1 | BI120: - | BJ120: 2 | BK120: 2 | BL120: 2 | BM120: 4 | BN120: 2 | BO120: 76.6 | BP120: 73.2 | BQ120: 78.8 | BR120: 9 | BS120: - | BT120: - | BU120: - | BV120: - | BW120: - | BX120: - | BY120: - | BZ120: - | CA120: - | CB120: - | CC120: 1 | CD120: - | CE120: 2 | CF120: 3 | CG120: 3 | CH120: 6 | CI120: - | CJ120: - | CK120: - | CL120: - | CM120: - | CN120: - | CO120: - | CP120: - | CQ120: - | CR120: - | CS120: 1 | CT120: 2 | CU120: 3 | DC120: 31 | DD120: 22 | DE120: 13 | DF120: 9 | DG120: - | DH120: - | DI120: 2 | DJ120: 7 | DK120: 8 | DL120: 2 | DM120: - | DN120: - | DO120: - | DP120: - | DQ120: - | DR120: 6 | DS120: - | DT120: - | DU120: - | DV120: - | DW120: - | DX120: - | DY120: - | DZ120: - | EA120: 9 | EB120: 313 | EC120: 67 | ED120: 3 | EE120: 243 | EF120: 10 | EG120: 8 | EH120: 5 | EI120: 3 | EJ120: - | EK120: - | EL120: - | EM120: 2 | EN120: 21 | EO120: 14 | EP120: 8 | EQ120: 6 | ER120: - | ES120: - | ET120: 2 | EU120: 5
A121: 長野県 | B121: 長野市 | C121: 浅川村 | D121: 西条 | E121: 12 | F121: 6 | G121: 1 | H121: 1 | I121: 2 | J121: 1 | K121: 3 | L121: 6 | M121: 14 | N121: - | O121: 1 | P121: - | Q121: - | R121: - | S121: 1 | T121: 1 | U121: 1 | V121: 2 | W121: - | X121: 1 | Y121: 4 | Z121: 2 | AA121: 1 | AB121: - | AC121: 62.2 | AD121: 61.4 | AE121: 63.3 | AF121: 10 | AG121: - | AH121: - | AI121: - | AJ121: - | AK121: - | AL121: 1 | AM121: 1 | AN121: - | AO121: - | AP121: - | AQ121: 1 | AR121: 4 | AS121: 2 | AT121: 1 | AU121: - | AV121: 68.2 | AW121: 70.8 | AX121: 65.6 | AY121: 10 | AZ121: - | BA121: - | BB121: - | BC121: - | BD121: - | BE121: 1 | BF121: 1 | BG121: - | BH121: - | BI121: - | BJ121: 1 | BK121: 4 | BL121: 2 | BM121: 1 | BN121: - | BO121: 68.2 | BP121: 70.8 | BQ121: 65.6 | BR121: 6 | BS121: - | BT121: - | BU121: - | BV121: - | BW121: - | BX121: - | BY121: - | BZ121: - | CA121: 1 | CB121: - | CC121: - | CD121: 2 | CE121: 2 | CF121: 1 | CG121: - | CH121: 4 | CI121: - | CJ121: - | CK121: - | CL121: - | CM121: - | CN121: - | CO121: - | CP121: - | CQ121: - | CR121: 1 | CS121: 2 | CT121: 1 | CU121: - | DC121: 22 | DD121: 17 | DE121: 10 | DF121: 7 | DG121: - | DH121: 1 | DI121: 3 | DJ121: 1 | DK121: 6 | DL121: - | DM121: - | DN121: - | DO121: - | DP121: - | DQ121: - | DR121: 6 | DS121: - | DT121: - | DU121: - | DV121: - | DW121: - | DX121: - | DY121: - | DZ121: - | EA121: 6 | EB121: 427 | EC121: 38 | ED121: 2 | EE121: 387 | EF121: 10 | EG121: 9 | EH121: 5 | EI121: 4 | EJ121: - | EK121: - | EL121: 1 | EM121: - | EN121: 12 | EO121: 8 | EP121: 5 | EQ121: 3 | ER121: - | ES121: 1 | ET121: 2 | EU121: 1
A122: 長野県 | B122: 長野市 | C122: 若槻村 | E122: 334 | F122: 152 | G122: 16 | H122: 14 | I122: 38 | J122: 17 | K122: 98 | L122: 182 | M122: 416 | N122: 12 | O122: 16 | P122: 16 | Q122: 7 | R122: 14 | S122: 18 | T122: 25 | U122: 25 | V122: 31 | W122: 42 | X122: 53 | Y122: 67 | Z122: 32 | AA122: 39 | AB122: 19 | AC122: 60.2 | AD122: 60.6 | AE122: 59.7 | AF122: 239 | AG122: - | AH122: 1 | AI122: - | AJ122: - | AK122: 3 | AL122: 4 | AM122: 3 | AN122: 8 | AO122: 9 | AP122: 23 | AQ122: 47 | AR122: 62 | AS122: 31 | AT122: 35 | AU122: 13 | AV122: 70.4 | AW122: 71.5 | AX122: 69.3 | AY122: 228 | AZ122: - | BA122: 1 | BB122: - | BC122: - | BD122: 3 | BE122: 2 | BF122: 3 | BG122: 8 | BH122: 9 | BI122: 22 | BJ122: 45 | BK122: 60 | BL122: 30 | BM122: 33 | BN122: 12 | BO122: 70.5 | BP122: 71.4 | BQ122: 69.6 | BR122: 152 | BS122: - | BT122: - | BU122: - | BV122: - | BW122: - | BX122: 2 | BY122: 3 | BZ122: 5 | CA122: 9 | CB122: 21 | CC122: 25 | CD122: 35 | CE122: 21 | CF122: 20 | CG122: 11 | CH122: 73 | CI122: - | CJ122: - | CK122: - | CL122: - | CM122: 1 | CN122: 4 | CO122: 2 | CP122: 6 | CQ122: 11 | CR122: 19 | CS122: 8 | CT122: 15 | CU122: 7 | DC122: 498 | DD122: 391 | DE122: 228 | DF122: 148 | DG122: 15 | DH122: 26 | DI122: 38 | DJ122: 43 | DK122: 145 | DL122: 6 | DM122: - | DN122: 1 | DO122: - | DP122: - | DQ122: - | DR122: 137 | DS122: 1 | DT122: - | DU122: - | DV122: - | DW122: - | DX122: - | DY122: - | DZ122: - | EA122: 152 | EB122: 9,765 | EC122: 2,546 | ED122: 1,263 | EE122: 5,956 | EF122: 231 | EG122: 206 | EH122: 114 | EI122: 83 | EJ122: 9 | EK122: - | EL122: 16 | EM122: 9 | EN122: 267 | EO122: 185 | EP122: 114 | EQ122: 65 | ER122: 6 | ES122: 26 | ET122: 22 | EU122: 34
A123: 長野県 | B123: 長野市 | C123: 若槻村 | D123: 檀田 | E123: 24 | F123: 8 | G123: - | H123: - | I123: 5 | J123: 2 | K123: 3 | L123: 16 | M123: 23 | N123: 2 | O123: 3 | P123: - | Q123: 1 | R123: - | S123: 1 | T123: 3 | U123: 2 | V123: 1 | W123: 4 | X123: 2 | Y123: 3 | Z123: 1 | AA123: - | AB123: - | AC123: 49.7 | AD123: 55.4 | AE123: 45.4 | AF123: 10 | AG123: - | AH123: - | AI123: - | AJ123: - | AK123: - | AL123: - | AM123: 1 | AN123: - | AO123: - | AP123: 3 | AQ123: 2 | AR123: 3 | AS123: 1 | AT123: - | AU123: - | AV123: 65.7 | AW123: 68.6 | AX123: 62.8 | AY123: 10 | AZ123: - | BA123: - | BB123: - | BC123: - | BD123: - | BE123: - | BF123: 1 | BG123: - | BH123: - | BI123: 3 | BJ123: 2 | BK123: 3 | BL123: 1 | BM123: - | BN123: - | BO123: 65.7 | BP123: 68.6 | BQ123: 62.8 | BR123: 8 | BS123: - | BT123: - | BU123: - | BV123: - | BW123: - | BX123: - | BY123: 1 | BZ123: 1 | CA123: 1 | CB123: 1 | CC123: 2 | CD123: 1 | CE123: 1 | CF123: - | CG123: - | CH123: 6 | CI123: - | CJ123: - | CK123: - | CL123: - | CM123: 1 | CN123: 1 | CO123: - | CP123: 1 | CQ123: 2 | CR123: 1 | CS123: - | CT123: - | CU123: - | DC123: 26 | DD123: 19 | DE123: 10 | DF123: 9 | DG123: - | DH123: 1 | DI123: 4 | DJ123: 2 | DK123: 8 | DL123: - | DM123: - | DN123: - | DO123: - | DP123: - | DQ123: - | DR123: 8 | DS123: - | DT123: - | DU123: - | DV123: - | DW123: - | DX123: - | DY123: - | DZ123: - | EA123: 8 | EB123: 380 | EC123: 155 | ED123: 26 | EE123: 199 | EF123: 10 | EG123: 9 | EH123: 5 | EI123: 4 | EJ123: - | EK123: - | EL123: 1 | EM123: - | EN123: 16 | EO123: 10 | EP123: 5 | EQ123: 5 | ER123: - | ES123: 1 | ET123: 3 | EU123: 2
A124: 長野県 | B124: 長野市 | C124: 若槻村 | D124: 稲田 | E124: 24 | F124: - | G124: - | H124: - | I124: - | J124: - | K124: - | L124: 24 | M124: - | N124: - | O124: - | P124: - | Q124: - | R124: - | S124: - | T124: - | U124: - | V124: - | W124: - | X124: - | Y124: - | Z124: - | AA124: - | AB124: - | AC124: … | AD124: … | AE124: … | AF124: - | AG124: - | AH124: - | AI124: - | AJ124: - | AK124: - | AL124: - | AM124: - | AN124: - | AO124: - | AP124: - | AQ124: - | AR124: - | AS124: - | AT124: - | AU124: - | AV124: … | AW124: … | AX124: … | AY124: - | AZ124: - | BA124: - | BB124: - | BC124: - | BD124: - | BE124: - | BF124: - | BG124: - | BH124: - | BI124: - | BJ124: - | BK124: - | BL124: - | BM124: - | BN124: - | BO124: … | BP124: … | BQ124: … | BR124: - | BS124: - | BT124: - | BU124: - | BV124: - | BW124: - | BX124: - | BY124: - | BZ124: - | CA124: - | CB124: - | CC124: - | CD124: - | CE124: - | CF124: - | CG124: - | CH124: - | CI124: - | CJ124: - | CK124: - | CL124: - | CM124: - | CN124: - | CO124: - | CP124: - | CQ124: - | CR124: - | CS124: - | CT124: - | CU124: - | DC124: - | DD124: - | DE124: - | DF124: - | DG124: - | DH124: - | DI124: - | DJ124: - | DK124: - | DL124: - | DM124: - | DN124: - | DO124: - | DP124: - | DQ124: - | DR124: - | DS124: - | DT124: - | DU124: - | DV124: - | DW124: - | DX124: - | DY124: - | DZ124: - | EA124: - | EB124: - | EC124: - | ED124: - | EE124: - | EF124: - | EG124: - | EH124: - | EI124: - | EJ124: - | EK124: - | EL124: - | EM124: - | EN124: - | EO124: - | EP124: - | EQ124: - | ER124: - | ES124: - | ET124: - | EU124: -
A125: 長野県 | B125: 長野市 | C125: 若槻村 | D125: 徳間 | E125: 54 | F125: 16 | G125: - | H125: - | I125: 4 | J125: - | K125: 12 | L125: 38 | M125: 37 | N125: 2 | O125: - | P125: 1 | Q125: - | R125: 3 | S125: - | T125: 1 | U125: 2 | V125: 2 | W125: 5 | X125: 6 | Y125: 6 | Z125: 4 | AA125: 3 | AB125: 2 | AC125: 62.6 | AD125: 61.3 | AE125: 63.7 | AF125: 25 | AG125: - | AH125: - | AI125: - | AJ125: - | AK125: - | AL125: - | AM125: - | AN125: - | AO125: 2 | AP125: 4 | AQ125: 5 | AR125: 5 | AS125: 4 | AT125: 3 | AU125: 2 | AV125: 71.6 | AW125: 71.3 | AX125: 71.7 | AY125: 24 | AZ125: - | BA125: - | BB125: - | BC125: - | BD125: - | BE125: - | BF125: - | BG125: - | BH125: 2 | BI125: 4 | BJ125: 4 | BK125: 5 | BL125: 4 | BM125: 3 | BN125: 2 | BO125: 71.8 | BP125: 71.3 | BQ125: 72.1 | BR125: 16 | BS125: - | BT125: - | BU125: - | BV125: - | BW125: - | BX125: - | BY125: - | BZ125: 1 | CA125: - | CB125: 3 | CC125: 3 | CD125: 3 | CE125: 3 | CF125: 2 | CG125: 1 | CH125: 8 | CI125: - | CJ125: - | CK125: - | CL125: - | CM125: - | CN125: 1 | CO125: - | CP125: 1 | CQ125: 1 | CR125: 2 | CS125: - | CT125: 2 | CU125: 1 | DC125: 44 | DD125: 34 | DE125: 24 | DF125: 9 | DG125: 1 | DH125: 3 | DI125: 4 | DJ125: 3 | DK125: 15 | DL125: 3 | DM125: - | DN125: - | DO125: - | DP125: - | DQ125: - | DR125: 12 | DS125: - | DT125: - | DU125: - | DV125: - | DW125: - | DX125: - | DY125: - | DZ125: - | EA125: 16 | EB125: 706 | EC125: 271 | ED125: 159 | EE125: 276 | EF125: 18 | EG125: 17 | EH125: 10 | EI125: 6 | EJ125: 1 | EK125: - | EL125: 1 | EM125: - | EN125: 26 | EO125: 17 | EP125: 14 | EQ125: 3 | ER125: - | ES125: 3 | ET125: 3 | EU125: 3
A126: 長野県 | B126: 長野市 | C126: 若槻村 | D126: 若槻東条 | E126: 43 | F126: 11 | G126: 1 | H126: 1 | I126: 1 | J126: 1 | K126: 9 | L126: 32 | M126: 29 | N126: 1 | O126: 1 | P126: - | Q126: - | R126: - | S126: 1 | T126: 1 | U126: 1 | V126: 3 | W126: 2 | X126: 2 | Y126: 6 | Z126: 6 | AA126: 5 | AB126: - | AC126: 66.2 | AD126: 63.2 | AE126: 69.9 | AF126: 19 | AG126: - | AH126: - | AI126: - | AJ126: - | AK126: - | AL126: - | AM126: - | AN126: - | AO126: 1 | AP126: 1 | AQ126: 2 | AR126: 6 | AS126: 5 | AT126: 4 | AU126: - | AV126: 73.9 | AW126: 75.7 | AX126: 72.4 | AY126: 17 | AZ126: - | BA126: - | BB126: - | BC126: - | BD126: - | BE126: - | BF126: - | BG126: - | BH126: 1 | BI126: 1 | BJ126: 1 | BK126: 5 | BL126: 5 | BM126: 4 | BN126: - | BO126: 74.4 | BP126: 76.3 | BQ126: 72.8 | BR126: 11 | BS126: - | BT126: - | BU126: - | BV126: - | BW126: - | BX126: - | BY126: - | BZ126: - | CA126: - | CB126: 2 | CC126: - | CD126: 2 | CE126: 4 | CF126: 3 | CG126: - | CH126: 8 | CI126: - | CJ126: - | CK126: - | CL126: - | CM126: - | CN126: - | CO126: - | CP126: - | CQ126: - | CR126: 2 | CS126: 3 | CT126: 3 | CU126: - | DC126: 43 | DD126: 31 | DE126: 17 | DF126: 13 | DG126: 1 | DH126: 3 | DI126: 6 | DJ126: 3 | DK126: 11 | DL126: 1 | DM126: - | DN126: - | DO126: - | DP126: - | DQ126: - | DR126: 10 | DS126: - | DT126: - | DU126: - | DV126: - | DW126: - | DX126: - | DY126: - | DZ126: - | EA126: 11 | EB126: 829 | EC126: 109 | ED126: 133 | EE126: 587 | EF126: 24 | EG126: 18 | EH126: 8 | EI126: 9 | EJ126: 1 | EK126: - | EL126: 5 | EM126: 1 | EN126: 19 | EO126: 13 | EP126: 9 | EQ126: 4 | ER126: - | ES126: 3 | ET126: 1 | EU126: 2
A127: 長野県 | B127: 長野市 | C127: 若槻村 | D127: 上野 | E127: 28 | F127: 8 | G127: 2 | H127: 2 | I127: - | J127: - | K127: 6 | L127: 20 | M127: 22 | N127: - | O127: - | P127: - | Q127: - | R127: 1 | S127: 1 | T127: 1 | U127: 2 | V127: - | W127: 2 | X127: 3 | Y127: 6 | Z127: 2 | AA127: 2 | AB127: 2 | AC127: 67.2 | AD127: 65.2 | AE127: 70.2 | AF127: 17 | AG127: - | AH127: - | AI127: - | AJ127: - | AK127: 1 | AL127: - | AM127: - | AN127: 1 | AO127: - | AP127: 1 | AQ127: 3 | AR127: 6 | AS127: 2 | AT127: 2 | AU127: 1 | AV127: 70.4 | AW127: 71.0 | AX127: 69.4 | AY127: 17 | AZ127: - | BA127: - | BB127: - | BC127: - | BD127: 1 | BE127: - | BF127: - | BG127: 1 | BH127: - | BI127: 1 | BJ127: 3 | BK127: 6 | BL127: 2 | BM127: 2 | BN127: 1 | BO127: 70.4 | BP127: 71.0 | BQ127: 69.4 | BR127: 8 | BS127: - | BT127: - | BU127: - | BV127: - | BW127: - | BX127: - | BY127: - | BZ127: - | CA127: - | CB127: 1 | CC127: 1 | CD127: 3 | CE127: 2 | CF127: 1 | CG127: - | CH127: 5 | CI127: - | CJ127: - | CK127: - | CL127: - | CM127: - | CN127: - | CO127: - | CP127: 1 | CQ127: 1 | CR127: 1 | CS127: 1 | CT127: 1 | CU127: - | DC127: 30 | DD127: 22 | DE127: 17 | DF127: 4 | DG127: 1 | DH127: 1 | DI127: 3 | DJ127: 4 | DK127: 7 | DL127: - | DM127: - | DN127: - | DO127: - | DP127: - | DQ127: - | DR127: 6 | DS127: 1 | DT127: - | DU127: - | DV127: - | DW127: - | DX127: - | DY127: - | DZ127: - | EA127: 8 | EB127: 573 | EC127: 173 | ED127: 84 | EE127: 316 | EF127: 14 | EG127: 13 | EH127: 10 | EI127: 3 | EJ127: - | EK127: - | EL127: 1 | EM127: - | EN127: 16 | EO127: 9 | EP127: 7 | EQ127: 1 | ER127: 1 | ES127: 1 | ET127: 2 | EU127: 4
A128: 長野県 | B128: 長野市 | C128: 若槻村 | D128: 田中 | E128: 25 | F128: 7 | G128: 4 | H128: 3 | I128: 1 | J128: - | K128: 2 | L128: 18 | M128: 21 | N128: 1 | O128: 1 | P128: 1 | Q128: - | R128: 1 | S128: 1 | T128: 1 | U128: 1 | V128: 1 | W128: 2 | X128: 3 | Y128: 2 | Z128: 4 | AA128: - | AB128: 2 | AC128: 59.8 | AD128: 57.5 | AE128: 63.4 | AF128: 16 | AG128: - | AH128: - | AI128: - | AJ128: - | AK128: 1 | AL128: 1 | AM128: 1 | AN128: - | AO128: - | AP128: 2 | AQ128: 3 | AR128: 2 | AS128: 4 | AT128: - | AU128: 2 | AV128: 67.8 | AW128: 65.0 | AX128: 72.3 | AY128: 15 | AZ128: - | BA128: - | BB128: - | BC128: - | BD128: 1 | BE128: 1 | BF128: 1 | BG128: - | BH128: - | BI128: 2 | BJ128: 3 | BK128: 2 | BL128: 3 | BM128: - | BN128: 2 | BO128: 67.2 | BP128: 65.0 | BQ128: 71.6 | BR128: 7 | BS128: - | BT128: - | BU128: - | BV128: - | BW128: - | BX128: - | BY128: - | BZ128: - | CA128: - | CB128: 1 | CC128: 1 | CD128: 2 | CE128: 2 | CF128: - | CG128: 1 | CH128: 4 | CI128: - | CJ128: - | CK128: - | CL128: - | CM128: - | CN128: - | CO128: - | CP128: - | CQ128: 1 | CR128: 1 | CS128: 1 | CT128: - | CU128: 1 | DC128: 21 | DD128: 18 | DE128: 15 | DF128: 3 | DG128: - | DH128: 1 | DI128: 2 | DJ128: - | DK128: 7 | DL128: - | DM128: - | DN128: - | DO128: - | DP128: - | DQ128: - | DR128: 7 | DS128: - | DT128: - | DU128: - | DV128: - | DW128: - | DX128: - | DY128: - | DZ128: - | EA128: 7 | EB128: 511 | EC128: 108 | ED128: 34 | EE128: 369 | EF128: 13 | EG128: 12 | EH128: 10 | EI128: 2 | EJ128: - | EK128: - | EL128: 1 | EM128: - | EN128: 8 | EO128: 6 | EP128: 5 | EQ128: 1 | ER128: - | ES128: 1 | ET128: 1 | EU128: -
A129: 長野県 | B129: 長野市 | C129: 若槻村 | D129: 田子 | E129: 42 | F129: 26 | G129: 1 | H129: 1 | I129: 6 | J129: 2 | K129: 19 | L129: 16 | M129: 73 | N129: 1 | O129: 2 | P129: 5 | Q129: 4 | R129: 1 | S129: 2 | T129: 4 | U129: 1 | V129: 4 | W129: 11 | X129: 16 | Y129: 8 | Z129: 3 | AA129: 7 | AB129: 4 | AC129: 60.3 | AD129: 63.8 | AE129: 57.1 | AF129: 38 | AG129: - | AH129: - | AI129: - | AJ129: - | AK129: - | AL129: - | AM129: - | AN129: - | AO129: 1 | AP129: 5 | AQ129: 12 | AR129: 8 | AS129: 3 | AT129: 7 | AU129: 2 | AV129: 72.0 | AW129: 73.5 | AX129: 70.6 | AY129: 37 | AZ129: - | BA129: - | BB129: - | BC129: - | BD129: - | BE129: - | BF129: - | BG129: - | BH129: 1 | BI129: 5 | BJ129: 12 | BK129: 8 | BL129: 3 | BM129: 6 | BN129: 2 | BO129: 71.7 | BP129: 73.5 | BQ129: 69.8 | BR129: 26 | BS129: - | BT129: - | BU129: - | BV129: - | BW129: - | BX129: - | BY129: - | BZ129: - | CA129: 1 | CB129: 5 | CC129: 8 | CD129: 4 | CE129: 2 | CF129: 3 | CG129: 3 | CH129: 11 | CI129: - | CJ129: - | CK129: - | CL129: - | CM129: - | CN129: - | CO129: - | CP129: 1 | CQ129: 2 | CR129: 3 | CS129: 1 | CT129: 3 | CU129: 1 | DC129: 84 | DD129: 69 | DE129: 37 | DF129: 26 | DG129: 6 | DH129: 5 | DI129: 4 | DJ129: 6 | DK129: 23 | DL129: 2 | DM129: - | DN129: 1 | DO129: - | DP129: - | DQ129: - | DR129: 20 | DS129: - | DT129: - | DU129: - | DV129: - | DW129: - | DX129: - | DY129: - | DZ129: - | EA129: 26 | EB129: 1,616 | EC129: 467 | ED129: 461 | EE129: 688 | EF129: 37 | EG129: 35 | EH129: 19 | EI129: 13 | EJ129: 3 | EK129: - | EL129: 1 | EM129: 1 | EN129: 47 | EO129: 34 | EP129: 18 | EQ129: 13 | ER129: 3 | ES129: 5 | ET129: 3 | EU129: 5
A130: 長野県 | B130: 長野市 | C130: 若槻村 | D130: 吉 | E130: 86 | F130: 69 | G130: 6 | H130: 5 | I130: 20 | J130: 11 | K130: 43 | L130: 17 | M130: 190 | N130: 5 | O130: 9 | P130: 9 | Q130: 2 | R130: 6 | S130: 8 | T130: 10 | U130: 16 | V130: 20 | W130: 15 | X130: 17 | Y130: 33 | Z130: 11 | AA130: 21 | AB130: 8 | AC130: 59.5 | AD130: 60.2 | AE130: 58.8 | AF130: 103 | AG130: - | AH130: 1 | AI130: - | AJ130: - | AK130: 1 | AL130: 1 | AM130: 1 | AN130: 7 | AO130: 5 | AP130: 6 | AQ130: 17 | AR130: 29 | AS130: 11 | AT130: 18 | AU130: 6 | AV130: 70.3 | AW130: 72.3 | AX130: 68.4 | AY130: 98 | AZ130: - | BA130: 1 | BB130: - | BC130: - | BD130: 1 | BE130: - | BF130: 1 | BG130: 7 | BH130: 5 | BI130: 5 | BJ130: 17 | BK130: 28 | BL130: 11 | BM130: 17 | BN130: 5 | BO130: 70.3 | BP130: 72.0 | BQ130: 68.7 | BR130: 69 | BS130: - | BT130: - | BU130: - | BV130: - | BW130: - | BX130: 1 | BY130: 1 | BZ130: 3 | CA130: 7 | CB130: 7 | CC130: 8 | CD130: 18 | CE130: 7 | CF130: 11 | CG130: 6 | CH130: 30 | CI130: - | CJ130: - | CK130: - | CL130: - | CM130: - | CN130: 2 | CO130: 2 | CP130: 2 | CQ130: 4 | CR130: 8 | CS130: 2 | CT130: 6 | CU130: 4 | DC130: 227 | DD130: 180 | DE130: 98 | DF130: 77 | DG130: 5 | DH130: 9 | DI130: 15 | DJ130: 23 | DK130: 67 | DL130: - | DM130: - | DN130: - | DO130: - | DP130: - | DQ130: - | DR130: 67 | DS130: - | DT130: - | DU130: - | DV130: - | DW130: - | DX130: - | DY130: - | DZ130: - | EA130: 69 | EB130: 4,699 | EC130: 1,194 | ED130: 333 | EE130: 3,172 | EF130: 104 | EG130: 91 | EH130: 48 | EI130: 40 | EJ130: 3 | EK130: - | EL130: 6 | EM130: 7 | EN130: 123 | EO130: 89 | EP130: 50 | EQ130: 37 | ER130: 2 | ES130: 9 | ET130: 9 | EU130: 16
A131: 長野県 | B131: 長野市 | C131: 若槻村 | D131: 山千寺 | E131: 5 | F131: 4 | G131: - | H131: - | I131: - | J131: - | K131: 4 | L131: 1 | M131: 12 | N131: - | O131: - | P131: - | Q131: - | R131: 1 | S131: 2 | T131: 2 | U131: - | V131: - | W131: - | X131: 3 | Y131: 3 | Z131: - | AA131: - | AB131: 1 | AC131: 59.7 | AD131: 52.7 | AE131: 66.7 | AF131: 5 | AG131: - | AH131: - | AI131: - | AJ131: - | AK131: - | AL131: - | AM131: - | AN131: - | AO131: - | AP131: - | AQ131: 2 | AR131: 3 | AS131: - | AT131: - | AU131: - | AV131: 69.0 | AW131: 72.0 | AX131: 68.3 | AY131: 5 | AZ131: - | BA131: - | BB131: - | BC131: - | BD131: - | BE131: - | BF131: - | BG131: - | BH131: - | BI131: - | BJ131: 2 | BK131: 3 | BL131: - | BM131: - | BN131: - | BO131: 69.0 | BP131: 72.0 | BQ131: 68.3 | BR131: 4 | BS131: - | BT131: - | BU131: - | BV131: - | BW131: - | BX131: - | BY131: - | BZ131: - | CA131: - | CB131: - | CC131: 2 | CD131: 2 | CE131: - | CF131: - | CG131: - | CH131: 1 | CI131: - | CJ131: - | CK131: - | CL131: - | CM131: - | CN131: - | CO131: - | CP131: - | CQ131: - | CR131: 1 | CS131: - | CT131: - | CU131: - | DC131: 14 | DD131: 10 | DE131: 5 | DF131: 4 | DG131: 1 | DH131: 2 | DI131: - | DJ131: 2 | DK131: 4 | DL131: - | DM131: - | DN131: - | DO131: - | DP131: - | DQ131: - | DR131: 4 | DS131: - | DT131: - | DU131: - | DV131: - | DW131: - | DX131: - | DY131: - | DZ131: - | EA131: 4 | EB131: 227 | EC131: 69 | ED131: 30 | EE131: 128 | EF131: 6 | EG131: 6 | EH131: 1 | EI131: 4 | EJ131: 1 | EK131: - | EL131: - | EM131: - | EN131: 8 | EO131: 4 | EP131: 4 | EQ131: - | ER131: - | ES131: 2 | ET131: - | EU131: 2
A132: 長野県 | B132: 長野市 | C132: 若槻村 | D132: 髻 | E132: 3 | F132: 3 | G132: 2 | H132: 2 | I132: 1 | J132: 1 | K132: - | L132: - | M132: 9 | N132: - | O132: - | P132: - | Q132: - | R132: 1 | S132: 2 | T132: 2 | U132: - | V132: - | W132: 1 | X132: 1 | Y132: - | Z132: 1 | AA132: 1 | AB132: - | AC132: 55.9 | AD132: 53.8 | AE132: 58.5 | AF132: 6 | AG132: - | AH132: - | AI132: - | AJ132: - | AK132: - | AL132: 2 | AM132: - | AN132: - | AO132: - | AP132: 1 | AQ132: 1 | AR132: - | AS132: 1 | AT132: 1 | AU132: - | AV132: 61.8 | AW132: 62.0 | AX132: 61.7 | AY132: 5 | AZ132: - | BA132: - | BB132: - | BC132: - | BD132: - | BE132: 1 | BF132: - | BG132: - | BH132: - | BI132: 1 | BJ132: 1 | BK132: - | BL132: 1 | BM132: 1 | BN132: - | BO132: 65.4 | BP132: 62.0 | BQ132: 70.5 | BR132: 3 | BS132: - | BT132: - | BU132: - | BV132: - | BW132: - | BX132: 1 | BY132: 1 | BZ132: - | CA132: - | CB132: 1 | CC132: - | CD132: - | CE132: - | CF132: - | CG132: - | CH132: - | CI132: - | CJ132: - | CK132: - | CL132: - | CM132: - | CN132: - | CO132: - | CP132: - | CQ132: - | CR132: - | CS132: - | CT132: - | CU132: - | DC132: 9 | DD132: 8 | DE132: 5 | DF132: 3 | DG132: - | DH132: 1 | DI132: - | DJ132: - | DK132: 3 | DL132: - | DM132: - | DN132: - | DO132: - | DP132: - | DQ132: - | DR132: 3 | DS132: - | DT132: - | DU132: - | DV132: - | DW132: - | DX132: - | DY132: - | DZ132: - | EA132: 3 | EB132: 224 | EC132: - | ED132: 3 | EE132: 221 | EF132: 5 | EG132: 5 | EH132: 3 | EI132: 2 | EJ132: - | EK132: - | EL132: - | EM132: - | EN132: 4 | EO132: 3 | EP132: 2 | EQ132: 1 | ER132: - | ES132: 1 | ET132: - | EU132: -
A133: 長野県 | B133: 長野市 | C133: 古里村 | E133: 316 | F133: 153 | G133: 16 | H133: 13 | I133: 44 | J133: 17 | K133: 93 | L133: 163 | M133: 443 | N133: 12 | O133: 13 | P133: 19 | Q133: 16 | R133: 11 | S133: 16 | T133: 28 | U133: 44 | V133: 33 | W133: 47 | X133: 39 | Y133: 64 | Z133: 59 | AA133: 24 | AB133: 18 | AC133: 59.4 | AD133: 57.9 | AE133: 61.0 | AF133: 255 | AG133: - | AH133: - | AI133: - | AJ133: 5 | AK133: 1 | AL133: 2 | AM133: 4 | AN133: 12 | AO133: 11 | AP133: 31 | AQ133: 35 | AR133: 60 | AS133: 59 | AT133: 20 | AU133: 15 | AV133: 70.0 | AW133: 70.8 | AX133: 69.2 | AY133: 227 | AZ133: - | BA133: - | BB133: - | BC133: 3 | BD133: 1 | BE133: 2 | BF133: 3 | BG133: 9 | BH133: 9 | BI133: 27 | BJ133: 35 | BK133: 58 | BL133: 55 | BM133: 16 | BN133: 9 | BO133: 70.0 | BP133: 70.6 | BQ133: 69.4 | BR133: 153 | BS133: - | BT133: - | BU133: - | BV133: - | BW133: - | BX133: 1 | BY133: 2 | BZ133: 11 | CA133: 11 | CB133: 22 | CC133: 18 | CD133: 31 | CE133: 33 | CF133: 15 | CG133: 9 | CH133: 94 | CI133: - | CJ133: - | CK133: - | CL133: - | CM133: 1 | CN133: 7 | CO133: 6 | CP133: 11 | CQ133: 8 | CR133: 18 | CS133: 23 | CT133: 13 | CU133: 7 | DC133: 549 | DD133: 422 | DE133: 227 | DF133: 187 | DG133: 8 | DH133: 30 | DI133: 45 | DJ133: 52 | DK133: 149 | DL133: 31 | DM133: - | DN133: - | DO133: - | DP133: 3 | DQ133: 2 | DR133: 113 | DS133: - | DT133: - | DU133: - | DV133: - | DW133: - | DX133: - | DY133: - | DZ133: - | EA133: 153 | EB133: 10,489 | EC133: 4,256 | ED133: 1,705 | EE133: 4,528 | EF133: 265 | EG133: 224 | EH133: 110 | EI133: 108 | EJ133: 6 | EK133: - | EL133: 24 | EM133: 17 | EN133: 284 | EO133: 198 | EP133: 117 | EQ133: 79 | ER133: 2 | ES133: 30 | ET133: 21 | EU133: 35
A134: 長野県 | B134: 長野市 | C134: 古里村 | D134: 西富竹 | E134: 33 | F134: 13 | G134: 1 | H134: - | I134: 3 | J134: 2 | K134: 9 | L134: 20 | M134: 34 | N134: 1 | O134: 2 | P134: - | Q134: 1 | R134: - | S134: - | T134: 4 | U134: 3 | V134: 3 | W134: 4 | X134: 4 | Y134: 2 | Z134: 8 | AA134: 1 | AB134: 1 | AC134: 60.4 | AD134: 62.7 | AE134: 57.9 | AF134: 18 | AG134: - | AH134: - | AI134: - | AJ134: - | AK134: - | AL134: - | AM134: - | AN134: - | AO134: 2 | AP134: 2 | AQ134: 3 | AR134: 1 | AS134: 8 | AT134: 1 | AU134: 1 | AV134: 72.1 | AW134: 75.8 | AX134: 69.1 | AY134: 18 | AZ134: - | BA134: - | BB134: - | BC134: - | BD134: - | BE134: - | BF134: - | BG134: - | BH134: 2 | BI134: 2 | BJ134: 3 | BK134: 1 | BL134: 8 | BM134: 1 | BN134: 1 | BO134: 72.1 | BP134: 75.8 | BQ134: 69.1 | BR134: 13 | BS134: - | BT134: - | BU134: - | BV134: - | BW134: - | BX134: - | BY134: - | BZ134: - | CA134: 2 | CB134: 2 | CC134: 2 | CD134: 1 | CE134: 4 | CF134: 1 | CG134: 1 | CH134: 7 | CI134: - | CJ134: - | CK134: - | CL134: - | CM134: - | CN134: - | CO134: 1 | CP134: 1 | CQ134: 1 | CR134: - | CS134: 2 | CT134: 1 | CU134: 1 | DC134: 42 | DD134: 34 | DE134: 18 | DF134: 13 | DG134: 3 | DH134: 1 | DI134: 2 | DJ134: 5 | DK134: 12 | DL134: 5 | DM134: - | DN134: - | DO134: - | DP134: - | DQ134: - | DR134: 7 | DS134: - | DT134: - | DU134: - | DV134: - | DW134: - | DX134: - | DY134: - | DZ134: - | EA134: 13 | EB134: 790 | EC134: 400 | ED134: 163 | EE134: 227 | EF134: 20 | EG134: 18 | EH134: 8 | EI134: 7 | EJ134: 3 | EK134: - | EL134: 1 | EM134: 1 | EN134: 22 | EO134: 16 | EP134: 10 | EQ134: 6 | ER134: - | ES134: 1 | ET134: 1 | EU134: 4
A135: 長野県 | B135: 長野市 | C135: 古里村 | D135: 東富竹 | E135: 29 | F135: 16 | G135: - | H135: - | I135: 6 | J135: 2 | K135: 10 | L135: 13 | M135: 49 | N135: 3 | O135: 2 | P135: 4 | Q135: 1 | R135: - | S135: - | T135: 3 | U135: 9 | V135: 3 | W135: 5 | X135: 3 | Y135: 7 | Z135: 6 | AA135: 1 | AB135: 2 | AC135: 55.9 | AD135: 57.2 | AE135: 54.9 | AF135: 23 | AG135: - | AH135: - | AI135: - | AJ135: - | AK135: - | AL135: - | AM135: - | AN135: 4 | AO135: - | AP135: 2 | AQ135: 3 | AR135: 5 | AS135: 6 | AT135: 1 | AU135: 2 | AV135: 69.9 | AW135: 70.5 | AX135: 69.3 | AY135: 18 | AZ135: - | BA135: - | BB135: - | BC135: - | BD135: - | BE135: - | BF135: - | BG135: 3 | BH135: - | BI135: - | BJ135: 3 | BK135: 4 | BL135: 6 | BM135: - | BN135: 2 | BO135: 71.1 | BP135: 70.5 | BQ135: 72.0 | BR135: 16 | BS135: - | BT135: - | BU135: - | BV135: - | BW135: - | BX135: - | BY135: - | BZ135: 3 | CA135: 2 | CB135: 1 | CC135: 2 | CD135: 2 | CE135: 5 | CF135: - | CG135: 1 | CH135: 10 | CI135: - | CJ135: - | CK135: - | CL135: - | CM135: - | CN135: 3 | CO135: 1 | CP135: 1 | CQ135: - | CR135: - | CS135: 5 | CT135: - | CU135: - | DC135: 57 | DD135: 39 | DE135: 18 | DF135: 21 | DG135: - | DH135: 10 | DI135: 8 | DJ135: - | DK135: 14 | DL135: 4 | DM135: - | DN135: - | DO135: - | DP135: - | DQ135: 2 | DR135: 8 | DS135: - | DT135: - | DU135: - | DV135: - | DW135: - | DX135: - | DY135: - | DZ135: - | EA135: 16 | EB135: 780 | EC135: 460 | ED135: 65 | EE135: 255 | EF135: 26 | EG135: 22 | EH135: 11 | EI135: 11 | EJ135: - | EK135: - | EL135: 4 | EM135: - | EN135: 31 | EO135: 17 | EP135: 7 | EQ135: 10 | ER135: - | ES135: 10 | ET135: 4 | EU135: -
A136: 長野県 | B136: 長野市 | C136: 古里村 | D136: 荒屋 | E136: 16 | F136: 8 | G136: 3 | H136: 3 | I136: 2 | J136: 1 | K136: 3 | L136: 8 | M136: 22 | N136: 2 | O136: 1 | P136: - | Q136: - | R136: - | S136: - | T136: 4 | U136: 1 | V136: 4 | W136: 3 | X136: 1 | Y136: 3 | Z136: 1 | AA136: 2 | AB136: - | AC136: 56.0 | AD136: 50.0 | AE136: 60.9 | AF136: 12 | AG136: - | AH136: - | AI136: - | AJ136: - | AK136: - | AL136: - | AM136: 1 | AN136: - | AO136: 3 | AP136: 2 | AQ136: 1 | AR136: 3 | AS136: 1 | AT136: 1 | AU136: - | AV136: 65.3 | AW136: 63.8 | AX136: 66.1 | AY136: 12 | AZ136: - | BA136: - | BB136: - | BC136: - | BD136: - | BE136: - | BF136: 1 | BG136: - | BH136: 3 | BI136: 2 | BJ136: 1 | BK136: 3 | BL136: 1 | BM136: 1 | BN136: - | BO136: 65.3 | BP136: 63.8 | BQ136: 66.1 | BR136: 8 | BS136: - | BT136: - | BU136: - | BV136: - | BW136: - | BX136: - | BY136: 1 | BZ136: - | CA136: 2 | CB136: 2 | CC136: 1 | CD136: 1 | CE136: 1 | CF136: - | CG136: - | CH136: 3 | CI136: - | CJ136: - | CK136: - | CL136: - | CM136: 1 | CN136: - | CO136: 1 | CP136: - | CQ136: - | CR136: - | CS136: 1 | CT136: - | CU136: - | DC136: 29 | DD136: 19 | DE136: 12 | DF136: 7 | DG136: - | DH136: 1 | DI136: 3 | DJ136: 6 | DK136: 8 | DL136: 3 | DM136: - | DN136: - | DO136: - | DP136: - | DQ136: - | DR136: 5 | DS136: - | DT136: - | DU136: - | DV136: - | DW136: - | DX136: - | DY136: - | DZ136: - | EA136: 8 | EB136: 370 | EC136: 180 | ED136: 22 | EE136: 168 | EF136: 11 | EG136: 9 | EH136: 4 | EI136: 5 | EJ136: - | EK136: - | EL136: 2 | EM136: - | EN136: 18 | EO136: 10 | EP136: 8 | EQ136: 2 | ER136: - | ES136: 1 | ET136: 1 | EU136: 6
A137: 長野県 | B137: 長野市 | C137: 古里村 | D137: 金箱 | E137: 32 | F137: 20 | G137: 1 | H137: 1 | I137: 6 | J137: - | K137: 13 | L137: 12 | M137: 68 | N137: 5 | O137: 2 | P137: 2 | Q137: 2 | R137: 1 | S137: 4 | T137: 7 | U137: 3 | V137: 6 | W137: 9 | X137: 2 | Y137: 8 | Z137: 11 | AA137: 2 | AB137: 4 | AC137: 57.6 | AD137: 53.5 | AE137: 62.2 | AF137: 31 | AG137: - | AH137: - | AI137: - | AJ137: 1 | AK137: - | AL137: - | AM137: - | AN137: - | AO137: 2 | AP137: 4 | AQ137: 2 | AR137: 7 | AS137: 11 | AT137: 2 | AU137: 2 | AV137: 71.8 | AW137: 72.9 | AX137: 70.9 | AY137: 25 | AZ137: - | BA137: - | BB137: - | BC137: - | BD137: - | BE137: - | BF137: - | BG137: - | BH137: - | BI137: 4 | BJ137: 2 | BK137: 7 | BL137: 10 | BM137: 1 | BN137: 1 | BO137: 73.2 | BP137: 75.3 | BQ137: 71.5 | BR137: 20 | BS137: - | BT137: - | BU137: - | BV137: - | BW137: - | BX137: - | BY137: - | BZ137: 1 | CA137: 1 | CB137: 6 | CC137: - | CD137: 4 | CE137: 6 | CF137: 1 | CG137: 1 | CH137: 12 | CI137: - | CJ137: - | CK137: - | CL137: - | CM137: - | CN137: 1 | CO137: 1 | CP137: 2 | CQ137: - | CR137: 3 | CS137: 3 | CT137: 1 | CU137: 1 | DC137: 80 | DD137: 56 | DE137: 25 | DF137: 30 | DG137: 1 | DH137: 5 | DI137: 9 | DJ137: 10 | DK137: 20 | DL137: 3 | DM137: - | DN137: - | DO137: - | DP137: - | DQ137: - | DR137: 17 | DS137: - | DT137: - | DU137: - | DV137: - | DW137: - | DX137: - | DY137: - | DZ137: - | EA137: 20 | EB137: 1,900 | EC137: 831 | ED137: 651 | EE137: 418 | EF137: 37 | EG137: 26 | EH137: 11 | EI137: 14 | EJ137: 1 | EK137: - | EL137: 5 | EM137: 6 | EN137: 43 | EO137: 30 | EP137: 14 | EQ137: 16 | ER137: - | ES137: 5 | ET137: 4 | EU137: 4
A138: 長野県 | B138: 長野市 | C138: 古里村 | D138: 下駒沢 | E138: 48 | F138: 24 | G138: 2 | H138: 1 | I138: 3 | J138: 2 | K138: 19 | L138: 24 | M138: 68 | N138: 1 | O138: 2 | P138: 5 | Q138: 1 | R138: 2 | S138: 4 | T138: 3 | U138: 6 | V138: 4 | W138: 5 | X138: 4 | Y138: 15 | Z138: 6 | AA138: 5 | AB138: 5 | AC138: 60.9 | AD138: 60.6 | AE138: 61.3 | AF138: 41 | AG138: - | AH138: - | AI138: - | AJ138: - | AK138: - | AL138: - | AM138: - | AN138: 2 | AO138: 1 | AP138: 3 | AQ138: 4 | AR138: 15 | AS138: 6 | AT138: 5 | AU138: 5 | AV138: 73.9 | AW138: 75.0 | AX138: 72.5 | AY138: 36 | AZ138: - | BA138: - | BB138: - | BC138: - | BD138: - | BE138: - | BF138: - | BG138: 2 | BH138: 1 | BI138: 2 | BJ138: 4 | BK138: 14 | BL138: 6 | BM138: 4 | BN138: 3 | BO138: 73.1 | BP138: 73.5 | BQ138: 72.5 | BR138: 24 | BS138: - | BT138: - | BU138: - | BV138: - | BW138: - | BX138: 1 | BY138: - | BZ138: - | CA138: - | CB138: 4 | CC138: - | CD138: 9 | CE138: 3 | CF138: 4 | CG138: 3 | CH138: 17 | CI138: - | CJ138: - | CK138: - | CL138: - | CM138: - | CN138: - | CO138: - | CP138: 3 | CQ138: - | CR138: 6 | CS138: 2 | CT138: 3 | CU138: 3 | DC138: 77 | DD138: 63 | DE138: 36 | DF138: 26 | DG138: 1 | DH138: 1 | DI138: 5 | DJ138: 8 | DK138: 23 | DL138: 4 | DM138: - | DN138: - | DO138: - | DP138: 3 | DQ138: - | DR138: 16 | DS138: - | DT138: - | DU138: - | DV138: - | DW138: - | DX138: - | DY138: - | DZ138: - | EA138: 24 | EB138: 1,145 | EC138: 479 | ED138: 165 | EE138: 501 | EF138: 42 | EG138: 34 | EH138: 19 | EI138: 14 | EJ138: 1 | EK138: - | EL138: 4 | EM138: 4 | EN138: 35 | EO138: 29 | EP138: 17 | EQ138: 12 | ER138: - | ES138: 1 | ET138: 1 | EU138: 4
A139: 長野県 | B139: 長野市 | C139: 古里村 | D139: 上駒沢 | E139: 55 | F139: 16 | G139: - | H139: - | I139: 6 | J139: 3 | K139: 10 | L139: 39 | M139: 46 | N139: - | O139: 1 | P139: 2 | Q139: 2 | R139: - | S139: 2 | T139: 3 | U139: 8 | V139: 2 | W139: 2 | X139: 9 | Y139: 5 | Z139: 7 | AA139: 2 | AB139: 1 | AC139: 60.2 | AD139: 57.1 | AE139: 63.5 | AF139: 27 | AG139: - | AH139: - | AI139: - | AJ139: - | AK139: - | AL139: - | AM139: - | AN139: 1 | AO139: 1 | AP139: 2 | AQ139: 8 | AR139: 5 | AS139: 7 | AT139: 2 | AU139: 1 | AV139: 71.1 | AW139: 72.7 | AX139: 70.0 | AY139: 26 | AZ139: - | BA139: - | BB139: - | BC139: - | BD139: - | BE139: - | BF139: - | BG139: 1 | BH139: 1 | BI139: 2 | BJ139: 8 | BK139: 5 | BL139: 6 | BM139: 2 | BN139: 1 | BO139: 70.9 | BP139: 72.7 | BQ139: 69.5 | BR139: 16 | BS139: - | BT139: - | BU139: - | BV139: - | BW139: - | BX139: - | BY139: - | BZ139: 3 | CA139: 1 | CB139: - | CC139: 5 | CD139: 2 | CE139: 3 | CF139: 2 | CG139: - | CH139: 10 | CI139: - | CJ139: - | CK139: - | CL139: - | CM139: - | CN139: 2 | CO139: 1 | CP139: - | CQ139: 3 | CR139: 1 | CS139: 2 | CT139: 1 | CU139: - | DC139: 55 | DD139: 48 | DE139: 26 | DF139: 19 | DG139: 3 | DH139: 2 | DI139: 4 | DJ139: 1 | DK139: 16 | DL139: 3 | DM139: - | DN139: - | DO139: - | DP139: - | DQ139: - | DR139: 13 | DS139: - | DT139: - | DU139: - | DV139: - | DW139: - | DX139: - | DY139: - | DZ139: - | EA139: 16 | EB139: 1,283 | EC139: 402 | ED139: 289 | EE139: 592 | EF139: 25 | EG139: 24 | EH139: 11 | EI139: 12 | EJ139: 1 | EK139: - | EL139: 1 | EM139: - | EN139: 30 | EO139: 24 | EP139: 15 | EQ139: 7 | ER139: 2 | ES139: 2 | ET139: 3 | EU139: 1
A140: 長野県 | B140: 長野市 | C140: 古里村 | D140: 三才 | E140: 103 | F140: 56 | G140: 9 | H140: 8 | I140: 18 | J140: 7 | K140: 29 | L140: 47 | M140: 156 | N140: - | O140: 3 | P140: 6 | Q140: 9 | R140: 8 | S140: 6 | T140: 4 | U140: 14 | V140: 11 | W140: 19 | X140: 16 | Y140: 24 | Z140: 20 | AA140: 11 | AB140: 5 | AC140: 60.7 | AD140: 59.1 | AE140: 62.5 | AF140: 103 | AG140: - | AH140: - | AI140: - | AJ140: 4 | AK140: 1 | AL140: 2 | AM140: 3 | AN140: 5 | AO140: 2 | AP140: 16 | AQ140: 14 | AR140: 24 | AS140: 20 | AT140: 8 | AU140: 4 | AV140: 67.8 | AW140: 67.8 | AX140: 67.8 | AY140: 92 | AZ140: - | BA140: - | BB140: - | BC140: 3 | BD140: 1 | BE140: 2 | BF140: 2 | BG140: 3 | BH140: 2 | BI140: 15 | BJ140: 14 | BK140: 24 | BL140: 18 | BM140: 7 | BN140: 1 | BO140: 67.6 | BP140: 67.4 | BQ140: 67.8 | BR140: 56 | BS140: - | BT140: - | BU140: - | BV140: - | BW140: - | BX140: - | BY140: 1 | BZ140: 4 | CA140: 3 | CB140: 7 | CC140: 8 | CD140: 12 | CE140: 11 | CF140: 7 | CG140: 3 | CH140: 35 | CI140: - | CJ140: - | CK140: - | CL140: - | CM140: - | CN140: 1 | CO140: 1 | CP140: 4 | CQ140: 4 | CR140: 8 | CS140: 8 | CT140: 7 | CU140: 2 | DC140: 209 | DD140: 163 | DE140: 92 | DF140: 71 | DG140: - | DH140: 10 | DI140: 14 | DJ140: 22 | DK140: 56 | DL140: 9 | DM140: - | DN140: - | DO140: - | DP140: - | DQ140: - | DR140: 47 | DS140: - | DT140: - | DU140: - | DV140: - | DW140: - | DX140: - | DY140: - | DZ140: - | EA140: 56 | EB140: 4,221 | EC140: 1,504 | ED140: 350 | EE140: 2,367 | EF140: 104 | EG140: 91 | EH140: 46 | EI140: 45 | EJ140: - | EK140: - | EL140: 7 | EM140: 6 | EN140: 105 | EO140: 72 | EP140: 46 | EQ140: 26 | ER140: - | ES140: 10 | ET140: 7 | EU140: 16
A141: 長野県 | B141: 長野市 | C141: 長沼村 | E141: 333 | F141: 254 | G141: 92 | H141: 86 | I141: 56 | J141: 34 | K141: 106 | L141: 79 | M141: 706 | N141: 18 | O141: 15 | P141: 17 | Q141: 21 | R141: 30 | S141: 39 | T141: 58 | U141: 60 | V141: 51 | W141: 79 | X141: 80 | Y141: 77 | Z141: 73 | AA141: 55 | AB141: 33 | AC141: 59.6 | AD141: 59.6 | AE141: 59.6 | AF141: 527 | AG141: 9 | AH141: 4 | AI141: 3 | AJ141: 10 | AK141: 18 | AL141: 19 | AM141: 29 | AN141: 38 | AO141: 35 | AP141: 59 | AQ141: 77 | AR141: 75 | AS141: 71 | AT141: 52 | AU141: 28 | AV141: 64.2 | AW141: 65.4 | AX141: 63.0 | AY141: 470 | AZ141: - | BA141: 1 | BB141: 2 | BC141: 5 | BD141: 10 | BE141: 15 | BF141: 26 | BG141: 35 | BH141: 34 | BI141: 58 | BJ141: 77 | BK141: 74 | BL141: 68 | BM141: 43 | BN141: 22 | BO141: 65.9 | BP141: 66.1 | BQ141: 65.7 | BR141: 254 | BS141: - | BT141: - | BU141: - | BV141: 1 | BW141: 2 | BX141: 5 | BY141: 11 | BZ141: 28 | CA141: 18 | CB141: 36 | CC141: 38 | CD141: 34 | CE141: 44 | CF141: 24 | CG141: 13 | CH141: 125 | CI141: - | CJ141: - | CK141: 1 | CL141: - | CM141: 1 | CN141: 6 | CO141: 5 | CP141: 20 | CQ141: 18 | CR141: 21 | CS141: 24 | CT141: 17 | CU141: 12 | DC141: 900 | DD141: 701 | DE141: 470 | DF141: 209 | DG141: 22 | DH141: 38 | DI141: 84 | DJ141: 77 | DK141: 252 | DL141: 2 | DM141: - | DN141: - | DO141: - | DP141: - | DQ141: 5 | DR141: 242 | DS141: 3 | DT141: - | DU141: - | DV141: - | DW141: - | DX141: - | DY141: - | DZ141: - | EA141: 254 | EB141: 22,736 | EC141: 2,734 | ED141: 780 | EE141: 19,222 | EF141: 442 | EG141: 369 | EH141: 229 | EI141: 125 | EJ141: 15 | EK141: 1 | EL141: 47 | EM141: 25 | EN141: 458 | EO141: 332 | EP141: 241 | EQ141: 84 | ER141: 7 | ES141: 37 | ET141: 37 | EU141: 52
A142: 長野県 | B142: 長野市 | C142: 長沼村 | D142: 大町 | E142: 68 | F142: 50 | G142: 18 | H142: 18 | I142: 15 | J142: 11 | K142: 17 | L142: 18 | M142: 147 | N142: 2 | O142: 4 | P142: 2 | Q142: 8 | R142: 8 | S142: 13 | T142: 13 | U142: 11 | V142: 12 | W142: 16 | X142: 12 | Y142: 13 | Z142: 17 | AA142: 11 | AB142: 5 | AC142: 58.0 | AD142: 57.7 | AE142: 58.3 | AF142: 102 | AG142: - | AH142: - | AI142: - | AJ142: 5 | AK142: 6 | AL142: 7 | AM142: 5 | AN142: 6 | AO142: 5 | AP142: 13 | AQ142: 11 | AR142: 13 | AS142: 16 | AT142: 10 | AU142: 5 | AV142: 63.3 | AW142: 64.4 | AX142: 62.4 | AY142: 92 | AZ142: - | BA142: - | BB142: - | BC142: 3 | BD142: 3 | BE142: 6 | BF142: 5 | BG142: 5 | BH142: 5 | BI142: 13 | BJ142: 11 | BK142: 12 | BL142: 16 | BM142: 9 | BN142: 4 | BO142: 64.6 | BP142: 63.8 | BQ142: 65.3 | BR142: 50 | BS142: - | BT142: - | BU142: - | BV142: 1 | BW142: 1 | BX142: 2 | BY142: 3 | BZ142: 3 | CA142: 6 | CB142: 7 | CC142: 5 | CD142: 6 | CE142: 8 | CF142: 6 | CG142: 2 | CH142: 24 | CI142: - | CJ142: - | CK142: - | CL142: - | CM142: - | CN142: 1 | CO142: - | CP142: 5 | CQ142: 3 | CR142: 5 | CS142: 5 | CT142: 4 | CU142: 1 | DC142: 196 | DD142: 144 | DE142: 92 | DF142: 46 | DG142: 6 | DH142: 15 | DI142: 24 | DJ142: 13 | DK142: 50 | DL142: - | DM142: - | DN142: - | DO142: - | DP142: - | DQ142: 1 | DR142: 48 | DS142: 1 | DT142: - | DU142: - | DV142: - | DW142: - | DX142: - | DY142: - | DZ142: - | EA142: 50 | EB142: 4,270 | EC142: 570 | ED142: 146 | EE142: 3,554 | EF142: 92 | EG142: 75 | EH142: 44 | EI142: 26 | EJ142: 5 | EK142: - | EL142: 13 | EM142: 4 | EN142: 104 | EO142: 69 | EP142: 48 | EQ142: 20 | ER142: 1 | ES142: 15 | ET142: 11 | EU142: 9
A143: 長野県 | B143: 長野市 | C143: 長沼村 | D143: 穂保 | E143: 63 | F143: 41 | G143: 15 | H143: 15 | I143: 12 | J143: 7 | K143: 14 | L143: 22 | M143: 119 | N143: 4 | O143: 5 | P143: 3 | Q143: 1 | R143: 2 | S143: 8 | T143: 10 | U143: 8 | V143: 8 | W143: 15 | X143: 18 | Y143: 14 | Z143: 10 | AA143: 5 | AB143: 8 | AC143: 59.2 | AD143: 60.2 | AE143: 58.1 | AF143: 84 | AG143: 1 | AH143: - | AI143: - | AJ143: - | AK143: 2 | AL143: 2 | AM143: 6 | AN143: 5 | AO143: 8 | AP143: 11 | AQ143: 16 | AR143: 14 | AS143: 10 | AT143: 4 | AU143: 5 | AV143: 64.9 | AW143: 67.4 | AX143: 62.8 | AY143: 79 | AZ143: - | BA143: - | BB143: - | BC143: - | BD143: - | BE143: 2 | BF143: 5 | BG143: 5 | BH143: 8 | BI143: 11 | BJ143: 16 | BK143: 14 | BL143: 10 | BM143: 3 | BN143: 5 | BO143: 66.3 | BP143: 67.1 | BQ143: 65.6 | BR143: 41 | BS143: - | BT143: - | BU143: - | BV143: - | BW143: - | BX143: 1 | BY143: - | BZ143: 6 | CA143: 3 | CB143: 6 | CC143: 9 | CD143: 7 | CE143: 8 | CF143: - | CG143: 1 | CH143: 17 | CI143: - | CJ143: - | CK143: - | CL143: - | CM143: - | CN143: 1 | CO143: 2 | CP143: 4 | CQ143: 3 | CR143: 3 | CS143: 3 | CT143: - | CU143: 1 | DC143: 157 | DD143: 129 | DE143: 79 | DF143: 48 | DG143: 2 | DH143: 6 | DI143: 9 | DJ143: 13 | DK143: 41 | DL143: - | DM143: - | DN143: - | DO143: - | DP143: - | DQ143: 1 | DR143: 39 | DS143: 1 | DT143: - | DU143: - | DV143: - | DW143: - | DX143: - | DY143: - | DZ143: - | EA143: 41 | EB143: 3,218 | EC143: 336 | ED143: 123 | EE143: 2,759 | EF143: 78 | EG143: 68 | EH143: 38 | EI143: 28 | EJ143: 2 | EK143: 1 | EL143: 4 | EM143: 5 | EN143: 79 | EO143: 61 | EP143: 41 | EQ143: 20 | ER143: - | ES143: 5 | ET143: 5 | EU143: 8
A144: 長野県 | B144: 長野市 | C144: 長沼村 | D144: 津野 | E144: 39 | F144: 30 | G144: 8 | H144: 6 | I144: 5 | J144: 3 | K144: 17 | L144: 9 | M144: 87 | N144: 5 | O144: 3 | P144: 4 | Q144: 1 | R144: 1 | S144: 3 | T144: 9 | U144: 10 | V144: 5 | W144: 6 | X144: 5 | Y144: 10 | Z144: 14 | AA144: 9 | AB144: 2 | AC144: 58.5 | AD144: 56.9 | AE144: 59.9 | AF144: 65 | AG144: 3 | AH144: 3 | AI144: 1 | AJ144: - | AK144: 1 | AL144: 1 | AM144: 3 | AN144: 7 | AO144: 4 | AP144: 2 | AQ144: 5 | AR144: 10 | AS144: 14 | AT144: 9 | AU144: 2 | AV144: 63.3 | AW144: 62.5 | AX144: 63.9 | AY144: 54 | AZ144: - | BA144: 1 | BB144: 1 | BC144: - | BD144: - | BE144: 1 | BF144: 2 | BG144: 6 | BH144: 4 | BI144: 2 | BJ144: 5 | BK144: 10 | BL144: 14 | BM144: 7 | BN144: 1 | BO144: 67.3 | BP144: 68.2 | BQ144: 66.5 | BR144: 30 | BS144: - | BT144: - | BU144: - | BV144: - | BW144: - | BX144: - | BY144: 1 | BZ144: 4 | CA144: 2 | CB144: 5 | CC144: 2 | CD144: 3 | CE144: 8 | CF144: 5 | CG144: - | CH144: 17 | CI144: - | CJ144: - | CK144: - | CL144: - | CM144: - | CN144: - | CO144: 1 | CP144: 4 | CQ144: 1 | CR144: 2 | CS144: 5 | CT144: 4 | CU144: - | DC144: 101 | DD144: 76 | DE144: 54 | DF144: 18 | DG144: 4 | DH144: 2 | DI144: 14 | DJ144: 9 | DK144: 30 | DL144: 1 | DM144: - | DN144: - | DO144: - | DP144: - | DQ144: - | DR144: 29 | DS144: - | DT144: - | DU144: - | DV144: - | DW144: - | DX144: - | DY144: - | DZ144: - | EA144: 30 | EB144: 2,660 | EC144: 505 | ED144: 111 | EE144: 2,044 | EF144: 48 | EG144: 39 | EH144: 25 | EI144: 11 | EJ144: 3 | EK144: - | EL144: 8 | EM144: 1 | EN144: 53 | EO144: 37 | EP144: 29 | EQ144: 7 | ER144: 1 | ES144: 2 | ET144: 6 | EU144: 8
A145: 長野県 | B145: 長野市 | C145: 長沼村 | D145: 赤沼 | E145: 163 | F145: 133 | G145: 51 | H145: 47 | I145: 24 | J145: 13 | K145: 58 | L145: 30 | M145: 353 | N145: 7 | O145: 3 | P145: 8 | Q145: 11 | R145: 19 | S145: 15 | T145: 26 | U145: 31 | V145: 26 | W145: 42 | X145: 45 | Y145: 40 | Z145: 32 | AA145: 30 | AB145: 18 | AC145: 60.7 | AD145: 60.7 | AE145: 60.7 | AF145: 276 | AG145: 5 | AH145: 1 | AI145: 2 | AJ145: 5 | AK145: 9 | AL145: 9 | AM145: 15 | AN145: 20 | AO145: 18 | AP145: 33 | AQ145: 45 | AR145: 38 | AS145: 31 | AT145: 29 | AU145: 16 | AV145: 64.4 | AW145: 65.8 | AX145: 63.1 | AY145: 245 | AZ145: - | BA145: - | BB145: 1 | BC145: 2 | BD145: 7 | BE145: 6 | BF145: 14 | BG145: 19 | BH145: 17 | BI145: 32 | BJ145: 45 | BK145: 38 | BL145: 28 | BM145: 24 | BN145: 12 | BO145: 65.9 | BP145: 66.2 | BQ145: 65.6 | BR145: 133 | BS145: - | BT145: - | BU145: - | BV145: - | BW145: 1 | BX145: 2 | BY145: 7 | BZ145: 15 | CA145: 7 | CB145: 18 | CC145: 22 | CD145: 18 | CE145: 20 | CF145: 13 | CG145: 10 | CH145: 67 | CI145: - | CJ145: - | CK145: 1 | CL145: - | CM145: 1 | CN145: 4 | CO145: 2 | CP145: 7 | CQ145: 11 | CR145: 11 | CS145: 11 | CT145: 9 | CU145: 10 | DC145: 446 | DD145: 352 | DE145: 245 | DF145: 97 | DG145: 10 | DH145: 15 | DI145: 37 | DJ145: 42 | DK145: 131 | DL145: 1 | DM145: - | DN145: - | DO145: - | DP145: - | DQ145: 3 | DR145: 126 | DS145: 1 | DT145: - | DU145: - | DV145: - | DW145: - | DX145: - | DY145: - | DZ145: - | EA145: 133 | EB145: 12,588 | EC145: 1,323 | ED145: 400 | EE145: 10,865 | EF145: 224 | EG145: 187 | EH145: 122 | EI145: 60 | EJ145: 5 | EK145: - | EL145: 22 | EM145: 15 | EN145: 222 | EO145: 165 | EP145: 123 | EQ145: 37 | ER145: 5 | ES145: 15 | ET145: 15 | EU145: 27
A146: 長野県 | B146: 長野市 | C146: 柳原村（長野市） | E146: 186 | F146: 88 | G146: 17 | H146: 14 | I146: 26 | J146: 11 | K146: 45 | L146: 98 | M146: 250 | N146: 4 | O146: 7 | P146: 11 | Q146: 10 | R146: 13 | S146: 10 | T146: 8 | U146: 18 | V146: 21 | W146: 38 | X146: 36 | Y146: 27 | Z146: 21 | AA146: 13 | AB146: 13 | AC146: 59.2 | AD146: 57.8 | AE146: 60.7 | AF146: 167 | AG146: 3 | AH146: 4 | AI146: - | AJ146: 2 | AK146: 5 | AL146: 3 | AM146: 1 | AN146: 8 | AO146: 8 | AP146: 29 | AQ146: 32 | AR146: 26 | AS146: 20 | AT146: 13 | AU146: 13 | AV146: 66.0 | AW146: 65.6 | AX146: 66.2 | AY146: 130 | AZ146: - | BA146: - | BB146: - | BC146: - | BD146: 2 | BE146: 1 | BF146: - | BG146: 6 | BH146: 6 | BI146: 26 | BJ146: 32 | BK146: 22 | BL146: 19 | BM146: 9 | BN146: 7 | BO146: 68.8 | BP146: 68.6 | BQ146: 69.0 | BR146: 88 | BS146: - | BT146: - | BU146: - | BV146: - | BW146: - | BX146: 1 | BY146: 2 | BZ146: 4 | CA146: 7 | CB146: 16 | CC146: 19 | CD146: 15 | CE146: 13 | CF146: 6 | CG146: 5 | CH146: 57 | CI146: - | CJ146: - | CK146: - | CL146: - | CM146: 1 | CN146: 1 | CO146: 4 | CP146: 9 | CQ146: 14 | CR146: 11 | CS146: 7 | CT146: 5 | CU146: 5 | DC146: 297 | DD146: 234 | DE146: 130 | DF146: 100 | DG146: 4 | DH146: 16 | DI146: 17 | DJ146: 30 | DK146: 84 | DL146: 13 | DM146: - | DN146: - | DO146: - | DP146: 1 | DQ146: 1 | DR146: 68 | DS146: - | DT146: - | DU146: - | DV146: - | DW146: 1 | DX146: - | DY146: - | DZ146: - | EA146: 88 | EB146: 5,969 | EC146: 2,678 | ED146: 667 | EE146: 2,624 | EF146: 146 | EG146: 123 | EH146: 59 | EI146: 60 | EJ146: 4 | EK146: - | EL146: 9 | EM146: 14 | EN146: 151 | EO146: 111 | EP146: 71 | EQ146: 40 | ER146: - | ES146: 16 | ET146: 8 | EU146: 16
A147: 長野県 | B147: 長野市 | C147: 柳原村（長野市） | D147: 小島 | E147: 41 | F147: 21 | G147: 2 | H147: 1 | I147: 5 | J147: 1 | K147: 14 | L147: 20 | M147: 58 | N147: 1 | O147: 2 | P147: 1 | Q147: 3 | R147: 5 | S147: 2 | T147: 3 | U147: 5 | V147: 3 | W147: 6 | X147: 9 | Y147: 8 | Z147: 5 | AA147: 3 | AB147: 2 | AC147: 58.3 | AD147: 58.8 | AE147: 57.9 | AF147: 35 | AG147: - | AH147: - | AI147: - | AJ147: 1 | AK147: 2 | AL147: 1 | AM147: - | AN147: 1 | AO147: - | AP147: 4 | AQ147: 8 | AR147: 8 | AS147: 5 | AT147: 3 | AU147: 2 | AV147: 67.7 | AW147: 72.1 | AX147: 64.5 | AY147: 28 | AZ147: - | BA147: - | BB147: - | BC147: - | BD147: - | BE147: - | BF147: - | BG147: 1 | BH147: - | BI147: 4 | BJ147: 8 | BK147: 7 | BL147: 5 | BM147: 2 | BN147: 1 | BO147: 70.8 | BP147: 70.6 | BQ147: 70.9 | BR147: 21 | BS147: - | BT147: - | BU147: - | BV147: - | BW147: - | BX147: - | BY147: 2 | BZ147: 2 | CA147: 1 | CB147: 3 | CC147: 2 | CD147: 6 | CE147: 3 | CF147: 1 | CG147: 1 | CH147: 13 | CI147: - | CJ147: - | CK147: - | CL147: - | CM147: 1 | CN147: 1 | CO147: - | CP147: 1 | CQ147: 2 | CR147: 4 | CS147: 2 | CT147: 1 | CU147: 1 | DC147: 69 | DD147: 55 | DE147: 28 | DF147: 25 | DG147: 2 | DH147: 4 | DI147: 5 | DJ147: 5 | DK147: 19 | DL147: 6 | DM147: - | DN147: - | DO147: - | DP147: - | DQ147: 1 | DR147: 12 | DS147: - | DT147: - | DU147: - | DV147: - | DW147: - | DX147: - | DY147: - | DZ147: - | EA147: 21 | EB147: 1,375 | EC147: 916 | ED147: 144 | EE147: 315 | EF147: 35 | EG147: 30 | EH147: 13 | EI147: 15 | EJ147: 2 | EK147: - | EL147: 2 | EM147: 3 | EN147: 34 | EO147: 25 | EP147: 15 | EQ147: 10 | ER147: - | ES147: 4 | ET147: 3 | EU147: 2
